Workbook

Sheet InputC
C1: Scenario | E1: 1
C3: Project Start Date | E3: Date | F3: =INDEX(H3:N3,$E$1) -> 2026-01-01 | H3: 2026-01-01 | I3: 2026-01-01 | J3: 2026-01-01 | K3: 2026-01-01 | L3: 2026-01-01 | M3: 2026-01-01 | N3: 2026-01-01
C4: Construction Period | E4: Months | F4: =INDEX(H4:N4,$E$1) -> 100 | H4: 100 | I4: 100 | J4: 100 | K4: 100 | L4: 150 | M4: 100 | N4: 160
C5: End of Construciton | E5: Date | F5: =INDEX(H5:N5,$E$1) -> 2034-05-31 | H5: =EOMONTH(H3,H4) -> 2034-05-31 | I5: =EOMONTH(I3,I4) -> 2034-05-31 | J5: =EOMONTH(J3,J4) -> 2034-05-31 | K5: =EOMONTH(K3,K4) -> 2034-05-31 | L5: =EOMONTH(L3,L4) -> 2038-07-31 | M5: =EOMONTH(M3,M4) -> 2034-05-31 | N5: =EOMONTH(N3,N4) -> 2039-05-31
C6: Begininig of Operation | E6: Date | F6: =INDEX(H6:N6,$E$1) -> 2034-06-01 | H6: =H5+1 -> 2034-06-01 | I6: =I5+1 -> 2034-06-01 | J6: 2034-06-01 | K6: 2034-06-01 | L6: 2038-08-01 | M6: 2034-06-01 | N6: 2039-06-01
C7: Operation Years | E7: Years | F7: =INDEX(H7:N7,$E$1) -> 60 | H7: 60 | I7: 60 | J7: 60 | K7: 70 | L7: 60 | M7: 60 | N7: 60
C8: End of Life | E8: Date | F8: =INDEX(H8:N8,$E$1) -> 2094-05-31 | H8: =EDATE(H5,H7*12) -> 2094-05-31 | I8: =EDATE(I5,I7*12) -> 2094-05-31 | J8: 2094-05-31 | K8: 2104-05-31 | L8: 2098-07-31 | M8: 2094-05-31 | N8: 2099-05-31
C9: Months in Period During Construction | E9: Months | F9: =INDEX(H9:N9,$E$1) -> 1 | H9: 1 | I9: 1 | J9: 1 | K9: 1 | L9: 1 | M9: 1 | N9: 1
C10: Months in Period During Operation | E10: Months | F10: =INDEX(H10:N10,$E$1) -> 6 | H10: 6 | I10: 6 | J10: 6 | K10: 6 | L10: 6 | M10: 6 | N10: 6
C11: Maximum Columns | E11: Periods | F11: =INDEX(H11:N11,$E$1) -> 220 | H11: =H4*H9+12/H10*H7 -> 220 | I11: =I4*I9+12/I10*I7 -> 220 | J11: 220 | K11: 240 | L11: 270 | M11: 220 | N11: 280
B13: Operations
C14: Capacity | E14: MW | F14: =INDEX(H14:N14,$E$1) -> 1000 | H14: 1000 | I14: 1000 | J14: 1000 | K14: 1000 | L14: 1000 | M14: 1000 | N14: 1000
C15: Capacity Factor | E15: % | F15: =INDEX(H15:N15,$E$1) -> 0.92 | H15: 0.92 | I15: 0.92 | J15: 0.89 | K15: 0.92 | L15: 0.92 | M15: 0.92 | N15: 0.89
C17: Heat Rate | E17: MMBTU/MWH | F17: =INDEX(H17:N17,$E$1) -> 10 | H17: 10 | I17: 10 | J17: 10 | K17: 10 | L17: 10 | M17: 10 | N17: 10
B19: Operating Cash Flow
C20: Inflation Rate | E20: % p.a. | F20: =INDEX(H20:N20,$E$1) -> 0.02 | H20: 0.02 | I20: 0.02 | J20: 0.02 | K20: 0.02 | L20: 0.02 | M20: 0.02 | N20: 0.02
C21: Construction Cost
D22: Total EPC Cost | E22: USD/kW | F22: =INDEX(H22:N22,$E$1) -> 7000 | H22: 7000 | I22: 9000 | J22: 7000 | K22: 7000 | L22: 7000 | M22: 7000 | N22: 8000
D23: Owners Cost | E23: USD/kW | F23: =INDEX(H23:N23,$E$1) -> 200 | H23: 200 | I23: 200 | J23: 200 | K23: 200 | L23: 200 | M23: 200 | N23: 200
D24: Development Cost | E24: USD/kW | F24: =INDEX(H24:N24,$E$1) -> 300 | H24: 300 | I24: 300 | J24: 300 | K24: 300 | L24: 300 | M24: 300 | N24: 300
C26: Operating Expense
D27: Fuel Expense per MMBTU | E27: USD/MMBTU | F27: =INDEX(H27:N27,$E$1) -> 0.85 | H27: 0.85 | I27: 0.85 | J27: 0.85 | K27: 0.85 | L27: 0.85 | M27: 0.85 | N27: 0.85
D29: Fixed Operation and Maintenance | E29: USD/kW-year | F29: =INDEX(H29:N29,$E$1) -> 150 | H29: 150 | I29: 150 | J29: 150 | K29: 150 | L29: 150 | M29: 250 | N29: 250
C31: Price
D32: Capacity Charge | E32: USD/kW-year | F32: =INDEX(H32:N32,$E$1) -> 500 | H32: 500 | I32: 500 | J32: 500 | K32: 500 | L32: 500 | M32: 500 | N32: 500
D33: Fixed OM Charge | E33: USD/kW-year | F33: =INDEX(H33:N33,$E$1) -> 150 | H33: =H29 -> 150 | I33: =I29 -> 150 | J33: =J29 -> 150 | K33: =K29 -> 150 | L33: =L29 -> 150 | M33: =M29 -> 250 | N33: =N29 -> 250
C35: Taxes and Depreciation
D36: Depreciation Life | E36: Years | F36: =INDEX(H36:N36,$E$1) -> 50 | H36: 50 | I36: 50 | J36: 50 | K36: 50 | L36: 50 | M36: 50 | N36: 50
D37: Income Tax Rate | E37: % | F37: =INDEX(H37:N37,$E$1) -> 0.2 | H37: 0.2 | I37: 0.2 | J37: 0.2 | K37: 0.2 | L37: 0.2 | M37: 0.2 | N37: 0.2
D38: Apply NOL | E38: Flag | F38: =INDEX(H38:N38,$E$1) -> 1 | H38: 1 | I38: 1 | J38: 1 | K38: 1 | L38: 1 | M38: 1 | N38: 1
B40: Financing
C41: Debt Size
D42: Maximum Debt to Capital | E42: % | F42: =INDEX(H42:N42,$E$1) -> 0.8 | H42: 0.8 | I42: 0.8 | J42: 0.8 | K42: 0.8 | L42: 0.8 | M42: 0.8 | N42: 0.8
D43: Minimum DSCR | E43: x | F43: =INDEX(H43:N43,$E$1) -> 1.2 | H43: 1.2 | I43: 1.2 | J43: 1.2 | K43: 1.2 | L43: 1.2 | M43: 1.2 | N43: 1.2
D45: Interest Rate | E45: % | F45: =INDEX(H45:N45,$E$1) -> 0.06 | H45: 0.06 | I45: 0.06 | J45: 0.06 | K45: 0.06 | L45: 0.06 | M45: 0.06 | N45: 0.06
D46: Up-Front Fee | E46: % | F46: =INDEX(H46:N46,$E$1) -> 0.02 | H46: 0.02 | I46: 0.02 | J46: 0.02 | K46: 0.02 | L46: 0.02 | M46: 0.02 | N46: 0.02
D47: Commitment Fee | E47: % | F47: =INDEX(H47:N47,$E$1) -> 0.01 | H47: 0.01 | I47: 0.01 | J47: 0.01 | K47: 0.01 | L47: 0.01 | M47: 0.01 | N47: 0.01
D49: Debt Tenor | E49: Years | F49: =INDEX(H49:N49,$E$1) -> 35 | H49: 35 | I49: 35 | J49: 35 | K49: 35 | L49: 35 | M49: 35 | N49: 35
D51: Pro-Rata | E51: Flag | F51: =INDEX(H51:N51,$E$1) -> 1 | H51: 1 | I51: 1 | J51: 1 | K51: 1 | L51: 1 | M51: 1 | N51: 1
D52: Equity First | E52: Flag | F52: =INDEX(H52:N52,$E$1) -> 0 | H52: =(NOT(H51))*1 -> 0 | I52: =(NOT(I51))*1 -> 0 | J52: =(NOT(J51))*1 -> 0 | K52: =(NOT(K51))*1 -> 0 | L52: =(NOT(L51))*1 -> 0 | M52: =(NOT(M51))*1 -> 0 | N52: =(NOT(N51))*1 -> 0
B54: Model Parameters
D56: Turn UDF ON | E56: Flag | F56: =INDEX(H56:N56,$E$1) -> 1 | H56: 1 | I56: 1 | J56: 1 | K56: 1 | L56: 1 | M56: 1 | N56: 1
D57: Calculation Column Start | F57: =INDEX(H57:N57,$E$1) -> 11 | H57: 11 | I57: 11 | J57: 11 | K57: 11 | L57: 11 | M57: 11 | N57: 11
D58: Sum Column | F58: =INDEX(H58:N58,$E$1) -> 9 | H58: 9 | I58: 9 | J58: 9 | K58: 9 | L58: 9 | M58: 9 | N58: 9
D59: Title Column | F59: =INDEX(H59:N59,$E$1) -> 4 | H59: 4 | I59: 4 | J59: 4 | K59: 4 | L59: 4 | M59: 4 | N59: 4
D60: Constant_Column | F60: =INDEX(H60:N60,$E$1) -> 6 | H60: 6 | I60: 6 | J60: 6 | K60: 6 | L60: 6 | M60: 6 | N60: 6
D61: Unit Column | F61: =INDEX(H61:N61,$E$1) -> 5 | H61: 5 | I61: 5 | J61: 5 | K61: 5 | L61: 5 | M61: 5 | N61: 5
D62: Format Code Column | F62: =INDEX(H62:N62,$E$1) -> 2 | H62: 2 | I62: 2 | J62: 2 | K62: 2 | L62: 2 | M62: 2 | N62: 2
D63: Title Format Code | F63: =INDEX(H63:N63,$E$1) -> T | H63: T | I63: T | J63: T | K63: T | L63: T | M63: T | N63: T
D64: Number No Decimal Format Code | F64: =INDEX(H64:N64,$E$1) -> C | H64: C | I64: C | J64: C | K64: C | L64: C | M64: C | N64: C
D65: Percentage Format Code | F65: =INDEX(H65:N65,$E$1) -> P | H65: P | I65: P | J65: P | K65: P | L65: P | M65: P | N65: P
D66: Circular convergance | F66: =INDEX(H66:N66,$E$1) -> 1e-05 | H66: 1e-05 | I66: 1e-05 | J66: 1e-05 | K66: 1e-05 | L66: 1e-05 | M66: 1e-05 | N66: 1e-05
D67: Maximum iteration for circular | F67: =INDEX(H67:N67,$E$1) -> 100 | H67: 100 | I67: 100 | J67: 100 | K67: 100 | L67: 100 | M67: 100 | N67: 100
D68: Maximum iteration for goalseek | F68: =INDEX(H68:N68,$E$1) -> 100 | H68: 100 | I68: 100 | J68: 100 | K68: 100 | L68: 100 | M68: 100 | N68: 100
D69: Debug_Code_1 | F69: =INDEX(H69:N69,$E$1) -> 0 | H69: 0 | I69: 0 | J69: 0 | K69: 0 | L69: 0 | M69: 0 | N69: 0
D70: Hours in Day | F70: =INDEX(H70:N70,$E$1) -> 24 | H70: 24 | I70: 24 | J70: 24 | K70: 24 | L70: 24 | M70: 24 | N70: 24

Sheet InputS
B2: Timeline | E2: Output Unit | F2: Input Unit | G2: Input 1 | H2: Input 2
C3: Period | E3: Period | F3: Periods | G3: =InputC!F11 -> 220 | K3: =_xlfn.SEQUENCE(,G3) -> 1 | L3: 2 | M3: 3 | N3: 4 | O3: 5 | P3: 6 | Q3: 7 | R3: 8 | S3: 9 | T3: 10 | U3: 11 | V3: 12 | W3: 13 | X3: 14 | Y3: 15 | Z3: 16 | AA3: 17 | AB3: 18 | AC3: 19 | AD3: 20 | AE3: 21 | AF3: 22 | AG3: 23 | AH3: 24 | AI3: 25 | AJ3: 26 | AK3: 27 | AL3: 28 | AM3: 29 | AN3: 30 | AO3: 31 | AP3: 32 | AQ3: 33 | AR3: 34 | AS3: 35 | AT3: 36 | AU3: 37 | AV3: 38 | AW3: 39 | AX3: 40 | AY3: 41 | AZ3: 42 | BA3: 43 | BB3: 44 | BC3: 45 | BD3: 46 | BE3: 47 | BF3: 48 | BG3: 49 | BH3: 50 | BI3: 51 | BJ3: 52 | BK3: 53 | BL3: 54 | BM3: 55 | BN3: 56 | BO3: 57 | BP3: 58 | BQ3: 59 | BR3: 60 | BS3: 61 | BT3: 62 | BU3: 63 | BV3: 64 | BW3: 65 | BX3: 66 | BY3: 67 | BZ3: 68 | CA3: 69 | CB3: 70 | CC3: 71 | CD3: 72 | CE3: 73 | CF3: 74 | CG3: 75 | CH3: 76 | CI3: 77 | CJ3: 78 | CK3: 79 | CL3: 80 | CM3: 81 | CN3: 82 | CO3: 83 | CP3: 84 | CQ3: 85 | CR3: 86 | CS3: 87 | CT3: 88 | CU3: 89 | CV3: 90 | CW3: 91 | CX3: 92 | CY3: 93 | CZ3: 94 | DA3: 95 | DB3: 96 | DC3: 97 | DD3: 98 | DE3: 99 | DF3: 100 | DG3: 101 | DH3: 102 | DI3: 103 | DJ3: 104 | DK3: 105 | DL3: 106 | DM3: 107 | DN3: 108 | DO3: 109 | DP3: 110 | DQ3: 111 | DR3: 112 | DS3: 113 | DT3: 114 | DU3: 115 | DV3: 116 | DW3: 117 | DX3: 118 | DY3: 119 | DZ3: 120 | EA3: 121 | EB3: 122 | EC3: 123 | ED3: 124 | EE3: 125 | EF3: 126 | EG3: 127 | EH3: 128 | EI3: 129 | EJ3: 130 | EK3: 131 | EL3: 132 | EM3: 133 | EN3: 134 | EO3: 135 | EP3: 136 | EQ3: 137 | ER3: 138 | ES3: 139 | ET3: 140 | EU3: 141 | EV3: 142 | EW3: 143 | EX3: 144 | EY3: 145 | EZ3: 146 | FA3: 147 | FB3: 148 | FC3: 149 | FD3: 150 | FE3: 151 | FF3: 152 | FG3: 153 | FH3: 154 | FI3: 155 | FJ3: 156 | FK3: 157 | FL3: 158 | FM3: 159 | FN3: 160 | FO3: 161 | FP3: 162 | FQ3: 163 | FR3: 164 | FS3: 165 | FT3: 166 | FU3: 167 | FV3: 168 | FW3: 169 | FX3: 170 | FY3: 171 | FZ3: 172 | GA3: 173 | GB3: 174 | GC3: 175 | GD3: 176 | GE3: 177 | GF3: 178 | GG3: 179 | GH3: 180 | GI3: 181 | GJ3: 182 | GK3: 183 | GL3: 184 | GM3: 185 | GN3: 186 | GO3: 187 | GP3: 188 | GQ3: 189 | GR3: 190 | GS3: 191 | GT3: 192 | GU3: 193 | GV3: 194 | GW3: 195 | GX3: 196 | GY3: 197 | GZ3: 198 | HA3: 199 | HB3: 200 | HC3: 201 | HD3: 202 | HE3: 203 | HF3: 204 | HG3: 205 | HH3: 206 | HI3: 207 | HJ3: 208 | HK3: 209 | HL3: 210 | HM3: 211 | HN3: 212 | HO3: 213 | HP3: 214 | HQ3: 215 | HR3: 216 | HS3: 217 | HT3: 218 | HU3: 219 | HV3: 220
C4: Construnction Flag | E4: Flag | F4: Months | G4: =InputC!F4 -> 100 | K4: =(K3<=$G$4)*1 -> 1 | L4: =(L3<=$G$4)*1 -> 1 | M4: =(M3<=$G$4)*1 -> 1 | N4: =(N3<=$G$4)*1 -> 1 | O4: =(O3<=$G$4)*1 -> 1 | P4: =(P3<=$G$4)*1 -> 1 | Q4: =(Q3<=$G$4)*1 -> 1 | R4: =(R3<=$G$4)*1 -> 1 | S4: =(S3<=$G$4)*1 -> 1 | T4: =(T3<=$G$4)*1 -> 1 | U4: =(U3<=$G$4)*1 -> 1 | V4: =(V3<=$G$4)*1 -> 1 | W4: =(W3<=$G$4)*1 -> 1 | X4: =(X3<=$G$4)*1 -> 1 | Y4: =(Y3<=$G$4)*1 -> 1 | Z4: =(Z3<=$G$4)*1 -> 1 | AA4: =(AA3<=$G$4)*1 -> 1 | AB4: =(AB3<=$G$4)*1 -> 1 | AC4: =(AC3<=$G$4)*1 -> 1 | AD4: =(AD3<=$G$4)*1 -> 1 | AE4: =(AE3<=$G$4)*1 -> 1 | AF4: =(AF3<=$G$4)*1 -> 1 | AG4: =(AG3<=$G$4)*1 -> 1 | AH4: =(AH3<=$G$4)*1 -> 1 | AI4: =(AI3<=$G$4)*1 -> 1 | AJ4: =(AJ3<=$G$4)*1 -> 1 | AK4: =(AK3<=$G$4)*1 -> 1 | AL4: =(AL3<=$G$4)*1 -> 1 | AM4: =(AM3<=$G$4)*1 -> 1 | AN4: =(AN3<=$G$4)*1 -> 1 | AO4: =(AO3<=$G$4)*1 -> 1 | AP4: =(AP3<=$G$4)*1 -> 1 | AQ4: =(AQ3<=$G$4)*1 -> 1 | AR4: =(AR3<=$G$4)*1 -> 1 | AS4: =(AS3<=$G$4)*1 -> 1 | AT4: =(AT3<=$G$4)*1 -> 1 | AU4: =(AU3<=$G$4)*1 -> 1 | AV4: =(AV3<=$G$4)*1 -> 1 | AW4: =(AW3<=$G$4)*1 -> 1 | AX4: =(AX3<=$G$4)*1 -> 1 | AY4: =(AY3<=$G$4)*1 -> 1 | AZ4: =(AZ3<=$G$4)*1 -> 1 | BA4: =(BA3<=$G$4)*1 -> 1 | BB4: =(BB3<=$G$4)*1 -> 1 | BC4: =(BC3<=$G$4)*1 -> 1 | BD4: =(BD3<=$G$4)*1 -> 1 | BE4: =(BE3<=$G$4)*1 -> 1 | BF4: =(BF3<=$G$4)*1 -> 1 | BG4: =(BG3<=$G$4)*1 -> 1 | BH4: =(BH3<=$G$4)*1 -> 1 | BI4: =(BI3<=$G$4)*1 -> 1 | BJ4: =(BJ3<=$G$4)*1 -> 1 | BK4: =(BK3<=$G$4)*1 -> 1 | BL4: =(BL3<=$G$4)*1 -> 1 | BM4: =(BM3<=$G$4)*1 -> 1 | BN4: =(BN3<=$G$4)*1 -> 1 | BO4: =(BO3<=$G$4)*1 -> 1 | BP4: =(BP3<=$G$4)*1 -> 1 | BQ4: =(BQ3<=$G$4)*1 -> 1 | BR4: =(BR3<=$G$4)*1 -> 1 | BS4: =(BS3<=$G$4)*1 -> 1 | BT4: =(BT3<=$G$4)*1 -> 1 | BU4: =(BU3<=$G$4)*1 -> 1 | BV4: =(BV3<=$G$4)*1 -> 1 | BW4: =(BW3<=$G$4)*1 -> 1 | BX4: =(BX3<=$G$4)*1 -> 1 | BY4: =(BY3<=$G$4)*1 -> 1 | BZ4: =(BZ3<=$G$4)*1 -> 1 | CA4: =(CA3<=$G$4)*1 -> 1 | CB4: =(CB3<=$G$4)*1 -> 1 | CC4: =(CC3<=$G$4)*1 -> 1 | CD4: =(CD3<=$G$4)*1 -> 1 | CE4: =(CE3<=$G$4)*1 -> 1 | CF4: =(CF3<=$G$4)*1 -> 1 | CG4: =(CG3<=$G$4)*1 -> 1 | CH4: =(CH3<=$G$4)*1 -> 1 | CI4: =(CI3<=$G$4)*1 -> 1 | CJ4: =(CJ3<=$G$4)*1 -> 1 | CK4: =(CK3<=$G$4)*1 -> 1 | CL4: =(CL3<=$G$4)*1 -> 1 | CM4: =(CM3<=$G$4)*1 -> 1 | CN4: =(CN3<=$G$4)*1 -> 1 | CO4: =(CO3<=$G$4)*1 -> 1 | CP4: =(CP3<=$G$4)*1 -> 1 | CQ4: =(CQ3<=$G$4)*1 -> 1 | CR4: =(CR3<=$G$4)*1 -> 1 | CS4: =(CS3<=$G$4)*1 -> 1 | CT4: =(CT3<=$G$4)*1 -> 1 | CU4: =(CU3<=$G$4)*1 -> 1 | CV4: =(CV3<=$G$4)*1 -> 1 | CW4: =(CW3<=$G$4)*1 -> 1 | CX4: =(CX3<=$G$4)*1 -> 1 | CY4: =(CY3<=$G$4)*1 -> 1 | CZ4: =(CZ3<=$G$4)*1 -> 1 | DA4: =(DA3<=$G$4)*1 -> 1 | DB4: =(DB3<=$G$4)*1 -> 1 | DC4: =(DC3<=$G$4)*1 -> 1 | DD4: =(DD3<=$G$4)*1 -> 1 | DE4: =(DE3<=$G$4)*1 -> 1 | DF4: =(DF3<=$G$4)*1 -> 1 | DG4: =(DG3<=$G$4)*1 -> 0 | DH4: =(DH3<=$G$4)*1 -> 0 | DI4: =(DI3<=$G$4)*1 -> 0 | DJ4: =(DJ3<=$G$4)*1 -> 0 | DK4: =(DK3<=$G$4)*1 -> 0 | DL4: =(DL3<=$G$4)*1 -> 0 | DM4: =(DM3<=$G$4)*1 -> 0 | DN4: =(DN3<=$G$4)*1 -> 0 | DO4: =(DO3<=$G$4)*1 -> 0 | DP4: =(DP3<=$G$4)*1 -> 0 | DQ4: =(DQ3<=$G$4)*1 -> 0 | DR4: =(DR3<=$G$4)*1 -> 0 | DS4: =(DS3<=$G$4)*1 -> 0 | DT4: =(DT3<=$G$4)*1 -> 0 | DU4: =(DU3<=$G$4)*1 -> 0 | DV4: =(DV3<=$G$4)*1 -> 0 | DW4: =(DW3<=$G$4)*1 -> 0 | DX4: =(DX3<=$G$4)*1 -> 0 | DY4: =(DY3<=$G$4)*1 -> 0 | DZ4: =(DZ3<=$G$4)*1 -> 0 | EA4: =(EA3<=$G$4)*1 -> 0 | EB4: =(EB3<=$G$4)*1 -> 0 | EC4: =(EC3<=$G$4)*1 -> 0 | ED4: =(ED3<=$G$4)*1 -> 0 | EE4: =(EE3<=$G$4)*1 -> 0 | EF4: =(EF3<=$G$4)*1 -> 0 | EG4: =(EG3<=$G$4)*1 -> 0 | EH4: =(EH3<=$G$4)*1 -> 0 | EI4: =(EI3<=$G$4)*1 -> 0 | EJ4: =(EJ3<=$G$4)*1 -> 0 | EK4: =(EK3<=$G$4)*1 -> 0 | EL4: =(EL3<=$G$4)*1 -> 0 | EM4: =(EM3<=$G$4)*1 -> 0 | EN4: =(EN3<=$G$4)*1 -> 0 | EO4: =(EO3<=$G$4)*1 -> 0 | EP4: =(EP3<=$G$4)*1 -> 0 | EQ4: =(EQ3<=$G$4)*1 -> 0 | ER4: =(ER3<=$G$4)*1 -> 0 | ES4: =(ES3<=$G$4)*1 -> 0 | ET4: =(ET3<=$G$4)*1 -> 0 | EU4: =(EU3<=$G$4)*1 -> 0 | EV4: =(EV3<=$G$4)*1 -> 0 | EW4: =(EW3<=$G$4)*1 -> 0 | EX4: =(EX3<=$G$4)*1 -> 0 | EY4: =(EY3<=$G$4)*1 -> 0 | EZ4: =(EZ3<=$G$4)*1 -> 0 | FA4: =(FA3<=$G$4)*1 -> 0 | FB4: =(FB3<=$G$4)*1 -> 0 | FC4: =(FC3<=$G$4)*1 -> 0 | FD4: =(FD3<=$G$4)*1 -> 0 | FE4: =(FE3<=$G$4)*1 -> 0 | FF4: =(FF3<=$G$4)*1 -> 0 | FG4: =(FG3<=$G$4)*1 -> 0 | FH4: =(FH3<=$G$4)*1 -> 0 | FI4: =(FI3<=$G$4)*1 -> 0 | FJ4: =(FJ3<=$G$4)*1 -> 0 | FK4: =(FK3<=$G$4)*1 -> 0 | FL4: =(FL3<=$G$4)*1 -> 0 | FM4: =(FM3<=$G$4)*1 -> 0 | FN4: =(FN3<=$G$4)*1 -> 0 | FO4: =(FO3<=$G$4)*1 -> 0 | FP4: =(FP3<=$G$4)*1 -> 0 | FQ4: =(FQ3<=$G$4)*1 -> 0 | FR4: =(FR3<=$G$4)*1 -> 0 | FS4: =(FS3<=$G$4)*1 -> 0 | FT4: =(FT3<=$G$4)*1 -> 0 | FU4: =(FU3<=$G$4)*1 -> 0 | FV4: =(FV3<=$G$4)*1 -> 0 | FW4: =(FW3<=$G$4)*1 -> 0 | FX4: =(FX3<=$G$4)*1 -> 0 | FY4: =(FY3<=$G$4)*1 -> 0 | FZ4: =(FZ3<=$G$4)*1 -> 0 | GA4: =(GA3<=$G$4)*1 -> 0 | GB4: =(GB3<=$G$4)*1 -> 0 | GC4: =(GC3<=$G$4)*1 -> 0 | GD4: =(GD3<=$G$4)*1 -> 0 | GE4: =(GE3<=$G$4)*1 -> 0 | GF4: =(GF3<=$G$4)*1 -> 0 | GG4: =(GG3<=$G$4)*1 -> 0 | GH4: =(GH3<=$G$4)*1 -> 0 | GI4: =(GI3<=$G$4)*1 -> 0 | GJ4: =(GJ3<=$G$4)*1 -> 0 | GK4: =(GK3<=$G$4)*1 -> 0 | GL4: =(GL3<=$G$4)*1 -> 0 | GM4: =(GM3<=$G$4)*1 -> 0 | GN4: =(GN3<=$G$4)*1 -> 0 | GO4: =(GO3<=$G$4)*1 -> 0 | GP4: =(GP3<=$G$4)*1 -> 0 | GQ4: =(GQ3<=$G$4)*1 -> 0 | GR4: =(GR3<=$G$4)*1 -> 0 | GS4: =(GS3<=$G$4)*1 -> 0 | GT4: =(GT3<=$G$4)*1 -> 0 | GU4: =(GU3<=$G$4)*1 -> 0 | GV4: =(GV3<=$G$4)*1 -> 0 | GW4: =(GW3<=$G$4)*1 -> 0 | GX4: =(GX3<=$G$4)*1 -> 0 | GY4: =(GY3<=$G$4)*1 -> 0 | GZ4: =(GZ3<=$G$4)*1 -> 0 | HA4: =(HA3<=$G$4)*1 -> 0 | HB4: =(HB3<=$G$4)*1 -> 0 | HC4: =(HC3<=$G$4)*1 -> 0 | HD4: =(HD3<=$G$4)*1 -> 0 | HE4: =(HE3<=$G$4)*1 -> 0 | HF4: =(HF3<=$G$4)*1 -> 0 | HG4: =(HG3<=$G$4)*1 -> 0 | HH4: =(HH3<=$G$4)*1 -> 0 | HI4: =(HI3<=$G$4)*1 -> 0 | HJ4: =(HJ3<=$G$4)*1 -> 0 | HK4: =(HK3<=$G$4)*1 -> 0 | HL4: =(HL3<=$G$4)*1 -> 0 | HM4: =(HM3<=$G$4)*1 -> 0 | HN4: =(HN3<=$G$4)*1 -> 0 | HO4: =(HO3<=$G$4)*1 -> 0 | HP4: =(HP3<=$G$4)*1 -> 0 | HQ4: =(HQ3<=$G$4)*1 -> 0 | HR4: =(HR3<=$G$4)*1 -> 0 | HS4: =(HS3<=$G$4)*1 -> 0 | HT4: =(HT3<=$G$4)*1 -> 0 | HU4: =(HU3<=$G$4)*1 -> 0 | HV4: =(HV3<=$G$4)*1 -> 0 | HW4: =(HW3<=$G$4)*1 -> 1 | HX4: =(HX3<=$G$4)*1 -> 1 | HY4: =(HY3<=$G$4)*1 -> 1 | HZ4: =(HZ3<=$G$4)*1 -> 1 | IA4: =(IA3<=$G$4)*1 -> 1 | IB4: =(IB3<=$G$4)*1 -> 1 | IC4: =(IC3<=$G$4)*1 -> 1 | ID4: =(ID3<=$G$4)*1 -> 1 | IE4: =(IE3<=$G$4)*1 -> 1 | IF4: =(IF3<=$G$4)*1 -> 1 | IG4: =(IG3<=$G$4)*1 -> 1 | IH4: =(IH3<=$G$4)*1 -> 1 | II4: =(II3<=$G$4)*1 -> 1 | IJ4: =(IJ3<=$G$4)*1 -> 1 | IK4: =(IK3<=$G$4)*1 -> 1 | IL4: =(IL3<=$G$4)*1 -> 1 | IM4: =(IM3<=$G$4)*1 -> 1 | IN4: =(IN3<=$G$4)*1 -> 1 | IO4: =(IO3<=$G$4)*1 -> 1 | IP4: =(IP3<=$G$4)*1 -> 1 | IQ4: =(IQ3<=$G$4)*1 -> 1 | IR4: =(IR3<=$G$4)*1 -> 1 | IS4: =(IS3<=$G$4)*1 -> 1 | IT4: =(IT3<=$G$4)*1 -> 1 | IU4: =(IU3<=$G$4)*1 -> 1 | IV4: =(IV3<=$G$4)*1 -> 1 | IW4: =(IW3<=$G$4)*1 -> 1 | IX4: =(IX3<=$G$4)*1 -> 1 | IY4: =(IY3<=$G$4)*1 -> 1 | IZ4: =(IZ3<=$G$4)*1 -> 1 | JA4: =(JA3<=$G$4)*1 -> 1 | JB4: =(JB3<=$G$4)*1 -> 1 | JC4: =(JC3<=$G$4)*1 -> 1 | JD4: =(JD3<=$G$4)*1 -> 1 | JE4: =(JE3<=$G$4)*1 -> 1 | JF4: =(JF3<=$G$4)*1 -> 1 | JG4: =(JG3<=$G$4)*1 -> 1 | JH4: =(JH3<=$G$4)*1 -> 1 | JI4: =(JI3<=$G$4)*1 -> 1 | JJ4: =(JJ3<=$G$4)*1 -> 1 | JK4: =(JK3<=$G$4)*1 -> 1 | JL4: =(JL3<=$G$4)*1 -> 1 | JM4: =(JM3<=$G$4)*1 -> 1 | JN4: =(JN3<=$G$4)*1 -> 1 | JO4: =(JO3<=$G$4)*1 -> 1 | JP4: =(JP3<=$G$4)*1 -> 1 | JQ4: =(JQ3<=$G$4)*1 -> 1 | JR4: =(JR3<=$G$4)*1 -> 1 | JS4: =(JS3<=$G$4)*1 -> 1 | JT4: =(JT3<=$G$4)*1 -> 1 | JU4: =(JU3<=$G$4)*1 -> 1 | JV4: =(JV3<=$G$4)*1 -> 1 | JW4: =(JW3<=$G$4)*1 -> 1 | JX4: =(JX3<=$G$4)*1 -> 1 | JY4: =(JY3<=$G$4)*1 -> 1 | JZ4: =(JZ3<=$G$4)*1 -> 1 | KA4: =(KA3<=$G$4)*1 -> 1 | KB4: =(KB3<=$G$4)*1 -> 1 | KC4: =(KC3<=$G$4)*1 -> 1 | KD4: =(KD3<=$G$4)*1 -> 1 | KE4: =(KE3<=$G$4)*1 -> 1 | KF4: =(KF3<=$G$4)*1 -> 1 | KG4: =(KG3<=$G$4)*1 -> 1 | KH4: =(KH3<=$G$4)*1 -> 1 | KI4: =(KI3<=$G$4)*1 -> 1 | KJ4: =(KJ3<=$G$4)*1 -> 1 | KK4: =(KK3<=$G$4)*1 -> 1 | KL4: =(KL3<=$G$4)*1 -> 1 | KM4: =(KM3<=$G$4)*1 -> 1 | KN4: =(KN3<=$G$4)*1 -> 1 | KO4: =(KO3<=$G$4)*1 -> 1 | KP4: =(KP3<=$G$4)*1 -> 1 | KQ4: =(KQ3<=$G$4)*1 -> 1 | KR4: =(KR3<=$G$4)*1 -> 1 | KS4: =(KS3<=$G$4)*1 -> 1 | KT4: =(KT3<=$G$4)*1 -> 1 | KU4: =(KU3<=$G$4)*1 -> 1 | KV4: =(KV3<=$G$4)*1 -> 1 | KW4: =(KW3<=$G$4)*1 -> 1 | KX4: =(KX3<=$G$4)*1 -> 1 | KY4: =(KY3<=$G$4)*1 -> 1 | KZ4: =(KZ3<=$G$4)*1 -> 1 | LA4: =(LA3<=$G$4)*1 -> 1 | LB4: =(LB3<=$G$4)*1 -> 1 | LC4: =(LC3<=$G$4)*1 -> 1 | LD4: =(LD3<=$G$4)*1 -> 1 | LE4: =(LE3<=$G$4)*1 -> 1 | LF4: =(LF3<=$G$4)*1 -> 1 | LG4: =(LG3<=$G$4)*1 -> 1 | LH4: =(LH3<=$G$4)*1 -> 1 | LI4: =(LI3<=$G$4)*1 -> 1 | LJ4: =(LJ3<=$G$4)*1 -> 1 | LK4: =(LK3<=$G$4)*1 -> 1 | LL4: =(LL3<=$G$4)*1 -> 1 | LM4: =(LM3<=$G$4)*1 -> 1 | LN4: =(LN3<=$G$4)*1 -> 1 | LO4: =(LO3<=$G$4)*1 -> 1 | LP4: =(LP3<=$G$4)*1 -> 1 | LQ4: =(LQ3<=$G$4)*1 -> 1 | LR4: =(LR3<=$G$4)*1 -> 1 | LS4: =(LS3<=$G$4)*1 -> 1 | LT4: =(LT3<=$G$4)*1 -> 1 | LU4: =(LU3<=$G$4)*1 -> 1 | LV4: =(LV3<=$G$4)*1 -> 1 | LW4: =(LW3<=$G$4)*1 -> 1 | LX4: =(LX3<=$G$4)*1 -> 1 | LY4: =(LY3<=$G$4)*1 -> 1 | LZ4: =(LZ3<=$G$4)*1 -> 1 | MA4: =(MA3<=$G$4)*1 -> 1 | MB4: =(MB3<=$G$4)*1 -> 1 | MC4: =(MC3<=$G$4)*1 -> 1 | MD4: =(MD3<=$G$4)*1 -> 1 | ME4: =(ME3<=$G$4)*1 -> 1 | MF4: =(MF3<=$G$4)*1 -> 1 | MG4: =(MG3<=$G$4)*1 -> 1 | MH4: =(MH3<=$G$4)*1 -> 1 | MI4: =(MI3<=$G$4)*1 -> 1 | MJ4: =(MJ3<=$G$4)*1 -> 1 | MK4: =(MK3<=$G$4)*1 -> 1 | ML4: =(ML3<=$G$4)*1 -> 1 | MM4: =(MM3<=$G$4)*1 -> 1 | MN4: =(MN3<=$G$4)*1 -> 1 | MO4: =(MO3<=$G$4)*1 -> 1 | MP4: =(MP3<=$G$4)*1 -> 1 | MQ4: =(MQ3<=$G$4)*1 -> 1 | MR4: =(MR3<=$G$4)*1 -> 1 | MS4: =(MS3<=$G$4)*1 -> 1 | MT4: =(MT3<=$G$4)*1 -> 1 | MU4: =(MU3<=$G$4)*1 -> 1 | MV4: =(MV3<=$G$4)*1 -> 1 | MW4: =(MW3<=$G$4)*1 -> 1 | MX4: =(MX3<=$G$4)*1 -> 1 | MY4: =(MY3<=$G$4)*1 -> 1 | MZ4: =(MZ3<=$G$4)*1 -> 1 | NA4: =(NA3<=$G$4)*1 -> 1 | NB4: =(NB3<=$G$4)*1 -> 1 | NC4: =(NC3<=$G$4)*1 -> 1 | ND4: =(ND3<=$G$4)*1 -> 1 | NE4: =(NE3<=$G$4)*1 -> 1 | NF4: =(NF3<=$G$4)*1 -> 1 | NG4: =(NG3<=$G$4)*1 -> 1 | NH4: =(NH3<=$G$4)*1 -> 1 | NI4: =(NI3<=$G$4)*1 -> 1 | NJ4: =(NJ3<=$G$4)*1 -> 1 | NK4: =(NK3<=$G$4)*1 -> 1 | NL4: =(NL3<=$G$4)*1 -> 1 | NM4: =(NM3<=$G$4)*1 -> 1 | NN4: =(NN3<=$G$4)*1 -> 1 | NO4: =(NO3<=$G$4)*1 -> 1 | NP4: =(NP3<=$G$4)*1 -> 1 | NQ4: =(NQ3<=$G$4)*1 -> 1 | NR4: =(NR3<=$G$4)*1 -> 1 | NS4: =(NS3<=$G$4)*1 -> 1 | NT4: =(NT3<=$G$4)*1 -> 1 | NU4: =(NU3<=$G$4)*1 -> 1 | NV4: =(NV3<=$G$4)*1 -> 1 | NW4: =(NW3<=$G$4)*1 -> 1 | NX4: =(NX3<=$G$4)*1 -> 1 | NY4: =(NY3<=$G$4)*1 -> 1 | NZ4: =(NZ3<=$G$4)*1 -> 1 | OA4: =(OA3<=$G$4)*1 -> 1 | OB4: =(OB3<=$G$4)*1 -> 1 | OC4: =(OC3<=$G$4)*1 -> 1 | OD4: =(OD3<=$G$4)*1 -> 1 | OE4: =(OE3<=$G$4)*1 -> 1 | OF4: =(OF3<=$G$4)*1 -> 1 | OG4: =(OG3<=$G$4)*1 -> 1 | OH4: =(OH3<=$G$4)*1 -> 1 | OI4: =(OI3<=$G$4)*1 -> 1 | OJ4: =(OJ3<=$G$4)*1 -> 1 | OK4: =(OK3<=$G$4)*1 -> 1 | OL4: =(OL3<=$G$4)*1 -> 1 | OM4: =(OM3<=$G$4)*1 -> 1 | ON4: =(ON3<=$G$4)*1 -> 1 | OO4: =(OO3<=$G$4)*1 -> 1 | OP4: =(OP3<=$G$4)*1 -> 1 | OQ4: =(OQ3<=$G$4)*1 -> 1 | OR4: =(OR3<=$G$4)*1 -> 1 | OS4: =(OS3<=$G$4)*1 -> 1 | OT4: =(OT3<=$G$4)*1 -> 1 | OU4: =(OU3<=$G$4)*1 -> 1 | OV4: =(OV3<=$G$4)*1 -> 1 | OW4: =(OW3<=$G$4)*1 -> 1 | OX4: =(OX3<=$G$4)*1 -> 1 | OY4: =(OY3<=$G$4)*1 -> 1 | OZ4: =(OZ3<=$G$4)*1 -> 1 | PA4: =(PA3<=$G$4)*1 -> 1 | PB4: =(PB3<=$G$4)*1 -> 1 | PC4: =(PC3<=$G$4)*1 -> 1 | PD4: =(PD3<=$G$4)*1 -> 1 | PE4: =(PE3<=$G$4)*1 -> 1 | PF4: =(PF3<=$G$4)*1 -> 1 | PG4: =(PG3<=$G$4)*1 -> 1 | PH4: =(PH3<=$G$4)*1 -> 1 | PI4: =(PI3<=$G$4)*1 -> 1 | PJ4: =(PJ3<=$G$4)*1 -> 1 | PK4: =(PK3<=$G$4)*1 -> 1 | PL4: =(PL3<=$G$4)*1 -> 1 | PM4: =(PM3<=$G$4)*1 -> 1 | PN4: =(PN3<=$G$4)*1 -> 1 | PO4: =(PO3<=$G$4)*1 -> 1 | PP4: =(PP3<=$G$4)*1 -> 1 | PQ4: =(PQ3<=$G$4)*1 -> 1 | PR4: =(PR3<=$G$4)*1 -> 1 | PS4: =(PS3<=$G$4)*1 -> 1 | PT4: =(PT3<=$G$4)*1 -> 1 | PU4: =(PU3<=$G$4)*1 -> 1 | PV4: =(PV3<=$G$4)*1 -> 1 | PW4: =(PW3<=$G$4)*1 -> 1 | PX4: =(PX3<=$G$4)*1 -> 1 | PY4: =(PY3<=$G$4)*1 -> 1 | PZ4: =(PZ3<=$G$4)*1 -> 1 | QA4: =(QA3<=$G$4)*1 -> 1 | QB4: =(QB3<=$G$4)*1 -> 1 | QC4: =(QC3<=$G$4)*1 -> 1 | QD4: =(QD3<=$G$4)*1 -> 1 | QE4: =(QE3<=$G$4)*1 -> 1 | QF4: =(QF3<=$G$4)*1 -> 1 | QG4: =(QG3<=$G$4)*1 -> 1 | QH4: =(QH3<=$G$4)*1 -> 1 | QI4: =(QI3<=$G$4)*1 -> 1 | QJ4: =(QJ3<=$G$4)*1 -> 1 | QK4: =(QK3<=$G$4)*1 -> 1 | QL4: =(QL3<=$G$4)*1 -> 1 | QM4: =(QM3<=$G$4)*1 -> 1 | QN4: =(QN3<=$G$4)*1 -> 1 | QO4: =(QO3<=$G$4)*1 -> 1 | QP4: =(QP3<=$G$4)*1 -> 1 | QQ4: =(QQ3<=$G$4)*1 -> 1 | QR4: =(QR3<=$G$4)*1 -> 1 | QS4: =(QS3<=$G$4)*1 -> 1 | QT4: =(QT3<=$G$4)*1 -> 1 | QU4: =(QU3<=$G$4)*1 -> 1 | QV4: =(QV3<=$G$4)*1 -> 1 | QW4: =(QW3<=$G$4)*1 -> 1 | QX4: =(QX3<=$G$4)*1 -> 1 | QY4: =(QY3<=$G$4)*1 -> 1 | QZ4: =(QZ3<=$G$4)*1 -> 1 | RA4: =(RA3<=$G$4)*1 -> 1 | RB4: =(RB3<=$G$4)*1 -> 1 | RC4: =(RC3<=$G$4)*1 -> 1 | RD4: =(RD3<=$G$4)*1 -> 1 | RE4: =(RE3<=$G$4)*1 -> 1 | RF4: =(RF3<=$G$4)*1 -> 1 | RG4: =(RG3<=$G$4)*1 -> 1 | RH4: =(RH3<=$G$4)*1 -> 1 | RI4: =(RI3<=$G$4)*1 -> 1 | RJ4: =(RJ3<=$G$4)*1 -> 1 | RK4: =(RK3<=$G$4)*1 -> 1 | RL4: =(RL3<=$G$4)*1 -> 1 | RM4: =(RM3<=$G$4)*1 -> 1 | RN4: =(RN3<=$G$4)*1 -> 1 | RO4: =(RO3<=$G$4)*1 -> 1 | RP4: =(RP3<=$G$4)*1 -> 1 | RQ4: =(RQ3<=$G$4)*1 -> 1 | RR4: =(RR3<=$G$4)*1 -> 1 | RS4: =(RS3<=$G$4)*1 -> 1 | RT4: =(RT3<=$G$4)*1 -> 1 | RU4: =(RU3<=$G$4)*1 -> 1 | RV4: =(RV3<=$G$4)*1 -> 1 | RW4: =(RW3<=$G$4)*1 -> 1 | RX4: =(RX3<=$G$4)*1 -> 1 | RY4: =(RY3<=$G$4)*1 -> 1 | RZ4: =(RZ3<=$G$4)*1 -> 1 | SA4: =(SA3<=$G$4)*1 -> 1 | SB4: =(SB3<=$G$4)*1 -> 1 | SC4: =(SC3<=$G$4)*1 -> 1 | SD4: =(SD3<=$G$4)*1 -> 1 | SE4: =(SE3<=$G$4)*1 -> 1 | SF4: =(SF3<=$G$4)*1 -> 1 | SG4: =(SG3<=$G$4)*1 -> 1 | SH4: =(SH3<=$G$4)*1 -> 1 | SI4: =(SI3<=$G$4)*1 -> 1 | SJ4: =(SJ3<=$G$4)*1 -> 1 | SK4: =(SK3<=$G$4)*1 -> 1 | SL4: =(SL3<=$G$4)*1 -> 1 | SM4: =(SM3<=$G$4)*1 -> 1 | SN4: =(SN3<=$G$4)*1 -> 1 | SO4: =(SO3<=$G$4)*1 -> 1 | SP4: =(SP3<=$G$4)*1 -> 1
C5: Start of Peiod | E5: Date | K5: =J6+1 -> 2026-01-01 | L5: =K6+1 -> 2026-02-01 | M5: 2026-03-01 | N5: 2026-04-01 | O5: 2026-05-01 | P5: 2026-06-01 | Q5: 2026-07-01 | R5: 2026-08-01 | S5: 2026-09-01 | T5: 2026-10-01 | U5: 2026-11-01 | V5: 2026-12-01 | W5: 2027-01-01 | X5: 2027-02-01 | Y5: 2027-03-01 | Z5: 2027-04-01 | AA5: 2027-05-01 | AB5: 2027-06-01 | AC5: 2027-07-01 | AD5: 2027-08-01 | AE5: 2027-09-01 | AF5: 2027-10-01 | AG5: 2027-11-01 | AH5: 2027-12-01 | AI5: 2028-01-01 | AJ5: 2028-02-01 | AK5: 2028-03-01 | AL5: 2028-04-01 | AM5: 2028-05-01 | AN5: 2028-06-01 | AO5: 2028-07-01 | AP5: 2028-08-01 | AQ5: 2028-09-01 | AR5: 2028-10-01 | AS5: 2028-11-01 | AT5: 2028-12-01 | AU5: 2029-01-01 | AV5: 2029-02-01 | AW5: 2029-03-01 | AX5: 2029-04-01 | AY5: 2029-05-01 | AZ5: 2029-06-01 | BA5: 2029-07-01 | BB5: 2029-08-01 | BC5: 2029-09-01 | BD5: 2029-10-01 | BE5: 2029-11-01 | BF5: 2029-12-01 | BG5: 2030-01-01 | BH5: 2030-02-01 | BI5: 2030-03-01 | BJ5: 2030-04-01 | BK5: 2030-05-01 | BL5: 2030-06-01 | BM5: 2030-07-01 | BN5: 2030-08-01 | BO5: 2030-09-01 | BP5: 2030-10-01 | BQ5: 2030-11-01 | BR5: 2030-12-01 | BS5: 2031-01-01 | BT5: 2031-02-01 | BU5: 2031-03-01 | BV5: 2031-04-01 | BW5: 2031-05-01 | BX5: =BW6+1 -> 2031-06-01 | BY5: 2031-07-01 | BZ5: 2031-08-01 | CA5: 2031-09-01 | CB5: 2031-10-01 | CC5: 2031-11-01 | CD5: 2031-12-01 | CE5: 2032-01-01 | CF5: 2032-02-01 | CG5: 2032-03-01 | CH5: 2032-04-01 | CI5: 2032-05-01 | CJ5: 2032-06-01 | CK5: 2032-07-01 | CL5: 2032-08-01 | CM5: 2032-09-01 | CN5: 2032-10-01 | CO5: 2032-11-01 | CP5: 2032-12-01 | CQ5: 2033-01-01 | CR5: 2033-02-01 | CS5: 2033-03-01 | CT5: 2033-04-01 | CU5: 2033-05-01 | CV5: 2033-06-01 | CW5: 2033-07-01 | CX5: 2033-08-01 | CY5: 2033-09-01 | CZ5: 2033-10-01 | DA5: 2033-11-01 | DB5: 2033-12-01 | DC5: 2034-01-01 | DD5: 2034-02-01 | DE5: 2034-03-01 | DF5: 2034-04-01 | DG5: 2034-05-01 | DH5: 2034-05-01 | DI5: 2034-05-01 | DJ5: 2034-05-01 | DK5: 2034-05-01 | DL5: 2034-05-01 | DM5: 2034-05-01 | DN5: 2034-05-01 | DO5: 2034-05-01 | DP5: 2034-05-01 | DQ5: 2034-05-01 | DR5: 2034-05-01 | DS5: 2034-05-01 | DT5: 2034-05-01 | DU5: 2034-05-01 | DV5: 2034-05-01 | DW5: 2034-05-01 | DX5: 2034-05-01 | DY5: 2034-05-01 | DZ5: 2034-05-01 | EA5: 2034-05-01 | EB5: 2034-05-01 | EC5: 2034-05-01 | ED5: 2034-05-01 | EE5: 2034-05-01 | EF5: 2034-05-01 | EG5: 2034-05-01 | EH5: 2034-05-01 | EI5: 2034-05-01 | EJ5: =EI6+1 -> 2034-05-01 | EK5: 2034-05-01 | EL5: 2034-05-01 | EM5: 2034-05-01 | EN5: 2034-05-01 | EO5: 2034-05-01 | EP5: 2034-05-01 | EQ5: 2034-05-01 | ER5: 2034-05-01 | ES5: 2034-05-01 | ET5: 2034-05-01 | EU5: 2034-05-01 | EV5: 2034-05-01 | EW5: 2034-05-01 | EX5: 2034-05-01 | EY5: 2034-05-01 | EZ5: 2034-05-01 | FA5: 2034-05-01 | FB5: 2034-05-01 | FC5: 2034-05-01 | FD5: 2034-05-01 | FE5: 2034-05-01 | FF5: 2034-05-01 | FG5: 2034-05-01 | FH5: 2034-05-01 | FI5: 2034-05-01 | FJ5: 2034-05-01 | FK5: 2034-05-01 | FL5: 2034-05-01 | FM5: 2034-05-01 | FN5: 2034-05-01 | FO5: 2034-05-01 | FP5: 2034-05-01 | FQ5: 2034-05-01 | FR5: 2034-05-01 | FS5: 2034-05-01 | FT5: 2034-05-01 | FU5: 2034-05-01 | FV5: 2034-05-01 | FW5: 2034-05-01 | FX5: 2034-05-01 | FY5: 2034-05-01 | FZ5: 2034-05-01 | GA5: 2034-05-01 | GB5: 2034-05-01 | GC5: 2034-05-01 | GD5: 2034-05-01 | GE5: 2034-05-01 | GF5: 2034-05-01 | GG5: 2034-05-01 | GH5: 2034-05-01 | GI5: 2034-05-01 | GJ5: 2034-05-01 | GK5: 2034-05-01 | GL5: 2034-05-01 | GM5: 2034-05-01 | GN5: 2034-05-01 | GO5: 2034-05-01 | GP5: 2034-05-01 | GQ5: 2034-05-01 | GR5: 2034-05-01 | GS5: 2034-05-01 | GT5: 2034-05-01 | GU5: 2034-05-01 | GV5: =GU6+1 -> 2034-05-01 | GW5: 2034-05-01 | GX5: 2034-05-01 | GY5: 2034-05-01 | GZ5: 2034-05-01 | HA5: 2034-05-01 | HB5: 2034-05-01 | HC5: 2034-05-01 | HD5: 2034-05-01 | HE5: 2034-05-01 | HF5: 2034-05-01 | HG5: 2034-05-01 | HH5: 2034-05-01 | HI5: 2034-05-01 | HJ5: 2034-05-01 | HK5: 2034-05-01 | HL5: 2034-05-01 | HM5: 2034-05-01 | HN5: 2034-05-01 | HO5: 2034-05-01 | HP5: 2034-05-01 | HQ5: 2034-05-01 | HR5: 2034-05-01 | HS5: 2034-05-01 | HT5: 2034-05-01 | HU5: 2034-05-01 | HV5: 2034-05-01 | HW5: 2034-05-01 | HX5: 2034-06-01 | HY5: 2034-07-01 | HZ5: 2034-08-01 | IA5: 2034-09-01 | IB5: 2034-10-01 | IC5: 2034-11-01 | ID5: 2034-12-01 | IE5: 2035-01-01 | IF5: 2035-02-01 | IG5: 2035-03-01 | IH5: 2035-04-01 | II5: 2035-05-01 | IJ5: 2035-06-01 | IK5: 2035-07-01 | IL5: 2035-08-01 | IM5: 2035-09-01 | IN5: 2035-10-01 | IO5: 2035-11-01 | IP5: 2035-12-01 | IQ5: 2036-01-01 | IR5: 2036-02-01 | IS5: 2036-03-01 | IT5: 2036-04-01 | IU5: 2036-05-01 | IV5: 2036-06-01 | IW5: 2036-07-01 | IX5: 2036-08-01 | IY5: 2036-09-01 | IZ5: 2036-10-01 | JA5: 2036-11-01 | JB5: 2036-12-01 | JC5: 2037-01-01 | JD5: 2037-02-01 | JE5: 2037-03-01 | JF5: 2037-04-01 | JG5: 2037-05-01 | JH5: =JG6+1 -> 2037-06-01 | JI5: 2037-07-01 | JJ5: 2037-08-01 | JK5: 2037-09-01 | JL5: 2037-10-01 | JM5: 2037-11-01 | JN5: 2037-12-01 | JO5: 2038-01-01 | JP5: 2038-02-01 | JQ5: 2038-03-01 | JR5: 2038-04-01 | JS5: 2038-05-01 | JT5: 2038-06-01 | JU5: 2038-07-01 | JV5: 2038-08-01 | JW5: 2038-09-01 | JX5: 2038-10-01 | JY5: 2038-11-01 | JZ5: 2038-12-01 | KA5: 2039-01-01 | KB5: 2039-02-01 | KC5: 2039-03-01 | KD5: 2039-04-01 | KE5: 2039-05-01 | KF5: 2039-06-01 | KG5: 2039-07-01 | KH5: 2039-08-01 | KI5: 2039-09-01 | KJ5: 2039-10-01 | KK5: 2039-11-01 | KL5: 2039-12-01 | KM5: 2040-01-01 | KN5: 2040-02-01 | KO5: 2040-03-01 | KP5: 2040-04-01 | KQ5: 2040-05-01 | KR5: 2040-06-01 | KS5: 2040-07-01 | KT5: 2040-08-01 | KU5: 2040-09-01 | KV5: 2040-10-01 | KW5: 2040-11-01 | KX5: 2040-12-01 | KY5: 2041-01-01 | KZ5: 2041-02-01 | LA5: 2041-03-01 | LB5: 2041-04-01 | LC5: 2041-05-01 | LD5: 2041-06-01 | LE5: 2041-07-01 | LF5: 2041-08-01 | LG5: 2041-09-01 | LH5: 2041-10-01 | LI5: 2041-11-01 | LJ5: 2041-12-01 | LK5: 2042-01-01 | LL5: 2042-02-01 | LM5: 2042-03-01 | LN5: 2042-04-01 | LO5: 2042-05-01 | LP5: 2042-06-01 | LQ5: 2042-07-01 | LR5: 2042-08-01 | LS5: 2042-09-01 | LT5: =LS6+1 -> 2042-10-01 | LU5: 2042-11-01 | LV5: 2042-12-01 | LW5: 2043-01-01 | LX5: 2043-02-01 | LY5: 2043-03-01 | LZ5: 2043-04-01 | MA5: 2043-05-01 | MB5: 2043-06-01 | MC5: 2043-07-01 | MD5: 2043-08-01 | ME5: 2043-09-01 | MF5: 2043-10-01 | MG5: 2043-11-01 | MH5: 2043-12-01 | MI5: 2044-01-01 | MJ5: 2044-02-01 | MK5: 2044-03-01 | ML5: 2044-04-01 | MM5: 2044-05-01 | MN5: 2044-06-01 | MO5: 2044-07-01 | MP5: 2044-08-01 | MQ5: 2044-09-01 | MR5: 2044-10-01 | MS5: 2044-11-01 | MT5: 2044-12-01 | MU5: 2045-01-01 | MV5: 2045-02-01 | MW5: 2045-03-01 | MX5: 2045-04-01 | MY5: 2045-05-01 | MZ5: 2045-06-01 | NA5: 2045-07-01 | NB5: 2045-08-01 | NC5: 2045-09-01 | ND5: 2045-10-01 | NE5: 2045-11-01 | NF5: 2045-12-01 | NG5: 2046-01-01 | NH5: 2046-02-01 | NI5: 2046-03-01 | NJ5: 2046-04-01 | NK5: 2046-05-01 | NL5: 2046-06-01 | NM5: 2046-07-01 | NN5: 2046-08-01 | NO5: 2046-09-01 | NP5: 2046-10-01 | NQ5: 2046-11-01 | NR5: 2046-12-01 | NS5: 2047-01-01 | NT5: 2047-02-01 | NU5: 2047-03-01 | NV5: 2047-04-01 | NW5: 2047-05-01 | NX5: 2047-06-01 | NY5: 2047-07-01 | NZ5: 2047-08-01 | OA5: 2047-09-01 | OB5: 2047-10-01 | OC5: 2047-11-01 | OD5: 2047-12-01 | OE5: 2048-01-01 | OF5: =OE6+1 -> 2048-02-01 | OG5: 2048-03-01 | OH5: 2048-04-01 | OI5: 2048-05-01 | OJ5: 2048-06-01 | OK5: 2048-07-01 | OL5: 2048-08-01 | OM5: 2048-09-01 | ON5: 2048-10-01 | OO5: 2048-11-01 | OP5: 2048-12-01 | OQ5: 2049-01-01 | OR5: 2049-02-01 | OS5: 2049-03-01 | OT5: 2049-04-01 | OU5: 2049-05-01 | OV5: 2049-06-01 | OW5: 2049-07-01 | OX5: 2049-08-01 | OY5: 2049-09-01 | OZ5: 2049-10-01 | PA5: 2049-11-01 | PB5: 2049-12-01 | PC5: 2050-01-01 | PD5: 2050-02-01 | PE5: 2050-03-01 | PF5: 2050-04-01 | PG5: 2050-05-01 | PH5: 2050-06-01 | PI5: 2050-07-01 | PJ5: 2050-08-01 | PK5: 2050-09-01 | PL5: 2050-10-01 | PM5: 2050-11-01 | PN5: 2050-12-01 | PO5: 2051-01-01 | PP5: 2051-02-01 | PQ5: 2051-03-01 | PR5: 2051-04-01 | PS5: 2051-05-01 | PT5: 2051-06-01 | PU5: 2051-07-01 | PV5: 2051-08-01 | PW5: 2051-09-01 | PX5: 2051-10-01 | PY5: 2051-11-01 | PZ5: 2051-12-01 | QA5: 2052-01-01 | QB5: 2052-02-01 | QC5: 2052-03-01 | QD5: 2052-04-01 | QE5: 2052-05-01 | QF5: 2052-06-01 | QG5: 2052-07-01 | QH5: 2052-08-01 | QI5: 2052-09-01 | QJ5: 2052-10-01 | QK5: 2052-11-01 | QL5: 2052-12-01 | QM5: 2053-01-01 | QN5: 2053-02-01 | QO5: 2053-03-01 | QP5: 2053-04-01 | QQ5: 2053-05-01 | QR5: =QQ6+1 -> 2053-06-01 | QS5: 2053-07-01 | QT5: 2053-08-01 | QU5: 2053-09-01 | QV5: 2053-10-01 | QW5: 2053-11-01 | QX5: 2053-12-01 | QY5: 2054-01-01 | QZ5: 2054-02-01 | RA5: 2054-03-01 | RB5: 2054-04-01 | RC5: 2054-05-01 | RD5: 2054-06-01 | RE5: 2054-07-01 | RF5: 2054-08-01 | RG5: 2054-09-01 | RH5: 2054-10-01 | RI5: 2054-11-01 | RJ5: 2054-12-01 | RK5: 2055-01-01 | RL5: 2055-02-01 | RM5: 2055-03-01 | RN5: 2055-04-01 | RO5: 2055-05-01 | RP5: 2055-06-01 | RQ5: 2055-07-01 | RR5: 2055-08-01 | RS5: 2055-09-01 | RT5: 2055-10-01 | RU5: 2055-11-01 | RV5: 2055-12-01 | RW5: 2056-01-01 | RX5: 2056-02-01 | RY5: 2056-03-01 | RZ5: 2056-04-01 | SA5: 2056-05-01 | SB5: 2056-06-01 | SC5: 2056-07-01 | SD5: 2056-08-01 | SE5: 2056-09-01 | SF5: 2056-10-01 | SG5: 2056-11-01 | SH5: 2056-12-01 | SI5: 2057-01-01 | SJ5: 2057-02-01 | SK5: 2057-03-01 | SL5: 2057-04-01 | SM5: 2057-05-01 | SN5: 2057-06-01 | SO5: 2057-07-01 | SP5: 2057-08-01
C6: End of Period | E6: Date | J6: =InputC!F3-1 -> 2025-12-31 | K6: =EOMONTH(K5,K4-1) -> 2026-01-31 | L6: =EOMONTH(L5,L4-1) -> 2026-02-28 | M6: 2026-03-31 | N6: 2026-04-30 | O6: 2026-05-31 | P6: 2026-06-30 | Q6: 2026-07-31 | R6: 2026-08-31 | S6: 2026-09-30 | T6: 2026-10-31 | U6: 2026-11-30 | V6: 2026-12-31 | W6: 2027-01-31 | X6: 2027-02-28 | Y6: 2027-03-31 | Z6: 2027-04-30 | AA6: 2027-05-31 | AB6: 2027-06-30 | AC6: 2027-07-31 | AD6: 2027-08-31 | AE6: 2027-09-30 | AF6: 2027-10-31 | AG6: 2027-11-30 | AH6: 2027-12-31 | AI6: 2028-01-31 | AJ6: 2028-02-29 | AK6: 2028-03-31 | AL6: 2028-04-30 | AM6: 2028-05-31 | AN6: 2028-06-30 | AO6: 2028-07-31 | AP6: 2028-08-31 | AQ6: 2028-09-30 | AR6: 2028-10-31 | AS6: 2028-11-30 | AT6: 2028-12-31 | AU6: 2029-01-31 | AV6: 2029-02-28 | AW6: 2029-03-31 | AX6: 2029-04-30 | AY6: 2029-05-31 | AZ6: 2029-06-30 | BA6: 2029-07-31 | BB6: 2029-08-31 | BC6: 2029-09-30 | BD6: 2029-10-31 | BE6: 2029-11-30 | BF6: 2029-12-31 | BG6: 2030-01-31 | BH6: 2030-02-28 | BI6: 2030-03-31 | BJ6: 2030-04-30 | BK6: 2030-05-31 | BL6: 2030-06-30 | BM6: 2030-07-31 | BN6: 2030-08-31 | BO6: 2030-09-30 | BP6: 2030-10-31 | BQ6: 2030-11-30 | BR6: 2030-12-31 | BS6: 2031-01-31 | BT6: 2031-02-28 | BU6: 2031-03-31 | BV6: 2031-04-30 | BW6: 2031-05-31 | BX6: =EOMONTH(BX5,BX4-1) -> 2031-06-30 | BY6: 2031-07-31 | BZ6: 2031-08-31 | CA6: 2031-09-30 | CB6: 2031-10-31 | CC6: 2031-11-30 | CD6: 2031-12-31 | CE6: 2032-01-31 | CF6: 2032-02-29 | CG6: 2032-03-31 | CH6: 2032-04-30 | CI6: 2032-05-31 | CJ6: 2032-06-30 | CK6: 2032-07-31 | CL6: 2032-08-31 | CM6: 2032-09-30 | CN6: 2032-10-31 | CO6: 2032-11-30 | CP6: 2032-12-31 | CQ6: 2033-01-31 | CR6: 2033-02-28 | CS6: 2033-03-31 | CT6: 2033-04-30 | CU6: 2033-05-31 | CV6: 2033-06-30 | CW6: 2033-07-31 | CX6: 2033-08-31 | CY6: 2033-09-30 | CZ6: 2033-10-31 | DA6: 2033-11-30 | DB6: 2033-12-31 | DC6: 2034-01-31 | DD6: 2034-02-28 | DE6: 2034-03-31 | DF6: 2034-04-30 | DG6: 2034-04-30 | DH6: 2034-04-30 | DI6: 2034-04-30 | DJ6: 2034-04-30 | DK6: 2034-04-30 | DL6: 2034-04-30 | DM6: 2034-04-30 | DN6: 2034-04-30 | DO6: 2034-04-30 | DP6: 2034-04-30 | DQ6: 2034-04-30 | DR6: 2034-04-30 | DS6: 2034-04-30 | DT6: 2034-04-30 | DU6: 2034-04-30 | DV6: 2034-04-30 | DW6: 2034-04-30 | DX6: 2034-04-30 | DY6: 2034-04-30 | DZ6: 2034-04-30 | EA6: 2034-04-30 | EB6: 2034-04-30 | EC6: 2034-04-30 | ED6: 2034-04-30 | EE6: 2034-04-30 | EF6: 2034-04-30 | EG6: 2034-04-30 | EH6: 2034-04-30 | EI6: 2034-04-30 | EJ6: =EOMONTH(EJ5,EJ4-1) -> 2034-04-30 | EK6: 2034-04-30 | EL6: 2034-04-30 | EM6: 2034-04-30 | EN6: 2034-04-30 | EO6: 2034-04-30 | EP6: 2034-04-30 | EQ6: 2034-04-30 | ER6: 2034-04-30 | ES6: 2034-04-30 | ET6: 2034-04-30 | EU6: 2034-04-30 | EV6: 2034-04-30 | EW6: 2034-04-30 | EX6: 2034-04-30 | EY6: 2034-04-30 | EZ6: 2034-04-30 | FA6: 2034-04-30 | FB6: 2034-04-30 | FC6: 2034-04-30 | FD6: 2034-04-30 | FE6: 2034-04-30 | FF6: 2034-04-30 | FG6: 2034-04-30 | FH6: 2034-04-30 | FI6: 2034-04-30 | FJ6: 2034-04-30 | FK6: 2034-04-30 | FL6: 2034-04-30 | FM6: 2034-04-30 | FN6: 2034-04-30 | FO6: 2034-04-30 | FP6: 2034-04-30 | FQ6: 2034-04-30 | FR6: 2034-04-30 | FS6: 2034-04-30 | FT6: 2034-04-30 | FU6: 2034-04-30 | FV6: 2034-04-30 | FW6: 2034-04-30 | FX6: 2034-04-30 | FY6: 2034-04-30 | FZ6: 2034-04-30 | GA6: 2034-04-30 | GB6: 2034-04-30 | GC6: 2034-04-30 | GD6: 2034-04-30 | GE6: 2034-04-30 | GF6: 2034-04-30 | GG6: 2034-04-30 | GH6: 2034-04-30 | GI6: 2034-04-30 | GJ6: 2034-04-30 | GK6: 2034-04-30 | GL6: 2034-04-30 | GM6: 2034-04-30 | GN6: 2034-04-30 | GO6: 2034-04-30 | GP6: 2034-04-30 | GQ6: 2034-04-30 | GR6: 2034-04-30 | GS6: 2034-04-30 | GT6: 2034-04-30 | GU6: 2034-04-30 | GV6: =EOMONTH(GV5,GV4-1) -> 2034-04-30 | GW6: 2034-04-30 | GX6: 2034-04-30 | GY6: 2034-04-30 | GZ6: 2034-04-30 | HA6: 2034-04-30 | HB6: 2034-04-30 | HC6: 2034-04-30 | HD6: 2034-04-30 | HE6: 2034-04-30 | HF6: 2034-04-30 | HG6: 2034-04-30 | HH6: 2034-04-30 | HI6: 2034-04-30 | HJ6: 2034-04-30 | HK6: 2034-04-30 | HL6: 2034-04-30 | HM6: 2034-04-30 | HN6: 2034-04-30 | HO6: 2034-04-30 | HP6: 2034-04-30 | HQ6: 2034-04-30 | HR6: 2034-04-30 | HS6: 2034-04-30 | HT6: 2034-04-30 | HU6: 2034-04-30 | HV6: 2034-04-30 | HW6: 2034-05-31 | HX6: 2034-06-30 | HY6: 2034-07-31 | HZ6: 2034-08-31 | IA6: 2034-09-30 | IB6: 2034-10-31 | IC6: 2034-11-30 | ID6: 2034-12-31 | IE6: 2035-01-31 | IF6: 2035-02-28 | IG6: 2035-03-31 | IH6: 2035-04-30 | II6: 2035-05-31 | IJ6: 2035-06-30 | IK6: 2035-07-31 | IL6: 2035-08-31 | IM6: 2035-09-30 | IN6: 2035-10-31 | IO6: 2035-11-30 | IP6: 2035-12-31 | IQ6: 2036-01-31 | IR6: 2036-02-29 | IS6: 2036-03-31 | IT6: 2036-04-30 | IU6: 2036-05-31 | IV6: 2036-06-30 | IW6: 2036-07-31 | IX6: 2036-08-31 | IY6: 2036-09-30 | IZ6: 2036-10-31 | JA6: 2036-11-30 | JB6: 2036-12-31 | JC6: 2037-01-31 | JD6: 2037-02-28 | JE6: 2037-03-31 | JF6: 2037-04-30 | JG6: 2037-05-31 | JH6: =EOMONTH(JH5,JH4-1) -> 2037-06-30 | JI6: 2037-07-31 | JJ6: 2037-08-31 | JK6: 2037-09-30 | JL6: 2037-10-31 | JM6: 2037-11-30 | JN6: 2037-12-31 | JO6: 2038-01-31 | JP6: 2038-02-28 | JQ6: 2038-03-31 | JR6: 2038-04-30 | JS6: 2038-05-31 | JT6: 2038-06-30 | JU6: 2038-07-31 | JV6: 2038-08-31 | JW6: 2038-09-30 | JX6: 2038-10-31 | JY6: 2038-11-30 | JZ6: 2038-12-31 | KA6: 2039-01-31 | KB6: 2039-02-28 | KC6: 2039-03-31 | KD6: 2039-04-30 | KE6: 2039-05-31 | KF6: 2039-06-30 | KG6: 2039-07-31 | KH6: 2039-08-31 | KI6: 2039-09-30 | KJ6: 2039-10-31 | KK6: 2039-11-30 | KL6: 2039-12-31 | KM6: 2040-01-31 | KN6: 2040-02-29 | KO6: 2040-03-31 | KP6: 2040-04-30 | KQ6: 2040-05-31 | KR6: 2040-06-30 | KS6: 2040-07-31 | KT6: 2040-08-31 | KU6: 2040-09-30 | KV6: 2040-10-31 | KW6: 2040-11-30 | KX6: 2040-12-31 | KY6: 2041-01-31 | KZ6: 2041-02-28 | LA6: 2041-03-31 | LB6: 2041-04-30 | LC6: 2041-05-31 | LD6: 2041-06-30 | LE6: 2041-07-31 | LF6: 2041-08-31 | LG6: 2041-09-30 | LH6: 2041-10-31 | LI6: 2041-11-30 | LJ6: 2041-12-31 | LK6: 2042-01-31 | LL6: 2042-02-28 | LM6: 2042-03-31 | LN6: 2042-04-30 | LO6: 2042-05-31 | LP6: 2042-06-30 | LQ6: 2042-07-31 | LR6: 2042-08-31 | LS6: 2042-09-30 | LT6: =EOMONTH(LT5,LT4-1) -> 2042-10-31 | LU6: 2042-11-30 | LV6: 2042-12-31 | LW6: 2043-01-31 | LX6: 2043-02-28 | LY6: 2043-03-31 | LZ6: 2043-04-30 | MA6: 2043-05-31 | MB6: 2043-06-30 | MC6: 2043-07-31 | MD6: 2043-08-31 | ME6: 2043-09-30 | MF6: 2043-10-31 | MG6: 2043-11-30 | MH6: 2043-12-31 | MI6: 2044-01-31 | MJ6: 2044-02-29 | MK6: 2044-03-31 | ML6: 2044-04-30 | MM6: 2044-05-31 | MN6: 2044-06-30 | MO6: 2044-07-31 | MP6: 2044-08-31 | MQ6: 2044-09-30 | MR6: 2044-10-31 | MS6: 2044-11-30 | MT6: 2044-12-31 | MU6: 2045-01-31 | MV6: 2045-02-28 | MW6: 2045-03-31 | MX6: 2045-04-30 | MY6: 2045-05-31 | MZ6: 2045-06-30 | NA6: 2045-07-31 | NB6: 2045-08-31 | NC6: 2045-09-30 | ND6: 2045-10-31 | NE6: 2045-11-30 | NF6: 2045-12-31 | NG6: 2046-01-31 | NH6: 2046-02-28 | NI6: 2046-03-31 | NJ6: 2046-04-30 | NK6: 2046-05-31 | NL6: 2046-06-30 | NM6: 2046-07-31 | NN6: 2046-08-31 | NO6: 2046-09-30 | NP6: 2046-10-31 | NQ6: 2046-11-30 | NR6: 2046-12-31 | NS6: 2047-01-31 | NT6: 2047-02-28 | NU6: 2047-03-31 | NV6: 2047-04-30 | NW6: 2047-05-31 | NX6: 2047-06-30 | NY6: 2047-07-31 | NZ6: 2047-08-31 | OA6: 2047-09-30 | OB6: 2047-10-31 | OC6: 2047-11-30 | OD6: 2047-12-31 | OE6: 2048-01-31 | OF6: =EOMONTH(OF5,OF4-1) -> 2048-02-29 | OG6: 2048-03-31 | OH6: 2048-04-30 | OI6: 2048-05-31 | OJ6: 2048-06-30 | OK6: 2048-07-31 | OL6: 2048-08-31 | OM6: 2048-09-30 | ON6: 2048-10-31 | OO6: 2048-11-30 | OP6: 2048-12-31 | OQ6: 2049-01-31 | OR6: 2049-02-28 | OS6: 2049-03-31 | OT6: 2049-04-30 | OU6: 2049-05-31 | OV6: 2049-06-30 | OW6: 2049-07-31 | OX6: 2049-08-31 | OY6: 2049-09-30 | OZ6: 2049-10-31 | PA6: 2049-11-30 | PB6: 2049-12-31 | PC6: 2050-01-31 | PD6: 2050-02-28 | PE6: 2050-03-31 | PF6: 2050-04-30 | PG6: 2050-05-31 | PH6: 2050-06-30 | PI6: 2050-07-31 | PJ6: 2050-08-31 | PK6: 2050-09-30 | PL6: 2050-10-31 | PM6: 2050-11-30 | PN6: 2050-12-31 | PO6: 2051-01-31 | PP6: 2051-02-28 | PQ6: 2051-03-31 | PR6: 2051-04-30 | PS6: 2051-05-31 | PT6: 2051-06-30 | PU6: 2051-07-31 | PV6: 2051-08-31 | PW6: 2051-09-30 | PX6: 2051-10-31 | PY6: 2051-11-30 | PZ6: 2051-12-31 | QA6: 2052-01-31 | QB6: 2052-02-29 | QC6: 2052-03-31 | QD6: 2052-04-30 | QE6: 2052-05-31 | QF6: 2052-06-30 | QG6: 2052-07-31 | QH6: 2052-08-31 | QI6: 2052-09-30 | QJ6: 2052-10-31 | QK6: 2052-11-30 | QL6: 2052-12-31 | QM6: 2053-01-31 | QN6: 2053-02-28 | QO6: 2053-03-31 | QP6: 2053-04-30 | QQ6: 2053-05-31 | QR6: =EOMONTH(QR5,QR4-1) -> 2053-06-30 | QS6: 2053-07-31 | QT6: 2053-08-31 | QU6: 2053-09-30 | QV6: 2053-10-31 | QW6: 2053-11-30 | QX6: 2053-12-31 | QY6: 2054-01-31 | QZ6: 2054-02-28 | RA6: 2054-03-31 | RB6: 2054-04-30 | RC6: 2054-05-31 | RD6: 2054-06-30 | RE6: 2054-07-31 | RF6: 2054-08-31 | RG6: 2054-09-30 | RH6: 2054-10-31 | RI6: 2054-11-30 | RJ6: 2054-12-31 | RK6: 2055-01-31 | RL6: 2055-02-28 | RM6: 2055-03-31 | RN6: 2055-04-30 | RO6: 2055-05-31 | RP6: 2055-06-30 | RQ6: 2055-07-31 | RR6: 2055-08-31 | RS6: 2055-09-30 | RT6: 2055-10-31 | RU6: 2055-11-30 | RV6: 2055-12-31 | RW6: 2056-01-31 | RX6: 2056-02-29 | RY6: 2056-03-31 | RZ6: 2056-04-30 | SA6: 2056-05-31 | SB6: 2056-06-30 | SC6: 2056-07-31 | SD6: 2056-08-31 | SE6: 2056-09-30 | SF6: 2056-10-31 | SG6: 2056-11-30 | SH6: 2056-12-31 | SI6: 2057-01-31 | SJ6: 2057-02-28 | SK6: 2057-03-31 | SL6: 2057-04-30 | SM6: 2057-05-31 | SN6: 2057-06-30 | SO6: 2057-07-31 | SP6: 2057-08-31
C7: Operting Period | E7: Flag | F7: Date | G7: =InputC!F6 -> 2034-06-01 | H7: =InputC!F8 -> 2094-05-31 | K7: =(AND(NOT(K4),K5>=$G$7,K6<=$H$73))*1 -> 0 | L7: =(AND(NOT(L4),L5>=$G$7,L6<=$H$73))*1 -> 0 | M7: =(AND(NOT(M4),M5>=$G$7,M6<=$H$73))*1 -> 0 | N7: =(AND(NOT(N4),N5>=$G$7,N6<=$H$73))*1 -> 0 | O7: =(AND(NOT(O4),O5>=$G$7,O6<=$H$73))*1 -> 0 | P7: =(AND(NOT(P4),P5>=$G$7,P6<=$H$73))*1 -> 0 | Q7: =(AND(NOT(Q4),Q5>=$G$7,Q6<=$H$73))*1 -> 0 | R7: =(AND(NOT(R4),R5>=$G$7,R6<=$H$73))*1 -> 0 | S7: =(AND(NOT(S4),S5>=$G$7,S6<=$H$73))*1 -> 0 | T7: =(AND(NOT(T4),T5>=$G$7,T6<=$H$73))*1 -> 0 | U7: =(AND(NOT(U4),U5>=$G$7,U6<=$H$73))*1 -> 0 | V7: =(AND(NOT(V4),V5>=$G$7,V6<=$H$73))*1 -> 0 | W7: =(AND(NOT(W4),W5>=$G$7,W6<=$H$73))*1 -> 0 | X7: =(AND(NOT(X4),X5>=$G$7,X6<=$H$73))*1 -> 0 | Y7: =(AND(NOT(Y4),Y5>=$G$7,Y6<=$H$73))*1 -> 0 | Z7: =(AND(NOT(Z4),Z5>=$G$7,Z6<=$H$73))*1 -> 0 | AA7: =(AND(NOT(AA4),AA5>=$G$7,AA6<=$H$73))*1 -> 0 | AB7: =(AND(NOT(AB4),AB5>=$G$7,AB6<=$H$73))*1 -> 0 | AC7: =(AND(NOT(AC4),AC5>=$G$7,AC6<=$H$73))*1 -> 0 | AD7: =(AND(NOT(AD4),AD5>=$G$7,AD6<=$H$73))*1 -> 0 | AE7: =(AND(NOT(AE4),AE5>=$G$7,AE6<=$H$73))*1 -> 0 | AF7: =(AND(NOT(AF4),AF5>=$G$7,AF6<=$H$73))*1 -> 0 | AG7: =(AND(NOT(AG4),AG5>=$G$7,AG6<=$H$73))*1 -> 0 | AH7: =(AND(NOT(AH4),AH5>=$G$7,AH6<=$H$73))*1 -> 0 | AI7: =(AND(NOT(AI4),AI5>=$G$7,AI6<=$H$73))*1 -> 0 | AJ7: =(AND(NOT(AJ4),AJ5>=$G$7,AJ6<=$H$73))*1 -> 0 | AK7: =(AND(NOT(AK4),AK5>=$G$7,AK6<=$H$73))*1 -> 0 | AL7: =(AND(NOT(AL4),AL5>=$G$7,AL6<=$H$73))*1 -> 0 | AM7: =(AND(NOT(AM4),AM5>=$G$7,AM6<=$H$73))*1 -> 0 | AN7: =(AND(NOT(AN4),AN5>=$G$7,AN6<=$H$73))*1 -> 0 | AO7: =(AND(NOT(AO4),AO5>=$G$7,AO6<=$H$73))*1 -> 0 | AP7: =(AND(NOT(AP4),AP5>=$G$7,AP6<=$H$73))*1 -> 0 | AQ7: =(AND(NOT(AQ4),AQ5>=$G$7,AQ6<=$H$73))*1 -> 0 | AR7: =(AND(NOT(AR4),AR5>=$G$7,AR6<=$H$73))*1 -> 0 | AS7: =(AND(NOT(AS4),AS5>=$G$7,AS6<=$H$73))*1 -> 0 | AT7: =(AND(NOT(AT4),AT5>=$G$7,AT6<=$H$73))*1 -> 0 | AU7: =(AND(NOT(AU4),AU5>=$G$7,AU6<=$H$73))*1 -> 0 | AV7: =(AND(NOT(AV4),AV5>=$G$7,AV6<=$H$73))*1 -> 0 | AW7: =(AND(NOT(AW4),AW5>=$G$7,AW6<=$H$73))*1 -> 0 | AX7: =(AND(NOT(AX4),AX5>=$G$7,AX6<=$H$73))*1 -> 0 | AY7: =(AND(NOT(AY4),AY5>=$G$7,AY6<=$H$73))*1 -> 0 | AZ7: =(AND(NOT(AZ4),AZ5>=$G$7,AZ6<=$H$73))*1 -> 0 | BA7: =(AND(NOT(BA4),BA5>=$G$7,BA6<=$H$73))*1 -> 0 | BB7: =(AND(NOT(BB4),BB5>=$G$7,BB6<=$H$73))*1 -> 0 | BC7: =(AND(NOT(BC4),BC5>=$G$7,BC6<=$H$73))*1 -> 0 | BD7: =(AND(NOT(BD4),BD5>=$G$7,BD6<=$H$73))*1 -> 0 | BE7: =(AND(NOT(BE4),BE5>=$G$7,BE6<=$H$73))*1 -> 0 | BF7: =(AND(NOT(BF4),BF5>=$G$7,BF6<=$H$73))*1 -> 0 | BG7: =(AND(NOT(BG4),BG5>=$G$7,BG6<=$H$73))*1 -> 0 | BH7: =(AND(NOT(BH4),BH5>=$G$7,BH6<=$H$73))*1 -> 0 | BI7: =(AND(NOT(BI4),BI5>=$G$7,BI6<=$H$73))*1 -> 0 | BJ7: =(AND(NOT(BJ4),BJ5>=$G$7,BJ6<=$H$73))*1 -> 0 | BK7: =(AND(NOT(BK4),BK5>=$G$7,BK6<=$H$73))*1 -> 0 | BL7: =(AND(NOT(BL4),BL5>=$G$7,BL6<=$H$73))*1 -> 0 | BM7: =(AND(NOT(BM4),BM5>=$G$7,BM6<=$H$73))*1 -> 0 | BN7: =(AND(NOT(BN4),BN5>=$G$7,BN6<=$H$73))*1 -> 0 | BO7: =(AND(NOT(BO4),BO5>=$G$7,BO6<=$H$73))*1 -> 0 | BP7: =(AND(NOT(BP4),BP5>=$G$7,BP6<=$H$73))*1 -> 0 | BQ7: =(AND(NOT(BQ4),BQ5>=$G$7,BQ6<=$H$73))*1 -> 0 | BR7: =(AND(NOT(BR4),BR5>=$G$7,BR6<=$H$73))*1 -> 0 | BS7: =(AND(NOT(BS4),BS5>=$G$7,BS6<=$H$73))*1 -> 0 | BT7: =(AND(NOT(BT4),BT5>=$G$7,BT6<=$H$73))*1 -> 0 | BU7: =(AND(NOT(BU4),BU5>=$G$7,BU6<=$H$73))*1 -> 0 | BV7: =(AND(NOT(BV4),BV5>=$G$7,BV6<=$H$73))*1 -> 0 | BW7: =(AND(NOT(BW4),BW5>=$G$7,BW6<=$H$73))*1 -> 0 | BX7: =(AND(NOT(BX4),BX5>=$G$7,BX6<=$H$73))*1 -> 0 | BY7: =(AND(NOT(BY4),BY5>=$G$7,BY6<=$H$73))*1 -> 0 | BZ7: =(AND(NOT(BZ4),BZ5>=$G$7,BZ6<=$H$73))*1 -> 0 | CA7: =(AND(NOT(CA4),CA5>=$G$7,CA6<=$H$73))*1 -> 0 | CB7: =(AND(NOT(CB4),CB5>=$G$7,CB6<=$H$73))*1 -> 0 | CC7: =(AND(NOT(CC4),CC5>=$G$7,CC6<=$H$73))*1 -> 0 | CD7: =(AND(NOT(CD4),CD5>=$G$7,CD6<=$H$73))*1 -> 0 | CE7: =(AND(NOT(CE4),CE5>=$G$7,CE6<=$H$73))*1 -> 0 | CF7: =(AND(NOT(CF4),CF5>=$G$7,CF6<=$H$73))*1 -> 0 | CG7: =(AND(NOT(CG4),CG5>=$G$7,CG6<=$H$73))*1 -> 0 | CH7: =(AND(NOT(CH4),CH5>=$G$7,CH6<=$H$73))*1 -> 0 | CI7: =(AND(NOT(CI4),CI5>=$G$7,CI6<=$H$73))*1 -> 0 | CJ7: =(AND(NOT(CJ4),CJ5>=$G$7,CJ6<=$H$73))*1 -> 0 | CK7: =(AND(NOT(CK4),CK5>=$G$7,CK6<=$H$73))*1 -> 0 | CL7: =(AND(NOT(CL4),CL5>=$G$7,CL6<=$H$73))*1 -> 0 | CM7: =(AND(NOT(CM4),CM5>=$G$7,CM6<=$H$73))*1 -> 0 | CN7: =(AND(NOT(CN4),CN5>=$G$7,CN6<=$H$73))*1 -> 0 | CO7: =(AND(NOT(CO4),CO5>=$G$7,CO6<=$H$73))*1 -> 0 | CP7: =(AND(NOT(CP4),CP5>=$G$7,CP6<=$H$73))*1 -> 0 | CQ7: =(AND(NOT(CQ4),CQ5>=$G$7,CQ6<=$H$73))*1 -> 0 | CR7: =(AND(NOT(CR4),CR5>=$G$7,CR6<=$H$73))*1 -> 0 | CS7: =(AND(NOT(CS4),CS5>=$G$7,CS6<=$H$73))*1 -> 0 | CT7: =(AND(NOT(CT4),CT5>=$G$7,CT6<=$H$73))*1 -> 0 | CU7: =(AND(NOT(CU4),CU5>=$G$7,CU6<=$H$73))*1 -> 0 | CV7: =(AND(NOT(CV4),CV5>=$G$7,CV6<=$H$73))*1 -> 0 | CW7: =(AND(NOT(CW4),CW5>=$G$7,CW6<=$H$73))*1 -> 0 | CX7: =(AND(NOT(CX4),CX5>=$G$7,CX6<=$H$73))*1 -> 0 | CY7: =(AND(NOT(CY4),CY5>=$G$7,CY6<=$H$73))*1 -> 0 | CZ7: =(AND(NOT(CZ4),CZ5>=$G$7,CZ6<=$H$73))*1 -> 0 | DA7: =(AND(NOT(DA4),DA5>=$G$7,DA6<=$H$73))*1 -> 0 | DB7: =(AND(NOT(DB4),DB5>=$G$7,DB6<=$H$73))*1 -> 0 | DC7: =(AND(NOT(DC4),DC5>=$G$7,DC6<=$H$73))*1 -> 0 | DD7: =(AND(NOT(DD4),DD5>=$G$7,DD6<=$H$73))*1 -> 0 | DE7: =(AND(NOT(DE4),DE5>=$G$7,DE6<=$H$73))*1 -> 0 | DF7: =(AND(NOT(DF4),DF5>=$G$7,DF6<=$H$73))*1 -> 0 | DG7: =(AND(NOT(DG4),DG5>=$G$7,DG6<=$H$73))*1 -> 0 | DH7: =(AND(NOT(DH4),DH5>=$G$7,DH6<=$H$73))*1 -> 0 | DI7: =(AND(NOT(DI4),DI5>=$G$7,DI6<=$H$73))*1 -> 0 | DJ7: =(AND(NOT(DJ4),DJ5>=$G$7,DJ6<=$H$73))*1 -> 0 | DK7: =(AND(NOT(DK4),DK5>=$G$7,DK6<=$H$73))*1 -> 0 | DL7: =(AND(NOT(DL4),DL5>=$G$7,DL6<=$H$73))*1 -> 0 | DM7: =(AND(NOT(DM4),DM5>=$G$7,DM6<=$H$73))*1 -> 0 | DN7: =(AND(NOT(DN4),DN5>=$G$7,DN6<=$H$73))*1 -> 0 | DO7: =(AND(NOT(DO4),DO5>=$G$7,DO6<=$H$73))*1 -> 0 | DP7: =(AND(NOT(DP4),DP5>=$G$7,DP6<=$H$73))*1 -> 0 | DQ7: =(AND(NOT(DQ4),DQ5>=$G$7,DQ6<=$H$73))*1 -> 0 | DR7: =(AND(NOT(DR4),DR5>=$G$7,DR6<=$H$73))*1 -> 0 | DS7: =(AND(NOT(DS4),DS5>=$G$7,DS6<=$H$73))*1 -> 0 | DT7: =(AND(NOT(DT4),DT5>=$G$7,DT6<=$H$73))*1 -> 0 | DU7: =(AND(NOT(DU4),DU5>=$G$7,DU6<=$H$73))*1 -> 0 | DV7: =(AND(NOT(DV4),DV5>=$G$7,DV6<=$H$73))*1 -> 0 | DW7: =(AND(NOT(DW4),DW5>=$G$7,DW6<=$H$73))*1 -> 0 | DX7: =(AND(NOT(DX4),DX5>=$G$7,DX6<=$H$73))*1 -> 0 | DY7: =(AND(NOT(DY4),DY5>=$G$7,DY6<=$H$73))*1 -> 0 | DZ7: =(AND(NOT(DZ4),DZ5>=$G$7,DZ6<=$H$73))*1 -> 0 | EA7: =(AND(NOT(EA4),EA5>=$G$7,EA6<=$H$73))*1 -> 0 | EB7: =(AND(NOT(EB4),EB5>=$G$7,EB6<=$H$73))*1 -> 0 | EC7: =(AND(NOT(EC4),EC5>=$G$7,EC6<=$H$73))*1 -> 0 | ED7: =(AND(NOT(ED4),ED5>=$G$7,ED6<=$H$73))*1 -> 0 | EE7: =(AND(NOT(EE4),EE5>=$G$7,EE6<=$H$73))*1 -> 0 | EF7: =(AND(NOT(EF4),EF5>=$G$7,EF6<=$H$73))*1 -> 0 | EG7: =(AND(NOT(EG4),EG5>=$G$7,EG6<=$H$73))*1 -> 0 | EH7: =(AND(NOT(EH4),EH5>=$G$7,EH6<=$H$73))*1 -> 0 | EI7: =(AND(NOT(EI4),EI5>=$G$7,EI6<=$H$73))*1 -> 0 | EJ7: =(AND(NOT(EJ4),EJ5>=$G$7,EJ6<=$H$73))*1 -> 0 | EK7: =(AND(NOT(EK4),EK5>=$G$7,EK6<=$H$73))*1 -> 0 | EL7: =(AND(NOT(EL4),EL5>=$G$7,EL6<=$H$73))*1 -> 0 | EM7: =(AND(NOT(EM4),EM5>=$G$7,EM6<=$H$73))*1 -> 0 | EN7: =(AND(NOT(EN4),EN5>=$G$7,EN6<=$H$73))*1 -> 0 | EO7: =(AND(NOT(EO4),EO5>=$G$7,EO6<=$H$73))*1 -> 0 | EP7: =(AND(NOT(EP4),EP5>=$G$7,EP6<=$H$73))*1 -> 0 | EQ7: =(AND(NOT(EQ4),EQ5>=$G$7,EQ6<=$H$73))*1 -> 0 | ER7: =(AND(NOT(ER4),ER5>=$G$7,ER6<=$H$73))*1 -> 0 | ES7: =(AND(NOT(ES4),ES5>=$G$7,ES6<=$H$73))*1 -> 0 | ET7: =(AND(NOT(ET4),ET5>=$G$7,ET6<=$H$73))*1 -> 0 | EU7: =(AND(NOT(EU4),EU5>=$G$7,EU6<=$H$73))*1 -> 0 | EV7: =(AND(NOT(EV4),EV5>=$G$7,EV6<=$H$73))*1 -> 0 | EW7: =(AND(NOT(EW4),EW5>=$G$7,EW6<=$H$73))*1 -> 0 | EX7: =(AND(NOT(EX4),EX5>=$G$7,EX6<=$H$73))*1 -> 0 | EY7: =(AND(NOT(EY4),EY5>=$G$7,EY6<=$H$73))*1 -> 0 | EZ7: =(AND(NOT(EZ4),EZ5>=$G$7,EZ6<=$H$73))*1 -> 0 | FA7: =(AND(NOT(FA4),FA5>=$G$7,FA6<=$H$73))*1 -> 0 | FB7: =(AND(NOT(FB4),FB5>=$G$7,FB6<=$H$73))*1 -> 0 | FC7: =(AND(NOT(FC4),FC5>=$G$7,FC6<=$H$73))*1 -> 0 | FD7: =(AND(NOT(FD4),FD5>=$G$7,FD6<=$H$73))*1 -> 0 | FE7: =(AND(NOT(FE4),FE5>=$G$7,FE6<=$H$73))*1 -> 0 | FF7: =(AND(NOT(FF4),FF5>=$G$7,FF6<=$H$73))*1 -> 0 | FG7: =(AND(NOT(FG4),FG5>=$G$7,FG6<=$H$73))*1 -> 0 | FH7: =(AND(NOT(FH4),FH5>=$G$7,FH6<=$H$73))*1 -> 0 | FI7: =(AND(NOT(FI4),FI5>=$G$7,FI6<=$H$73))*1 -> 0 | FJ7: =(AND(NOT(FJ4),FJ5>=$G$7,FJ6<=$H$73))*1 -> 0 | FK7: =(AND(NOT(FK4),FK5>=$G$7,FK6<=$H$73))*1 -> 0 | FL7: =(AND(NOT(FL4),FL5>=$G$7,FL6<=$H$73))*1 -> 0 | FM7: =(AND(NOT(FM4),FM5>=$G$7,FM6<=$H$73))*1 -> 0 | FN7: =(AND(NOT(FN4),FN5>=$G$7,FN6<=$H$73))*1 -> 0 | FO7: =(AND(NOT(FO4),FO5>=$G$7,FO6<=$H$73))*1 -> 0 | FP7: =(AND(NOT(FP4),FP5>=$G$7,FP6<=$H$73))*1 -> 0 | FQ7: =(AND(NOT(FQ4),FQ5>=$G$7,FQ6<=$H$73))*1 -> 0 | FR7: =(AND(NOT(FR4),FR5>=$G$7,FR6<=$H$73))*1 -> 0 | FS7: =(AND(NOT(FS4),FS5>=$G$7,FS6<=$H$73))*1 -> 0 | FT7: =(AND(NOT(FT4),FT5>=$G$7,FT6<=$H$73))*1 -> 0 | FU7: =(AND(NOT(FU4),FU5>=$G$7,FU6<=$H$73))*1 -> 0 | FV7: =(AND(NOT(FV4),FV5>=$G$7,FV6<=$H$73))*1 -> 0 | FW7: =(AND(NOT(FW4),FW5>=$G$7,FW6<=$H$73))*1 -> 0 | FX7: =(AND(NOT(FX4),FX5>=$G$7,FX6<=$H$73))*1 -> 0 | FY7: =(AND(NOT(FY4),FY5>=$G$7,FY6<=$H$73))*1 -> 0 | FZ7: =(AND(NOT(FZ4),FZ5>=$G$7,FZ6<=$H$73))*1 -> 0 | GA7: =(AND(NOT(GA4),GA5>=$G$7,GA6<=$H$73))*1 -> 0 | GB7: =(AND(NOT(GB4),GB5>=$G$7,GB6<=$H$73))*1 -> 0 | GC7: =(AND(NOT(GC4),GC5>=$G$7,GC6<=$H$73))*1 -> 0 | GD7: =(AND(NOT(GD4),GD5>=$G$7,GD6<=$H$73))*1 -> 0 | GE7: =(AND(NOT(GE4),GE5>=$G$7,GE6<=$H$73))*1 -> 0 | GF7: =(AND(NOT(GF4),GF5>=$G$7,GF6<=$H$73))*1 -> 0 | GG7: =(AND(NOT(GG4),GG5>=$G$7,GG6<=$H$73))*1 -> 0 | GH7: =(AND(NOT(GH4),GH5>=$G$7,GH6<=$H$73))*1 -> 0 | GI7: =(AND(NOT(GI4),GI5>=$G$7,GI6<=$H$73))*1 -> 0 | GJ7: =(AND(NOT(GJ4),GJ5>=$G$7,GJ6<=$H$73))*1 -> 0 | GK7: =(AND(NOT(GK4),GK5>=$G$7,GK6<=$H$73))*1 -> 0 | GL7: =(AND(NOT(GL4),GL5>=$G$7,GL6<=$H$73))*1 -> 0 | GM7: =(AND(NOT(GM4),GM5>=$G$7,GM6<=$H$73))*1 -> 0 | GN7: =(AND(NOT(GN4),GN5>=$G$7,GN6<=$H$73))*1 -> 0 | GO7: =(AND(NOT(GO4),GO5>=$G$7,GO6<=$H$73))*1 -> 0 | GP7: =(AND(NOT(GP4),GP5>=$G$7,GP6<=$H$73))*1 -> 0 | GQ7: =(AND(NOT(GQ4),GQ5>=$G$7,GQ6<=$H$73))*1 -> 0 | GR7: =(AND(NOT(GR4),GR5>=$G$7,GR6<=$H$73))*1 -> 0 | GS7: =(AND(NOT(GS4),GS5>=$G$7,GS6<=$H$73))*1 -> 0 | GT7: =(AND(NOT(GT4),GT5>=$G$7,GT6<=$H$73))*1 -> 0 | GU7: =(AND(NOT(GU4),GU5>=$G$7,GU6<=$H$73))*1 -> 0 | GV7: =(AND(NOT(GV4),GV5>=$G$7,GV6<=$H$73))*1 -> 0 | GW7: =(AND(NOT(GW4),GW5>=$G$7,GW6<=$H$73))*1 -> 0 | GX7: =(AND(NOT(GX4),GX5>=$G$7,GX6<=$H$73))*1 -> 0 | GY7: =(AND(NOT(GY4),GY5>=$G$7,GY6<=$H$73))*1 -> 0 | GZ7: =(AND(NOT(GZ4),GZ5>=$G$7,GZ6<=$H$73))*1 -> 0 | HA7: =(AND(NOT(HA4),HA5>=$G$7,HA6<=$H$73))*1 -> 0 | HB7: =(AND(NOT(HB4),HB5>=$G$7,HB6<=$H$73))*1 -> 0 | HC7: =(AND(NOT(HC4),HC5>=$G$7,HC6<=$H$73))*1 -> 0 | HD7: =(AND(NOT(HD4),HD5>=$G$7,HD6<=$H$73))*1 -> 0 | HE7: =(AND(NOT(HE4),HE5>=$G$7,HE6<=$H$73))*1 -> 0 | HF7: =(AND(NOT(HF4),HF5>=$G$7,HF6<=$H$73))*1 -> 0 | HG7: =(AND(NOT(HG4),HG5>=$G$7,HG6<=$H$73))*1 -> 0 | HH7: =(AND(NOT(HH4),HH5>=$G$7,HH6<=$H$73))*1 -> 0 | HI7: =(AND(NOT(HI4),HI5>=$G$7,HI6<=$H$73))*1 -> 0 | HJ7: =(AND(NOT(HJ4),HJ5>=$G$7,HJ6<=$H$73))*1 -> 0 | HK7: =(AND(NOT(HK4),HK5>=$G$7,HK6<=$H$73))*1 -> 0 | HL7: =(AND(NOT(HL4),HL5>=$G$7,HL6<=$H$73))*1 -> 0 | HM7: =(AND(NOT(HM4),HM5>=$G$7,HM6<=$H$73))*1 -> 0 | HN7: =(AND(NOT(HN4),HN5>=$G$7,HN6<=$H$73))*1 -> 0 | HO7: =(AND(NOT(HO4),HO5>=$G$7,HO6<=$H$73))*1 -> 0 | HP7: =(AND(NOT(HP4),HP5>=$G$7,HP6<=$H$73))*1 -> 0 | HQ7: =(AND(NOT(HQ4),HQ5>=$G$7,HQ6<=$H$73))*1 -> 0 | HR7: =(AND(NOT(HR4),HR5>=$G$7,HR6<=$H$73))*1 -> 0 | HS7: =(AND(NOT(HS4),HS5>=$G$7,HS6<=$H$73))*1 -> 0 | HT7: =(AND(NOT(HT4),HT5>=$G$7,HT6<=$H$73))*1 -> 0 | HU7: =(AND(NOT(HU4),HU5>=$G$7,HU6<=$H$73))*1 -> 0 | HV7: =(AND(NOT(HV4),HV5>=$G$7,HV6<=$H$73))*1 -> 0 | HW7: =(AND(NOT(HW4),HW5>=$G$7,HW6<=$H$73))*1 -> 0 | HX7: =(AND(NOT(HX4),HX5>=$G$7,HX6<=$H$73))*1 -> 0 | HY7: =(AND(NOT(HY4),HY5>=$G$7,HY6<=$H$73))*1 -> 0 | HZ7: =(AND(NOT(HZ4),HZ5>=$G$7,HZ6<=$H$73))*1 -> 0 | IA7: =(AND(NOT(IA4),IA5>=$G$7,IA6<=$H$73))*1 -> 0 | IB7: =(AND(NOT(IB4),IB5>=$G$7,IB6<=$H$73))*1 -> 0 | IC7: =(AND(NOT(IC4),IC5>=$G$7,IC6<=$H$73))*1 -> 0 | ID7: =(AND(NOT(ID4),ID5>=$G$7,ID6<=$H$73))*1 -> 0 | IE7: =(AND(NOT(IE4),IE5>=$G$7,IE6<=$H$73))*1 -> 0 | IF7: =(AND(NOT(IF4),IF5>=$G$7,IF6<=$H$73))*1 -> 0 | IG7: =(AND(NOT(IG4),IG5>=$G$7,IG6<=$H$73))*1 -> 0 | IH7: =(AND(NOT(IH4),IH5>=$G$7,IH6<=$H$73))*1 -> 0 | II7: =(AND(NOT(II4),II5>=$G$7,II6<=$H$73))*1 -> 0 | IJ7: =(AND(NOT(IJ4),IJ5>=$G$7,IJ6<=$H$73))*1 -> 0 | IK7: =(AND(NOT(IK4),IK5>=$G$7,IK6<=$H$73))*1 -> 0 | IL7: =(AND(NOT(IL4),IL5>=$G$7,IL6<=$H$73))*1 -> 0 | IM7: =(AND(NOT(IM4),IM5>=$G$7,IM6<=$H$73))*1 -> 0 | IN7: =(AND(NOT(IN4),IN5>=$G$7,IN6<=$H$73))*1 -> 0 | IO7: =(AND(NOT(IO4),IO5>=$G$7,IO6<=$H$73))*1 -> 0 | IP7: =(AND(NOT(IP4),IP5>=$G$7,IP6<=$H$73))*1 -> 0 | IQ7: =(AND(NOT(IQ4),IQ5>=$G$7,IQ6<=$H$73))*1 -> 0 | IR7: =(AND(NOT(IR4),IR5>=$G$7,IR6<=$H$73))*1 -> 0 | IS7: =(AND(NOT(IS4),IS5>=$G$7,IS6<=$H$73))*1 -> 0 | IT7: =(AND(NOT(IT4),IT5>=$G$7,IT6<=$H$73))*1 -> 0 | IU7: =(AND(NOT(IU4),IU5>=$G$7,IU6<=$H$73))*1 -> 0 | IV7: =(AND(NOT(IV4),IV5>=$G$7,IV6<=$H$73))*1 -> 0 | IW7: =(AND(NOT(IW4),IW5>=$G$7,IW6<=$H$73))*1 -> 0 | IX7: =(AND(NOT(IX4),IX5>=$G$7,IX6<=$H$73))*1 -> 0 | IY7: =(AND(NOT(IY4),IY5>=$G$7,IY6<=$H$73))*1 -> 0 | IZ7: =(AND(NOT(IZ4),IZ5>=$G$7,IZ6<=$H$73))*1 -> 0 | JA7: =(AND(NOT(JA4),JA5>=$G$7,JA6<=$H$73))*1 -> 0 | JB7: =(AND(NOT(JB4),JB5>=$G$7,JB6<=$H$73))*1 -> 0 | JC7: =(AND(NOT(JC4),JC5>=$G$7,JC6<=$H$73))*1 -> 0 | JD7: =(AND(NOT(JD4),JD5>=$G$7,JD6<=$H$73))*1 -> 0 | JE7: =(AND(NOT(JE4),JE5>=$G$7,JE6<=$H$73))*1 -> 0 | JF7: =(AND(NOT(JF4),JF5>=$G$7,JF6<=$H$73))*1 -> 0 | JG7: =(AND(NOT(JG4),JG5>=$G$7,JG6<=$H$73))*1 -> 0 | JH7: =(AND(NOT(JH4),JH5>=$G$7,JH6<=$H$73))*1 -> 0 | JI7: =(AND(NOT(JI4),JI5>=$G$7,JI6<=$H$73))*1 -> 0 | JJ7: =(AND(NOT(JJ4),JJ5>=$G$7,JJ6<=$H$73))*1 -> 0 | JK7: =(AND(NOT(JK4),JK5>=$G$7,JK6<=$H$73))*1 -> 0 | JL7: =(AND(NOT(JL4),JL5>=$G$7,JL6<=$H$73))*1 -> 0 | JM7: =(AND(NOT(JM4),JM5>=$G$7,JM6<=$H$73))*1 -> 0 | JN7: =(AND(NOT(JN4),JN5>=$G$7,JN6<=$H$73))*1 -> 0 | JO7: =(AND(NOT(JO4),JO5>=$G$7,JO6<=$H$73))*1 -> 0 | JP7: =(AND(NOT(JP4),JP5>=$G$7,JP6<=$H$73))*1 -> 0 | JQ7: =(AND(NOT(JQ4),JQ5>=$G$7,JQ6<=$H$73))*1 -> 0 | JR7: =(AND(NOT(JR4),JR5>=$G$7,JR6<=$H$73))*1 -> 0 | JS7: =(AND(NOT(JS4),JS5>=$G$7,JS6<=$H$73))*1 -> 0 | JT7: =(AND(NOT(JT4),JT5>=$G$7,JT6<=$H$73))*1 -> 0 | JU7: =(AND(NOT(JU4),JU5>=$G$7,JU6<=$H$73))*1 -> 0 | JV7: =(AND(NOT(JV4),JV5>=$G$7,JV6<=$H$73))*1 -> 0 | JW7: =(AND(NOT(JW4),JW5>=$G$7,JW6<=$H$73))*1 -> 0 | JX7: =(AND(NOT(JX4),JX5>=$G$7,JX6<=$H$73))*1 -> 0 | JY7: =(AND(NOT(JY4),JY5>=$G$7,JY6<=$H$73))*1 -> 0 | JZ7: =(AND(NOT(JZ4),JZ5>=$G$7,JZ6<=$H$73))*1 -> 0 | KA7: =(AND(NOT(KA4),KA5>=$G$7,KA6<=$H$73))*1 -> 0 | KB7: =(AND(NOT(KB4),KB5>=$G$7,KB6<=$H$73))*1 -> 0 | KC7: =(AND(NOT(KC4),KC5>=$G$7,KC6<=$H$73))*1 -> 0 | KD7: =(AND(NOT(KD4),KD5>=$G$7,KD6<=$H$73))*1 -> 0 | KE7: =(AND(NOT(KE4),KE5>=$G$7,KE6<=$H$73))*1 -> 0 | KF7: =(AND(NOT(KF4),KF5>=$G$7,KF6<=$H$73))*1 -> 0 | KG7: =(AND(NOT(KG4),KG5>=$G$7,KG6<=$H$73))*1 -> 0 | KH7: =(AND(NOT(KH4),KH5>=$G$7,KH6<=$H$73))*1 -> 0 | KI7: =(AND(NOT(KI4),KI5>=$G$7,KI6<=$H$73))*1 -> 0 | KJ7: =(AND(NOT(KJ4),KJ5>=$G$7,KJ6<=$H$73))*1 -> 0 | KK7: =(AND(NOT(KK4),KK5>=$G$7,KK6<=$H$73))*1 -> 0 | KL7: =(AND(NOT(KL4),KL5>=$G$7,KL6<=$H$73))*1 -> 0 | KM7: =(AND(NOT(KM4),KM5>=$G$7,KM6<=$H$73))*1 -> 0 | KN7: =(AND(NOT(KN4),KN5>=$G$7,KN6<=$H$73))*1 -> 0 | KO7: =(AND(NOT(KO4),KO5>=$G$7,KO6<=$H$73))*1 -> 0 | KP7: =(AND(NOT(KP4),KP5>=$G$7,KP6<=$H$73))*1 -> 0 | KQ7: =(AND(NOT(KQ4),KQ5>=$G$7,KQ6<=$H$73))*1 -> 0 | KR7: =(AND(NOT(KR4),KR5>=$G$7,KR6<=$H$73))*1 -> 0 | KS7: =(AND(NOT(KS4),KS5>=$G$7,KS6<=$H$73))*1 -> 0 | KT7: =(AND(NOT(KT4),KT5>=$G$7,KT6<=$H$73))*1 -> 0 | KU7: =(AND(NOT(KU4),KU5>=$G$7,KU6<=$H$73))*1 -> 0 | KV7: =(AND(NOT(KV4),KV5>=$G$7,KV6<=$H$73))*1 -> 0 | KW7: =(AND(NOT(KW4),KW5>=$G$7,KW6<=$H$73))*1 -> 0 | KX7: =(AND(NOT(KX4),KX5>=$G$7,KX6<=$H$73))*1 -> 0 | KY7: =(AND(NOT(KY4),KY5>=$G$7,KY6<=$H$73))*1 -> 0 | KZ7: =(AND(NOT(KZ4),KZ5>=$G$7,KZ6<=$H$73))*1 -> 0 | LA7: =(AND(NOT(LA4),LA5>=$G$7,LA6<=$H$73))*1 -> 0 | LB7: =(AND(NOT(LB4),LB5>=$G$7,LB6<=$H$73))*1 -> 0 | LC7: =(AND(NOT(LC4),LC5>=$G$7,LC6<=$H$73))*1 -> 0 | LD7: =(AND(NOT(LD4),LD5>=$G$7,LD6<=$H$73))*1 -> 0 | LE7: =(AND(NOT(LE4),LE5>=$G$7,LE6<=$H$73))*1 -> 0 | LF7: =(AND(NOT(LF4),LF5>=$G$7,LF6<=$H$73))*1 -> 0 | LG7: =(AND(NOT(LG4),LG5>=$G$7,LG6<=$H$73))*1 -> 0 | LH7: =(AND(NOT(LH4),LH5>=$G$7,LH6<=$H$73))*1 -> 0 | LI7: =(AND(NOT(LI4),LI5>=$G$7,LI6<=$H$73))*1 -> 0 | LJ7: =(AND(NOT(LJ4),LJ5>=$G$7,LJ6<=$H$73))*1 -> 0 | LK7: =(AND(NOT(LK4),LK5>=$G$7,LK6<=$H$73))*1 -> 0 | LL7: =(AND(NOT(LL4),LL5>=$G$7,LL6<=$H$73))*1 -> 0 | LM7: =(AND(NOT(LM4),LM5>=$G$7,LM6<=$H$73))*1 -> 0 | LN7: =(AND(NOT(LN4),LN5>=$G$7,LN6<=$H$73))*1 -> 0 | LO7: =(AND(NOT(LO4),LO5>=$G$7,LO6<=$H$73))*1 -> 0 | LP7: =(AND(NOT(LP4),LP5>=$G$7,LP6<=$H$73))*1 -> 0 | LQ7: =(AND(NOT(LQ4),LQ5>=$G$7,LQ6<=$H$73))*1 -> 0 | LR7: =(AND(NOT(LR4),LR5>=$G$7,LR6<=$H$73))*1 -> 0 | LS7: =(AND(NOT(LS4),LS5>=$G$7,LS6<=$H$73))*1 -> 0 | LT7: =(AND(NOT(LT4),LT5>=$G$7,LT6<=$H$73))*1 -> 0 | LU7: =(AND(NOT(LU4),LU5>=$G$7,LU6<=$H$73))*1 -> 0 | LV7: =(AND(NOT(LV4),LV5>=$G$7,LV6<=$H$73))*1 -> 0 | LW7: =(AND(NOT(LW4),LW5>=$G$7,LW6<=$H$73))*1 -> 0 | LX7: =(AND(NOT(LX4),LX5>=$G$7,LX6<=$H$73))*1 -> 0 | LY7: =(AND(NOT(LY4),LY5>=$G$7,LY6<=$H$73))*1 -> 0 | LZ7: =(AND(NOT(LZ4),LZ5>=$G$7,LZ6<=$H$73))*1 -> 0 | MA7: =(AND(NOT(MA4),MA5>=$G$7,MA6<=$H$73))*1 -> 0 | MB7: =(AND(NOT(MB4),MB5>=$G$7,MB6<=$H$73))*1 -> 0 | MC7: =(AND(NOT(MC4),MC5>=$G$7,MC6<=$H$73))*1 -> 0 | MD7: =(AND(NOT(MD4),MD5>=$G$7,MD6<=$H$73))*1 -> 0 | ME7: =(AND(NOT(ME4),ME5>=$G$7,ME6<=$H$73))*1 -> 0 | MF7: =(AND(NOT(MF4),MF5>=$G$7,MF6<=$H$73))*1 -> 0 | MG7: =(AND(NOT(MG4),MG5>=$G$7,MG6<=$H$73))*1 -> 0 | MH7: =(AND(NOT(MH4),MH5>=$G$7,MH6<=$H$73))*1 -> 0 | MI7: =(AND(NOT(MI4),MI5>=$G$7,MI6<=$H$73))*1 -> 0 | MJ7: =(AND(NOT(MJ4),MJ5>=$G$7,MJ6<=$H$73))*1 -> 0 | MK7: =(AND(NOT(MK4),MK5>=$G$7,MK6<=$H$73))*1 -> 0 | ML7: =(AND(NOT(ML4),ML5>=$G$7,ML6<=$H$73))*1 -> 0 | MM7: =(AND(NOT(MM4),MM5>=$G$7,MM6<=$H$73))*1 -> 0 | MN7: =(AND(NOT(MN4),MN5>=$G$7,MN6<=$H$73))*1 -> 0 | MO7: =(AND(NOT(MO4),MO5>=$G$7,MO6<=$H$73))*1 -> 0 | MP7: =(AND(NOT(MP4),MP5>=$G$7,MP6<=$H$73))*1 -> 0 | MQ7: =(AND(NOT(MQ4),MQ5>=$G$7,MQ6<=$H$73))*1 -> 0 | MR7: =(AND(NOT(MR4),MR5>=$G$7,MR6<=$H$73))*1 -> 0 | MS7: =(AND(NOT(MS4),MS5>=$G$7,MS6<=$H$73))*1 -> 0 | MT7: =(AND(NOT(MT4),MT5>=$G$7,MT6<=$H$73))*1 -> 0 | MU7: =(AND(NOT(MU4),MU5>=$G$7,MU6<=$H$73))*1 -> 0 | MV7: =(AND(NOT(MV4),MV5>=$G$7,MV6<=$H$73))*1 -> 0 | MW7: =(AND(NOT(MW4),MW5>=$G$7,MW6<=$H$73))*1 -> 0 | MX7: =(AND(NOT(MX4),MX5>=$G$7,MX6<=$H$73))*1 -> 0 | MY7: =(AND(NOT(MY4),MY5>=$G$7,MY6<=$H$73))*1 -> 0 | MZ7: =(AND(NOT(MZ4),MZ5>=$G$7,MZ6<=$H$73))*1 -> 0 | NA7: =(AND(NOT(NA4),NA5>=$G$7,NA6<=$H$73))*1 -> 0 | NB7: =(AND(NOT(NB4),NB5>=$G$7,NB6<=$H$73))*1 -> 0 | NC7: =(AND(NOT(NC4),NC5>=$G$7,NC6<=$H$73))*1 -> 0 | ND7: =(AND(NOT(ND4),ND5>=$G$7,ND6<=$H$73))*1 -> 0 | NE7: =(AND(NOT(NE4),NE5>=$G$7,NE6<=$H$73))*1 -> 0 | NF7: =(AND(NOT(NF4),NF5>=$G$7,NF6<=$H$73))*1 -> 0 | NG7: =(AND(NOT(NG4),NG5>=$G$7,NG6<=$H$73))*1 -> 0 | NH7: =(AND(NOT(NH4),NH5>=$G$7,NH6<=$H$73))*1 -> 0 | NI7: =(AND(NOT(NI4),NI5>=$G$7,NI6<=$H$73))*1 -> 0 | NJ7: =(AND(NOT(NJ4),NJ5>=$G$7,NJ6<=$H$73))*1 -> 0 | NK7: =(AND(NOT(NK4),NK5>=$G$7,NK6<=$H$73))*1 -> 0 | NL7: =(AND(NOT(NL4),NL5>=$G$7,NL6<=$H$73))*1 -> 0 | NM7: =(AND(NOT(NM4),NM5>=$G$7,NM6<=$H$73))*1 -> 0 | NN7: =(AND(NOT(NN4),NN5>=$G$7,NN6<=$H$73))*1 -> 0 | NO7: =(AND(NOT(NO4),NO5>=$G$7,NO6<=$H$73))*1 -> 0 | NP7: =(AND(NOT(NP4),NP5>=$G$7,NP6<=$H$73))*1 -> 0 | NQ7: =(AND(NOT(NQ4),NQ5>=$G$7,NQ6<=$H$73))*1 -> 0 | NR7: =(AND(NOT(NR4),NR5>=$G$7,NR6<=$H$73))*1 -> 0 | NS7: =(AND(NOT(NS4),NS5>=$G$7,NS6<=$H$73))*1 -> 0 | NT7: =(AND(NOT(NT4),NT5>=$G$7,NT6<=$H$73))*1 -> 0 | NU7: =(AND(NOT(NU4),NU5>=$G$7,NU6<=$H$73))*1 -> 0 | NV7: =(AND(NOT(NV4),NV5>=$G$7,NV6<=$H$73))*1 -> 0 | NW7: =(AND(NOT(NW4),NW5>=$G$7,NW6<=$H$73))*1 -> 0 | NX7: =(AND(NOT(NX4),NX5>=$G$7,NX6<=$H$73))*1 -> 0 | NY7: =(AND(NOT(NY4),NY5>=$G$7,NY6<=$H$73))*1 -> 0 | NZ7: =(AND(NOT(NZ4),NZ5>=$G$7,NZ6<=$H$73))*1 -> 0 | OA7: =(AND(NOT(OA4),OA5>=$G$7,OA6<=$H$73))*1 -> 0 | OB7: =(AND(NOT(OB4),OB5>=$G$7,OB6<=$H$73))*1 -> 0 | OC7: =(AND(NOT(OC4),OC5>=$G$7,OC6<=$H$73))*1 -> 0 | OD7: =(AND(NOT(OD4),OD5>=$G$7,OD6<=$H$73))*1 -> 0 | OE7: =(AND(NOT(OE4),OE5>=$G$7,OE6<=$H$73))*1 -> 0 | OF7: =(AND(NOT(OF4),OF5>=$G$7,OF6<=$H$73))*1 -> 0 | OG7: =(AND(NOT(OG4),OG5>=$G$7,OG6<=$H$73))*1 -> 0 | OH7: =(AND(NOT(OH4),OH5>=$G$7,OH6<=$H$73))*1 -> 0 | OI7: =(AND(NOT(OI4),OI5>=$G$7,OI6<=$H$73))*1 -> 0 | OJ7: =(AND(NOT(OJ4),OJ5>=$G$7,OJ6<=$H$73))*1 -> 0 | OK7: =(AND(NOT(OK4),OK5>=$G$7,OK6<=$H$73))*1 -> 0 | OL7: =(AND(NOT(OL4),OL5>=$G$7,OL6<=$H$73))*1 -> 0 | OM7: =(AND(NOT(OM4),OM5>=$G$7,OM6<=$H$73))*1 -> 0 | ON7: =(AND(NOT(ON4),ON5>=$G$7,ON6<=$H$73))*1 -> 0 | OO7: =(AND(NOT(OO4),OO5>=$G$7,OO6<=$H$73))*1 -> 0 | OP7: =(AND(NOT(OP4),OP5>=$G$7,OP6<=$H$73))*1 -> 0 | OQ7: =(AND(NOT(OQ4),OQ5>=$G$7,OQ6<=$H$73))*1 -> 0 | OR7: =(AND(NOT(OR4),OR5>=$G$7,OR6<=$H$73))*1 -> 0 | OS7: =(AND(NOT(OS4),OS5>=$G$7,OS6<=$H$73))*1 -> 0 | OT7: =(AND(NOT(OT4),OT5>=$G$7,OT6<=$H$73))*1 -> 0 | OU7: =(AND(NOT(OU4),OU5>=$G$7,OU6<=$H$73))*1 -> 0 | OV7: =(AND(NOT(OV4),OV5>=$G$7,OV6<=$H$73))*1 -> 0 | OW7: =(AND(NOT(OW4),OW5>=$G$7,OW6<=$H$73))*1 -> 0 | OX7: =(AND(NOT(OX4),OX5>=$G$7,OX6<=$H$73))*1 -> 0 | OY7: =(AND(NOT(OY4),OY5>=$G$7,OY6<=$H$73))*1 -> 0 | OZ7: =(AND(NOT(OZ4),OZ5>=$G$7,OZ6<=$H$73))*1 -> 0 | PA7: =(AND(NOT(PA4),PA5>=$G$7,PA6<=$H$73))*1 -> 0 | PB7: =(AND(NOT(PB4),PB5>=$G$7,PB6<=$H$73))*1 -> 0 | PC7: =(AND(NOT(PC4),PC5>=$G$7,PC6<=$H$73))*1 -> 0 | PD7: =(AND(NOT(PD4),PD5>=$G$7,PD6<=$H$73))*1 -> 0 | PE7: =(AND(NOT(PE4),PE5>=$G$7,PE6<=$H$73))*1 -> 0 | PF7: =(AND(NOT(PF4),PF5>=$G$7,PF6<=$H$73))*1 -> 0 | PG7: =(AND(NOT(PG4),PG5>=$G$7,PG6<=$H$73))*1 -> 0 | PH7: =(AND(NOT(PH4),PH5>=$G$7,PH6<=$H$73))*1 -> 0 | PI7: =(AND(NOT(PI4),PI5>=$G$7,PI6<=$H$73))*1 -> 0 | PJ7: =(AND(NOT(PJ4),PJ5>=$G$7,PJ6<=$H$73))*1 -> 0 | PK7: =(AND(NOT(PK4),PK5>=$G$7,PK6<=$H$73))*1 -> 0 | PL7: =(AND(NOT(PL4),PL5>=$G$7,PL6<=$H$73))*1 -> 0 | PM7: =(AND(NOT(PM4),PM5>=$G$7,PM6<=$H$73))*1 -> 0 | PN7: =(AND(NOT(PN4),PN5>=$G$7,PN6<=$H$73))*1 -> 0 | PO7: =(AND(NOT(PO4),PO5>=$G$7,PO6<=$H$73))*1 -> 0 | PP7: =(AND(NOT(PP4),PP5>=$G$7,PP6<=$H$73))*1 -> 0 | PQ7: =(AND(NOT(PQ4),PQ5>=$G$7,PQ6<=$H$73))*1 -> 0 | PR7: =(AND(NOT(PR4),PR5>=$G$7,PR6<=$H$73))*1 -> 0 | PS7: =(AND(NOT(PS4),PS5>=$G$7,PS6<=$H$73))*1 -> 0 | PT7: =(AND(NOT(PT4),PT5>=$G$7,PT6<=$H$73))*1 -> 0 | PU7: =(AND(NOT(PU4),PU5>=$G$7,PU6<=$H$73))*1 -> 0 | PV7: =(AND(NOT(PV4),PV5>=$G$7,PV6<=$H$73))*1 -> 0 | PW7: =(AND(NOT(PW4),PW5>=$G$7,PW6<=$H$73))*1 -> 0 | PX7: =(AND(NOT(PX4),PX5>=$G$7,PX6<=$H$73))*1 -> 0 | PY7: =(AND(NOT(PY4),PY5>=$G$7,PY6<=$H$73))*1 -> 0 | PZ7: =(AND(NOT(PZ4),PZ5>=$G$7,PZ6<=$H$73))*1 -> 0 | QA7: =(AND(NOT(QA4),QA5>=$G$7,QA6<=$H$73))*1 -> 0 | QB7: =(AND(NOT(QB4),QB5>=$G$7,QB6<=$H$73))*1 -> 0 | QC7: =(AND(NOT(QC4),QC5>=$G$7,QC6<=$H$73))*1 -> 0 | QD7: =(AND(NOT(QD4),QD5>=$G$7,QD6<=$H$73))*1 -> 0 | QE7: =(AND(NOT(QE4),QE5>=$G$7,QE6<=$H$73))*1 -> 0 | QF7: =(AND(NOT(QF4),QF5>=$G$7,QF6<=$H$73))*1 -> 0 | QG7: =(AND(NOT(QG4),QG5>=$G$7,QG6<=$H$73))*1 -> 0 | QH7: =(AND(NOT(QH4),QH5>=$G$7,QH6<=$H$73))*1 -> 0 | QI7: =(AND(NOT(QI4),QI5>=$G$7,QI6<=$H$73))*1 -> 0 | QJ7: =(AND(NOT(QJ4),QJ5>=$G$7,QJ6<=$H$73))*1 -> 0 | QK7: =(AND(NOT(QK4),QK5>=$G$7,QK6<=$H$73))*1 -> 0 | QL7: =(AND(NOT(QL4),QL5>=$G$7,QL6<=$H$73))*1 -> 0 | QM7: =(AND(NOT(QM4),QM5>=$G$7,QM6<=$H$73))*1 -> 0 | QN7: =(AND(NOT(QN4),QN5>=$G$7,QN6<=$H$73))*1 -> 0 | QO7: =(AND(NOT(QO4),QO5>=$G$7,QO6<=$H$73))*1 -> 0 | QP7: =(AND(NOT(QP4),QP5>=$G$7,QP6<=$H$73))*1 -> 0 | QQ7: =(AND(NOT(QQ4),QQ5>=$G$7,QQ6<=$H$73))*1 -> 0 | QR7: =(AND(NOT(QR4),QR5>=$G$7,QR6<=$H$73))*1 -> 0 | QS7: =(AND(NOT(QS4),QS5>=$G$7,QS6<=$H$73))*1 -> 0 | QT7: =(AND(NOT(QT4),QT5>=$G$7,QT6<=$H$73))*1 -> 0 | QU7: =(AND(NOT(QU4),QU5>=$G$7,QU6<=$H$73))*1 -> 0 | QV7: =(AND(NOT(QV4),QV5>=$G$7,QV6<=$H$73))*1 -> 0 | QW7: =(AND(NOT(QW4),QW5>=$G$7,QW6<=$H$73))*1 -> 0 | QX7: =(AND(NOT(QX4),QX5>=$G$7,QX6<=$H$73))*1 -> 0 | QY7: =(AND(NOT(QY4),QY5>=$G$7,QY6<=$H$73))*1 -> 0 | QZ7: =(AND(NOT(QZ4),QZ5>=$G$7,QZ6<=$H$73))*1 -> 0 | RA7: =(AND(NOT(RA4),RA5>=$G$7,RA6<=$H$73))*1 -> 0 | RB7: =(AND(NOT(RB4),RB5>=$G$7,RB6<=$H$73))*1 -> 0 | RC7: =(AND(NOT(RC4),RC5>=$G$7,RC6<=$H$73))*1 -> 0 | RD7: =(AND(NOT(RD4),RD5>=$G$7,RD6<=$H$73))*1 -> 0 | RE7: =(AND(NOT(RE4),RE5>=$G$7,RE6<=$H$73))*1 -> 0 | RF7: =(AND(NOT(RF4),RF5>=$G$7,RF6<=$H$73))*1 -> 0 | RG7: =(AND(NOT(RG4),RG5>=$G$7,RG6<=$H$73))*1 -> 0 | RH7: =(AND(NOT(RH4),RH5>=$G$7,RH6<=$H$73))*1 -> 0 | RI7: =(AND(NOT(RI4),RI5>=$G$7,RI6<=$H$73))*1 -> 0 | RJ7: =(AND(NOT(RJ4),RJ5>=$G$7,RJ6<=$H$73))*1 -> 0 | RK7: =(AND(NOT(RK4),RK5>=$G$7,RK6<=$H$73))*1 -> 0 | RL7: =(AND(NOT(RL4),RL5>=$G$7,RL6<=$H$73))*1 -> 0 | RM7: =(AND(NOT(RM4),RM5>=$G$7,RM6<=$H$73))*1 -> 0 | RN7: =(AND(NOT(RN4),RN5>=$G$7,RN6<=$H$73))*1 -> 0 | RO7: =(AND(NOT(RO4),RO5>=$G$7,RO6<=$H$73))*1 -> 0 | RP7: =(AND(NOT(RP4),RP5>=$G$7,RP6<=$H$73))*1 -> 0 | RQ7: =(AND(NOT(RQ4),RQ5>=$G$7,RQ6<=$H$73))*1 -> 0 | RR7: =(AND(NOT(RR4),RR5>=$G$7,RR6<=$H$73))*1 -> 0 | RS7: =(AND(NOT(RS4),RS5>=$G$7,RS6<=$H$73))*1 -> 0 | RT7: =(AND(NOT(RT4),RT5>=$G$7,RT6<=$H$73))*1 -> 0 | RU7: =(AND(NOT(RU4),RU5>=$G$7,RU6<=$H$73))*1 -> 0 | RV7: =(AND(NOT(RV4),RV5>=$G$7,RV6<=$H$73))*1 -> 0 | RW7: =(AND(NOT(RW4),RW5>=$G$7,RW6<=$H$73))*1 -> 0 | RX7: =(AND(NOT(RX4),RX5>=$G$7,RX6<=$H$73))*1 -> 0 | RY7: =(AND(NOT(RY4),RY5>=$G$7,RY6<=$H$73))*1 -> 0 | RZ7: =(AND(NOT(RZ4),RZ5>=$G$7,RZ6<=$H$73))*1 -> 0 | SA7: =(AND(NOT(SA4),SA5>=$G$7,SA6<=$H$73))*1 -> 0 | SB7: =(AND(NOT(SB4),SB5>=$G$7,SB6<=$H$73))*1 -> 0 | SC7: =(AND(NOT(SC4),SC5>=$G$7,SC6<=$H$73))*1 -> 0 | SD7: =(AND(NOT(SD4),SD5>=$G$7,SD6<=$H$73))*1 -> 0 | SE7: =(AND(NOT(SE4),SE5>=$G$7,SE6<=$H$73))*1 -> 0 | SF7: =(AND(NOT(SF4),SF5>=$G$7,SF6<=$H$73))*1 -> 0 | SG7: =(AND(NOT(SG4),SG5>=$G$7,SG6<=$H$73))*1 -> 0 | SH7: =(AND(NOT(SH4),SH5>=$G$7,SH6<=$H$73))*1 -> 0 | SI7: =(AND(NOT(SI4),SI5>=$G$7,SI6<=$H$73))*1 -> 0 | SJ7: =(AND(NOT(SJ4),SJ5>=$G$7,SJ6<=$H$73))*1 -> 0 | SK7: =(AND(NOT(SK4),SK5>=$G$7,SK6<=$H$73))*1 -> 0 | SL7: =(AND(NOT(SL4),SL5>=$G$7,SL6<=$H$73))*1 -> 0 | SM7: =(AND(NOT(SM4),SM5>=$G$7,SM6<=$H$73))*1 -> 0 | SN7: =(AND(NOT(SN4),SN5>=$G$7,SN6<=$H$73))*1 -> 0 | SO7: =(AND(NOT(SO4),SO5>=$G$7,SO6<=$H$73))*1 -> 0 | SP7: =(AND(NOT(SP4),SP5>=$G$7,SP6<=$H$73))*1 -> 0
C9: S-Curve - EPC | E9: Percent | F9: Months | G9: =InputC!F4 -> 100 | K9: =1/$G$9*K4 -> 0.01 | L9: =1/$G$9*L4 -> 0.01 | M9: 0.01 | N9: 0.01 | O9: 0.01 | P9: 0.01 | Q9: 0.01 | R9: 0.01 | S9: 0.01 | T9: 0.01 | U9: 0.01 | V9: 0.01 | W9: 0.01 | X9: 0.01 | Y9: 0.01 | Z9: 0.01 | AA9: 0.01 | AB9: 0.01 | AC9: 0.01 | AD9: 0.01 | AE9: 0.01 | AF9: 0.01 | AG9: 0.01 | AH9: 0.01 | AI9: 0.01 | AJ9: 0.01 | AK9: 0.01 | AL9: 0.01 | AM9: 0.01 | AN9: 0.01 | AO9: 0.01 | AP9: 0.01 | AQ9: 0.01 | AR9: 0.01 | AS9: 0.01 | AT9: 0.01 | AU9: 0.01 | AV9: 0.01 | AW9: 0.01 | AX9: 0.01 | AY9: 0.01 | AZ9: 0.01 | BA9: 0.01 | BB9: 0.01 | BC9: 0.01 | BD9: 0.01 | BE9: 0.01 | BF9: 0.01 | BG9: 0.01 | BH9: 0.01 | BI9: 0.01 | BJ9: 0.01 | BK9: 0.01 | BL9: 0.01 | BM9: 0.01 | BN9: 0.01 | BO9: 0.01 | BP9: 0.01 | BQ9: 0.01 | BR9: 0.01 | BS9: 0.01 | BT9: 0.01 | BU9: 0.01 | BV9: 0.01 | BW9: 0.01 | BX9: =1/$G$9*BX4 -> 0.01 | BY9: 0.01 | BZ9: 0.01 | CA9: 0.01 | CB9: 0.01 | CC9: 0.01 | CD9: 0.01 | CE9: 0.01 | CF9: 0.01 | CG9: 0.01 | CH9: 0.01 | CI9: 0.01 | CJ9: 0.01 | CK9: 0.01 | CL9: 0.01 | CM9: 0.01 | CN9: 0.01 | CO9: 0.01 | CP9: 0.01 | CQ9: 0.01 | CR9: 0.01 | CS9: 0.01 | CT9: 0.01 | CU9: 0.01 | CV9: 0.01 | CW9: 0.01 | CX9: 0.01 | CY9: 0.01 | CZ9: 0.01 | DA9: 0.01 | DB9: 0.01 | DC9: 0.01 | DD9: 0.01 | DE9: 0.01 | DF9: 0.01 | DG9: 0 | DH9: 0 | DI9: 0 | DJ9: 0 | DK9: 0 | DL9: 0 | DM9: 0 | DN9: 0 | DO9: 0 | DP9: 0 | DQ9: 0 | DR9: 0 | DS9: 0 | DT9: 0 | DU9: 0 | DV9: 0 | DW9: 0 | DX9: 0 | DY9: 0 | DZ9: 0 | EA9: 0 | EB9: 0 | EC9: 0 | ED9: 0 | EE9: 0 | EF9: 0 | EG9: 0 | EH9: 0 | EI9: 0 | EJ9: =1/$G$9*EJ4 -> 0 | EK9: 0 | EL9: 0 | EM9: 0 | EN9: 0 | EO9: 0 | EP9: 0 | EQ9: 0 | ER9: 0 | ES9: 0 | ET9: 0 | EU9: 0 | EV9: 0 | EW9: 0 | EX9: 0 | EY9: 0 | EZ9: 0 | FA9: 0 | FB9: 0 | FC9: 0 | FD9: 0 | FE9: 0 | FF9: 0 | FG9: 0 | FH9: 0 | FI9: 0 | FJ9: 0 | FK9: 0 | FL9: 0 | FM9: 0 | FN9: 0 | FO9: 0 | FP9: 0 | FQ9: 0 | FR9: 0 | FS9: 0 | FT9: 0 | FU9: 0 | FV9: 0 | FW9: 0 | FX9: 0 | FY9: 0 | FZ9: 0 | GA9: 0 | GB9: 0 | GC9: 0 | GD9: 0 | GE9: 0 | GF9: 0 | GG9: 0 | GH9: 0 | GI9: 0 | GJ9: 0 | GK9: 0 | GL9: 0 | GM9: 0 | GN9: 0 | GO9: 0 | GP9: 0 | GQ9: 0 | GR9: 0 | GS9: 0 | GT9: 0 | GU9: 0 | GV9: =1/$G$9*GV4 -> 0 | GW9: 0 | GX9: 0 | GY9: 0 | GZ9: 0 | HA9: 0 | HB9: 0 | HC9: 0 | HD9: 0 | HE9: 0 | HF9: 0 | HG9: 0 | HH9: 0 | HI9: 0 | HJ9: 0 | HK9: 0 | HL9: 0 | HM9: 0 | HN9: 0 | HO9: 0 | HP9: 0 | HQ9: 0 | HR9: 0 | HS9: 0 | HT9: 0 | HU9: 0 | HV9: 0 | HW9: 0.01 | HX9: 0.01 | HY9: 0.01 | HZ9: 0.01 | IA9: 0.01 | IB9: 0.01 | IC9: 0.01 | ID9: 0.01 | IE9: 0.01 | IF9: 0.01 | IG9: 0.01 | IH9: 0.01 | II9: 0.01 | IJ9: 0.01 | IK9: 0.01 | IL9: 0.01 | IM9: 0.01 | IN9: 0.01 | IO9: 0.01 | IP9: 0.01 | IQ9: 0.01 | IR9: 0.01 | IS9: 0.01 | IT9: 0.01 | IU9: 0.01 | IV9: 0.01 | IW9: 0.01 | IX9: 0.01 | IY9: 0.01 | IZ9: 0.01 | JA9: 0.01 | JB9: 0.01 | JC9: 0.01 | JD9: 0.01 | JE9: 0.01 | JF9: 0.01 | JG9: 0.01 | JH9: =1/$G$9*JH4 -> 0.01 | JI9: 0.01 | JJ9: 0.01 | JK9: 0.01 | JL9: 0.01 | JM9: 0.01 | JN9: 0.01 | JO9: 0.01 | JP9: 0.01 | JQ9: 0.01 | JR9: 0.01 | JS9: 0.01 | JT9: 0.01 | JU9: 0.01 | JV9: 0.01 | JW9: 0.01 | JX9: 0.01 | JY9: 0.01 | JZ9: 0.01 | KA9: 0.01 | KB9: 0.01 | KC9: 0.01 | KD9: 0.01 | KE9: 0.01 | KF9: 0.01 | KG9: 0.01 | KH9: 0.01 | KI9: 0.01 | KJ9: 0.01 | KK9: 0.01 | KL9: 0.01 | KM9: 0.01 | KN9: 0.01 | KO9: 0.01 | KP9: 0.01 | KQ9: 0.01 | KR9: 0.01 | KS9: 0.01 | KT9: 0.01 | KU9: 0.01 | KV9: 0.01 | KW9: 0.01 | KX9: 0.01 | KY9: 0.01 | KZ9: 0.01 | LA9: 0.01 | LB9: 0.01 | LC9: 0.01 | LD9: 0.01 | LE9: 0.01 | LF9: 0.01 | LG9: 0.01 | LH9: 0.01 | LI9: 0.01 | LJ9: 0.01 | LK9: 0.01 | LL9: 0.01 | LM9: 0.01 | LN9: 0.01 | LO9: 0.01 | LP9: 0.01 | LQ9: 0.01 | LR9: 0.01 | LS9: 0.01 | LT9: =1/$G$9*LT4 -> 0.01 | LU9: 0.01 | LV9: 0.01 | LW9: 0.01 | LX9: 0.01 | LY9: 0.01 | LZ9: 0.01 | MA9: 0.01 | MB9: 0.01 | MC9: 0.01 | MD9: 0.01 | ME9: 0.01 | MF9: 0.01 | MG9: 0.01 | MH9: 0.01 | MI9: 0.01 | MJ9: 0.01 | MK9: 0.01 | ML9: 0.01 | MM9: 0.01 | MN9: 0.01 | MO9: 0.01 | MP9: 0.01 | MQ9: 0.01 | MR9: 0.01 | MS9: 0.01 | MT9: 0.01 | MU9: 0.01 | MV9: 0.01 | MW9: 0.01 | MX9: 0.01 | MY9: 0.01 | MZ9: 0.01 | NA9: 0.01 | NB9: 0.01 | NC9: 0.01 | ND9: 0.01 | NE9: 0.01 | NF9: 0.01 | NG9: 0.01 | NH9: 0.01 | NI9: 0.01 | NJ9: 0.01 | NK9: 0.01 | NL9: 0.01 | NM9: 0.01 | NN9: 0.01 | NO9: 0.01 | NP9: 0.01 | NQ9: 0.01 | NR9: 0.01 | NS9: 0.01 | NT9: 0.01 | NU9: 0.01 | NV9: 0.01 | NW9: 0.01 | NX9: 0.01 | NY9: 0.01 | NZ9: 0.01 | OA9: 0.01 | OB9: 0.01 | OC9: 0.01 | OD9: 0.01 | OE9: 0.01 | OF9: =1/$G$9*OF4 -> 0.01 | OG9: 0.01 | OH9: 0.01 | OI9: 0.01 | OJ9: 0.01 | OK9: 0.01 | OL9: 0.01 | OM9: 0.01 | ON9: 0.01 | OO9: 0.01 | OP9: 0.01 | OQ9: 0.01 | OR9: 0.01 | OS9: 0.01 | OT9: 0.01 | OU9: 0.01 | OV9: 0.01 | OW9: 0.01 | OX9: 0.01 | OY9: 0.01 | OZ9: 0.01 | PA9: 0.01 | PB9: 0.01 | PC9: 0.01 | PD9: 0.01 | PE9: 0.01 | PF9: 0.01 | PG9: 0.01 | PH9: 0.01 | PI9: 0.01 | PJ9: 0.01 | PK9: 0.01 | PL9: 0.01 | PM9: 0.01 | PN9: 0.01 | PO9: 0.01 | PP9: 0.01 | PQ9: 0.01 | PR9: 0.01 | PS9: 0.01 | PT9: 0.01 | PU9: 0.01 | PV9: 0.01 | PW9: 0.01 | PX9: 0.01 | PY9: 0.01 | PZ9: 0.01 | QA9: 0.01 | QB9: 0.01 | QC9: 0.01 | QD9: 0.01 | QE9: 0.01 | QF9: 0.01 | QG9: 0.01 | QH9: 0.01 | QI9: 0.01 | QJ9: 0.01 | QK9: 0.01 | QL9: 0.01 | QM9: 0.01 | QN9: 0.01 | QO9: 0.01 | QP9: 0.01 | QQ9: 0.01 | QR9: =1/$G$9*QR4 -> 0.01 | QS9: 0.01 | QT9: 0.01 | QU9: 0.01 | QV9: 0.01 | QW9: 0.01 | QX9: 0.01 | QY9: 0.01 | QZ9: 0.01 | RA9: 0.01 | RB9: 0.01 | RC9: 0.01 | RD9: 0.01 | RE9: 0.01 | RF9: 0.01 | RG9: 0.01 | RH9: 0.01 | RI9: 0.01 | RJ9: 0.01 | RK9: 0.01 | RL9: 0.01 | RM9: 0.01 | RN9: 0.01 | RO9: 0.01 | RP9: 0.01 | RQ9: 0.01 | RR9: 0.01 | RS9: 0.01 | RT9: 0.01 | RU9: 0.01 | RV9: 0.01 | RW9: 0.01 | RX9: 0.01 | RY9: 0.01 | RZ9: 0.01 | SA9: 0.01 | SB9: 0.01 | SC9: 0.01 | SD9: 0.01 | SE9: 0.01 | SF9: 0.01 | SG9: 0.01 | SH9: 0.01 | SI9: 0.01 | SJ9: 0.01 | SK9: 0.01 | SL9: 0.01 | SM9: 0.01 | SN9: 0.01 | SO9: 0.01 | SP9: 0.01
C10: S-Curve - Owners Cost | E10: Percent | F10: Months | G10: =InputC!F4 -> 100 | K10: =1/$G$10*K4 -> 0.01 | L10: =1/$G$10*L4 -> 0.01 | M10: 0.01 | N10: 0.01 | O10: 0.01 | P10: 0.01 | Q10: 0.01 | R10: 0.01 | S10: 0.01 | T10: 0.01 | U10: 0.01 | V10: 0.01 | W10: 0.01 | X10: 0.01 | Y10: 0.01 | Z10: 0.01 | AA10: 0.01 | AB10: 0.01 | AC10: 0.01 | AD10: 0.01 | AE10: 0.01 | AF10: 0.01 | AG10: 0.01 | AH10: 0.01 | AI10: 0.01 | AJ10: 0.01 | AK10: 0.01 | AL10: 0.01 | AM10: 0.01 | AN10: 0.01 | AO10: 0.01 | AP10: 0.01 | AQ10: 0.01 | AR10: 0.01 | AS10: 0.01 | AT10: 0.01 | AU10: 0.01 | AV10: 0.01 | AW10: 0.01 | AX10: 0.01 | AY10: 0.01 | AZ10: 0.01 | BA10: 0.01 | BB10: 0.01 | BC10: 0.01 | BD10: 0.01 | BE10: 0.01 | BF10: 0.01 | BG10: 0.01 | BH10: 0.01 | BI10: 0.01 | BJ10: 0.01 | BK10: 0.01 | BL10: 0.01 | BM10: 0.01 | BN10: 0.01 | BO10: 0.01 | BP10: 0.01 | BQ10: 0.01 | BR10: 0.01 | BS10: 0.01 | BT10: 0.01 | BU10: 0.01 | BV10: 0.01 | BW10: 0.01 | BX10: =1/$G$10*BX4 -> 0.01 | BY10: 0.01 | BZ10: 0.01 | CA10: 0.01 | CB10: 0.01 | CC10: 0.01 | CD10: 0.01 | CE10: 0.01 | CF10: 0.01 | CG10: 0.01 | CH10: 0.01 | CI10: 0.01 | CJ10: 0.01 | CK10: 0.01 | CL10: 0.01 | CM10: 0.01 | CN10: 0.01 | CO10: 0.01 | CP10: 0.01 | CQ10: 0.01 | CR10: 0.01 | CS10: 0.01 | CT10: 0.01 | CU10: 0.01 | CV10: 0.01 | CW10: 0.01 | CX10: 0.01 | CY10: 0.01 | CZ10: 0.01 | DA10: 0.01 | DB10: 0.01 | DC10: 0.01 | DD10: 0.01 | DE10: 0.01 | DF10: 0.01 | DG10: 0 | DH10: 0 | DI10: 0 | DJ10: 0 | DK10: 0 | DL10: 0 | DM10: 0 | DN10: 0 | DO10: 0 | DP10: 0 | DQ10: 0 | DR10: 0 | DS10: 0 | DT10: 0 | DU10: 0 | DV10: 0 | DW10: 0 | DX10: 0 | DY10: 0 | DZ10: 0 | EA10: 0 | EB10: 0 | EC10: 0 | ED10: 0 | EE10: 0 | EF10: 0 | EG10: 0 | EH10: 0 | EI10: 0 | EJ10: =1/$G$10*EJ4 -> 0 | EK10: 0 | EL10: 0 | EM10: 0 | EN10: 0 | EO10: 0 | EP10: 0 | EQ10: 0 | ER10: 0 | ES10: 0 | ET10: 0 | EU10: 0 | EV10: 0 | EW10: 0 | EX10: 0 | EY10: 0 | EZ10: 0 | FA10: 0 | FB10: 0 | FC10: 0 | FD10: 0 | FE10: 0 | FF10: 0 | FG10: 0 | FH10: 0 | FI10: 0 | FJ10: 0 | FK10: 0 | FL10: 0 | FM10: 0 | FN10: 0 | FO10: 0 | FP10: 0 | FQ10: 0 | FR10: 0 | FS10: 0 | FT10: 0 | FU10: 0 | FV10: 0 | FW10: 0 | FX10: 0 | FY10: 0 | FZ10: 0 | GA10: 0 | GB10: 0 | GC10: 0 | GD10: 0 | GE10: 0 | GF10: 0 | GG10: 0 | GH10: 0 | GI10: 0 | GJ10: 0 | GK10: 0 | GL10: 0 | GM10: 0 | GN10: 0 | GO10: 0 | GP10: 0 | GQ10: 0 | GR10: 0 | GS10: 0 | GT10: 0 | GU10: 0 | GV10: =1/$G$10*GV4 -> 0 | GW10: 0 | GX10: 0 | GY10: 0 | GZ10: 0 | HA10: 0 | HB10: 0 | HC10: 0 | HD10: 0 | HE10: 0 | HF10: 0 | HG10: 0 | HH10: 0 | HI10: 0 | HJ10: 0 | HK10: 0 | HL10: 0 | HM10: 0 | HN10: 0 | HO10: 0 | HP10: 0 | HQ10: 0 | HR10: 0 | HS10: 0 | HT10: 0 | HU10: 0 | HV10: 0 | HW10: 0.01 | HX10: 0.01 | HY10: 0.01 | HZ10: 0.01 | IA10: 0.01 | IB10: 0.01 | IC10: 0.01 | ID10: 0.01 | IE10: 0.01 | IF10: 0.01 | IG10: 0.01 | IH10: 0.01 | II10: 0.01 | IJ10: 0.01 | IK10: 0.01 | IL10: 0.01 | IM10: 0.01 | IN10: 0.01 | IO10: 0.01 | IP10: 0.01 | IQ10: 0.01 | IR10: 0.01 | IS10: 0.01 | IT10: 0.01 | IU10: 0.01 | IV10: 0.01 | IW10: 0.01 | IX10: 0.01 | IY10: 0.01 | IZ10: 0.01 | JA10: 0.01 | JB10: 0.01 | JC10: 0.01 | JD10: 0.01 | JE10: 0.01 | JF10: 0.01 | JG10: 0.01 | JH10: =1/$G$10*JH4 -> 0.01 | JI10: 0.01 | JJ10: 0.01 | JK10: 0.01 | JL10: 0.01 | JM10: 0.01 | JN10: 0.01 | JO10: 0.01 | JP10: 0.01 | JQ10: 0.01 | JR10: 0.01 | JS10: 0.01 | JT10: 0.01 | JU10: 0.01 | JV10: 0.01 | JW10: 0.01 | JX10: 0.01 | JY10: 0.01 | JZ10: 0.01 | KA10: 0.01 | KB10: 0.01 | KC10: 0.01 | KD10: 0.01 | KE10: 0.01 | KF10: 0.01 | KG10: 0.01 | KH10: 0.01 | KI10: 0.01 | KJ10: 0.01 | KK10: 0.01 | KL10: 0.01 | KM10: 0.01 | KN10: 0.01 | KO10: 0.01 | KP10: 0.01 | KQ10: 0.01 | KR10: 0.01 | KS10: 0.01 | KT10: 0.01 | KU10: 0.01 | KV10: 0.01 | KW10: 0.01 | KX10: 0.01 | KY10: 0.01 | KZ10: 0.01 | LA10: 0.01 | LB10: 0.01 | LC10: 0.01 | LD10: 0.01 | LE10: 0.01 | LF10: 0.01 | LG10: 0.01 | LH10: 0.01 | LI10: 0.01 | LJ10: 0.01 | LK10: 0.01 | LL10: 0.01 | LM10: 0.01 | LN10: 0.01 | LO10: 0.01 | LP10: 0.01 | LQ10: 0.01 | LR10: 0.01 | LS10: 0.01 | LT10: =1/$G$10*LT4 -> 0.01 | LU10: 0.01 | LV10: 0.01 | LW10: 0.01 | LX10: 0.01 | LY10: 0.01 | LZ10: 0.01 | MA10: 0.01 | MB10: 0.01 | MC10: 0.01 | MD10: 0.01 | ME10: 0.01 | MF10: 0.01 | MG10: 0.01 | MH10: 0.01 | MI10: 0.01 | MJ10: 0.01 | MK10: 0.01 | ML10: 0.01 | MM10: 0.01 | MN10: 0.01 | MO10: 0.01 | MP10: 0.01 | MQ10: 0.01 | MR10: 0.01 | MS10: 0.01 | MT10: 0.01 | MU10: 0.01 | MV10: 0.01 | MW10: 0.01 | MX10: 0.01 | MY10: 0.01 | MZ10: 0.01 | NA10: 0.01 | NB10: 0.01 | NC10: 0.01 | ND10: 0.01 | NE10: 0.01 | NF10: 0.01 | NG10: 0.01 | NH10: 0.01 | NI10: 0.01 | NJ10: 0.01 | NK10: 0.01 | NL10: 0.01 | NM10: 0.01 | NN10: 0.01 | NO10: 0.01 | NP10: 0.01 | NQ10: 0.01 | NR10: 0.01 | NS10: 0.01 | NT10: 0.01 | NU10: 0.01 | NV10: 0.01 | NW10: 0.01 | NX10: 0.01 | NY10: 0.01 | NZ10: 0.01 | OA10: 0.01 | OB10: 0.01 | OC10: 0.01 | OD10: 0.01 | OE10: 0.01 | OF10: =1/$G$10*OF4 -> 0.01 | OG10: 0.01 | OH10: 0.01 | OI10: 0.01 | OJ10: 0.01 | OK10: 0.01 | OL10: 0.01 | OM10: 0.01 | ON10: 0.01 | OO10: 0.01 | OP10: 0.01 | OQ10: 0.01 | OR10: 0.01 | OS10: 0.01 | OT10: 0.01 | OU10: 0.01 | OV10: 0.01 | OW10: 0.01 | OX10: 0.01 | OY10: 0.01 | OZ10: 0.01 | PA10: 0.01 | PB10: 0.01 | PC10: 0.01 | PD10: 0.01 | PE10: 0.01 | PF10: 0.01 | PG10: 0.01 | PH10: 0.01 | PI10: 0.01 | PJ10: 0.01 | PK10: 0.01 | PL10: 0.01 | PM10: 0.01 | PN10: 0.01 | PO10: 0.01 | PP10: 0.01 | PQ10: 0.01 | PR10: 0.01 | PS10: 0.01 | PT10: 0.01 | PU10: 0.01 | PV10: 0.01 | PW10: 0.01 | PX10: 0.01 | PY10: 0.01 | PZ10: 0.01 | QA10: 0.01 | QB10: 0.01 | QC10: 0.01 | QD10: 0.01 | QE10: 0.01 | QF10: 0.01 | QG10: 0.01 | QH10: 0.01 | QI10: 0.01 | QJ10: 0.01 | QK10: 0.01 | QL10: 0.01 | QM10: 0.01 | QN10: 0.01 | QO10: 0.01 | QP10: 0.01 | QQ10: 0.01 | QR10: =1/$G$10*QR4 -> 0.01 | QS10: 0.01 | QT10: 0.01 | QU10: 0.01 | QV10: 0.01 | QW10: 0.01 | QX10: 0.01 | QY10: 0.01 | QZ10: 0.01 | RA10: 0.01 | RB10: 0.01 | RC10: 0.01 | RD10: 0.01 | RE10: 0.01 | RF10: 0.01 | RG10: 0.01 | RH10: 0.01 | RI10: 0.01 | RJ10: 0.01 | RK10: 0.01 | RL10: 0.01 | RM10: 0.01 | RN10: 0.01 | RO10: 0.01 | RP10: 0.01 | RQ10: 0.01 | RR10: 0.01 | RS10: 0.01 | RT10: 0.01 | RU10: 0.01 | RV10: 0.01 | RW10: 0.01 | RX10: 0.01 | RY10: 0.01 | RZ10: 0.01 | SA10: 0.01 | SB10: 0.01 | SC10: 0.01 | SD10: 0.01 | SE10: 0.01 | SF10: 0.01 | SG10: 0.01 | SH10: 0.01 | SI10: 0.01 | SJ10: 0.01 | SK10: 0.01 | SL10: 0.01 | SM10: 0.01 | SN10: 0.01 | SO10: 0.01 | SP10: 0.01
C11: S-Curve - Development | E11: Percent | F11: Months | G11: 1 | K11: 1 | L11: 0 | M11: 0 | N11: 0 | O11: 0 | P11: 0 | Q11: 0 | R11: 0 | S11: 0 | T11: 0 | U11: 0 | V11: 0 | W11: 0 | X11: 0 | Y11: 0 | Z11: 0 | AA11: 0 | AB11: 0 | AC11: 0 | AD11: 0 | AE11: 0 | AF11: 0 | AG11: 0 | AH11: 0 | AI11: 0 | AJ11: 0 | AK11: 0 | AL11: 0 | AM11: 0 | AN11: 0 | AO11: 0 | AP11: 0 | AQ11: 0 | AR11: 0 | AS11: 0 | AT11: 0 | AU11: 0 | AV11: 0 | AW11: 0 | AX11: 0 | AY11: 0 | AZ11: 0 | BA11: 0 | BB11: 0 | BC11: 0 | BD11: 0 | BE11: 0 | BF11: 0 | BG11: 0 | BH11: 0 | BI11: 0 | BJ11: 0 | BK11: 0 | BL11: 0 | BM11: 0 | BN11: 0 | BO11: 0 | BP11: 0 | BQ11: 0 | BR11: 0 | BS11: 0 | BT11: 0 | BU11: 0 | BV11: 0 | BW11: 0 | BX11: 0 | BY11: 0 | BZ11: 0 | CA11: 0 | CB11: 0 | CC11: 0 | CD11: 0 | CE11: 0 | CF11: 0 | CG11: 0 | CH11: 0 | CI11: 0 | CJ11: 0 | CK11: 0 | CL11: 0 | CM11: 0 | CN11: 0 | CO11: 0 | CP11: 0 | CQ11: 0 | CR11: 0 | CS11: 0 | CT11: 0 | CU11: 0 | CV11: 0 | CW11: 0 | CX11: 0 | CY11: 0 | CZ11: 0 | DA11: 0 | DB11: 0 | DC11: 0 | DD11: 0 | DE11: 0 | DF11: 0 | DG11: 0 | DH11: 0 | DI11: 0 | DJ11: 0 | DK11: 0 | DL11: 0 | DM11: 0 | DN11: 0 | DO11: 0 | DP11: 0 | DQ11: 0 | DR11: 0 | DS11: 0 | DT11: 0 | DU11: 0 | DV11: 0 | DW11: 0 | DX11: 0 | DY11: 0 | DZ11: 0 | EA11: 0 | EB11: 0 | EC11: 0 | ED11: 0 | EE11: 0 | EF11: 0 | EG11: 0 | EH11: 0 | EI11: 0 | EJ11: 0 | EK11: 0 | EL11: 0 | EM11: 0 | EN11: 0 | EO11: 0 | EP11: 0 | EQ11: 0 | ER11: 0 | ES11: 0 | ET11: 0 | EU11: 0 | EV11: 0 | EW11: 0 | EX11: 0 | EY11: 0 | EZ11: 0 | FA11: 0 | FB11: 0 | FC11: 0 | FD11: 0 | FE11: 0 | FF11: 0 | FG11: 0 | FH11: 0 | FI11: 0 | FJ11: 0 | FK11: 0 | FL11: 0 | FM11: 0 | FN11: 0 | FO11: 0 | FP11: 0 | FQ11: 0 | FR11: 0 | FS11: 0 | FT11: 0 | FU11: 0 | FV11: 0 | FW11: 0 | FX11: 0 | FY11: 0 | FZ11: 0 | GA11: 0 | GB11: 0 | GC11: 0 | GD11: 0 | GE11: 0 | GF11: 0 | GG11: 0 | GH11: 0 | GI11: 0 | GJ11: 0 | GK11: 0 | GL11: 0 | GM11: 0 | GN11: 0 | GO11: 0 | GP11: 0 | GQ11: 0 | GR11: 0 | GS11: 0 | GT11: 0 | GU11: 0 | GV11: 0 | GW11: 0 | GX11: 0 | GY11: 0 | GZ11: 0 | HA11: 0 | HB11: 0 | HC11: 0 | HD11: 0 | HE11: 0 | HF11: 0 | HG11: 0 | HH11: 0 | HI11: 0 | HJ11: 0 | HK11: 0 | HL11: 0 | HM11: 0 | HN11: 0 | HO11: 0 | HP11: 0 | HQ11: 0 | HR11: 0 | HS11: 0 | HT11: 0 | HU11: 0 | HV11: 0 | HW11: 0 | HX11: 0 | HY11: 0 | HZ11: 0 | IA11: 0 | IB11: 0 | IC11: 0 | ID11: 0 | IE11: 0 | IF11: 0 | IG11: 0 | IH11: 0 | II11: 0 | IJ11: 0 | IK11: 0 | IL11: 0 | IM11: 0 | IN11: 0 | IO11: 0 | IP11: 0 | IQ11: 0 | IR11: 0 | IS11: 0 | IT11: 0 | IU11: 0 | IV11: 0 | IW11: 0 | IX11: 0 | IY11: 0 | IZ11: 0 | JA11: 0 | JB11: 0 | JC11: 0 | JD11: 0 | JE11: 0 | JF11: 0 | JG11: 0 | JH11: 0 | JI11: 0 | JJ11: 0 | JK11: 0 | JL11: 0 | JM11: 0 | JN11: 0 | JO11: 0 | JP11: 0 | JQ11: 0 | JR11: 0 | JS11: 0 | JT11: 0 | JU11: 0 | JV11: 0 | JW11: 0 | JX11: 0 | JY11: 0 | JZ11: 0 | KA11: 0 | KB11: 0 | KC11: 0 | KD11: 0 | KE11: 0 | KF11: 0 | KG11: 0 | KH11: 0 | KI11: 0 | KJ11: 0 | KK11: 0 | KL11: 0 | KM11: 0 | KN11: 0 | KO11: 0 | KP11: 0 | KQ11: 0 | KR11: 0 | KS11: 0 | KT11: 0 | KU11: 0 | KV11: 0 | KW11: 0 | KX11: 0 | KY11: 0 | KZ11: 0 | LA11: 0 | LB11: 0 | LC11: 0 | LD11: 0 | LE11: 0 | LF11: 0 | LG11: 0 | LH11: 0 | LI11: 0 | LJ11: 0 | LK11: 0 | LL11: 0 | LM11: 0 | LN11: 0 | LO11: 0 | LP11: 0 | LQ11: 0 | LR11: 0 | LS11: 0 | LT11: 0 | LU11: 0 | LV11: 0 | LW11: 0 | LX11: 0 | LY11: 0 | LZ11: 0 | MA11: 0 | MB11: 0 | MC11: 0 | MD11: 0 | ME11: 0 | MF11: 0 | MG11: 0 | MH11: 0 | MI11: 0 | MJ11: 0 | MK11: 0 | ML11: 0 | MM11: 0 | MN11: 0 | MO11: 0 | MP11: 0 | MQ11: 0 | MR11: 0 | MS11: 0 | MT11: 0 | MU11: 0 | MV11: 0 | MW11: 0 | MX11: 0 | MY11: 0 | MZ11: 0 | NA11: 0 | NB11: 0 | NC11: 0 | ND11: 0 | NE11: 0 | NF11: 0 | NG11: 0 | NH11: 0 | NI11: 0 | NJ11: 0 | NK11: 0 | NL11: 0 | NM11: 0 | NN11: 0 | NO11: 0 | NP11: 0 | NQ11: 0 | NR11: 0 | NS11: 0 | NT11: 0 | NU11: 0 | NV11: 0 | NW11: 0 | NX11: 0 | NY11: 0 | NZ11: 0 | OA11: 0 | OB11: 0 | OC11: 0 | OD11: 0 | OE11: 0 | OF11: 0 | OG11: 0 | OH11: 0 | OI11: 0 | OJ11: 0 | OK11: 0 | OL11: 0 | OM11: 0 | ON11: 0 | OO11: 0 | OP11: 0 | OQ11: 0 | OR11: 0 | OS11: 0 | OT11: 0 | OU11: 0 | OV11: 0 | OW11: 0 | OX11: 0 | OY11: 0 | OZ11: 0 | PA11: 0 | PB11: 0 | PC11: 0 | PD11: 0 | PE11: 0 | PF11: 0 | PG11: 0 | PH11: 0 | PI11: 0 | PJ11: 0 | PK11: 0 | PL11: 0 | PM11: 0 | PN11: 0 | PO11: 0 | PP11: 0 | PQ11: 0 | PR11: 0 | PS11: 0 | PT11: 0 | PU11: 0 | PV11: 0 | PW11: 0 | PX11: 0 | PY11: 0 | PZ11: 0 | QA11: 0 | QB11: 0 | QC11: 0 | QD11: 0 | QE11: 0 | QF11: 0 | QG11: 0 | QH11: 0 | QI11: 0 | QJ11: 0 | QK11: 0 | QL11: 0 | QM11: 0 | QN11: 0 | QO11: 0 | QP11: 0 | QQ11: 0 | QR11: 0 | QS11: 0 | QT11: 0 | QU11: 0 | QV11: 0 | QW11: 0 | QX11: 0 | QY11: 0 | QZ11: 0 | RA11: 0 | RB11: 0 | RC11: 0 | RD11: 0 | RE11: 0 | RF11: 0 | RG11: 0 | RH11: 0 | RI11: 0 | RJ11: 0 | RK11: 0 | RL11: 0 | RM11: 0 | RN11: 0 | RO11: 0 | RP11: 0 | RQ11: 0 | RR11: 0 | RS11: 0 | RT11: 0 | RU11: 0 | RV11: 0 | RW11: 0 | RX11: 0 | RY11: 0 | RZ11: 0 | SA11: 0 | SB11: 0 | SC11: 0 | SD11: 0 | SE11: 0 | SF11: 0 | SG11: 0 | SH11: 0 | SI11: 0 | SJ11: 0 | SK11: 0 | SL11: 0 | SM11: 0 | SN11: 0 | SO11: 0 | SP11: 0

Sheet UDF Inputs
D2: Period | H2: =_xlfn.SEQUENCE(,InputC!F11) -> 1 | I2: 2 | J2: 3 | K2: 4 | L2: 5 | M2: 6 | N2: 7 | O2: 8 | P2: 9 | Q2: 10 | R2: 11 | S2: 12 | T2: 13 | U2: 14 | V2: 15 | W2: 16 | X2: 17 | Y2: 18 | Z2: 19 | AA2: 20 | AB2: 21 | AC2: 22 | AD2: 23 | AE2: 24 | AF2: 25 | AG2: 26 | AH2: 27 | AI2: 28 | AJ2: 29 | AK2: 30 | AL2: 31 | AM2: 32 | AN2: 33 | AO2: 34 | AP2: 35 | AQ2: 36 | AR2: 37 | AS2: 38 | AT2: 39 | AU2: 40 | AV2: 41 | AW2: 42 | AX2: 43 | AY2: 44 | AZ2: 45 | BA2: 46 | BB2: 47 | BC2: 48 | BD2: 49 | BE2: 50 | BF2: 51 | BG2: 52 | BH2: 53 | BI2: 54 | BJ2: 55 | BK2: 56 | BL2: 57 | BM2: 58 | BN2: 59 | BO2: 60 | BP2: 61 | BQ2: 62 | BR2: 63 | BS2: 64 | BT2: 65 | BU2: 66 | BV2: 67 | BW2: 68 | BX2: 69 | BY2: 70 | BZ2: 71 | CA2: 72 | CB2: 73 | CC2: 74 | CD2: 75 | CE2: 76 | CF2: 77 | CG2: 78 | CH2: 79 | CI2: 80 | CJ2: 81 | CK2: 82 | CL2: 83 | CM2: 84 | CN2: 85 | CO2: 86 | CP2: 87 | CQ2: 88 | CR2: 89 | CS2: 90 | CT2: 91 | CU2: 92 | CV2: 93 | CW2: 94 | CX2: 95 | CY2: 96 | CZ2: 97 | DA2: 98 | DB2: 99 | DC2: 100 | DD2: 101 | DE2: 102 | DF2: 103 | DG2: 104 | DH2: 105 | DI2: 106 | DJ2: 107 | DK2: 108 | DL2: 109 | DM2: 110 | DN2: 111 | DO2: 112 | DP2: 113 | DQ2: 114 | DR2: 115 | DS2: 116 | DT2: 117 | DU2: 118 | DV2: 119 | DW2: 120 | DX2: 121 | DY2: 122 | DZ2: 123 | EA2: 124 | EB2: 125 | EC2: 126 | ED2: 127 | EE2: 128 | EF2: 129 | EG2: 130 | EH2: 131 | EI2: 132 | EJ2: 133 | EK2: 134 | EL2: 135 | EM2: 136 | EN2: 137 | EO2: 138 | EP2: 139 | EQ2: 140 | ER2: 141 | ES2: 142 | ET2: 143 | EU2: 144 | EV2: 145 | EW2: 146 | EX2: 147 | EY2: 148 | EZ2: 149 | FA2: 150 | FB2: 151 | FC2: 152 | FD2: 153 | FE2: 154 | FF2: 155 | FG2: 156 | FH2: 157 | FI2: 158 | FJ2: 159 | FK2: 160 | FL2: 161 | FM2: 162 | FN2: 163 | FO2: 164 | FP2: 165 | FQ2: 166 | FR2: 167 | FS2: 168 | FT2: 169 | FU2: 170 | FV2: 171 | FW2: 172 | FX2: 173 | FY2: 174 | FZ2: 175 | GA2: 176 | GB2: 177 | GC2: 178 | GD2: 179 | GE2: 180 | GF2: 181 | GG2: 182 | GH2: 183 | GI2: 184 | GJ2: 185 | GK2: 186 | GL2: 187 | GM2: 188 | GN2: 189 | GO2: 190 | GP2: 191 | GQ2: 192 | GR2: 193 | GS2: 194 | GT2: 195 | GU2: 196 | GV2: 197 | GW2: 198 | GX2: 199 | GY2: 200 | GZ2: 201 | HA2: 202 | HB2: 203 | HC2: 204 | HD2: 205 | HE2: 206 | HF2: 207 | HG2: 208 | HH2: 209 | HI2: 210 | HJ2: 211 | HK2: 212 | HL2: 213 | HM2: 214 | HN2: 215 | HO2: 216 | HP2: 217 | HQ2: 218 | HR2: 219 | HS2: 220
D3: Start_of_Peiod | H3: =InputS!K5 -> 2026-01-01 | I3: =InputS!L5 -> 2026-02-01 | J3: =InputS!M5 -> 2026-03-01 | K3: =InputS!N5 -> 2026-04-01 | L3: =InputS!O5 -> 2026-05-01 | M3: =InputS!P5 -> 2026-06-01 | N3: =InputS!Q5 -> 2026-07-01 | O3: =InputS!R5 -> 2026-08-01 | P3: =InputS!S5 -> 2026-09-01 | Q3: =InputS!T5 -> 2026-10-01 | R3: =InputS!U5 -> 2026-11-01 | S3: =InputS!V5 -> 2026-12-01 | T3: =InputS!W5 -> 2027-01-01 | U3: =InputS!X5 -> 2027-02-01 | V3: =InputS!Y5 -> 2027-03-01 | W3: =InputS!Z5 -> 2027-04-01 | X3: =InputS!AA5 -> 2027-05-01 | Y3: =InputS!AB5 -> 2027-06-01 | Z3: =InputS!AC5 -> 2027-07-01 | AA3: =InputS!AD5 -> 2027-08-01 | AB3: =InputS!AE5 -> 2027-09-01 | AC3: =InputS!AF5 -> 2027-10-01 | AD3: =InputS!AG5 -> 2027-11-01 | AE3: =InputS!AH5 -> 2027-12-01 | AF3: =InputS!AI5 -> 2028-01-01 | AG3: =InputS!AJ5 -> 2028-02-01 | AH3: =InputS!AK5 -> 2028-03-01 | AI3: =InputS!AL5 -> 2028-04-01 | AJ3: =InputS!AM5 -> 2028-05-01 | AK3: =InputS!AN5 -> 2028-06-01 | AL3: =InputS!AO5 -> 2028-07-01 | AM3: =InputS!AP5 -> 2028-08-01 | AN3: =InputS!AQ5 -> 2028-09-01 | AO3: =InputS!AR5 -> 2028-10-01 | AP3: =InputS!AS5 -> 2028-11-01 | AQ3: =InputS!AT5 -> 2028-12-01 | AR3: =InputS!AU5 -> 2029-01-01 | AS3: =InputS!AV5 -> 2029-02-01 | AT3: =InputS!AW5 -> 2029-03-01 | AU3: =InputS!AX5 -> 2029-04-01 | AV3: =InputS!AY5 -> 2029-05-01 | AW3: =InputS!AZ5 -> 2029-06-01 | AX3: =InputS!BA5 -> 2029-07-01 | AY3: =InputS!BB5 -> 2029-08-01 | AZ3: =InputS!BC5 -> 2029-09-01 | BA3: =InputS!BD5 -> 2029-10-01 | BB3: =InputS!BE5 -> 2029-11-01 | BC3: =InputS!BF5 -> 2029-12-01 | BD3: =InputS!BG5 -> 2030-01-01 | BE3: =InputS!BH5 -> 2030-02-01 | BF3: =InputS!BI5 -> 2030-03-01 | BG3: =InputS!BJ5 -> 2030-04-01 | BH3: =InputS!BK5 -> 2030-05-01 | BI3: =InputS!BL5 -> 2030-06-01 | BJ3: =InputS!BM5 -> 2030-07-01 | BK3: =InputS!BN5 -> 2030-08-01 | BL3: =InputS!BO5 -> 2030-09-01 | BM3: =InputS!BP5 -> 2030-10-01 | BN3: =InputS!BQ5 -> 2030-11-01 | BO3: =InputS!BR5 -> 2030-12-01 | BP3: =InputS!BS5 -> 2031-01-01 | BQ3: =InputS!BT5 -> 2031-02-01 | BR3: =InputS!BU5 -> 2031-03-01 | BS3: =InputS!BV5 -> 2031-04-01 | BT3: =InputS!BW5 -> 2031-05-01 | BU3: =InputS!BX5 -> 2031-06-01 | BV3: =InputS!BY5 -> 2031-07-01 | BW3: =InputS!BZ5 -> 2031-08-01 | BX3: =InputS!CA5 -> 2031-09-01 | BY3: =InputS!CB5 -> 2031-10-01 | BZ3: =InputS!CC5 -> 2031-11-01 | CA3: =InputS!CD5 -> 2031-12-01 | CB3: =InputS!CE5 -> 2032-01-01 | CC3: =InputS!CF5 -> 2032-02-01 | CD3: =InputS!CG5 -> 2032-03-01 | CE3: =InputS!CH5 -> 2032-04-01 | CF3: =InputS!CI5 -> 2032-05-01 | CG3: =InputS!CJ5 -> 2032-06-01 | CH3: =InputS!CK5 -> 2032-07-01 | CI3: =InputS!CL5 -> 2032-08-01 | CJ3: =InputS!CM5 -> 2032-09-01 | CK3: =InputS!CN5 -> 2032-10-01 | CL3: =InputS!CO5 -> 2032-11-01 | CM3: =InputS!CP5 -> 2032-12-01 | CN3: =InputS!CQ5 -> 2033-01-01 | CO3: =InputS!CR5 -> 2033-02-01 | CP3: =InputS!CS5 -> 2033-03-01 | CQ3: =InputS!CT5 -> 2033-04-01 | CR3: =InputS!CU5 -> 2033-05-01 | CS3: =InputS!CV5 -> 2033-06-01 | CT3: =InputS!CW5 -> 2033-07-01 | CU3: =InputS!CX5 -> 2033-08-01 | CV3: =InputS!CY5 -> 2033-09-01 | CW3: =InputS!CZ5 -> 2033-10-01 | CX3: =InputS!DA5 -> 2033-11-01 | CY3: =InputS!DB5 -> 2033-12-01 | CZ3: =InputS!DC5 -> 2034-01-01 | DA3: =InputS!DD5 -> 2034-02-01 | DB3: =InputS!DE5 -> 2034-03-01 | DC3: =InputS!DF5 -> 2034-04-01 | DD3: =InputS!DG5 -> 2034-05-01 | DE3: =InputS!DH5 -> 2034-05-01 | DF3: =InputS!DI5 -> 2034-05-01 | DG3: =InputS!DJ5 -> 2034-05-01 | DH3: =InputS!DK5 -> 2034-05-01 | DI3: =InputS!DL5 -> 2034-05-01 | DJ3: =InputS!DM5 -> 2034-05-01 | DK3: =InputS!DN5 -> 2034-05-01 | DL3: =InputS!DO5 -> 2034-05-01 | DM3: =InputS!DP5 -> 2034-05-01 | DN3: =InputS!DQ5 -> 2034-05-01 | DO3: =InputS!DR5 -> 2034-05-01 | DP3: =InputS!DS5 -> 2034-05-01 | DQ3: =InputS!DT5 -> 2034-05-01 | DR3: =InputS!DU5 -> 2034-05-01 | DS3: =InputS!DV5 -> 2034-05-01 | DT3: =InputS!DW5 -> 2034-05-01 | DU3: =InputS!DX5 -> 2034-05-01 | DV3: =InputS!DY5 -> 2034-05-01 | DW3: =InputS!DZ5 -> 2034-05-01 | DX3: =InputS!EA5 -> 2034-05-01 | DY3: =InputS!EB5 -> 2034-05-01 | DZ3: =InputS!EC5 -> 2034-05-01 | EA3: =InputS!ED5 -> 2034-05-01 | EB3: =InputS!EE5 -> 2034-05-01 | EC3: =InputS!EF5 -> 2034-05-01 | ED3: =InputS!EG5 -> 2034-05-01 | EE3: =InputS!EH5 -> 2034-05-01 | EF3: =InputS!EI5 -> 2034-05-01 | EG3: =InputS!EJ5 -> 2034-05-01 | EH3: =InputS!EK5 -> 2034-05-01 | EI3: =InputS!EL5 -> 2034-05-01 | EJ3: =InputS!EM5 -> 2034-05-01 | EK3: =InputS!EN5 -> 2034-05-01 | EL3: =InputS!EO5 -> 2034-05-01 | EM3: =InputS!EP5 -> 2034-05-01 | EN3: =InputS!EQ5 -> 2034-05-01 | EO3: =InputS!ER5 -> 2034-05-01 | EP3: =InputS!ES5 -> 2034-05-01 | EQ3: =InputS!ET5 -> 2034-05-01 | ER3: =InputS!EU5 -> 2034-05-01 | ES3: =InputS!EV5 -> 2034-05-01 | ET3: =InputS!EW5 -> 2034-05-01 | EU3: =InputS!EX5 -> 2034-05-01 | EV3: =InputS!EY5 -> 2034-05-01 | EW3: =InputS!EZ5 -> 2034-05-01 | EX3: =InputS!FA5 -> 2034-05-01 | EY3: =InputS!FB5 -> 2034-05-01 | EZ3: =InputS!FC5 -> 2034-05-01 | FA3: =InputS!FD5 -> 2034-05-01 | FB3: =InputS!FE5 -> 2034-05-01 | FC3: =InputS!FF5 -> 2034-05-01 | FD3: =InputS!FG5 -> 2034-05-01 | FE3: =InputS!FH5 -> 2034-05-01 | FF3: =InputS!FI5 -> 2034-05-01 | FG3: =InputS!FJ5 -> 2034-05-01 | FH3: =InputS!FK5 -> 2034-05-01 | FI3: =InputS!FL5 -> 2034-05-01 | FJ3: =InputS!FM5 -> 2034-05-01 | FK3: =InputS!FN5 -> 2034-05-01 | FL3: =InputS!FO5 -> 2034-05-01 | FM3: =InputS!FP5 -> 2034-05-01 | FN3: =InputS!FQ5 -> 2034-05-01 | FO3: =InputS!FR5 -> 2034-05-01 | FP3: =InputS!FS5 -> 2034-05-01 | FQ3: =InputS!FT5 -> 2034-05-01 | FR3: =InputS!FU5 -> 2034-05-01 | FS3: =InputS!FV5 -> 2034-05-01 | FT3: =InputS!FW5 -> 2034-05-01 | FU3: =InputS!FX5 -> 2034-05-01 | FV3: =InputS!FY5 -> 2034-05-01 | FW3: =InputS!FZ5 -> 2034-05-01 | FX3: =InputS!GA5 -> 2034-05-01 | FY3: =InputS!GB5 -> 2034-05-01 | FZ3: =InputS!GC5 -> 2034-05-01 | GA3: =InputS!GD5 -> 2034-05-01 | GB3: =InputS!GE5 -> 2034-05-01 | GC3: =InputS!GF5 -> 2034-05-01 | GD3: =InputS!GG5 -> 2034-05-01 | GE3: =InputS!GH5 -> 2034-05-01 | GF3: =InputS!GI5 -> 2034-05-01 | GG3: =InputS!GJ5 -> 2034-05-01 | GH3: =InputS!GK5 -> 2034-05-01 | GI3: =InputS!GL5 -> 2034-05-01 | GJ3: =InputS!GM5 -> 2034-05-01 | GK3: =InputS!GN5 -> 2034-05-01 | GL3: =InputS!GO5 -> 2034-05-01 | GM3: =InputS!GP5 -> 2034-05-01 | GN3: =InputS!GQ5 -> 2034-05-01 | GO3: =InputS!GR5 -> 2034-05-01 | GP3: =InputS!GS5 -> 2034-05-01 | GQ3: =InputS!GT5 -> 2034-05-01 | GR3: =InputS!GU5 -> 2034-05-01 | GS3: =InputS!GV5 -> 2034-05-01 | GT3: =InputS!GW5 -> 2034-05-01 | GU3: =InputS!GX5 -> 2034-05-01 | GV3: =InputS!GY5 -> 2034-05-01 | GW3: =InputS!GZ5 -> 2034-05-01 | GX3: =InputS!HA5 -> 2034-05-01 | GY3: =InputS!HB5 -> 2034-05-01 | GZ3: =InputS!HC5 -> 2034-05-01 | HA3: =InputS!HD5 -> 2034-05-01 | HB3: =InputS!HE5 -> 2034-05-01 | HC3: =InputS!HF5 -> 2034-05-01 | HD3: =InputS!HG5 -> 2034-05-01 | HE3: =InputS!HH5 -> 2034-05-01 | HF3: =InputS!HI5 -> 2034-05-01 | HG3: =InputS!HJ5 -> 2034-05-01 | HH3: =InputS!HK5 -> 2034-05-01 | HI3: =InputS!HL5 -> 2034-05-01 | HJ3: =InputS!HM5 -> 2034-05-01 | HK3: =InputS!HN5 -> 2034-05-01 | HL3: =InputS!HO5 -> 2034-05-01 | HM3: =InputS!HP5 -> 2034-05-01 | HN3: =InputS!HQ5 -> 2034-05-01 | HO3: =InputS!HR5 -> 2034-05-01 | HP3: =InputS!HS5 -> 2034-05-01 | HQ3: =InputS!HT5 -> 2034-05-01 | HR3: =InputS!HU5 -> 2034-05-01 | HS3: =InputS!HV5 -> 2034-05-01
D4: End_of_Period | H4: =InputS!K6 -> 2026-01-31 | I4: =InputS!L6 -> 2026-02-28 | J4: =InputS!M6 -> 2026-03-31 | K4: =InputS!N6 -> 2026-04-30 | L4: =InputS!O6 -> 2026-05-31 | M4: =InputS!P6 -> 2026-06-30 | N4: =InputS!Q6 -> 2026-07-31 | O4: =InputS!R6 -> 2026-08-31 | P4: =InputS!S6 -> 2026-09-30 | Q4: =InputS!T6 -> 2026-10-31 | R4: =InputS!U6 -> 2026-11-30 | S4: =InputS!V6 -> 2026-12-31 | T4: =InputS!W6 -> 2027-01-31 | U4: =InputS!X6 -> 2027-02-28 | V4: =InputS!Y6 -> 2027-03-31 | W4: =InputS!Z6 -> 2027-04-30 | X4: =InputS!AA6 -> 2027-05-31 | Y4: =InputS!AB6 -> 2027-06-30 | Z4: =InputS!AC6 -> 2027-07-31 | AA4: =InputS!AD6 -> 2027-08-31 | AB4: =InputS!AE6 -> 2027-09-30 | AC4: =InputS!AF6 -> 2027-10-31 | AD4: =InputS!AG6 -> 2027-11-30 | AE4: =InputS!AH6 -> 2027-12-31 | AF4: =InputS!AI6 -> 2028-01-31 | AG4: =InputS!AJ6 -> 2028-02-29 | AH4: =InputS!AK6 -> 2028-03-31 | AI4: =InputS!AL6 -> 2028-04-30 | AJ4: =InputS!AM6 -> 2028-05-31 | AK4: =InputS!AN6 -> 2028-06-30 | AL4: =InputS!AO6 -> 2028-07-31 | AM4: =InputS!AP6 -> 2028-08-31 | AN4: =InputS!AQ6 -> 2028-09-30 | AO4: =InputS!AR6 -> 2028-10-31 | AP4: =InputS!AS6 -> 2028-11-30 | AQ4: =InputS!AT6 -> 2028-12-31 | AR4: =InputS!AU6 -> 2029-01-31 | AS4: =InputS!AV6 -> 2029-02-28 | AT4: =InputS!AW6 -> 2029-03-31 | AU4: =InputS!AX6 -> 2029-04-30 | AV4: =InputS!AY6 -> 2029-05-31 | AW4: =InputS!AZ6 -> 2029-06-30 | AX4: =InputS!BA6 -> 2029-07-31 | AY4: =InputS!BB6 -> 2029-08-31 | AZ4: =InputS!BC6 -> 2029-09-30 | BA4: =InputS!BD6 -> 2029-10-31 | BB4: =InputS!BE6 -> 2029-11-30 | BC4: =InputS!BF6 -> 2029-12-31 | BD4: =InputS!BG6 -> 2030-01-31 | BE4: =InputS!BH6 -> 2030-02-28 | BF4: =InputS!BI6 -> 2030-03-31 | BG4: =InputS!BJ6 -> 2030-04-30 | BH4: =InputS!BK6 -> 2030-05-31 | BI4: =InputS!BL6 -> 2030-06-30 | BJ4: =InputS!BM6 -> 2030-07-31 | BK4: =InputS!BN6 -> 2030-08-31 | BL4: =InputS!BO6 -> 2030-09-30 | BM4: =InputS!BP6 -> 2030-10-31 | BN4: =InputS!BQ6 -> 2030-11-30 | BO4: =InputS!BR6 -> 2030-12-31 | BP4: =InputS!BS6 -> 2031-01-31 | BQ4: =InputS!BT6 -> 2031-02-28 | BR4: =InputS!BU6 -> 2031-03-31 | BS4: =InputS!BV6 -> 2031-04-30 | BT4: =InputS!BW6 -> 2031-05-31 | BU4: =InputS!BX6 -> 2031-06-30 | BV4: =InputS!BY6 -> 2031-07-31 | BW4: =InputS!BZ6 -> 2031-08-31 | BX4: =InputS!CA6 -> 2031-09-30 | BY4: =InputS!CB6 -> 2031-10-31 | BZ4: =InputS!CC6 -> 2031-11-30 | CA4: =InputS!CD6 -> 2031-12-31 | CB4: =InputS!CE6 -> 2032-01-31 | CC4: =InputS!CF6 -> 2032-02-29 | CD4: =InputS!CG6 -> 2032-03-31 | CE4: =InputS!CH6 -> 2032-04-30 | CF4: =InputS!CI6 -> 2032-05-31 | CG4: =InputS!CJ6 -> 2032-06-30 | CH4: =InputS!CK6 -> 2032-07-31 | CI4: =InputS!CL6 -> 2032-08-31 | CJ4: =InputS!CM6 -> 2032-09-30 | CK4: =InputS!CN6 -> 2032-10-31 | CL4: =InputS!CO6 -> 2032-11-30 | CM4: =InputS!CP6 -> 2032-12-31 | CN4: =InputS!CQ6 -> 2033-01-31 | CO4: =InputS!CR6 -> 2033-02-28 | CP4: =InputS!CS6 -> 2033-03-31 | CQ4: =InputS!CT6 -> 2033-04-30 | CR4: =InputS!CU6 -> 2033-05-31 | CS4: =InputS!CV6 -> 2033-06-30 | CT4: =InputS!CW6 -> 2033-07-31 | CU4: =InputS!CX6 -> 2033-08-31 | CV4: =InputS!CY6 -> 2033-09-30 | CW4: =InputS!CZ6 -> 2033-10-31 | CX4: =InputS!DA6 -> 2033-11-30 | CY4: =InputS!DB6 -> 2033-12-31 | CZ4: =InputS!DC6 -> 2034-01-31 | DA4: =InputS!DD6 -> 2034-02-28 | DB4: =InputS!DE6 -> 2034-03-31 | DC4: =InputS!DF6 -> 2034-04-30 | DD4: =InputS!DG6 -> 2034-04-30 | DE4: =InputS!DH6 -> 2034-04-30 | DF4: =InputS!DI6 -> 2034-04-30 | DG4: =InputS!DJ6 -> 2034-04-30 | DH4: =InputS!DK6 -> 2034-04-30 | DI4: =InputS!DL6 -> 2034-04-30 | DJ4: =InputS!DM6 -> 2034-04-30 | DK4: =InputS!DN6 -> 2034-04-30 | DL4: =InputS!DO6 -> 2034-04-30 | DM4: =InputS!DP6 -> 2034-04-30 | DN4: =InputS!DQ6 -> 2034-04-30 | DO4: =InputS!DR6 -> 2034-04-30 | DP4: =InputS!DS6 -> 2034-04-30 | DQ4: =InputS!DT6 -> 2034-04-30 | DR4: =InputS!DU6 -> 2034-04-30 | DS4: =InputS!DV6 -> 2034-04-30 | DT4: =InputS!DW6 -> 2034-04-30 | DU4: =InputS!DX6 -> 2034-04-30 | DV4: =InputS!DY6 -> 2034-04-30 | DW4: =InputS!DZ6 -> 2034-04-30 | DX4: =InputS!EA6 -> 2034-04-30 | DY4: =InputS!EB6 -> 2034-04-30 | DZ4: =InputS!EC6 -> 2034-04-30 | EA4: =InputS!ED6 -> 2034-04-30 | EB4: =InputS!EE6 -> 2034-04-30 | EC4: =InputS!EF6 -> 2034-04-30 | ED4: =InputS!EG6 -> 2034-04-30 | EE4: =InputS!EH6 -> 2034-04-30 | EF4: =InputS!EI6 -> 2034-04-30 | EG4: =InputS!EJ6 -> 2034-04-30 | EH4: =InputS!EK6 -> 2034-04-30 | EI4: =InputS!EL6 -> 2034-04-30 | EJ4: =InputS!EM6 -> 2034-04-30 | EK4: =InputS!EN6 -> 2034-04-30 | EL4: =InputS!EO6 -> 2034-04-30 | EM4: =InputS!EP6 -> 2034-04-30 | EN4: =InputS!EQ6 -> 2034-04-30 | EO4: =InputS!ER6 -> 2034-04-30 | EP4: =InputS!ES6 -> 2034-04-30 | EQ4: =InputS!ET6 -> 2034-04-30 | ER4: =InputS!EU6 -> 2034-04-30 | ES4: =InputS!EV6 -> 2034-04-30 | ET4: =InputS!EW6 -> 2034-04-30 | EU4: =InputS!EX6 -> 2034-04-30 | EV4: =InputS!EY6 -> 2034-04-30 | EW4: =InputS!EZ6 -> 2034-04-30 | EX4: =InputS!FA6 -> 2034-04-30 | EY4: =InputS!FB6 -> 2034-04-30 | EZ4: =InputS!FC6 -> 2034-04-30 | FA4: =InputS!FD6 -> 2034-04-30 | FB4: =InputS!FE6 -> 2034-04-30 | FC4: =InputS!FF6 -> 2034-04-30 | FD4: =InputS!FG6 -> 2034-04-30 | FE4: =InputS!FH6 -> 2034-04-30 | FF4: =InputS!FI6 -> 2034-04-30 | FG4: =InputS!FJ6 -> 2034-04-30 | FH4: =InputS!FK6 -> 2034-04-30 | FI4: =InputS!FL6 -> 2034-04-30 | FJ4: =InputS!FM6 -> 2034-04-30 | FK4: =InputS!FN6 -> 2034-04-30 | FL4: =InputS!FO6 -> 2034-04-30 | FM4: =InputS!FP6 -> 2034-04-30 | FN4: =InputS!FQ6 -> 2034-04-30 | FO4: =InputS!FR6 -> 2034-04-30 | FP4: =InputS!FS6 -> 2034-04-30 | FQ4: =InputS!FT6 -> 2034-04-30 | FR4: =InputS!FU6 -> 2034-04-30 | FS4: =InputS!FV6 -> 2034-04-30 | FT4: =InputS!FW6 -> 2034-04-30 | FU4: =InputS!FX6 -> 2034-04-30 | FV4: =InputS!FY6 -> 2034-04-30 | FW4: =InputS!FZ6 -> 2034-04-30 | FX4: =InputS!GA6 -> 2034-04-30 | FY4: =InputS!GB6 -> 2034-04-30 | FZ4: =InputS!GC6 -> 2034-04-30 | GA4: =InputS!GD6 -> 2034-04-30 | GB4: =InputS!GE6 -> 2034-04-30 | GC4: =InputS!GF6 -> 2034-04-30 | GD4: =InputS!GG6 -> 2034-04-30 | GE4: =InputS!GH6 -> 2034-04-30 | GF4: =InputS!GI6 -> 2034-04-30 | GG4: =InputS!GJ6 -> 2034-04-30 | GH4: =InputS!GK6 -> 2034-04-30 | GI4: =InputS!GL6 -> 2034-04-30 | GJ4: =InputS!GM6 -> 2034-04-30 | GK4: =InputS!GN6 -> 2034-04-30 | GL4: =InputS!GO6 -> 2034-04-30 | GM4: =InputS!GP6 -> 2034-04-30 | GN4: =InputS!GQ6 -> 2034-04-30 | GO4: =InputS!GR6 -> 2034-04-30 | GP4: =InputS!GS6 -> 2034-04-30 | GQ4: =InputS!GT6 -> 2034-04-30 | GR4: =InputS!GU6 -> 2034-04-30 | GS4: =InputS!GV6 -> 2034-04-30 | GT4: =InputS!GW6 -> 2034-04-30 | GU4: =InputS!GX6 -> 2034-04-30 | GV4: =InputS!GY6 -> 2034-04-30 | GW4: =InputS!GZ6 -> 2034-04-30 | GX4: =InputS!HA6 -> 2034-04-30 | GY4: =InputS!HB6 -> 2034-04-30 | GZ4: =InputS!HC6 -> 2034-04-30 | HA4: =InputS!HD6 -> 2034-04-30 | HB4: =InputS!HE6 -> 2034-04-30 | HC4: =InputS!HF6 -> 2034-04-30 | HD4: =InputS!HG6 -> 2034-04-30 | HE4: =InputS!HH6 -> 2034-04-30 | HF4: =InputS!HI6 -> 2034-04-30 | HG4: =InputS!HJ6 -> 2034-04-30 | HH4: =InputS!HK6 -> 2034-04-30 | HI4: =InputS!HL6 -> 2034-04-30 | HJ4: =InputS!HM6 -> 2034-04-30 | HK4: =InputS!HN6 -> 2034-04-30 | HL4: =InputS!HO6 -> 2034-04-30 | HM4: =InputS!HP6 -> 2034-04-30 | HN4: =InputS!HQ6 -> 2034-04-30 | HO4: =InputS!HR6 -> 2034-04-30 | HP4: =InputS!HS6 -> 2034-04-30 | HQ4: =InputS!HT6 -> 2034-04-30 | HR4: =InputS!HU6 -> 2034-04-30 | HS4: =InputS!HV6 -> 2034-04-30
D5: S_Curve_EPC | H5: =InputS!K9 -> 0.01 | I5: =InputS!L9 -> 0.01 | J5: =InputS!M9 -> 0.01 | K5: =InputS!N9 -> 0.01 | L5: =InputS!O9 -> 0.01 | M5: =InputS!P9 -> 0.01 | N5: =InputS!Q9 -> 0.01 | O5: =InputS!R9 -> 0.01 | P5: =InputS!S9 -> 0.01 | Q5: =InputS!T9 -> 0.01 | R5: =InputS!U9 -> 0.01 | S5: =InputS!V9 -> 0.01 | T5: =InputS!W9 -> 0.01 | U5: =InputS!X9 -> 0.01 | V5: =InputS!Y9 -> 0.01 | W5: =InputS!Z9 -> 0.01 | X5: =InputS!AA9 -> 0.01 | Y5: =InputS!AB9 -> 0.01 | Z5: =InputS!AC9 -> 0.01 | AA5: =InputS!AD9 -> 0.01 | AB5: =InputS!AE9 -> 0.01 | AC5: =InputS!AF9 -> 0.01 | AD5: =InputS!AG9 -> 0.01 | AE5: =InputS!AH9 -> 0.01 | AF5: =InputS!AI9 -> 0.01 | AG5: =InputS!AJ9 -> 0.01 | AH5: =InputS!AK9 -> 0.01 | AI5: =InputS!AL9 -> 0.01 | AJ5: =InputS!AM9 -> 0.01 | AK5: =InputS!AN9 -> 0.01 | AL5: =InputS!AO9 -> 0.01 | AM5: =InputS!AP9 -> 0.01 | AN5: =InputS!AQ9 -> 0.01 | AO5: =InputS!AR9 -> 0.01 | AP5: =InputS!AS9 -> 0.01 | AQ5: =InputS!AT9 -> 0.01 | AR5: =InputS!AU9 -> 0.01 | AS5: =InputS!AV9 -> 0.01 | AT5: =InputS!AW9 -> 0.01 | AU5: =InputS!AX9 -> 0.01 | AV5: =InputS!AY9 -> 0.01 | AW5: =InputS!AZ9 -> 0.01 | AX5: =InputS!BA9 -> 0.01 | AY5: =InputS!BB9 -> 0.01 | AZ5: =InputS!BC9 -> 0.01 | BA5: =InputS!BD9 -> 0.01 | BB5: =InputS!BE9 -> 0.01 | BC5: =InputS!BF9 -> 0.01 | BD5: =InputS!BG9 -> 0.01 | BE5: =InputS!BH9 -> 0.01 | BF5: =InputS!BI9 -> 0.01 | BG5: =InputS!BJ9 -> 0.01 | BH5: =InputS!BK9 -> 0.01 | BI5: =InputS!BL9 -> 0.01 | BJ5: =InputS!BM9 -> 0.01 | BK5: =InputS!BN9 -> 0.01 | BL5: =InputS!BO9 -> 0.01 | BM5: =InputS!BP9 -> 0.01 | BN5: =InputS!BQ9 -> 0.01 | BO5: =InputS!BR9 -> 0.01 | BP5: =InputS!BS9 -> 0.01 | BQ5: =InputS!BT9 -> 0.01 | BR5: =InputS!BU9 -> 0.01 | BS5: =InputS!BV9 -> 0.01 | BT5: =InputS!BW9 -> 0.01 | BU5: =InputS!BX9 -> 0.01 | BV5: =InputS!BY9 -> 0.01 | BW5: =InputS!BZ9 -> 0.01 | BX5: =InputS!CA9 -> 0.01 | BY5: =InputS!CB9 -> 0.01 | BZ5: =InputS!CC9 -> 0.01 | CA5: =InputS!CD9 -> 0.01 | CB5: =InputS!CE9 -> 0.01 | CC5: =InputS!CF9 -> 0.01 | CD5: =InputS!CG9 -> 0.01 | CE5: =InputS!CH9 -> 0.01 | CF5: =InputS!CI9 -> 0.01 | CG5: =InputS!CJ9 -> 0.01 | CH5: =InputS!CK9 -> 0.01 | CI5: =InputS!CL9 -> 0.01 | CJ5: =InputS!CM9 -> 0.01 | CK5: =InputS!CN9 -> 0.01 | CL5: =InputS!CO9 -> 0.01 | CM5: =InputS!CP9 -> 0.01 | CN5: =InputS!CQ9 -> 0.01 | CO5: =InputS!CR9 -> 0.01 | CP5: =InputS!CS9 -> 0.01 | CQ5: =InputS!CT9 -> 0.01 | CR5: =InputS!CU9 -> 0.01 | CS5: =InputS!CV9 -> 0.01 | CT5: =InputS!CW9 -> 0.01 | CU5: =InputS!CX9 -> 0.01 | CV5: =InputS!CY9 -> 0.01 | CW5: =InputS!CZ9 -> 0.01 | CX5: =InputS!DA9 -> 0.01 | CY5: =InputS!DB9 -> 0.01 | CZ5: =InputS!DC9 -> 0.01 | DA5: =InputS!DD9 -> 0.01 | DB5: =InputS!DE9 -> 0.01 | DC5: =InputS!DF9 -> 0.01 | DD5: =InputS!DG9 -> 0 | DE5: =InputS!DH9 -> 0 | DF5: =InputS!DI9 -> 0 | DG5: =InputS!DJ9 -> 0 | DH5: =InputS!DK9 -> 0 | DI5: =InputS!DL9 -> 0 | DJ5: =InputS!DM9 -> 0 | DK5: =InputS!DN9 -> 0 | DL5: =InputS!DO9 -> 0 | DM5: =InputS!DP9 -> 0 | DN5: =InputS!DQ9 -> 0 | DO5: =InputS!DR9 -> 0 | DP5: =InputS!DS9 -> 0 | DQ5: =InputS!DT9 -> 0 | DR5: =InputS!DU9 -> 0 | DS5: =InputS!DV9 -> 0 | DT5: =InputS!DW9 -> 0 | DU5: =InputS!DX9 -> 0 | DV5: =InputS!DY9 -> 0 | DW5: =InputS!DZ9 -> 0 | DX5: =InputS!EA9 -> 0 | DY5: =InputS!EB9 -> 0 | DZ5: =InputS!EC9 -> 0 | EA5: =InputS!ED9 -> 0 | EB5: =InputS!EE9 -> 0 | EC5: =InputS!EF9 -> 0 | ED5: =InputS!EG9 -> 0 | EE5: =InputS!EH9 -> 0 | EF5: =InputS!EI9 -> 0 | EG5: =InputS!EJ9 -> 0 | EH5: =InputS!EK9 -> 0 | EI5: =InputS!EL9 -> 0 | EJ5: =InputS!EM9 -> 0 | EK5: =InputS!EN9 -> 0 | EL5: =InputS!EO9 -> 0 | EM5: =InputS!EP9 -> 0 | EN5: =InputS!EQ9 -> 0 | EO5: =InputS!ER9 -> 0 | EP5: =InputS!ES9 -> 0 | EQ5: =InputS!ET9 -> 0 | ER5: =InputS!EU9 -> 0 | ES5: =InputS!EV9 -> 0 | ET5: =InputS!EW9 -> 0 | EU5: =InputS!EX9 -> 0 | EV5: =InputS!EY9 -> 0 | EW5: =InputS!EZ9 -> 0 | EX5: =InputS!FA9 -> 0 | EY5: =InputS!FB9 -> 0 | EZ5: =InputS!FC9 -> 0 | FA5: =InputS!FD9 -> 0 | FB5: =InputS!FE9 -> 0 | FC5: =InputS!FF9 -> 0 | FD5: =InputS!FG9 -> 0 | FE5: =InputS!FH9 -> 0 | FF5: =InputS!FI9 -> 0 | FG5: =InputS!FJ9 -> 0 | FH5: =InputS!FK9 -> 0 | FI5: =InputS!FL9 -> 0 | FJ5: =InputS!FM9 -> 0 | FK5: =InputS!FN9 -> 0 | FL5: =InputS!FO9 -> 0 | FM5: =InputS!FP9 -> 0 | FN5: =InputS!FQ9 -> 0 | FO5: =InputS!FR9 -> 0 | FP5: =InputS!FS9 -> 0 | FQ5: =InputS!FT9 -> 0 | FR5: =InputS!FU9 -> 0 | FS5: =InputS!FV9 -> 0 | FT5: =InputS!FW9 -> 0 | FU5: =InputS!FX9 -> 0 | FV5: =InputS!FY9 -> 0 | FW5: =InputS!FZ9 -> 0 | FX5: =InputS!GA9 -> 0 | FY5: =InputS!GB9 -> 0 | FZ5: =InputS!GC9 -> 0 | GA5: =InputS!GD9 -> 0 | GB5: =InputS!GE9 -> 0 | GC5: =InputS!GF9 -> 0 | GD5: =InputS!GG9 -> 0 | GE5: =InputS!GH9 -> 0 | GF5: =InputS!GI9 -> 0 | GG5: =InputS!GJ9 -> 0 | GH5: =InputS!GK9 -> 0 | GI5: =InputS!GL9 -> 0 | GJ5: =InputS!GM9 -> 0 | GK5: =InputS!GN9 -> 0 | GL5: =InputS!GO9 -> 0 | GM5: =InputS!GP9 -> 0 | GN5: =InputS!GQ9 -> 0 | GO5: =InputS!GR9 -> 0 | GP5: =InputS!GS9 -> 0 | GQ5: =InputS!GT9 -> 0 | GR5: =InputS!GU9 -> 0 | GS5: =InputS!GV9 -> 0 | GT5: =InputS!GW9 -> 0 | GU5: =InputS!GX9 -> 0 | GV5: =InputS!GY9 -> 0 | GW5: =InputS!GZ9 -> 0 | GX5: =InputS!HA9 -> 0 | GY5: =InputS!HB9 -> 0 | GZ5: =InputS!HC9 -> 0 | HA5: =InputS!HD9 -> 0 | HB5: =InputS!HE9 -> 0 | HC5: =InputS!HF9 -> 0 | HD5: =InputS!HG9 -> 0 | HE5: =InputS!HH9 -> 0 | HF5: =InputS!HI9 -> 0 | HG5: =InputS!HJ9 -> 0 | HH5: =InputS!HK9 -> 0 | HI5: =InputS!HL9 -> 0 | HJ5: =InputS!HM9 -> 0 | HK5: =InputS!HN9 -> 0 | HL5: =InputS!HO9 -> 0 | HM5: =InputS!HP9 -> 0 | HN5: =InputS!HQ9 -> 0 | HO5: =InputS!HR9 -> 0 | HP5: =InputS!HS9 -> 0 | HQ5: =InputS!HT9 -> 0 | HR5: =InputS!HU9 -> 0 | HS5: =InputS!HV9 -> 0
D6: S_Curve_Owners_Cost | H6: =InputS!K10 -> 0.01 | I6: =InputS!L10 -> 0.01 | J6: =InputS!M10 -> 0.01 | K6: =InputS!N10 -> 0.01 | L6: =InputS!O10 -> 0.01 | M6: =InputS!P10 -> 0.01 | N6: =InputS!Q10 -> 0.01 | O6: =InputS!R10 -> 0.01 | P6: =InputS!S10 -> 0.01 | Q6: =InputS!T10 -> 0.01 | R6: =InputS!U10 -> 0.01 | S6: =InputS!V10 -> 0.01 | T6: =InputS!W10 -> 0.01 | U6: =InputS!X10 -> 0.01 | V6: =InputS!Y10 -> 0.01 | W6: =InputS!Z10 -> 0.01 | X6: =InputS!AA10 -> 0.01 | Y6: =InputS!AB10 -> 0.01 | Z6: =InputS!AC10 -> 0.01 | AA6: =InputS!AD10 -> 0.01 | AB6: =InputS!AE10 -> 0.01 | AC6: =InputS!AF10 -> 0.01 | AD6: =InputS!AG10 -> 0.01 | AE6: =InputS!AH10 -> 0.01 | AF6: =InputS!AI10 -> 0.01 | AG6: =InputS!AJ10 -> 0.01 | AH6: =InputS!AK10 -> 0.01 | AI6: =InputS!AL10 -> 0.01 | AJ6: =InputS!AM10 -> 0.01 | AK6: =InputS!AN10 -> 0.01 | AL6: =InputS!AO10 -> 0.01 | AM6: =InputS!AP10 -> 0.01 | AN6: =InputS!AQ10 -> 0.01 | AO6: =InputS!AR10 -> 0.01 | AP6: =InputS!AS10 -> 0.01 | AQ6: =InputS!AT10 -> 0.01 | AR6: =InputS!AU10 -> 0.01 | AS6: =InputS!AV10 -> 0.01 | AT6: =InputS!AW10 -> 0.01 | AU6: =InputS!AX10 -> 0.01 | AV6: =InputS!AY10 -> 0.01 | AW6: =InputS!AZ10 -> 0.01 | AX6: =InputS!BA10 -> 0.01 | AY6: =InputS!BB10 -> 0.01 | AZ6: =InputS!BC10 -> 0.01 | BA6: =InputS!BD10 -> 0.01 | BB6: =InputS!BE10 -> 0.01 | BC6: =InputS!BF10 -> 0.01 | BD6: =InputS!BG10 -> 0.01 | BE6: =InputS!BH10 -> 0.01 | BF6: =InputS!BI10 -> 0.01 | BG6: =InputS!BJ10 -> 0.01 | BH6: =InputS!BK10 -> 0.01 | BI6: =InputS!BL10 -> 0.01 | BJ6: =InputS!BM10 -> 0.01 | BK6: =InputS!BN10 -> 0.01 | BL6: =InputS!BO10 -> 0.01 | BM6: =InputS!BP10 -> 0.01 | BN6: =InputS!BQ10 -> 0.01 | BO6: =InputS!BR10 -> 0.01 | BP6: =InputS!BS10 -> 0.01 | BQ6: =InputS!BT10 -> 0.01 | BR6: =InputS!BU10 -> 0.01 | BS6: =InputS!BV10 -> 0.01 | BT6: =InputS!BW10 -> 0.01 | BU6: =InputS!BX10 -> 0.01 | BV6: =InputS!BY10 -> 0.01 | BW6: =InputS!BZ10 -> 0.01 | BX6: =InputS!CA10 -> 0.01 | BY6: =InputS!CB10 -> 0.01 | BZ6: =InputS!CC10 -> 0.01 | CA6: =InputS!CD10 -> 0.01 | CB6: =InputS!CE10 -> 0.01 | CC6: =InputS!CF10 -> 0.01 | CD6: =InputS!CG10 -> 0.01 | CE6: =InputS!CH10 -> 0.01 | CF6: =InputS!CI10 -> 0.01 | CG6: =InputS!CJ10 -> 0.01 | CH6: =InputS!CK10 -> 0.01 | CI6: =InputS!CL10 -> 0.01 | CJ6: =InputS!CM10 -> 0.01 | CK6: =InputS!CN10 -> 0.01 | CL6: =InputS!CO10 -> 0.01 | CM6: =InputS!CP10 -> 0.01 | CN6: =InputS!CQ10 -> 0.01 | CO6: =InputS!CR10 -> 0.01 | CP6: =InputS!CS10 -> 0.01 | CQ6: =InputS!CT10 -> 0.01 | CR6: =InputS!CU10 -> 0.01 | CS6: =InputS!CV10 -> 0.01 | CT6: =InputS!CW10 -> 0.01 | CU6: =InputS!CX10 -> 0.01 | CV6: =InputS!CY10 -> 0.01 | CW6: =InputS!CZ10 -> 0.01 | CX6: =InputS!DA10 -> 0.01 | CY6: =InputS!DB10 -> 0.01 | CZ6: =InputS!DC10 -> 0.01 | DA6: =InputS!DD10 -> 0.01 | DB6: =InputS!DE10 -> 0.01 | DC6: =InputS!DF10 -> 0.01 | DD6: =InputS!DG10 -> 0 | DE6: =InputS!DH10 -> 0 | DF6: =InputS!DI10 -> 0 | DG6: =InputS!DJ10 -> 0 | DH6: =InputS!DK10 -> 0 | DI6: =InputS!DL10 -> 0 | DJ6: =InputS!DM10 -> 0 | DK6: =InputS!DN10 -> 0 | DL6: =InputS!DO10 -> 0 | DM6: =InputS!DP10 -> 0 | DN6: =InputS!DQ10 -> 0 | DO6: =InputS!DR10 -> 0 | DP6: =InputS!DS10 -> 0 | DQ6: =InputS!DT10 -> 0 | DR6: =InputS!DU10 -> 0 | DS6: =InputS!DV10 -> 0 | DT6: =InputS!DW10 -> 0 | DU6: =InputS!DX10 -> 0 | DV6: =InputS!DY10 -> 0 | DW6: =InputS!DZ10 -> 0 | DX6: =InputS!EA10 -> 0 | DY6: =InputS!EB10 -> 0 | DZ6: =InputS!EC10 -> 0 | EA6: =InputS!ED10 -> 0 | EB6: =InputS!EE10 -> 0 | EC6: =InputS!EF10 -> 0 | ED6: =InputS!EG10 -> 0 | EE6: =InputS!EH10 -> 0 | EF6: =InputS!EI10 -> 0 | EG6: =InputS!EJ10 -> 0 | EH6: =InputS!EK10 -> 0 | EI6: =InputS!EL10 -> 0 | EJ6: =InputS!EM10 -> 0 | EK6: =InputS!EN10 -> 0 | EL6: =InputS!EO10 -> 0 | EM6: =InputS!EP10 -> 0 | EN6: =InputS!EQ10 -> 0 | EO6: =InputS!ER10 -> 0 | EP6: =InputS!ES10 -> 0 | EQ6: =InputS!ET10 -> 0 | ER6: =InputS!EU10 -> 0 | ES6: =InputS!EV10 -> 0 | ET6: =InputS!EW10 -> 0 | EU6: =InputS!EX10 -> 0 | EV6: =InputS!EY10 -> 0 | EW6: =InputS!EZ10 -> 0 | EX6: =InputS!FA10 -> 0 | EY6: =InputS!FB10 -> 0 | EZ6: =InputS!FC10 -> 0 | FA6: =InputS!FD10 -> 0 | FB6: =InputS!FE10 -> 0 | FC6: =InputS!FF10 -> 0 | FD6: =InputS!FG10 -> 0 | FE6: =InputS!FH10 -> 0 | FF6: =InputS!FI10 -> 0 | FG6: =InputS!FJ10 -> 0 | FH6: =InputS!FK10 -> 0 | FI6: =InputS!FL10 -> 0 | FJ6: =InputS!FM10 -> 0 | FK6: =InputS!FN10 -> 0 | FL6: =InputS!FO10 -> 0 | FM6: =InputS!FP10 -> 0 | FN6: =InputS!FQ10 -> 0 | FO6: =InputS!FR10 -> 0 | FP6: =InputS!FS10 -> 0 | FQ6: =InputS!FT10 -> 0 | FR6: =InputS!FU10 -> 0 | FS6: =InputS!FV10 -> 0 | FT6: =InputS!FW10 -> 0 | FU6: =InputS!FX10 -> 0 | FV6: =InputS!FY10 -> 0 | FW6: =InputS!FZ10 -> 0 | FX6: =InputS!GA10 -> 0 | FY6: =InputS!GB10 -> 0 | FZ6: =InputS!GC10 -> 0 | GA6: =InputS!GD10 -> 0 | GB6: =InputS!GE10 -> 0 | GC6: =InputS!GF10 -> 0 | GD6: =InputS!GG10 -> 0 | GE6: =InputS!GH10 -> 0 | GF6: =InputS!GI10 -> 0 | GG6: =InputS!GJ10 -> 0 | GH6: =InputS!GK10 -> 0 | GI6: =InputS!GL10 -> 0 | GJ6: =InputS!GM10 -> 0 | GK6: =InputS!GN10 -> 0 | GL6: =InputS!GO10 -> 0 | GM6: =InputS!GP10 -> 0 | GN6: =InputS!GQ10 -> 0 | GO6: =InputS!GR10 -> 0 | GP6: =InputS!GS10 -> 0 | GQ6: =InputS!GT10 -> 0 | GR6: =InputS!GU10 -> 0 | GS6: =InputS!GV10 -> 0 | GT6: =InputS!GW10 -> 0 | GU6: =InputS!GX10 -> 0 | GV6: =InputS!GY10 -> 0 | GW6: =InputS!GZ10 -> 0 | GX6: =InputS!HA10 -> 0 | GY6: =InputS!HB10 -> 0 | GZ6: =InputS!HC10 -> 0 | HA6: =InputS!HD10 -> 0 | HB6: =InputS!HE10 -> 0 | HC6: =InputS!HF10 -> 0 | HD6: =InputS!HG10 -> 0 | HE6: =InputS!HH10 -> 0 | HF6: =InputS!HI10 -> 0 | HG6: =InputS!HJ10 -> 0 | HH6: =InputS!HK10 -> 0 | HI6: =InputS!HL10 -> 0 | HJ6: =InputS!HM10 -> 0 | HK6: =InputS!HN10 -> 0 | HL6: =InputS!HO10 -> 0 | HM6: =InputS!HP10 -> 0 | HN6: =InputS!HQ10 -> 0 | HO6: =InputS!HR10 -> 0 | HP6: =InputS!HS10 -> 0 | HQ6: =InputS!HT10 -> 0 | HR6: =InputS!HU10 -> 0 | HS6: =InputS!HV10 -> 0
D7: S_Curve_Development | H7: =InputS!K11 -> 1 | I7: =InputS!L11 -> 0 | J7: =InputS!M11 -> 0 | K7: =InputS!N11 -> 0 | L7: =InputS!O11 -> 0 | M7: =InputS!P11 -> 0 | N7: =InputS!Q11 -> 0 | O7: =InputS!R11 -> 0 | P7: =InputS!S11 -> 0 | Q7: =InputS!T11 -> 0 | R7: =InputS!U11 -> 0 | S7: =InputS!V11 -> 0 | T7: =InputS!W11 -> 0 | U7: =InputS!X11 -> 0 | V7: =InputS!Y11 -> 0 | W7: =InputS!Z11 -> 0 | X7: =InputS!AA11 -> 0 | Y7: =InputS!AB11 -> 0 | Z7: =InputS!AC11 -> 0 | AA7: =InputS!AD11 -> 0 | AB7: =InputS!AE11 -> 0 | AC7: =InputS!AF11 -> 0 | AD7: =InputS!AG11 -> 0 | AE7: =InputS!AH11 -> 0 | AF7: =InputS!AI11 -> 0 | AG7: =InputS!AJ11 -> 0 | AH7: =InputS!AK11 -> 0 | AI7: =InputS!AL11 -> 0 | AJ7: =InputS!AM11 -> 0 | AK7: =InputS!AN11 -> 0 | AL7: =InputS!AO11 -> 0 | AM7: =InputS!AP11 -> 0 | AN7: =InputS!AQ11 -> 0 | AO7: =InputS!AR11 -> 0 | AP7: =InputS!AS11 -> 0 | AQ7: =InputS!AT11 -> 0 | AR7: =InputS!AU11 -> 0 | AS7: =InputS!AV11 -> 0 | AT7: =InputS!AW11 -> 0 | AU7: =InputS!AX11 -> 0 | AV7: =InputS!AY11 -> 0 | AW7: =InputS!AZ11 -> 0 | AX7: =InputS!BA11 -> 0 | AY7: =InputS!BB11 -> 0 | AZ7: =InputS!BC11 -> 0 | BA7: =InputS!BD11 -> 0 | BB7: =InputS!BE11 -> 0 | BC7: =InputS!BF11 -> 0 | BD7: =InputS!BG11 -> 0 | BE7: =InputS!BH11 -> 0 | BF7: =InputS!BI11 -> 0 | BG7: =InputS!BJ11 -> 0 | BH7: =InputS!BK11 -> 0 | BI7: =InputS!BL11 -> 0 | BJ7: =InputS!BM11 -> 0 | BK7: =InputS!BN11 -> 0 | BL7: =InputS!BO11 -> 0 | BM7: =InputS!BP11 -> 0 | BN7: =InputS!BQ11 -> 0 | BO7: =InputS!BR11 -> 0 | BP7: =InputS!BS11 -> 0 | BQ7: =InputS!BT11 -> 0 | BR7: =InputS!BU11 -> 0 | BS7: =InputS!BV11 -> 0 | BT7: =InputS!BW11 -> 0 | BU7: =InputS!BX11 -> 0 | BV7: =InputS!BY11 -> 0 | BW7: =InputS!BZ11 -> 0 | BX7: =InputS!CA11 -> 0 | BY7: =InputS!CB11 -> 0 | BZ7: =InputS!CC11 -> 0 | CA7: =InputS!CD11 -> 0 | CB7: =InputS!CE11 -> 0 | CC7: =InputS!CF11 -> 0 | CD7: =InputS!CG11 -> 0 | CE7: =InputS!CH11 -> 0 | CF7: =InputS!CI11 -> 0 | CG7: =InputS!CJ11 -> 0 | CH7: =InputS!CK11 -> 0 | CI7: =InputS!CL11 -> 0 | CJ7: =InputS!CM11 -> 0 | CK7: =InputS!CN11 -> 0 | CL7: =InputS!CO11 -> 0 | CM7: =InputS!CP11 -> 0 | CN7: =InputS!CQ11 -> 0 | CO7: =InputS!CR11 -> 0 | CP7: =InputS!CS11 -> 0 | CQ7: =InputS!CT11 -> 0 | CR7: =InputS!CU11 -> 0 | CS7: =InputS!CV11 -> 0 | CT7: =InputS!CW11 -> 0 | CU7: =InputS!CX11 -> 0 | CV7: =InputS!CY11 -> 0 | CW7: =InputS!CZ11 -> 0 | CX7: =InputS!DA11 -> 0 | CY7: =InputS!DB11 -> 0 | CZ7: =InputS!DC11 -> 0 | DA7: =InputS!DD11 -> 0 | DB7: =InputS!DE11 -> 0 | DC7: =InputS!DF11 -> 0 | DD7: =InputS!DG11 -> 0 | DE7: =InputS!DH11 -> 0 | DF7: =InputS!DI11 -> 0 | DG7: =InputS!DJ11 -> 0 | DH7: =InputS!DK11 -> 0 | DI7: =InputS!DL11 -> 0 | DJ7: =InputS!DM11 -> 0 | DK7: =InputS!DN11 -> 0 | DL7: =InputS!DO11 -> 0 | DM7: =InputS!DP11 -> 0 | DN7: =InputS!DQ11 -> 0 | DO7: =InputS!DR11 -> 0 | DP7: =InputS!DS11 -> 0 | DQ7: =InputS!DT11 -> 0 | DR7: =InputS!DU11 -> 0 | DS7: =InputS!DV11 -> 0 | DT7: =InputS!DW11 -> 0 | DU7: =InputS!DX11 -> 0 | DV7: =InputS!DY11 -> 0 | DW7: =InputS!DZ11 -> 0 | DX7: =InputS!EA11 -> 0 | DY7: =InputS!EB11 -> 0 | DZ7: =InputS!EC11 -> 0 | EA7: =InputS!ED11 -> 0 | EB7: =InputS!EE11 -> 0 | EC7: =InputS!EF11 -> 0 | ED7: =InputS!EG11 -> 0 | EE7: =InputS!EH11 -> 0 | EF7: =InputS!EI11 -> 0 | EG7: =InputS!EJ11 -> 0 | EH7: =InputS!EK11 -> 0 | EI7: =InputS!EL11 -> 0 | EJ7: =InputS!EM11 -> 0 | EK7: =InputS!EN11 -> 0 | EL7: =InputS!EO11 -> 0 | EM7: =InputS!EP11 -> 0 | EN7: =InputS!EQ11 -> 0 | EO7: =InputS!ER11 -> 0 | EP7: =InputS!ES11 -> 0 | EQ7: =InputS!ET11 -> 0 | ER7: =InputS!EU11 -> 0 | ES7: =InputS!EV11 -> 0 | ET7: =InputS!EW11 -> 0 | EU7: =InputS!EX11 -> 0 | EV7: =InputS!EY11 -> 0 | EW7: =InputS!EZ11 -> 0 | EX7: =InputS!FA11 -> 0 | EY7: =InputS!FB11 -> 0 | EZ7: =InputS!FC11 -> 0 | FA7: =InputS!FD11 -> 0 | FB7: =InputS!FE11 -> 0 | FC7: =InputS!FF11 -> 0 | FD7: =InputS!FG11 -> 0 | FE7: =InputS!FH11 -> 0 | FF7: =InputS!FI11 -> 0 | FG7: =InputS!FJ11 -> 0 | FH7: =InputS!FK11 -> 0 | FI7: =InputS!FL11 -> 0 | FJ7: =InputS!FM11 -> 0 | FK7: =InputS!FN11 -> 0 | FL7: =InputS!FO11 -> 0 | FM7: =InputS!FP11 -> 0 | FN7: =InputS!FQ11 -> 0 | FO7: =InputS!FR11 -> 0 | FP7: =InputS!FS11 -> 0 | FQ7: =InputS!FT11 -> 0 | FR7: =InputS!FU11 -> 0 | FS7: =InputS!FV11 -> 0 | FT7: =InputS!FW11 -> 0 | FU7: =InputS!FX11 -> 0 | FV7: =InputS!FY11 -> 0 | FW7: =InputS!FZ11 -> 0 | FX7: =InputS!GA11 -> 0 | FY7: =InputS!GB11 -> 0 | FZ7: =InputS!GC11 -> 0 | GA7: =InputS!GD11 -> 0 | GB7: =InputS!GE11 -> 0 | GC7: =InputS!GF11 -> 0 | GD7: =InputS!GG11 -> 0 | GE7: =InputS!GH11 -> 0 | GF7: =InputS!GI11 -> 0 | GG7: =InputS!GJ11 -> 0 | GH7: =InputS!GK11 -> 0 | GI7: =InputS!GL11 -> 0 | GJ7: =InputS!GM11 -> 0 | GK7: =InputS!GN11 -> 0 | GL7: =InputS!GO11 -> 0 | GM7: =InputS!GP11 -> 0 | GN7: =InputS!GQ11 -> 0 | GO7: =InputS!GR11 -> 0 | GP7: =InputS!GS11 -> 0 | GQ7: =InputS!GT11 -> 0 | GR7: =InputS!GU11 -> 0 | GS7: =InputS!GV11 -> 0 | GT7: =InputS!GW11 -> 0 | GU7: =InputS!GX11 -> 0 | GV7: =InputS!GY11 -> 0 | GW7: =InputS!GZ11 -> 0 | GX7: =InputS!HA11 -> 0 | GY7: =InputS!HB11 -> 0 | GZ7: =InputS!HC11 -> 0 | HA7: =InputS!HD11 -> 0 | HB7: =InputS!HE11 -> 0 | HC7: =InputS!HF11 -> 0 | HD7: =InputS!HG11 -> 0 | HE7: =InputS!HH11 -> 0 | HF7: =InputS!HI11 -> 0 | HG7: =InputS!HJ11 -> 0 | HH7: =InputS!HK11 -> 0 | HI7: =InputS!HL11 -> 0 | HJ7: =InputS!HM11 -> 0 | HK7: =InputS!HN11 -> 0 | HL7: =InputS!HO11 -> 0 | HM7: =InputS!HP11 -> 0 | HN7: =InputS!HQ11 -> 0 | HO7: =InputS!HR11 -> 0 | HP7: =InputS!HS11 -> 0 | HQ7: =InputS!HT11 -> 0 | HR7: =InputS!HU11 -> 0 | HS7: =InputS!HV11 -> 0
D8: Project_Start_Date | H8: =InputC!F3 -> 2026-01-01 | I8: =H8 -> 2026-01-01 | J8: =I8 -> 2026-01-01 | K8: 2026-01-01 | L8: 2026-01-01 | M8: 2026-01-01 | N8: 2026-01-01 | O8: 2026-01-01 | P8: 2026-01-01 | Q8: 2026-01-01 | R8: 2026-01-01 | S8: 2026-01-01 | T8: 2026-01-01 | U8: 2026-01-01 | V8: 2026-01-01 | W8: 2026-01-01 | X8: 2026-01-01 | Y8: 2026-01-01 | Z8: 2026-01-01 | AA8: 2026-01-01 | AB8: 2026-01-01 | AC8: 2026-01-01 | AD8: 2026-01-01 | AE8: 2026-01-01 | AF8: 2026-01-01 | AG8: 2026-01-01 | AH8: 2026-01-01 | AI8: 2026-01-01 | AJ8: 2026-01-01 | AK8: 2026-01-01 | AL8: 2026-01-01 | AM8: 2026-01-01 | AN8: 2026-01-01 | AO8: 2026-01-01 | AP8: 2026-01-01 | AQ8: 2026-01-01 | AR8: 2026-01-01 | AS8: 2026-01-01 | AT8: 2026-01-01 | AU8: 2026-01-01 | AV8: 2026-01-01 | AW8: 2026-01-01 | AX8: 2026-01-01 | AY8: 2026-01-01 | AZ8: 2026-01-01 | BA8: 2026-01-01 | BB8: 2026-01-01 | BC8: 2026-01-01 | BD8: 2026-01-01 | BE8: 2026-01-01 | BF8: 2026-01-01 | BG8: 2026-01-01 | BH8: 2026-01-01 | BI8: 2026-01-01 | BJ8: 2026-01-01 | BK8: 2026-01-01 | BL8: 2026-01-01 | BM8: 2026-01-01 | BN8: 2026-01-01 | BO8: 2026-01-01 | BP8: 2026-01-01 | BQ8: 2026-01-01 | BR8: 2026-01-01 | BS8: 2026-01-01 | BT8: 2026-01-01 | BU8: 2026-01-01 | BV8: =BU8 -> 2026-01-01 | BW8: 2026-01-01 | BX8: 2026-01-01 | BY8: 2026-01-01 | BZ8: 2026-01-01 | CA8: 2026-01-01 | CB8: 2026-01-01 | CC8: 2026-01-01 | CD8: 2026-01-01 | CE8: 2026-01-01 | CF8: 2026-01-01 | CG8: 2026-01-01 | CH8: 2026-01-01 | CI8: 2026-01-01 | CJ8: 2026-01-01 | CK8: 2026-01-01 | CL8: 2026-01-01 | CM8: 2026-01-01 | CN8: 2026-01-01 | CO8: 2026-01-01 | CP8: 2026-01-01 | CQ8: 2026-01-01 | CR8: 2026-01-01 | CS8: 2026-01-01 | CT8: 2026-01-01 | CU8: 2026-01-01 | CV8: 2026-01-01 | CW8: 2026-01-01 | CX8: 2026-01-01 | CY8: 2026-01-01 | CZ8: 2026-01-01 | DA8: 2026-01-01 | DB8: 2026-01-01 | DC8: 2026-01-01 | DD8: 2026-01-01 | DE8: 2026-01-01 | DF8: 2026-01-01 | DG8: 2026-01-01 | DH8: 2026-01-01 | DI8: 2026-01-01 | DJ8: 2026-01-01 | DK8: 2026-01-01 | DL8: 2026-01-01 | DM8: 2026-01-01 | DN8: 2026-01-01 | DO8: 2026-01-01 | DP8: 2026-01-01 | DQ8: 2026-01-01 | DR8: 2026-01-01 | DS8: 2026-01-01 | DT8: 2026-01-01 | DU8: 2026-01-01 | DV8: 2026-01-01 | DW8: 2026-01-01 | DX8: 2026-01-01 | DY8: 2026-01-01 | DZ8: 2026-01-01 | EA8: 2026-01-01 | EB8: 2026-01-01 | EC8: 2026-01-01 | ED8: 2026-01-01 | EE8: 2026-01-01 | EF8: 2026-01-01 | EG8: 2026-01-01 | EH8: =EG8 -> 2026-01-01 | EI8: 2026-01-01 | EJ8: 2026-01-01 | EK8: 2026-01-01 | EL8: 2026-01-01 | EM8: 2026-01-01 | EN8: 2026-01-01 | EO8: 2026-01-01 | EP8: 2026-01-01 | EQ8: 2026-01-01 | ER8: 2026-01-01 | ES8: 2026-01-01 | ET8: 2026-01-01 | EU8: 2026-01-01 | EV8: 2026-01-01 | EW8: 2026-01-01 | EX8: 2026-01-01 | EY8: 2026-01-01 | EZ8: 2026-01-01 | FA8: 2026-01-01 | FB8: 2026-01-01 | FC8: 2026-01-01 | FD8: 2026-01-01 | FE8: 2026-01-01 | FF8: 2026-01-01 | FG8: 2026-01-01 | FH8: 2026-01-01 | FI8: 2026-01-01 | FJ8: 2026-01-01 | FK8: 2026-01-01 | FL8: 2026-01-01 | FM8: 2026-01-01 | FN8: 2026-01-01 | FO8: 2026-01-01 | FP8: 2026-01-01 | FQ8: 2026-01-01 | FR8: 2026-01-01 | FS8: 2026-01-01 | FT8: 2026-01-01 | FU8: 2026-01-01 | FV8: 2026-01-01 | FW8: 2026-01-01 | FX8: 2026-01-01 | FY8: 2026-01-01 | FZ8: 2026-01-01 | GA8: 2026-01-01 | GB8: 2026-01-01 | GC8: 2026-01-01 | GD8: 2026-01-01 | GE8: 2026-01-01 | GF8: 2026-01-01 | GG8: 2026-01-01 | GH8: 2026-01-01 | GI8: 2026-01-01 | GJ8: 2026-01-01 | GK8: 2026-01-01 | GL8: 2026-01-01 | GM8: 2026-01-01 | GN8: 2026-01-01 | GO8: 2026-01-01 | GP8: 2026-01-01 | GQ8: 2026-01-01 | GR8: 2026-01-01 | GS8: 2026-01-01 | GT8: =GS8 -> 2026-01-01 | GU8: 2026-01-01 | GV8: 2026-01-01 | GW8: 2026-01-01 | GX8: 2026-01-01 | GY8: 2026-01-01 | GZ8: 2026-01-01 | HA8: 2026-01-01 | HB8: 2026-01-01 | HC8: 2026-01-01 | HD8: 2026-01-01 | HE8: 2026-01-01 | HF8: 2026-01-01 | HG8: 2026-01-01 | HH8: 2026-01-01 | HI8: 2026-01-01 | HJ8: 2026-01-01 | HK8: 2026-01-01 | HL8: 2026-01-01 | HM8: 2026-01-01 | HN8: 2026-01-01 | HO8: 2026-01-01 | HP8: 2026-01-01 | HQ8: 2026-01-01 | HR8: 2026-01-01 | HS8: 2026-01-01
D9: Construction_Period | H9: =InputC!F4 -> 100 | I9: =H9 -> 100 | J9: 100 | K9: 100 | L9: 100 | M9: 100 | N9: 100 | O9: 100 | P9: 100 | Q9: 100 | R9: 100 | S9: 100 | T9: 100 | U9: 100 | V9: 100 | W9: 100 | X9: 100 | Y9: 100 | Z9: 100 | AA9: 100 | AB9: 100 | AC9: 100 | AD9: 100 | AE9: 100 | AF9: 100 | AG9: 100 | AH9: 100 | AI9: 100 | AJ9: 100 | AK9: 100 | AL9: 100 | AM9: 100 | AN9: 100 | AO9: 100 | AP9: 100 | AQ9: 100 | AR9: 100 | AS9: 100 | AT9: 100 | AU9: 100 | AV9: 100 | AW9: 100 | AX9: 100 | AY9: 100 | AZ9: 100 | BA9: 100 | BB9: 100 | BC9: 100 | BD9: 100 | BE9: 100 | BF9: 100 | BG9: 100 | BH9: 100 | BI9: 100 | BJ9: 100 | BK9: 100 | BL9: 100 | BM9: 100 | BN9: 100 | BO9: 100 | BP9: 100 | BQ9: 100 | BR9: 100 | BS9: 100 | BT9: 100 | BU9: 100 | BV9: 100 | BW9: 100 | BX9: 100 | BY9: 100 | BZ9: 100 | CA9: 100 | CB9: 100 | CC9: 100 | CD9: 100 | CE9: 100 | CF9: 100 | CG9: 100 | CH9: 100 | CI9: 100 | CJ9: 100 | CK9: 100 | CL9: 100 | CM9: 100 | CN9: 100 | CO9: 100 | CP9: 100 | CQ9: 100 | CR9: 100 | CS9: 100 | CT9: 100 | CU9: 100 | CV9: 100 | CW9: 100 | CX9: 100 | CY9: 100 | CZ9: 100 | DA9: 100 | DB9: 100 | DC9: 100 | DD9: 100 | DE9: 100 | DF9: 100 | DG9: 100 | DH9: 100 | DI9: 100 | DJ9: 100 | DK9: 100 | DL9: 100 | DM9: 100 | DN9: 100 | DO9: 100 | DP9: 100 | DQ9: 100 | DR9: 100 | DS9: 100 | DT9: 100 | DU9: 100 | DV9: 100 | DW9: 100 | DX9: 100 | DY9: 100 | DZ9: 100 | EA9: 100 | EB9: 100 | EC9: 100 | ED9: 100 | EE9: 100 | EF9: 100 | EG9: 100 | EH9: 100 | EI9: 100 | EJ9: 100 | EK9: 100 | EL9: 100 | EM9: 100 | EN9: 100 | EO9: 100 | EP9: 100 | EQ9: 100 | ER9: 100 | ES9: 100 | ET9: 100 | EU9: 100 | EV9: 100 | EW9: 100 | EX9: 100 | EY9: 100 | EZ9: 100 | FA9: 100 | FB9: 100 | FC9: 100 | FD9: 100 | FE9: 100 | FF9: 100 | FG9: 100 | FH9: 100 | FI9: 100 | FJ9: 100 | FK9: 100 | FL9: 100 | FM9: 100 | FN9: 100 | FO9: 100 | FP9: 100 | FQ9: 100 | FR9: 100 | FS9: 100 | FT9: 100 | FU9: 100 | FV9: 100 | FW9: 100 | FX9: 100 | FY9: 100 | FZ9: 100 | GA9: 100 | GB9: 100 | GC9: 100 | GD9: 100 | GE9: 100 | GF9: 100 | GG9: 100 | GH9: 100 | GI9: 100 | GJ9: 100 | GK9: 100 | GL9: 100 | GM9: 100 | GN9: 100 | GO9: 100 | GP9: 100 | GQ9: 100 | GR9: 100 | GS9: 100 | GT9: 100 | GU9: 100 | GV9: 100 | GW9: 100 | GX9: 100 | GY9: 100 | GZ9: 100 | HA9: 100 | HB9: 100 | HC9: 100 | HD9: 100 | HE9: 100 | HF9: 100 | HG9: 100 | HH9: 100 | HI9: 100 | HJ9: 100 | HK9: 100 | HL9: 100 | HM9: 100 | HN9: 100 | HO9: 100 | HP9: 100 | HQ9: 100 | HR9: 100 | HS9: 100
D10: End_of_Construciton | H10: =InputC!F5 -> 2034-05-31 | I10: 2034-05-31 | J10: 2034-05-31 | K10: 2034-05-31 | L10: 2034-05-31 | M10: 2034-05-31 | N10: 2034-05-31 | O10: 2034-05-31 | P10: 2034-05-31 | Q10: 2034-05-31 | R10: 2034-05-31 | S10: 2034-05-31 | T10: 2034-05-31 | U10: 2034-05-31 | V10: 2034-05-31 | W10: 2034-05-31 | X10: 2034-05-31 | Y10: 2034-05-31 | Z10: 2034-05-31 | AA10: 2034-05-31 | AB10: 2034-05-31 | AC10: 2034-05-31 | AD10: 2034-05-31 | AE10: 2034-05-31 | AF10: 2034-05-31 | AG10: 2034-05-31 | AH10: 2034-05-31 | AI10: 2034-05-31 | AJ10: 2034-05-31 | AK10: 2034-05-31 | AL10: 2034-05-31 | AM10: 2034-05-31 | AN10: 2034-05-31 | AO10: 2034-05-31 | AP10: 2034-05-31 | AQ10: 2034-05-31 | AR10: 2034-05-31 | AS10: 2034-05-31 | AT10: 2034-05-31 | AU10: 2034-05-31 | AV10: 2034-05-31 | AW10: 2034-05-31 | AX10: 2034-05-31 | AY10: 2034-05-31 | AZ10: 2034-05-31 | BA10: 2034-05-31 | BB10: 2034-05-31 | BC10: 2034-05-31 | BD10: 2034-05-31 | BE10: 2034-05-31 | BF10: 2034-05-31 | BG10: 2034-05-31 | BH10: 2034-05-31 | BI10: 2034-05-31 | BJ10: 2034-05-31 | BK10: 2034-05-31 | BL10: 2034-05-31 | BM10: 2034-05-31 | BN10: 2034-05-31 | BO10: 2034-05-31 | BP10: 2034-05-31 | BQ10: 2034-05-31 | BR10: 2034-05-31 | BS10: 2034-05-31 | BT10: 2034-05-31 | BU10: 2034-05-31 | BV10: 2034-05-31 | BW10: 2034-05-31 | BX10: 2034-05-31 | BY10: 2034-05-31 | BZ10: 2034-05-31 | CA10: 2034-05-31 | CB10: 2034-05-31 | CC10: 2034-05-31 | CD10: 2034-05-31 | CE10: 2034-05-31 | CF10: 2034-05-31 | CG10: 2034-05-31 | CH10: 2034-05-31 | CI10: 2034-05-31 | CJ10: 2034-05-31 | CK10: 2034-05-31 | CL10: 2034-05-31 | CM10: 2034-05-31 | CN10: 2034-05-31 | CO10: 2034-05-31 | CP10: 2034-05-31 | CQ10: 2034-05-31 | CR10: 2034-05-31 | CS10: 2034-05-31 | CT10: 2034-05-31 | CU10: 2034-05-31 | CV10: 2034-05-31 | CW10: 2034-05-31 | CX10: 2034-05-31 | CY10: 2034-05-31 | CZ10: 2034-05-31 | DA10: 2034-05-31 | DB10: 2034-05-31 | DC10: 2034-05-31 | DD10: 2034-05-31 | DE10: 2034-05-31 | DF10: 2034-05-31 | DG10: 2034-05-31 | DH10: 2034-05-31 | DI10: 2034-05-31 | DJ10: 2034-05-31 | DK10: 2034-05-31 | DL10: 2034-05-31 | DM10: 2034-05-31 | DN10: 2034-05-31 | DO10: 2034-05-31 | DP10: 2034-05-31 | DQ10: 2034-05-31 | DR10: 2034-05-31 | DS10: 2034-05-31 | DT10: 2034-05-31 | DU10: 2034-05-31 | DV10: 2034-05-31 | DW10: 2034-05-31 | DX10: 2034-05-31 | DY10: 2034-05-31 | DZ10: 2034-05-31 | EA10: 2034-05-31 | EB10: 2034-05-31 | EC10: 2034-05-31 | ED10: 2034-05-31 | EE10: 2034-05-31 | EF10: 2034-05-31 | EG10: 2034-05-31 | EH10: 2034-05-31 | EI10: 2034-05-31 | EJ10: 2034-05-31 | EK10: 2034-05-31 | EL10: 2034-05-31 | EM10: 2034-05-31 | EN10: 2034-05-31 | EO10: 2034-05-31 | EP10: 2034-05-31 | EQ10: 2034-05-31 | ER10: 2034-05-31 | ES10: 2034-05-31 | ET10: 2034-05-31 | EU10: 2034-05-31 | EV10: 2034-05-31 | EW10: 2034-05-31 | EX10: 2034-05-31 | EY10: 2034-05-31 | EZ10: 2034-05-31 | FA10: 2034-05-31 | FB10: 2034-05-31 | FC10: 2034-05-31 | FD10: 2034-05-31 | FE10: 2034-05-31 | FF10: 2034-05-31 | FG10: 2034-05-31 | FH10: 2034-05-31 | FI10: 2034-05-31 | FJ10: 2034-05-31 | FK10: 2034-05-31 | FL10: 2034-05-31 | FM10: 2034-05-31 | FN10: 2034-05-31 | FO10: 2034-05-31 | FP10: 2034-05-31 | FQ10: 2034-05-31 | FR10: 2034-05-31 | FS10: 2034-05-31 | FT10: 2034-05-31 | FU10: 2034-05-31 | FV10: 2034-05-31 | FW10: 2034-05-31 | FX10: 2034-05-31 | FY10: 2034-05-31 | FZ10: 2034-05-31 | GA10: 2034-05-31 | GB10: 2034-05-31 | GC10: 2034-05-31 | GD10: 2034-05-31 | GE10: 2034-05-31 | GF10: 2034-05-31 | GG10: 2034-05-31 | GH10: 2034-05-31 | GI10: 2034-05-31 | GJ10: 2034-05-31 | GK10: 2034-05-31 | GL10: 2034-05-31 | GM10: 2034-05-31 | GN10: 2034-05-31 | GO10: 2034-05-31 | GP10: 2034-05-31 | GQ10: 2034-05-31 | GR10: 2034-05-31 | GS10: 2034-05-31 | GT10: 2034-05-31 | GU10: 2034-05-31 | GV10: 2034-05-31 | GW10: 2034-05-31 | GX10: 2034-05-31 | GY10: 2034-05-31 | GZ10: 2034-05-31 | HA10: 2034-05-31 | HB10: 2034-05-31 | HC10: 2034-05-31 | HD10: 2034-05-31 | HE10: 2034-05-31 | HF10: 2034-05-31 | HG10: 2034-05-31 | HH10: 2034-05-31 | HI10: 2034-05-31 | HJ10: 2034-05-31 | HK10: 2034-05-31 | HL10: 2034-05-31 | HM10: 2034-05-31 | HN10: 2034-05-31 | HO10: 2034-05-31 | HP10: 2034-05-31 | HQ10: 2034-05-31 | HR10: 2034-05-31 | HS10: 2034-05-31
D11: Begininig_of_Operation | H11: =InputC!F6 -> 2034-06-01 | I11: 2034-06-01 | J11: 2034-06-01 | K11: 2034-06-01 | L11: 2034-06-01 | M11: 2034-06-01 | N11: 2034-06-01 | O11: 2034-06-01 | P11: 2034-06-01 | Q11: 2034-06-01 | R11: 2034-06-01 | S11: 2034-06-01 | T11: 2034-06-01 | U11: 2034-06-01 | V11: 2034-06-01 | W11: 2034-06-01 | X11: 2034-06-01 | Y11: 2034-06-01 | Z11: 2034-06-01 | AA11: 2034-06-01 | AB11: 2034-06-01 | AC11: 2034-06-01 | AD11: 2034-06-01 | AE11: 2034-06-01 | AF11: 2034-06-01 | AG11: 2034-06-01 | AH11: 2034-06-01 | AI11: 2034-06-01 | AJ11: 2034-06-01 | AK11: 2034-06-01 | AL11: 2034-06-01 | AM11: 2034-06-01 | AN11: 2034-06-01 | AO11: 2034-06-01 | AP11: 2034-06-01 | AQ11: 2034-06-01 | AR11: 2034-06-01 | AS11: 2034-06-01 | AT11: 2034-06-01 | AU11: 2034-06-01 | AV11: 2034-06-01 | AW11: 2034-06-01 | AX11: 2034-06-01 | AY11: 2034-06-01 | AZ11: 2034-06-01 | BA11: 2034-06-01 | BB11: 2034-06-01 | BC11: 2034-06-01 | BD11: 2034-06-01 | BE11: 2034-06-01 | BF11: 2034-06-01 | BG11: 2034-06-01 | BH11: 2034-06-01 | BI11: 2034-06-01 | BJ11: 2034-06-01 | BK11: 2034-06-01 | BL11: 2034-06-01 | BM11: 2034-06-01 | BN11: 2034-06-01 | BO11: 2034-06-01 | BP11: 2034-06-01 | BQ11: 2034-06-01 | BR11: 2034-06-01 | BS11: 2034-06-01 | BT11: 2034-06-01 | BU11: 2034-06-01 | BV11: 2034-06-01 | BW11: 2034-06-01 | BX11: 2034-06-01 | BY11: 2034-06-01 | BZ11: 2034-06-01 | CA11: 2034-06-01 | CB11: 2034-06-01 | CC11: 2034-06-01 | CD11: 2034-06-01 | CE11: 2034-06-01 | CF11: 2034-06-01 | CG11: 2034-06-01 | CH11: 2034-06-01 | CI11: 2034-06-01 | CJ11: 2034-06-01 | CK11: 2034-06-01 | CL11: 2034-06-01 | CM11: 2034-06-01 | CN11: 2034-06-01 | CO11: 2034-06-01 | CP11: 2034-06-01 | CQ11: 2034-06-01 | CR11: 2034-06-01 | CS11: 2034-06-01 | CT11: 2034-06-01 | CU11: 2034-06-01 | CV11: 2034-06-01 | CW11: 2034-06-01 | CX11: 2034-06-01 | CY11: 2034-06-01 | CZ11: 2034-06-01 | DA11: 2034-06-01 | DB11: 2034-06-01 | DC11: 2034-06-01 | DD11: 2034-06-01 | DE11: 2034-06-01 | DF11: 2034-06-01 | DG11: 2034-06-01 | DH11: 2034-06-01 | DI11: 2034-06-01 | DJ11: 2034-06-01 | DK11: 2034-06-01 | DL11: 2034-06-01 | DM11: 2034-06-01 | DN11: 2034-06-01 | DO11: 2034-06-01 | DP11: 2034-06-01 | DQ11: 2034-06-01 | DR11: 2034-06-01 | DS11: 2034-06-01 | DT11: 2034-06-01 | DU11: 2034-06-01 | DV11: 2034-06-01 | DW11: 2034-06-01 | DX11: 2034-06-01 | DY11: 2034-06-01 | DZ11: 2034-06-01 | EA11: 2034-06-01 | EB11: 2034-06-01 | EC11: 2034-06-01 | ED11: 2034-06-01 | EE11: 2034-06-01 | EF11: 2034-06-01 | EG11: =EF11 -> 2034-06-01 | EH11: 2034-06-01 | EI11: 2034-06-01 | EJ11: 2034-06-01 | EK11: 2034-06-01 | EL11: 2034-06-01 | EM11: 2034-06-01 | EN11: 2034-06-01 | EO11: 2034-06-01 | EP11: 2034-06-01 | EQ11: 2034-06-01 | ER11: 2034-06-01 | ES11: 2034-06-01 | ET11: 2034-06-01 | EU11: 2034-06-01 | EV11: 2034-06-01 | EW11: 2034-06-01 | EX11: 2034-06-01 | EY11: 2034-06-01 | EZ11: 2034-06-01 | FA11: 2034-06-01 | FB11: 2034-06-01 | FC11: 2034-06-01 | FD11: 2034-06-01 | FE11: 2034-06-01 | FF11: 2034-06-01 | FG11: 2034-06-01 | FH11: 2034-06-01 | FI11: 2034-06-01 | FJ11: 2034-06-01 | FK11: 2034-06-01 | FL11: 2034-06-01 | FM11: 2034-06-01 | FN11: 2034-06-01 | FO11: 2034-06-01 | FP11: 2034-06-01 | FQ11: 2034-06-01 | FR11: 2034-06-01 | FS11: 2034-06-01 | FT11: 2034-06-01 | FU11: 2034-06-01 | FV11: 2034-06-01 | FW11: 2034-06-01 | FX11: 2034-06-01 | FY11: 2034-06-01 | FZ11: 2034-06-01 | GA11: 2034-06-01 | GB11: 2034-06-01 | GC11: 2034-06-01 | GD11: 2034-06-01 | GE11: 2034-06-01 | GF11: 2034-06-01 | GG11: 2034-06-01 | GH11: 2034-06-01 | GI11: 2034-06-01 | GJ11: 2034-06-01 | GK11: 2034-06-01 | GL11: 2034-06-01 | GM11: 2034-06-01 | GN11: 2034-06-01 | GO11: 2034-06-01 | GP11: 2034-06-01 | GQ11: 2034-06-01 | GR11: 2034-06-01 | GS11: 2034-06-01 | GT11: 2034-06-01 | GU11: 2034-06-01 | GV11: 2034-06-01 | GW11: 2034-06-01 | GX11: 2034-06-01 | GY11: 2034-06-01 | GZ11: 2034-06-01 | HA11: 2034-06-01 | HB11: 2034-06-01 | HC11: 2034-06-01 | HD11: 2034-06-01 | HE11: 2034-06-01 | HF11: 2034-06-01 | HG11: 2034-06-01 | HH11: 2034-06-01 | HI11: 2034-06-01 | HJ11: 2034-06-01 | HK11: 2034-06-01 | HL11: 2034-06-01 | HM11: 2034-06-01 | HN11: 2034-06-01 | HO11: 2034-06-01 | HP11: 2034-06-01 | HQ11: 2034-06-01 | HR11: 2034-06-01 | HS11: 2034-06-01
D12: Operation_Years | H12: =InputC!F7 -> 60 | I12: 60 | J12: 60 | K12: 60 | L12: 60 | M12: 60 | N12: 60 | O12: 60 | P12: 60 | Q12: 60 | R12: 60 | S12: 60 | T12: 60 | U12: 60 | V12: 60 | W12: 60 | X12: 60 | Y12: 60 | Z12: 60 | AA12: 60 | AB12: 60 | AC12: 60 | AD12: 60 | AE12: 60 | AF12: 60 | AG12: 60 | AH12: 60 | AI12: 60 | AJ12: 60 | AK12: 60 | AL12: 60 | AM12: 60 | AN12: 60 | AO12: 60 | AP12: 60 | AQ12: 60 | AR12: 60 | AS12: 60 | AT12: 60 | AU12: 60 | AV12: 60 | AW12: 60 | AX12: 60 | AY12: 60 | AZ12: 60 | BA12: 60 | BB12: 60 | BC12: 60 | BD12: 60 | BE12: 60 | BF12: 60 | BG12: 60 | BH12: 60 | BI12: 60 | BJ12: 60 | BK12: 60 | BL12: 60 | BM12: 60 | BN12: 60 | BO12: 60 | BP12: 60 | BQ12: =BP12 -> 60 | BR12: 60 | BS12: 60 | BT12: 60 | BU12: 60 | BV12: 60 | BW12: 60 | BX12: 60 | BY12: 60 | BZ12: 60 | CA12: 60 | CB12: 60 | CC12: 60 | CD12: 60 | CE12: 60 | CF12: 60 | CG12: 60 | CH12: 60 | CI12: 60 | CJ12: 60 | CK12: 60 | CL12: 60 | CM12: 60 | CN12: 60 | CO12: 60 | CP12: 60 | CQ12: 60 | CR12: 60 | CS12: 60 | CT12: 60 | CU12: 60 | CV12: 60 | CW12: 60 | CX12: 60 | CY12: 60 | CZ12: 60 | DA12: 60 | DB12: 60 | DC12: 60 | DD12: 60 | DE12: 60 | DF12: 60 | DG12: 60 | DH12: 60 | DI12: 60 | DJ12: 60 | DK12: 60 | DL12: 60 | DM12: 60 | DN12: 60 | DO12: 60 | DP12: 60 | DQ12: 60 | DR12: 60 | DS12: 60 | DT12: 60 | DU12: 60 | DV12: 60 | DW12: 60 | DX12: 60 | DY12: 60 | DZ12: 60 | EA12: 60 | EB12: 60 | EC12: =EB12 -> 60 | ED12: 60 | EE12: 60 | EF12: 60 | EG12: 60 | EH12: 60 | EI12: 60 | EJ12: 60 | EK12: 60 | EL12: 60 | EM12: 60 | EN12: 60 | EO12: 60 | EP12: 60 | EQ12: 60 | ER12: 60 | ES12: 60 | ET12: 60 | EU12: 60 | EV12: 60 | EW12: 60 | EX12: 60 | EY12: 60 | EZ12: 60 | FA12: 60 | FB12: 60 | FC12: 60 | FD12: 60 | FE12: 60 | FF12: 60 | FG12: 60 | FH12: 60 | FI12: 60 | FJ12: 60 | FK12: 60 | FL12: 60 | FM12: 60 | FN12: 60 | FO12: 60 | FP12: 60 | FQ12: 60 | FR12: 60 | FS12: 60 | FT12: 60 | FU12: 60 | FV12: 60 | FW12: 60 | FX12: 60 | FY12: 60 | FZ12: 60 | GA12: 60 | GB12: 60 | GC12: 60 | GD12: 60 | GE12: 60 | GF12: 60 | GG12: 60 | GH12: 60 | GI12: 60 | GJ12: 60 | GK12: 60 | GL12: 60 | GM12: 60 | GN12: 60 | GO12: 60 | GP12: 60 | GQ12: 60 | GR12: 60 | GS12: 60 | GT12: 60 | GU12: 60 | GV12: 60 | GW12: 60 | GX12: 60 | GY12: 60 | GZ12: 60 | HA12: 60 | HB12: 60 | HC12: 60 | HD12: 60 | HE12: 60 | HF12: 60 | HG12: 60 | HH12: 60 | HI12: 60 | HJ12: 60 | HK12: 60 | HL12: 60 | HM12: 60 | HN12: 60 | HO12: 60 | HP12: 60 | HQ12: 60 | HR12: 60 | HS12: 60
D13: End_of_Life | H13: =InputC!F8 -> 2094-05-31 | I13: 2094-05-31 | J13: 2094-05-31 | K13: 2094-05-31 | L13: 2094-05-31 | M13: 2094-05-31 | N13: 2094-05-31 | O13: 2094-05-31 | P13: 2094-05-31 | Q13: 2094-05-31 | R13: 2094-05-31 | S13: 2094-05-31 | T13: 2094-05-31 | U13: 2094-05-31 | V13: 2094-05-31 | W13: 2094-05-31 | X13: 2094-05-31 | Y13: =X13 -> 2094-05-31 | Z13: 2094-05-31 | AA13: 2094-05-31 | AB13: 2094-05-31 | AC13: 2094-05-31 | AD13: 2094-05-31 | AE13: 2094-05-31 | AF13: 2094-05-31 | AG13: 2094-05-31 | AH13: 2094-05-31 | AI13: 2094-05-31 | AJ13: 2094-05-31 | AK13: 2094-05-31 | AL13: 2094-05-31 | AM13: 2094-05-31 | AN13: 2094-05-31 | AO13: 2094-05-31 | AP13: 2094-05-31 | AQ13: 2094-05-31 | AR13: 2094-05-31 | AS13: 2094-05-31 | AT13: 2094-05-31 | AU13: 2094-05-31 | AV13: 2094-05-31 | AW13: 2094-05-31 | AX13: 2094-05-31 | AY13: 2094-05-31 | AZ13: 2094-05-31 | BA13: 2094-05-31 | BB13: 2094-05-31 | BC13: 2094-05-31 | BD13: 2094-05-31 | BE13: 2094-05-31 | BF13: 2094-05-31 | BG13: 2094-05-31 | BH13: 2094-05-31 | BI13: 2094-05-31 | BJ13: 2094-05-31 | BK13: 2094-05-31 | BL13: 2094-05-31 | BM13: 2094-05-31 | BN13: 2094-05-31 | BO13: 2094-05-31 | BP13: 2094-05-31 | BQ13: 2094-05-31 | BR13: 2094-05-31 | BS13: 2094-05-31 | BT13: 2094-05-31 | BU13: 2094-05-31 | BV13: 2094-05-31 | BW13: 2094-05-31 | BX13: 2094-05-31 | BY13: 2094-05-31 | BZ13: 2094-05-31 | CA13: 2094-05-31 | CB13: 2094-05-31 | CC13: 2094-05-31 | CD13: 2094-05-31 | CE13: 2094-05-31 | CF13: 2094-05-31 | CG13: 2094-05-31 | CH13: 2094-05-31 | CI13: 2094-05-31 | CJ13: 2094-05-31 | CK13: 2094-05-31 | CL13: 2094-05-31 | CM13: 2094-05-31 | CN13: 2094-05-31 | CO13: 2094-05-31 | CP13: 2094-05-31 | CQ13: 2094-05-31 | CR13: 2094-05-31 | CS13: 2094-05-31 | CT13: 2094-05-31 | CU13: 2094-05-31 | CV13: 2094-05-31 | CW13: 2094-05-31 | CX13: 2094-05-31 | CY13: 2094-05-31 | CZ13: 2094-05-31 | DA13: 2094-05-31 | DB13: 2094-05-31 | DC13: 2094-05-31 | DD13: 2094-05-31 | DE13: 2094-05-31 | DF13: 2094-05-31 | DG13: 2094-05-31 | DH13: 2094-05-31 | DI13: 2094-05-31 | DJ13: 2094-05-31 | DK13: 2094-05-31 | DL13: 2094-05-31 | DM13: 2094-05-31 | DN13: 2094-05-31 | DO13: 2094-05-31 | DP13: 2094-05-31 | DQ13: 2094-05-31 | DR13: 2094-05-31 | DS13: 2094-05-31 | DT13: 2094-05-31 | DU13: 2094-05-31 | DV13: 2094-05-31 | DW13: 2094-05-31 | DX13: 2094-05-31 | DY13: 2094-05-31 | DZ13: 2094-05-31 | EA13: 2094-05-31 | EB13: 2094-05-31 | EC13: 2094-05-31 | ED13: 2094-05-31 | EE13: 2094-05-31 | EF13: 2094-05-31 | EG13: 2094-05-31 | EH13: 2094-05-31 | EI13: 2094-05-31 | EJ13: 2094-05-31 | EK13: 2094-05-31 | EL13: 2094-05-31 | EM13: 2094-05-31 | EN13: 2094-05-31 | EO13: 2094-05-31 | EP13: 2094-05-31 | EQ13: 2094-05-31 | ER13: 2094-05-31 | ES13: 2094-05-31 | ET13: 2094-05-31 | EU13: 2094-05-31 | EV13: 2094-05-31 | EW13: 2094-05-31 | EX13: 2094-05-31 | EY13: 2094-05-31 | EZ13: 2094-05-31 | FA13: 2094-05-31 | FB13: 2094-05-31 | FC13: 2094-05-31 | FD13: 2094-05-31 | FE13: 2094-05-31 | FF13: 2094-05-31 | FG13: 2094-05-31 | FH13: 2094-05-31 | FI13: 2094-05-31 | FJ13: 2094-05-31 | FK13: 2094-05-31 | FL13: 2094-05-31 | FM13: 2094-05-31 | FN13: 2094-05-31 | FO13: 2094-05-31 | FP13: 2094-05-31 | FQ13: 2094-05-31 | FR13: 2094-05-31 | FS13: 2094-05-31 | FT13: 2094-05-31 | FU13: 2094-05-31 | FV13: 2094-05-31 | FW13: 2094-05-31 | FX13: 2094-05-31 | FY13: 2094-05-31 | FZ13: 2094-05-31 | GA13: 2094-05-31 | GB13: 2094-05-31 | GC13: 2094-05-31 | GD13: 2094-05-31 | GE13: 2094-05-31 | GF13: 2094-05-31 | GG13: 2094-05-31 | GH13: 2094-05-31 | GI13: 2094-05-31 | GJ13: 2094-05-31 | GK13: 2094-05-31 | GL13: 2094-05-31 | GM13: 2094-05-31 | GN13: 2094-05-31 | GO13: 2094-05-31 | GP13: 2094-05-31 | GQ13: 2094-05-31 | GR13: 2094-05-31 | GS13: 2094-05-31 | GT13: 2094-05-31 | GU13: 2094-05-31 | GV13: 2094-05-31 | GW13: 2094-05-31 | GX13: 2094-05-31 | GY13: 2094-05-31 | GZ13: 2094-05-31 | HA13: 2094-05-31 | HB13: 2094-05-31 | HC13: 2094-05-31 | HD13: 2094-05-31 | HE13: 2094-05-31 | HF13: 2094-05-31 | HG13: 2094-05-31 | HH13: 2094-05-31 | HI13: 2094-05-31 | HJ13: 2094-05-31 | HK13: 2094-05-31 | HL13: 2094-05-31 | HM13: 2094-05-31 | HN13: 2094-05-31 | HO13: 2094-05-31 | HP13: 2094-05-31 | HQ13: 2094-05-31 | HR13: 2094-05-31 | HS13: 2094-05-31
D14: Months_in_Period_During_Construction | H14: =InputC!F9 -> 1 | I14: 1 | J14: 1 | K14: 1 | L14: 1 | M14: 1 | N14: 1 | O14: 1 | P14: 1 | Q14: 1 | R14: 1 | S14: 1 | T14: 1 | U14: 1 | V14: 1 | W14: 1 | X14: 1 | Y14: 1 | Z14: 1 | AA14: 1 | AB14: 1 | AC14: 1 | AD14: 1 | AE14: 1 | AF14: 1 | AG14: 1 | AH14: 1 | AI14: 1 | AJ14: 1 | AK14: 1 | AL14: 1 | AM14: 1 | AN14: 1 | AO14: 1 | AP14: 1 | AQ14: 1 | AR14: 1 | AS14: 1 | AT14: 1 | AU14: 1 | AV14: 1 | AW14: 1 | AX14: 1 | AY14: 1 | AZ14: 1 | BA14: 1 | BB14: 1 | BC14: 1 | BD14: 1 | BE14: 1 | BF14: 1 | BG14: 1 | BH14: 1 | BI14: 1 | BJ14: 1 | BK14: 1 | BL14: 1 | BM14: 1 | BN14: 1 | BO14: 1 | BP14: 1 | BQ14: 1 | BR14: 1 | BS14: 1 | BT14: 1 | BU14: 1 | BV14: 1 | BW14: 1 | BX14: 1 | BY14: 1 | BZ14: 1 | CA14: 1 | CB14: 1 | CC14: 1 | CD14: 1 | CE14: 1 | CF14: 1 | CG14: 1 | CH14: 1 | CI14: 1 | CJ14: 1 | CK14: 1 | CL14: 1 | CM14: 1 | CN14: 1 | CO14: 1 | CP14: 1 | CQ14: 1 | CR14: 1 | CS14: 1 | CT14: 1 | CU14: 1 | CV14: 1 | CW14: 1 | CX14: 1 | CY14: 1 | CZ14: 1 | DA14: 1 | DB14: 1 | DC14: 1 | DD14: 1 | DE14: 1 | DF14: 1 | DG14: 1 | DH14: 1 | DI14: 1 | DJ14: 1 | DK14: 1 | DL14: 1 | DM14: 1 | DN14: 1 | DO14: 1 | DP14: 1 | DQ14: 1 | DR14: 1 | DS14: 1 | DT14: 1 | DU14: 1 | DV14: 1 | DW14: 1 | DX14: 1 | DY14: 1 | DZ14: 1 | EA14: 1 | EB14: 1 | EC14: 1 | ED14: 1 | EE14: 1 | EF14: 1 | EG14: 1 | EH14: 1 | EI14: 1 | EJ14: 1 | EK14: 1 | EL14: 1 | EM14: 1 | EN14: 1 | EO14: 1 | EP14: 1 | EQ14: 1 | ER14: 1 | ES14: 1 | ET14: 1 | EU14: 1 | EV14: 1 | EW14: 1 | EX14: 1 | EY14: 1 | EZ14: 1 | FA14: 1 | FB14: 1 | FC14: 1 | FD14: 1 | FE14: 1 | FF14: 1 | FG14: 1 | FH14: 1 | FI14: 1 | FJ14: 1 | FK14: 1 | FL14: 1 | FM14: 1 | FN14: 1 | FO14: 1 | FP14: 1 | FQ14: 1 | FR14: 1 | FS14: 1 | FT14: 1 | FU14: 1 | FV14: 1 | FW14: 1 | FX14: 1 | FY14: 1 | FZ14: 1 | GA14: 1 | GB14: 1 | GC14: 1 | GD14: 1 | GE14: 1 | GF14: 1 | GG14: 1 | GH14: 1 | GI14: 1 | GJ14: 1 | GK14: 1 | GL14: 1 | GM14: 1 | GN14: 1 | GO14: 1 | GP14: 1 | GQ14: 1 | GR14: 1 | GS14: 1 | GT14: 1 | GU14: 1 | GV14: 1 | GW14: 1 | GX14: 1 | GY14: 1 | GZ14: 1 | HA14: 1 | HB14: 1 | HC14: 1 | HD14: 1 | HE14: 1 | HF14: 1 | HG14: 1 | HH14: 1 | HI14: 1 | HJ14: 1 | HK14: 1 | HL14: 1 | HM14: 1 | HN14: 1 | HO14: 1 | HP14: 1 | HQ14: 1 | HR14: 1 | HS14: 1
D15: Months_in_Period_During_Operation | H15: =InputC!F10 -> 6 | I15: 6 | J15: 6 | K15: 6 | L15: 6 | M15: 6 | N15: 6 | O15: 6 | P15: 6 | Q15: 6 | R15: 6 | S15: 6 | T15: 6 | U15: 6 | V15: 6 | W15: 6 | X15: 6 | Y15: 6 | Z15: 6 | AA15: 6 | AB15: 6 | AC15: 6 | AD15: 6 | AE15: 6 | AF15: 6 | AG15: 6 | AH15: 6 | AI15: 6 | AJ15: 6 | AK15: 6 | AL15: 6 | AM15: 6 | AN15: 6 | AO15: 6 | AP15: 6 | AQ15: 6 | AR15: 6 | AS15: 6 | AT15: 6 | AU15: 6 | AV15: 6 | AW15: 6 | AX15: 6 | AY15: 6 | AZ15: 6 | BA15: 6 | BB15: 6 | BC15: 6 | BD15: 6 | BE15: 6 | BF15: 6 | BG15: 6 | BH15: 6 | BI15: 6 | BJ15: 6 | BK15: 6 | BL15: 6 | BM15: 6 | BN15: 6 | BO15: 6 | BP15: 6 | BQ15: 6 | BR15: 6 | BS15: 6 | BT15: 6 | BU15: 6 | BV15: 6 | BW15: 6 | BX15: 6 | BY15: 6 | BZ15: 6 | CA15: 6 | CB15: 6 | CC15: 6 | CD15: 6 | CE15: 6 | CF15: 6 | CG15: 6 | CH15: 6 | CI15: 6 | CJ15: 6 | CK15: 6 | CL15: 6 | CM15: 6 | CN15: 6 | CO15: 6 | CP15: 6 | CQ15: 6 | CR15: 6 | CS15: 6 | CT15: 6 | CU15: 6 | CV15: 6 | CW15: 6 | CX15: 6 | CY15: 6 | CZ15: 6 | DA15: 6 | DB15: 6 | DC15: 6 | DD15: 6 | DE15: 6 | DF15: 6 | DG15: 6 | DH15: 6 | DI15: 6 | DJ15: 6 | DK15: 6 | DL15: 6 | DM15: 6 | DN15: 6 | DO15: 6 | DP15: 6 | DQ15: 6 | DR15: 6 | DS15: 6 | DT15: 6 | DU15: 6 | DV15: 6 | DW15: 6 | DX15: 6 | DY15: 6 | DZ15: 6 | EA15: 6 | EB15: 6 | EC15: 6 | ED15: 6 | EE15: 6 | EF15: 6 | EG15: 6 | EH15: 6 | EI15: 6 | EJ15: 6 | EK15: 6 | EL15: 6 | EM15: 6 | EN15: 6 | EO15: 6 | EP15: 6 | EQ15: 6 | ER15: 6 | ES15: 6 | ET15: 6 | EU15: 6 | EV15: 6 | EW15: 6 | EX15: 6 | EY15: 6 | EZ15: 6 | FA15: 6 | FB15: 6 | FC15: 6 | FD15: 6 | FE15: 6 | FF15: 6 | FG15: 6 | FH15: 6 | FI15: 6 | FJ15: 6 | FK15: 6 | FL15: 6 | FM15: 6 | FN15: 6 | FO15: 6 | FP15: 6 | FQ15: 6 | FR15: 6 | FS15: 6 | FT15: 6 | FU15: 6 | FV15: 6 | FW15: 6 | FX15: 6 | FY15: 6 | FZ15: 6 | GA15: 6 | GB15: 6 | GC15: 6 | GD15: 6 | GE15: 6 | GF15: 6 | GG15: 6 | GH15: 6 | GI15: 6 | GJ15: 6 | GK15: 6 | GL15: 6 | GM15: 6 | GN15: =GM15 -> 6 | GO15: 6 | GP15: 6 | GQ15: 6 | GR15: 6 | GS15: 6 | GT15: 6 | GU15: 6 | GV15: 6 | GW15: 6 | GX15: 6 | GY15: 6 | GZ15: 6 | HA15: 6 | HB15: 6 | HC15: 6 | HD15: 6 | HE15: 6 | HF15: 6 | HG15: 6 | HH15: 6 | HI15: 6 | HJ15: 6 | HK15: 6 | HL15: 6 | HM15: 6 | HN15: 6 | HO15: 6 | HP15: 6 | HQ15: 6 | HR15: 6 | HS15: 6
D16: Capacity | H16: =InputC!F14 -> 1000 | I16: 1000 | J16: 1000 | K16: 1000 | L16: 1000 | M16: 1000 | N16: 1000 | O16: 1000 | P16: 1000 | Q16: 1000 | R16: 1000 | S16: 1000 | T16: 1000 | U16: 1000 | V16: 1000 | W16: 1000 | X16: 1000 | Y16: 1000 | Z16: 1000 | AA16: 1000 | AB16: 1000 | AC16: 1000 | AD16: 1000 | AE16: 1000 | AF16: 1000 | AG16: 1000 | AH16: 1000 | AI16: 1000 | AJ16: 1000 | AK16: 1000 | AL16: 1000 | AM16: 1000 | AN16: 1000 | AO16: 1000 | AP16: 1000 | AQ16: 1000 | AR16: 1000 | AS16: 1000 | AT16: 1000 | AU16: 1000 | AV16: 1000 | AW16: 1000 | AX16: 1000 | AY16: 1000 | AZ16: 1000 | BA16: 1000 | BB16: 1000 | BC16: 1000 | BD16: 1000 | BE16: 1000 | BF16: 1000 | BG16: 1000 | BH16: 1000 | BI16: 1000 | BJ16: 1000 | BK16: 1000 | BL16: 1000 | BM16: 1000 | BN16: 1000 | BO16: 1000 | BP16: 1000 | BQ16: 1000 | BR16: 1000 | BS16: 1000 | BT16: 1000 | BU16: 1000 | BV16: 1000 | BW16: 1000 | BX16: 1000 | BY16: 1000 | BZ16: 1000 | CA16: 1000 | CB16: 1000 | CC16: 1000 | CD16: 1000 | CE16: 1000 | CF16: 1000 | CG16: 1000 | CH16: 1000 | CI16: 1000 | CJ16: =CI16 -> 1000 | CK16: 1000 | CL16: 1000 | CM16: 1000 | CN16: 1000 | CO16: 1000 | CP16: 1000 | CQ16: 1000 | CR16: 1000 | CS16: 1000 | CT16: 1000 | CU16: 1000 | CV16: 1000 | CW16: 1000 | CX16: 1000 | CY16: 1000 | CZ16: 1000 | DA16: 1000 | DB16: 1000 | DC16: 1000 | DD16: 1000 | DE16: 1000 | DF16: 1000 | DG16: 1000 | DH16: 1000 | DI16: 1000 | DJ16: 1000 | DK16: 1000 | DL16: 1000 | DM16: 1000 | DN16: 1000 | DO16: 1000 | DP16: 1000 | DQ16: 1000 | DR16: 1000 | DS16: 1000 | DT16: 1000 | DU16: 1000 | DV16: 1000 | DW16: 1000 | DX16: 1000 | DY16: 1000 | DZ16: 1000 | EA16: 1000 | EB16: 1000 | EC16: 1000 | ED16: 1000 | EE16: 1000 | EF16: 1000 | EG16: 1000 | EH16: 1000 | EI16: 1000 | EJ16: 1000 | EK16: 1000 | EL16: 1000 | EM16: 1000 | EN16: 1000 | EO16: 1000 | EP16: 1000 | EQ16: 1000 | ER16: 1000 | ES16: 1000 | ET16: 1000 | EU16: 1000 | EV16: =EU16 -> 1000 | EW16: 1000 | EX16: 1000 | EY16: 1000 | EZ16: 1000 | FA16: 1000 | FB16: 1000 | FC16: 1000 | FD16: 1000 | FE16: 1000 | FF16: 1000 | FG16: 1000 | FH16: 1000 | FI16: 1000 | FJ16: 1000 | FK16: 1000 | FL16: 1000 | FM16: 1000 | FN16: 1000 | FO16: 1000 | FP16: 1000 | FQ16: 1000 | FR16: 1000 | FS16: 1000 | FT16: 1000 | FU16: 1000 | FV16: 1000 | FW16: 1000 | FX16: 1000 | FY16: 1000 | FZ16: 1000 | GA16: 1000 | GB16: 1000 | GC16: 1000 | GD16: 1000 | GE16: 1000 | GF16: 1000 | GG16: 1000 | GH16: 1000 | GI16: 1000 | GJ16: 1000 | GK16: 1000 | GL16: 1000 | GM16: 1000 | GN16: 1000 | GO16: 1000 | GP16: 1000 | GQ16: 1000 | GR16: 1000 | GS16: 1000 | GT16: 1000 | GU16: 1000 | GV16: 1000 | GW16: 1000 | GX16: 1000 | GY16: 1000 | GZ16: 1000 | HA16: 1000 | HB16: 1000 | HC16: 1000 | HD16: 1000 | HE16: 1000 | HF16: 1000 | HG16: 1000 | HH16: 1000 | HI16: 1000 | HJ16: 1000 | HK16: 1000 | HL16: 1000 | HM16: 1000 | HN16: 1000 | HO16: 1000 | HP16: 1000 | HQ16: 1000 | HR16: 1000 | HS16: 1000
D17: Capacity_Factor | H17: =InputC!F15 -> 0.92 | I17: 0.92 | J17: 0.92 | K17: 0.92 | L17: 0.92 | M17: 0.92 | N17: 0.92 | O17: 0.92 | P17: 0.92 | Q17: 0.92 | R17: 0.92 | S17: 0.92 | T17: 0.92 | U17: 0.92 | V17: 0.92 | W17: 0.92 | X17: 0.92 | Y17: =X17 -> 0.92 | Z17: 0.92 | AA17: 0.92 | AB17: 0.92 | AC17: 0.92 | AD17: 0.92 | AE17: 0.92 | AF17: 0.92 | AG17: 0.92 | AH17: 0.92 | AI17: 0.92 | AJ17: 0.92 | AK17: 0.92 | AL17: 0.92 | AM17: 0.92 | AN17: 0.92 | AO17: 0.92 | AP17: 0.92 | AQ17: 0.92 | AR17: 0.92 | AS17: 0.92 | AT17: 0.92 | AU17: 0.92 | AV17: 0.92 | AW17: 0.92 | AX17: 0.92 | AY17: 0.92 | AZ17: 0.92 | BA17: 0.92 | BB17: 0.92 | BC17: 0.92 | BD17: 0.92 | BE17: 0.92 | BF17: 0.92 | BG17: 0.92 | BH17: 0.92 | BI17: 0.92 | BJ17: 0.92 | BK17: 0.92 | BL17: 0.92 | BM17: 0.92 | BN17: 0.92 | BO17: 0.92 | BP17: 0.92 | BQ17: 0.92 | BR17: 0.92 | BS17: 0.92 | BT17: 0.92 | BU17: 0.92 | BV17: 0.92 | BW17: 0.92 | BX17: 0.92 | BY17: 0.92 | BZ17: 0.92 | CA17: 0.92 | CB17: 0.92 | CC17: 0.92 | CD17: 0.92 | CE17: 0.92 | CF17: 0.92 | CG17: 0.92 | CH17: 0.92 | CI17: 0.92 | CJ17: 0.92 | CK17: 0.92 | CL17: 0.92 | CM17: 0.92 | CN17: 0.92 | CO17: 0.92 | CP17: 0.92 | CQ17: 0.92 | CR17: 0.92 | CS17: 0.92 | CT17: 0.92 | CU17: 0.92 | CV17: 0.92 | CW17: 0.92 | CX17: 0.92 | CY17: 0.92 | CZ17: 0.92 | DA17: 0.92 | DB17: 0.92 | DC17: 0.92 | DD17: 0.92 | DE17: 0.92 | DF17: 0.92 | DG17: 0.92 | DH17: 0.92 | DI17: 0.92 | DJ17: 0.92 | DK17: 0.92 | DL17: 0.92 | DM17: 0.92 | DN17: 0.92 | DO17: 0.92 | DP17: 0.92 | DQ17: 0.92 | DR17: 0.92 | DS17: 0.92 | DT17: 0.92 | DU17: 0.92 | DV17: 0.92 | DW17: 0.92 | DX17: 0.92 | DY17: 0.92 | DZ17: 0.92 | EA17: 0.92 | EB17: 0.92 | EC17: 0.92 | ED17: 0.92 | EE17: 0.92 | EF17: 0.92 | EG17: 0.92 | EH17: 0.92 | EI17: 0.92 | EJ17: 0.92 | EK17: 0.92 | EL17: 0.92 | EM17: 0.92 | EN17: 0.92 | EO17: 0.92 | EP17: 0.92 | EQ17: 0.92 | ER17: 0.92 | ES17: 0.92 | ET17: 0.92 | EU17: 0.92 | EV17: 0.92 | EW17: 0.92 | EX17: 0.92 | EY17: 0.92 | EZ17: 0.92 | FA17: 0.92 | FB17: 0.92 | FC17: 0.92 | FD17: 0.92 | FE17: 0.92 | FF17: 0.92 | FG17: 0.92 | FH17: 0.92 | FI17: 0.92 | FJ17: 0.92 | FK17: 0.92 | FL17: 0.92 | FM17: 0.92 | FN17: 0.92 | FO17: 0.92 | FP17: 0.92 | FQ17: 0.92 | FR17: 0.92 | FS17: 0.92 | FT17: 0.92 | FU17: 0.92 | FV17: 0.92 | FW17: 0.92 | FX17: 0.92 | FY17: 0.92 | FZ17: 0.92 | GA17: 0.92 | GB17: 0.92 | GC17: 0.92 | GD17: 0.92 | GE17: 0.92 | GF17: 0.92 | GG17: 0.92 | GH17: 0.92 | GI17: 0.92 | GJ17: 0.92 | GK17: 0.92 | GL17: 0.92 | GM17: 0.92 | GN17: 0.92 | GO17: 0.92 | GP17: 0.92 | GQ17: 0.92 | GR17: 0.92 | GS17: 0.92 | GT17: 0.92 | GU17: 0.92 | GV17: 0.92 | GW17: 0.92 | GX17: 0.92 | GY17: 0.92 | GZ17: 0.92 | HA17: 0.92 | HB17: 0.92 | HC17: 0.92 | HD17: 0.92 | HE17: 0.92 | HF17: 0.92 | HG17: 0.92 | HH17: 0.92 | HI17: 0.92 | HJ17: 0.92 | HK17: 0.92 | HL17: 0.92 | HM17: 0.92 | HN17: 0.92 | HO17: 0.92 | HP17: 0.92 | HQ17: 0.92 | HR17: 0.92 | HS17: 0.92
D18: Heat_Rate | H18: =InputC!F17 -> 10 | I18: 10 | J18: 10 | K18: 10 | L18: 10 | M18: 10 | N18: 10 | O18: 10 | P18: 10 | Q18: 10 | R18: 10 | S18: 10 | T18: 10 | U18: 10 | V18: 10 | W18: 10 | X18: 10 | Y18: 10 | Z18: 10 | AA18: 10 | AB18: 10 | AC18: 10 | AD18: 10 | AE18: 10 | AF18: 10 | AG18: 10 | AH18: 10 | AI18: 10 | AJ18: 10 | AK18: 10 | AL18: 10 | AM18: 10 | AN18: 10 | AO18: 10 | AP18: 10 | AQ18: 10 | AR18: 10 | AS18: 10 | AT18: 10 | AU18: 10 | AV18: 10 | AW18: 10 | AX18: 10 | AY18: 10 | AZ18: 10 | BA18: 10 | BB18: 10 | BC18: 10 | BD18: 10 | BE18: 10 | BF18: 10 | BG18: 10 | BH18: 10 | BI18: 10 | BJ18: 10 | BK18: 10 | BL18: 10 | BM18: 10 | BN18: 10 | BO18: 10 | BP18: 10 | BQ18: 10 | BR18: 10 | BS18: 10 | BT18: 10 | BU18: 10 | BV18: 10 | BW18: 10 | BX18: 10 | BY18: 10 | BZ18: 10 | CA18: 10 | CB18: 10 | CC18: 10 | CD18: 10 | CE18: 10 | CF18: 10 | CG18: 10 | CH18: 10 | CI18: 10 | CJ18: 10 | CK18: 10 | CL18: 10 | CM18: 10 | CN18: 10 | CO18: 10 | CP18: 10 | CQ18: 10 | CR18: 10 | CS18: 10 | CT18: 10 | CU18: 10 | CV18: 10 | CW18: 10 | CX18: 10 | CY18: 10 | CZ18: 10 | DA18: 10 | DB18: 10 | DC18: 10 | DD18: 10 | DE18: 10 | DF18: 10 | DG18: 10 | DH18: 10 | DI18: 10 | DJ18: 10 | DK18: 10 | DL18: 10 | DM18: 10 | DN18: 10 | DO18: 10 | DP18: 10 | DQ18: 10 | DR18: 10 | DS18: 10 | DT18: 10 | DU18: 10 | DV18: 10 | DW18: 10 | DX18: 10 | DY18: 10 | DZ18: 10 | EA18: 10 | EB18: 10 | EC18: 10 | ED18: 10 | EE18: 10 | EF18: 10 | EG18: 10 | EH18: 10 | EI18: 10 | EJ18: 10 | EK18: 10 | EL18: 10 | EM18: 10 | EN18: 10 | EO18: 10 | EP18: 10 | EQ18: 10 | ER18: 10 | ES18: 10 | ET18: 10 | EU18: 10 | EV18: 10 | EW18: 10 | EX18: 10 | EY18: 10 | EZ18: 10 | FA18: 10 | FB18: 10 | FC18: 10 | FD18: 10 | FE18: 10 | FF18: 10 | FG18: 10 | FH18: 10 | FI18: 10 | FJ18: 10 | FK18: 10 | FL18: 10 | FM18: 10 | FN18: 10 | FO18: 10 | FP18: 10 | FQ18: 10 | FR18: 10 | FS18: 10 | FT18: 10 | FU18: 10 | FV18: 10 | FW18: 10 | FX18: 10 | FY18: 10 | FZ18: 10 | GA18: 10 | GB18: 10 | GC18: 10 | GD18: 10 | GE18: 10 | GF18: 10 | GG18: 10 | GH18: 10 | GI18: 10 | GJ18: 10 | GK18: 10 | GL18: 10 | GM18: 10 | GN18: 10 | GO18: 10 | GP18: 10 | GQ18: 10 | GR18: 10 | GS18: 10 | GT18: 10 | GU18: 10 | GV18: 10 | GW18: 10 | GX18: 10 | GY18: 10 | GZ18: 10 | HA18: 10 | HB18: 10 | HC18: 10 | HD18: 10 | HE18: 10 | HF18: 10 | HG18: 10 | HH18: 10 | HI18: 10 | HJ18: 10 | HK18: 10 | HL18: 10 | HM18: 10 | HN18: 10 | HO18: 10 | HP18: 10 | HQ18: 10 | HR18: 10 | HS18: 10
D19: Inflation_Rate | H19: =InputC!F20 -> 0.02 | I19: 0.02 | J19: 0.02 | K19: 0.02 | L19: 0.02 | M19: 0.02 | N19: 0.02 | O19: 0.02 | P19: 0.02 | Q19: 0.02 | R19: 0.02 | S19: 0.02 | T19: 0.02 | U19: 0.02 | V19: 0.02 | W19: 0.02 | X19: 0.02 | Y19: 0.02 | Z19: 0.02 | AA19: 0.02 | AB19: 0.02 | AC19: 0.02 | AD19: 0.02 | AE19: 0.02 | AF19: 0.02 | AG19: 0.02 | AH19: 0.02 | AI19: 0.02 | AJ19: 0.02 | AK19: 0.02 | AL19: 0.02 | AM19: 0.02 | AN19: 0.02 | AO19: 0.02 | AP19: 0.02 | AQ19: 0.02 | AR19: 0.02 | AS19: 0.02 | AT19: 0.02 | AU19: 0.02 | AV19: 0.02 | AW19: 0.02 | AX19: 0.02 | AY19: 0.02 | AZ19: 0.02 | BA19: 0.02 | BB19: 0.02 | BC19: 0.02 | BD19: 0.02 | BE19: 0.02 | BF19: 0.02 | BG19: 0.02 | BH19: 0.02 | BI19: 0.02 | BJ19: 0.02 | BK19: 0.02 | BL19: 0.02 | BM19: 0.02 | BN19: 0.02 | BO19: 0.02 | BP19: 0.02 | BQ19: 0.02 | BR19: 0.02 | BS19: 0.02 | BT19: 0.02 | BU19: 0.02 | BV19: 0.02 | BW19: 0.02 | BX19: 0.02 | BY19: 0.02 | BZ19: 0.02 | CA19: 0.02 | CB19: 0.02 | CC19: 0.02 | CD19: 0.02 | CE19: 0.02 | CF19: 0.02 | CG19: 0.02 | CH19: 0.02 | CI19: 0.02 | CJ19: 0.02 | CK19: 0.02 | CL19: 0.02 | CM19: 0.02 | CN19: 0.02 | CO19: 0.02 | CP19: 0.02 | CQ19: 0.02 | CR19: 0.02 | CS19: 0.02 | CT19: 0.02 | CU19: 0.02 | CV19: 0.02 | CW19: 0.02 | CX19: 0.02 | CY19: 0.02 | CZ19: 0.02 | DA19: 0.02 | DB19: 0.02 | DC19: 0.02 | DD19: 0.02 | DE19: 0.02 | DF19: 0.02 | DG19: 0.02 | DH19: 0.02 | DI19: 0.02 | DJ19: 0.02 | DK19: 0.02 | DL19: 0.02 | DM19: 0.02 | DN19: 0.02 | DO19: 0.02 | DP19: 0.02 | DQ19: 0.02 | DR19: 0.02 | DS19: 0.02 | DT19: 0.02 | DU19: 0.02 | DV19: 0.02 | DW19: 0.02 | DX19: 0.02 | DY19: 0.02 | DZ19: 0.02 | EA19: 0.02 | EB19: 0.02 | EC19: 0.02 | ED19: 0.02 | EE19: 0.02 | EF19: 0.02 | EG19: 0.02 | EH19: 0.02 | EI19: 0.02 | EJ19: 0.02 | EK19: 0.02 | EL19: 0.02 | EM19: 0.02 | EN19: 0.02 | EO19: 0.02 | EP19: 0.02 | EQ19: 0.02 | ER19: 0.02 | ES19: 0.02 | ET19: 0.02 | EU19: 0.02 | EV19: 0.02 | EW19: 0.02 | EX19: 0.02 | EY19: 0.02 | EZ19: 0.02 | FA19: 0.02 | FB19: 0.02 | FC19: 0.02 | FD19: 0.02 | FE19: 0.02 | FF19: 0.02 | FG19: 0.02 | FH19: 0.02 | FI19: 0.02 | FJ19: 0.02 | FK19: 0.02 | FL19: 0.02 | FM19: 0.02 | FN19: 0.02 | FO19: 0.02 | FP19: 0.02 | FQ19: 0.02 | FR19: 0.02 | FS19: 0.02 | FT19: 0.02 | FU19: 0.02 | FV19: 0.02 | FW19: 0.02 | FX19: 0.02 | FY19: 0.02 | FZ19: 0.02 | GA19: 0.02 | GB19: 0.02 | GC19: 0.02 | GD19: 0.02 | GE19: 0.02 | GF19: 0.02 | GG19: 0.02 | GH19: 0.02 | GI19: 0.02 | GJ19: 0.02 | GK19: 0.02 | GL19: 0.02 | GM19: 0.02 | GN19: 0.02 | GO19: 0.02 | GP19: 0.02 | GQ19: 0.02 | GR19: 0.02 | GS19: 0.02 | GT19: 0.02 | GU19: 0.02 | GV19: 0.02 | GW19: 0.02 | GX19: 0.02 | GY19: 0.02 | GZ19: 0.02 | HA19: 0.02 | HB19: 0.02 | HC19: 0.02 | HD19: 0.02 | HE19: 0.02 | HF19: 0.02 | HG19: =HF19 -> 0.02 | HH19: 0.02 | HI19: 0.02 | HJ19: 0.02 | HK19: 0.02 | HL19: 0.02 | HM19: 0.02 | HN19: 0.02 | HO19: 0.02 | HP19: 0.02 | HQ19: 0.02 | HR19: 0.02 | HS19: 0.02
D20: Total_EPC_Cost | H20: =InputC!F22 -> 7000 | I20: 7000 | J20: 7000 | K20: 7000 | L20: 7000 | M20: 7000 | N20: 7000 | O20: 7000 | P20: 7000 | Q20: 7000 | R20: 7000 | S20: 7000 | T20: 7000 | U20: 7000 | V20: 7000 | W20: 7000 | X20: 7000 | Y20: 7000 | Z20: 7000 | AA20: 7000 | AB20: 7000 | AC20: 7000 | AD20: 7000 | AE20: 7000 | AF20: 7000 | AG20: 7000 | AH20: 7000 | AI20: 7000 | AJ20: 7000 | AK20: 7000 | AL20: 7000 | AM20: 7000 | AN20: 7000 | AO20: 7000 | AP20: 7000 | AQ20: 7000 | AR20: 7000 | AS20: 7000 | AT20: 7000 | AU20: 7000 | AV20: 7000 | AW20: 7000 | AX20: 7000 | AY20: 7000 | AZ20: 7000 | BA20: 7000 | BB20: 7000 | BC20: 7000 | BD20: 7000 | BE20: 7000 | BF20: 7000 | BG20: 7000 | BH20: 7000 | BI20: 7000 | BJ20: 7000 | BK20: 7000 | BL20: 7000 | BM20: 7000 | BN20: 7000 | BO20: 7000 | BP20: 7000 | BQ20: 7000 | BR20: 7000 | BS20: 7000 | BT20: 7000 | BU20: 7000 | BV20: 7000 | BW20: 7000 | BX20: 7000 | BY20: 7000 | BZ20: 7000 | CA20: 7000 | CB20: 7000 | CC20: 7000 | CD20: 7000 | CE20: 7000 | CF20: 7000 | CG20: 7000 | CH20: 7000 | CI20: 7000 | CJ20: =CI20 -> 7000 | CK20: 7000 | CL20: 7000 | CM20: 7000 | CN20: 7000 | CO20: 7000 | CP20: 7000 | CQ20: 7000 | CR20: 7000 | CS20: 7000 | CT20: 7000 | CU20: 7000 | CV20: 7000 | CW20: 7000 | CX20: 7000 | CY20: 7000 | CZ20: 7000 | DA20: 7000 | DB20: 7000 | DC20: 7000 | DD20: 7000 | DE20: 7000 | DF20: 7000 | DG20: 7000 | DH20: 7000 | DI20: 7000 | DJ20: 7000 | DK20: 7000 | DL20: 7000 | DM20: 7000 | DN20: 7000 | DO20: 7000 | DP20: 7000 | DQ20: 7000 | DR20: 7000 | DS20: 7000 | DT20: 7000 | DU20: 7000 | DV20: 7000 | DW20: 7000 | DX20: 7000 | DY20: 7000 | DZ20: 7000 | EA20: 7000 | EB20: 7000 | EC20: 7000 | ED20: 7000 | EE20: 7000 | EF20: 7000 | EG20: 7000 | EH20: 7000 | EI20: 7000 | EJ20: 7000 | EK20: 7000 | EL20: 7000 | EM20: 7000 | EN20: 7000 | EO20: 7000 | EP20: 7000 | EQ20: 7000 | ER20: 7000 | ES20: 7000 | ET20: 7000 | EU20: 7000 | EV20: =EU20 -> 7000 | EW20: 7000 | EX20: 7000 | EY20: 7000 | EZ20: 7000 | FA20: 7000 | FB20: 7000 | FC20: 7000 | FD20: 7000 | FE20: 7000 | FF20: 7000 | FG20: 7000 | FH20: 7000 | FI20: 7000 | FJ20: 7000 | FK20: 7000 | FL20: 7000 | FM20: 7000 | FN20: 7000 | FO20: 7000 | FP20: 7000 | FQ20: 7000 | FR20: 7000 | FS20: 7000 | FT20: 7000 | FU20: 7000 | FV20: 7000 | FW20: 7000 | FX20: 7000 | FY20: 7000 | FZ20: 7000 | GA20: 7000 | GB20: 7000 | GC20: 7000 | GD20: 7000 | GE20: 7000 | GF20: 7000 | GG20: 7000 | GH20: 7000 | GI20: 7000 | GJ20: 7000 | GK20: 7000 | GL20: 7000 | GM20: 7000 | GN20: 7000 | GO20: 7000 | GP20: 7000 | GQ20: 7000 | GR20: 7000 | GS20: 7000 | GT20: 7000 | GU20: 7000 | GV20: 7000 | GW20: 7000 | GX20: 7000 | GY20: 7000 | GZ20: 7000 | HA20: 7000 | HB20: 7000 | HC20: 7000 | HD20: 7000 | HE20: 7000 | HF20: 7000 | HG20: 7000 | HH20: 7000 | HI20: 7000 | HJ20: 7000 | HK20: 7000 | HL20: 7000 | HM20: 7000 | HN20: 7000 | HO20: 7000 | HP20: 7000 | HQ20: 7000 | HR20: 7000 | HS20: 7000
D21: Owners_Cost | H21: =InputC!F23 -> 200 | I21: 200 | J21: 200 | K21: 200 | L21: 200 | M21: 200 | N21: 200 | O21: 200 | P21: 200 | Q21: 200 | R21: 200 | S21: 200 | T21: 200 | U21: 200 | V21: 200 | W21: 200 | X21: 200 | Y21: =X21 -> 200 | Z21: 200 | AA21: 200 | AB21: 200 | AC21: 200 | AD21: 200 | AE21: 200 | AF21: 200 | AG21: 200 | AH21: 200 | AI21: 200 | AJ21: 200 | AK21: 200 | AL21: 200 | AM21: 200 | AN21: 200 | AO21: 200 | AP21: 200 | AQ21: 200 | AR21: 200 | AS21: 200 | AT21: 200 | AU21: 200 | AV21: 200 | AW21: 200 | AX21: 200 | AY21: 200 | AZ21: 200 | BA21: 200 | BB21: 200 | BC21: 200 | BD21: 200 | BE21: 200 | BF21: 200 | BG21: 200 | BH21: 200 | BI21: 200 | BJ21: 200 | BK21: 200 | BL21: 200 | BM21: 200 | BN21: 200 | BO21: 200 | BP21: 200 | BQ21: 200 | BR21: 200 | BS21: 200 | BT21: 200 | BU21: 200 | BV21: 200 | BW21: 200 | BX21: 200 | BY21: 200 | BZ21: 200 | CA21: 200 | CB21: 200 | CC21: 200 | CD21: 200 | CE21: 200 | CF21: 200 | CG21: 200 | CH21: 200 | CI21: 200 | CJ21: 200 | CK21: 200 | CL21: 200 | CM21: 200 | CN21: 200 | CO21: 200 | CP21: 200 | CQ21: 200 | CR21: 200 | CS21: 200 | CT21: 200 | CU21: 200 | CV21: 200 | CW21: 200 | CX21: 200 | CY21: 200 | CZ21: 200 | DA21: 200 | DB21: 200 | DC21: 200 | DD21: 200 | DE21: 200 | DF21: 200 | DG21: 200 | DH21: 200 | DI21: 200 | DJ21: 200 | DK21: 200 | DL21: 200 | DM21: 200 | DN21: 200 | DO21: 200 | DP21: 200 | DQ21: 200 | DR21: 200 | DS21: 200 | DT21: 200 | DU21: 200 | DV21: 200 | DW21: 200 | DX21: 200 | DY21: 200 | DZ21: 200 | EA21: 200 | EB21: 200 | EC21: 200 | ED21: 200 | EE21: 200 | EF21: 200 | EG21: 200 | EH21: 200 | EI21: 200 | EJ21: 200 | EK21: 200 | EL21: 200 | EM21: 200 | EN21: 200 | EO21: 200 | EP21: 200 | EQ21: 200 | ER21: 200 | ES21: 200 | ET21: 200 | EU21: 200 | EV21: 200 | EW21: 200 | EX21: 200 | EY21: 200 | EZ21: 200 | FA21: 200 | FB21: 200 | FC21: 200 | FD21: 200 | FE21: 200 | FF21: 200 | FG21: 200 | FH21: 200 | FI21: 200 | FJ21: 200 | FK21: 200 | FL21: 200 | FM21: 200 | FN21: 200 | FO21: 200 | FP21: 200 | FQ21: 200 | FR21: 200 | FS21: 200 | FT21: 200 | FU21: 200 | FV21: 200 | FW21: 200 | FX21: 200 | FY21: 200 | FZ21: 200 | GA21: 200 | GB21: 200 | GC21: 200 | GD21: 200 | GE21: 200 | GF21: 200 | GG21: 200 | GH21: 200 | GI21: 200 | GJ21: 200 | GK21: 200 | GL21: 200 | GM21: 200 | GN21: 200 | GO21: 200 | GP21: 200 | GQ21: 200 | GR21: 200 | GS21: 200 | GT21: 200 | GU21: 200 | GV21: 200 | GW21: 200 | GX21: 200 | GY21: 200 | GZ21: 200 | HA21: 200 | HB21: 200 | HC21: 200 | HD21: 200 | HE21: 200 | HF21: 200 | HG21: 200 | HH21: 200 | HI21: 200 | HJ21: 200 | HK21: 200 | HL21: 200 | HM21: 200 | HN21: 200 | HO21: 200 | HP21: 200 | HQ21: 200 | HR21: 200 | HS21: 200
D22: Development_Cost | H22: =InputC!F24 -> 300 | I22: 300 | J22: 300 | K22: 300 | L22: 300 | M22: 300 | N22: 300 | O22: 300 | P22: 300 | Q22: 300 | R22: 300 | S22: 300 | T22: 300 | U22: 300 | V22: 300 | W22: 300 | X22: 300 | Y22: 300 | Z22: 300 | AA22: 300 | AB22: 300 | AC22: 300 | AD22: 300 | AE22: 300 | AF22: 300 | AG22: 300 | AH22: 300 | AI22: 300 | AJ22: 300 | AK22: 300 | AL22: 300 | AM22: 300 | AN22: 300 | AO22: 300 | AP22: 300 | AQ22: 300 | AR22: 300 | AS22: 300 | AT22: 300 | AU22: 300 | AV22: 300 | AW22: 300 | AX22: 300 | AY22: 300 | AZ22: 300 | BA22: 300 | BB22: 300 | BC22: 300 | BD22: 300 | BE22: 300 | BF22: 300 | BG22: 300 | BH22: 300 | BI22: 300 | BJ22: 300 | BK22: 300 | BL22: 300 | BM22: 300 | BN22: 300 | BO22: 300 | BP22: 300 | BQ22: 300 | BR22: 300 | BS22: 300 | BT22: 300 | BU22: 300 | BV22: 300 | BW22: 300 | BX22: 300 | BY22: 300 | BZ22: 300 | CA22: 300 | CB22: 300 | CC22: 300 | CD22: 300 | CE22: 300 | CF22: 300 | CG22: 300 | CH22: 300 | CI22: 300 | CJ22: 300 | CK22: 300 | CL22: 300 | CM22: 300 | CN22: 300 | CO22: 300 | CP22: 300 | CQ22: 300 | CR22: 300 | CS22: 300 | CT22: 300 | CU22: 300 | CV22: 300 | CW22: 300 | CX22: 300 | CY22: 300 | CZ22: 300 | DA22: 300 | DB22: 300 | DC22: 300 | DD22: 300 | DE22: 300 | DF22: 300 | DG22: 300 | DH22: 300 | DI22: 300 | DJ22: 300 | DK22: 300 | DL22: 300 | DM22: 300 | DN22: 300 | DO22: 300 | DP22: 300 | DQ22: 300 | DR22: 300 | DS22: 300 | DT22: 300 | DU22: 300 | DV22: 300 | DW22: 300 | DX22: 300 | DY22: 300 | DZ22: 300 | EA22: 300 | EB22: 300 | EC22: 300 | ED22: 300 | EE22: 300 | EF22: 300 | EG22: 300 | EH22: 300 | EI22: 300 | EJ22: 300 | EK22: 300 | EL22: 300 | EM22: 300 | EN22: 300 | EO22: 300 | EP22: 300 | EQ22: 300 | ER22: 300 | ES22: 300 | ET22: 300 | EU22: 300 | EV22: 300 | EW22: 300 | EX22: 300 | EY22: 300 | EZ22: 300 | FA22: 300 | FB22: 300 | FC22: 300 | FD22: 300 | FE22: 300 | FF22: 300 | FG22: 300 | FH22: 300 | FI22: 300 | FJ22: 300 | FK22: 300 | FL22: 300 | FM22: 300 | FN22: 300 | FO22: 300 | FP22: 300 | FQ22: 300 | FR22: 300 | FS22: 300 | FT22: 300 | FU22: 300 | FV22: 300 | FW22: 300 | FX22: 300 | FY22: 300 | FZ22: 300 | GA22: 300 | GB22: 300 | GC22: 300 | GD22: 300 | GE22: 300 | GF22: 300 | GG22: 300 | GH22: 300 | GI22: 300 | GJ22: 300 | GK22: 300 | GL22: 300 | GM22: 300 | GN22: 300 | GO22: 300 | GP22: 300 | GQ22: 300 | GR22: 300 | GS22: 300 | GT22: 300 | GU22: 300 | GV22: 300 | GW22: 300 | GX22: 300 | GY22: 300 | GZ22: 300 | HA22: 300 | HB22: 300 | HC22: 300 | HD22: 300 | HE22: 300 | HF22: 300 | HG22: 300 | HH22: 300 | HI22: 300 | HJ22: 300 | HK22: 300 | HL22: 300 | HM22: 300 | HN22: 300 | HO22: 300 | HP22: 300 | HQ22: 300 | HR22: 300 | HS22: 300
D23: Fuel_Expense_per_MMBTU | H23: =InputC!F27 -> 0.85 | I23: 0.85 | J23: 0.85 | K23: =J23 -> 0.85 | L23: 0.85 | M23: 0.85 | N23: 0.85 | O23: 0.85 | P23: 0.85 | Q23: 0.85 | R23: 0.85 | S23: 0.85 | T23: 0.85 | U23: 0.85 | V23: 0.85 | W23: 0.85 | X23: 0.85 | Y23: 0.85 | Z23: 0.85 | AA23: 0.85 | AB23: 0.85 | AC23: 0.85 | AD23: 0.85 | AE23: 0.85 | AF23: 0.85 | AG23: 0.85 | AH23: 0.85 | AI23: 0.85 | AJ23: 0.85 | AK23: 0.85 | AL23: 0.85 | AM23: 0.85 | AN23: 0.85 | AO23: 0.85 | AP23: 0.85 | AQ23: 0.85 | AR23: 0.85 | AS23: 0.85 | AT23: 0.85 | AU23: 0.85 | AV23: 0.85 | AW23: 0.85 | AX23: 0.85 | AY23: 0.85 | AZ23: 0.85 | BA23: 0.85 | BB23: 0.85 | BC23: 0.85 | BD23: 0.85 | BE23: 0.85 | BF23: 0.85 | BG23: 0.85 | BH23: 0.85 | BI23: 0.85 | BJ23: 0.85 | BK23: 0.85 | BL23: 0.85 | BM23: 0.85 | BN23: 0.85 | BO23: 0.85 | BP23: 0.85 | BQ23: 0.85 | BR23: 0.85 | BS23: 0.85 | BT23: 0.85 | BU23: 0.85 | BV23: 0.85 | BW23: 0.85 | BX23: 0.85 | BY23: 0.85 | BZ23: 0.85 | CA23: 0.85 | CB23: 0.85 | CC23: 0.85 | CD23: 0.85 | CE23: 0.85 | CF23: 0.85 | CG23: 0.85 | CH23: 0.85 | CI23: 0.85 | CJ23: 0.85 | CK23: 0.85 | CL23: 0.85 | CM23: 0.85 | CN23: 0.85 | CO23: 0.85 | CP23: 0.85 | CQ23: 0.85 | CR23: 0.85 | CS23: 0.85 | CT23: 0.85 | CU23: 0.85 | CV23: 0.85 | CW23: 0.85 | CX23: 0.85 | CY23: 0.85 | CZ23: 0.85 | DA23: 0.85 | DB23: 0.85 | DC23: 0.85 | DD23: 0.85 | DE23: 0.85 | DF23: 0.85 | DG23: 0.85 | DH23: 0.85 | DI23: 0.85 | DJ23: 0.85 | DK23: 0.85 | DL23: 0.85 | DM23: 0.85 | DN23: 0.85 | DO23: 0.85 | DP23: 0.85 | DQ23: 0.85 | DR23: 0.85 | DS23: 0.85 | DT23: 0.85 | DU23: 0.85 | DV23: 0.85 | DW23: 0.85 | DX23: 0.85 | DY23: 0.85 | DZ23: 0.85 | EA23: 0.85 | EB23: 0.85 | EC23: 0.85 | ED23: 0.85 | EE23: 0.85 | EF23: 0.85 | EG23: 0.85 | EH23: 0.85 | EI23: 0.85 | EJ23: 0.85 | EK23: 0.85 | EL23: 0.85 | EM23: 0.85 | EN23: 0.85 | EO23: 0.85 | EP23: 0.85 | EQ23: 0.85 | ER23: 0.85 | ES23: 0.85 | ET23: 0.85 | EU23: 0.85 | EV23: 0.85 | EW23: 0.85 | EX23: 0.85 | EY23: 0.85 | EZ23: 0.85 | FA23: 0.85 | FB23: 0.85 | FC23: 0.85 | FD23: 0.85 | FE23: 0.85 | FF23: 0.85 | FG23: 0.85 | FH23: 0.85 | FI23: 0.85 | FJ23: 0.85 | FK23: 0.85 | FL23: 0.85 | FM23: 0.85 | FN23: 0.85 | FO23: 0.85 | FP23: 0.85 | FQ23: 0.85 | FR23: 0.85 | FS23: 0.85 | FT23: 0.85 | FU23: 0.85 | FV23: 0.85 | FW23: 0.85 | FX23: 0.85 | FY23: 0.85 | FZ23: 0.85 | GA23: 0.85 | GB23: 0.85 | GC23: 0.85 | GD23: 0.85 | GE23: 0.85 | GF23: 0.85 | GG23: 0.85 | GH23: 0.85 | GI23: 0.85 | GJ23: 0.85 | GK23: 0.85 | GL23: 0.85 | GM23: 0.85 | GN23: 0.85 | GO23: 0.85 | GP23: 0.85 | GQ23: 0.85 | GR23: 0.85 | GS23: 0.85 | GT23: 0.85 | GU23: 0.85 | GV23: 0.85 | GW23: 0.85 | GX23: 0.85 | GY23: 0.85 | GZ23: 0.85 | HA23: 0.85 | HB23: 0.85 | HC23: 0.85 | HD23: 0.85 | HE23: 0.85 | HF23: 0.85 | HG23: =HF23 -> 0.85 | HH23: 0.85 | HI23: 0.85 | HJ23: 0.85 | HK23: 0.85 | HL23: 0.85 | HM23: 0.85 | HN23: 0.85 | HO23: 0.85 | HP23: 0.85 | HQ23: 0.85 | HR23: 0.85 | HS23: 0.85
D24: Fixed_Operation_and_Maintenance | H24: =InputC!F29 -> 150 | I24: 150 | J24: =I24 -> 150 | K24: 150 | L24: 150 | M24: 150 | N24: 150 | O24: 150 | P24: 150 | Q24: 150 | R24: 150 | S24: 150 | T24: 150 | U24: 150 | V24: 150 | W24: 150 | X24: 150 | Y24: 150 | Z24: 150 | AA24: 150 | AB24: 150 | AC24: 150 | AD24: 150 | AE24: 150 | AF24: 150 | AG24: 150 | AH24: 150 | AI24: 150 | AJ24: 150 | AK24: 150 | AL24: 150 | AM24: 150 | AN24: 150 | AO24: 150 | AP24: 150 | AQ24: 150 | AR24: 150 | AS24: 150 | AT24: 150 | AU24: 150 | AV24: 150 | AW24: 150 | AX24: 150 | AY24: 150 | AZ24: 150 | BA24: 150 | BB24: 150 | BC24: 150 | BD24: 150 | BE24: 150 | BF24: 150 | BG24: 150 | BH24: 150 | BI24: 150 | BJ24: 150 | BK24: 150 | BL24: 150 | BM24: 150 | BN24: 150 | BO24: 150 | BP24: 150 | BQ24: 150 | BR24: 150 | BS24: 150 | BT24: 150 | BU24: 150 | BV24: 150 | BW24: 150 | BX24: 150 | BY24: 150 | BZ24: 150 | CA24: 150 | CB24: 150 | CC24: 150 | CD24: 150 | CE24: 150 | CF24: 150 | CG24: 150 | CH24: 150 | CI24: 150 | CJ24: 150 | CK24: 150 | CL24: 150 | CM24: =CL24 -> 150 | CN24: 150 | CO24: 150 | CP24: 150 | CQ24: 150 | CR24: 150 | CS24: 150 | CT24: 150 | CU24: 150 | CV24: 150 | CW24: 150 | CX24: 150 | CY24: 150 | CZ24: 150 | DA24: 150 | DB24: 150 | DC24: 150 | DD24: 150 | DE24: 150 | DF24: 150 | DG24: 150 | DH24: 150 | DI24: 150 | DJ24: 150 | DK24: 150 | DL24: 150 | DM24: 150 | DN24: 150 | DO24: 150 | DP24: 150 | DQ24: 150 | DR24: 150 | DS24: 150 | DT24: 150 | DU24: 150 | DV24: 150 | DW24: 150 | DX24: 150 | DY24: 150 | DZ24: 150 | EA24: 150 | EB24: 150 | EC24: 150 | ED24: 150 | EE24: 150 | EF24: 150 | EG24: 150 | EH24: 150 | EI24: 150 | EJ24: 150 | EK24: 150 | EL24: 150 | EM24: 150 | EN24: 150 | EO24: 150 | EP24: 150 | EQ24: 150 | ER24: 150 | ES24: 150 | ET24: 150 | EU24: 150 | EV24: 150 | EW24: 150 | EX24: 150 | EY24: =EX24 -> 150 | EZ24: 150 | FA24: 150 | FB24: 150 | FC24: 150 | FD24: 150 | FE24: 150 | FF24: 150 | FG24: 150 | FH24: 150 | FI24: 150 | FJ24: 150 | FK24: 150 | FL24: 150 | FM24: 150 | FN24: 150 | FO24: 150 | FP24: 150 | FQ24: 150 | FR24: 150 | FS24: 150 | FT24: 150 | FU24: 150 | FV24: 150 | FW24: 150 | FX24: 150 | FY24: 150 | FZ24: 150 | GA24: 150 | GB24: 150 | GC24: 150 | GD24: 150 | GE24: 150 | GF24: 150 | GG24: 150 | GH24: 150 | GI24: 150 | GJ24: 150 | GK24: 150 | GL24: 150 | GM24: 150 | GN24: 150 | GO24: 150 | GP24: 150 | GQ24: 150 | GR24: 150 | GS24: 150 | GT24: 150 | GU24: 150 | GV24: 150 | GW24: 150 | GX24: 150 | GY24: 150 | GZ24: 150 | HA24: 150 | HB24: 150 | HC24: 150 | HD24: 150 | HE24: 150 | HF24: 150 | HG24: 150 | HH24: 150 | HI24: 150 | HJ24: 150 | HK24: 150 | HL24: 150 | HM24: 150 | HN24: 150 | HO24: 150 | HP24: 150 | HQ24: 150 | HR24: 150 | HS24: 150
D25: Capacity_Charge | H25: =InputC!F32 -> 500 | I25: 500 | J25: 500 | K25: 500 | L25: 500 | M25: 500 | N25: 500 | O25: 500 | P25: 500 | Q25: 500 | R25: 500 | S25: 500 | T25: 500 | U25: 500 | V25: 500 | W25: 500 | X25: 500 | Y25: 500 | Z25: 500 | AA25: 500 | AB25: 500 | AC25: 500 | AD25: 500 | AE25: 500 | AF25: 500 | AG25: 500 | AH25: 500 | AI25: 500 | AJ25: 500 | AK25: 500 | AL25: 500 | AM25: 500 | AN25: 500 | AO25: 500 | AP25: 500 | AQ25: 500 | AR25: 500 | AS25: 500 | AT25: 500 | AU25: 500 | AV25: 500 | AW25: 500 | AX25: 500 | AY25: 500 | AZ25: 500 | BA25: 500 | BB25: 500 | BC25: 500 | BD25: 500 | BE25: 500 | BF25: 500 | BG25: 500 | BH25: 500 | BI25: 500 | BJ25: 500 | BK25: 500 | BL25: 500 | BM25: 500 | BN25: 500 | BO25: 500 | BP25: 500 | BQ25: 500 | BR25: 500 | BS25: 500 | BT25: 500 | BU25: 500 | BV25: 500 | BW25: 500 | BX25: 500 | BY25: 500 | BZ25: 500 | CA25: 500 | CB25: 500 | CC25: 500 | CD25: 500 | CE25: 500 | CF25: 500 | CG25: 500 | CH25: 500 | CI25: 500 | CJ25: 500 | CK25: =CJ25 -> 500 | CL25: 500 | CM25: 500 | CN25: 500 | CO25: 500 | CP25: 500 | CQ25: 500 | CR25: 500 | CS25: 500 | CT25: 500 | CU25: 500 | CV25: 500 | CW25: 500 | CX25: 500 | CY25: 500 | CZ25: 500 | DA25: 500 | DB25: 500 | DC25: 500 | DD25: 500 | DE25: 500 | DF25: 500 | DG25: 500 | DH25: 500 | DI25: 500 | DJ25: 500 | DK25: 500 | DL25: 500 | DM25: 500 | DN25: 500 | DO25: 500 | DP25: 500 | DQ25: 500 | DR25: 500 | DS25: 500 | DT25: 500 | DU25: 500 | DV25: 500 | DW25: 500 | DX25: 500 | DY25: 500 | DZ25: 500 | EA25: 500 | EB25: 500 | EC25: 500 | ED25: 500 | EE25: 500 | EF25: 500 | EG25: 500 | EH25: 500 | EI25: 500 | EJ25: 500 | EK25: 500 | EL25: 500 | EM25: 500 | EN25: 500 | EO25: 500 | EP25: 500 | EQ25: 500 | ER25: 500 | ES25: 500 | ET25: 500 | EU25: 500 | EV25: 500 | EW25: 500 | EX25: 500 | EY25: 500 | EZ25: 500 | FA25: 500 | FB25: 500 | FC25: 500 | FD25: 500 | FE25: 500 | FF25: 500 | FG25: 500 | FH25: 500 | FI25: 500 | FJ25: 500 | FK25: 500 | FL25: 500 | FM25: 500 | FN25: 500 | FO25: 500 | FP25: 500 | FQ25: 500 | FR25: 500 | FS25: 500 | FT25: 500 | FU25: 500 | FV25: 500 | FW25: 500 | FX25: 500 | FY25: 500 | FZ25: 500 | GA25: 500 | GB25: 500 | GC25: 500 | GD25: 500 | GE25: 500 | GF25: 500 | GG25: 500 | GH25: 500 | GI25: 500 | GJ25: 500 | GK25: 500 | GL25: 500 | GM25: 500 | GN25: 500 | GO25: 500 | GP25: 500 | GQ25: 500 | GR25: 500 | GS25: 500 | GT25: 500 | GU25: 500 | GV25: 500 | GW25: 500 | GX25: 500 | GY25: 500 | GZ25: 500 | HA25: 500 | HB25: 500 | HC25: 500 | HD25: 500 | HE25: 500 | HF25: 500 | HG25: 500 | HH25: 500 | HI25: 500 | HJ25: 500 | HK25: 500 | HL25: 500 | HM25: 500 | HN25: 500 | HO25: 500 | HP25: 500 | HQ25: 500 | HR25: 500 | HS25: 500
D26: Fixed_OM_Charge | H26: =InputC!F33 -> 150 | I26: 150 | J26: 150 | K26: 150 | L26: 150 | M26: 150 | N26: 150 | O26: 150 | P26: 150 | Q26: 150 | R26: 150 | S26: 150 | T26: 150 | U26: 150 | V26: 150 | W26: 150 | X26: 150 | Y26: 150 | Z26: 150 | AA26: 150 | AB26: 150 | AC26: 150 | AD26: 150 | AE26: 150 | AF26: 150 | AG26: 150 | AH26: 150 | AI26: 150 | AJ26: 150 | AK26: 150 | AL26: 150 | AM26: 150 | AN26: 150 | AO26: 150 | AP26: 150 | AQ26: 150 | AR26: 150 | AS26: 150 | AT26: 150 | AU26: 150 | AV26: 150 | AW26: 150 | AX26: 150 | AY26: 150 | AZ26: 150 | BA26: 150 | BB26: 150 | BC26: 150 | BD26: 150 | BE26: 150 | BF26: 150 | BG26: 150 | BH26: 150 | BI26: 150 | BJ26: 150 | BK26: 150 | BL26: 150 | BM26: 150 | BN26: 150 | BO26: 150 | BP26: 150 | BQ26: 150 | BR26: 150 | BS26: 150 | BT26: 150 | BU26: 150 | BV26: 150 | BW26: 150 | BX26: 150 | BY26: 150 | BZ26: 150 | CA26: 150 | CB26: 150 | CC26: 150 | CD26: 150 | CE26: 150 | CF26: 150 | CG26: 150 | CH26: 150 | CI26: 150 | CJ26: 150 | CK26: 150 | CL26: 150 | CM26: 150 | CN26: 150 | CO26: 150 | CP26: 150 | CQ26: 150 | CR26: 150 | CS26: 150 | CT26: 150 | CU26: 150 | CV26: 150 | CW26: 150 | CX26: 150 | CY26: 150 | CZ26: 150 | DA26: 150 | DB26: 150 | DC26: 150 | DD26: 150 | DE26: 150 | DF26: 150 | DG26: 150 | DH26: 150 | DI26: 150 | DJ26: 150 | DK26: 150 | DL26: 150 | DM26: 150 | DN26: 150 | DO26: 150 | DP26: 150 | DQ26: 150 | DR26: 150 | DS26: 150 | DT26: 150 | DU26: 150 | DV26: 150 | DW26: 150 | DX26: 150 | DY26: 150 | DZ26: 150 | EA26: 150 | EB26: 150 | EC26: 150 | ED26: 150 | EE26: 150 | EF26: 150 | EG26: 150 | EH26: 150 | EI26: 150 | EJ26: 150 | EK26: 150 | EL26: 150 | EM26: 150 | EN26: 150 | EO26: 150 | EP26: 150 | EQ26: 150 | ER26: 150 | ES26: 150 | ET26: 150 | EU26: 150 | EV26: 150 | EW26: 150 | EX26: 150 | EY26: 150 | EZ26: 150 | FA26: 150 | FB26: 150 | FC26: 150 | FD26: 150 | FE26: 150 | FF26: 150 | FG26: 150 | FH26: 150 | FI26: 150 | FJ26: 150 | FK26: 150 | FL26: 150 | FM26: 150 | FN26: 150 | FO26: 150 | FP26: 150 | FQ26: 150 | FR26: 150 | FS26: 150 | FT26: 150 | FU26: 150 | FV26: 150 | FW26: 150 | FX26: 150 | FY26: 150 | FZ26: 150 | GA26: 150 | GB26: 150 | GC26: 150 | GD26: 150 | GE26: 150 | GF26: 150 | GG26: 150 | GH26: 150 | GI26: 150 | GJ26: 150 | GK26: 150 | GL26: 150 | GM26: 150 | GN26: 150 | GO26: 150 | GP26: 150 | GQ26: 150 | GR26: 150 | GS26: 150 | GT26: 150 | GU26: 150 | GV26: 150 | GW26: 150 | GX26: 150 | GY26: 150 | GZ26: 150 | HA26: 150 | HB26: 150 | HC26: 150 | HD26: 150 | HE26: 150 | HF26: 150 | HG26: 150 | HH26: 150 | HI26: 150 | HJ26: 150 | HK26: 150 | HL26: 150 | HM26: 150 | HN26: 150 | HO26: 150 | HP26: 150 | HQ26: 150 | HR26: 150 | HS26: 150
D27: Depreciation_Life | H27: =InputC!F36 -> 50 | I27: 50 | J27: 50 | K27: 50 | L27: 50 | M27: 50 | N27: 50 | O27: 50 | P27: 50 | Q27: 50 | R27: 50 | S27: 50 | T27: 50 | U27: 50 | V27: 50 | W27: 50 | X27: 50 | Y27: 50 | Z27: 50 | AA27: 50 | AB27: 50 | AC27: 50 | AD27: 50 | AE27: 50 | AF27: 50 | AG27: 50 | AH27: 50 | AI27: 50 | AJ27: 50 | AK27: 50 | AL27: 50 | AM27: 50 | AN27: 50 | AO27: 50 | AP27: 50 | AQ27: 50 | AR27: 50 | AS27: 50 | AT27: 50 | AU27: 50 | AV27: 50 | AW27: 50 | AX27: 50 | AY27: 50 | AZ27: 50 | BA27: 50 | BB27: 50 | BC27: 50 | BD27: 50 | BE27: 50 | BF27: 50 | BG27: 50 | BH27: 50 | BI27: 50 | BJ27: 50 | BK27: 50 | BL27: 50 | BM27: 50 | BN27: 50 | BO27: 50 | BP27: 50 | BQ27: 50 | BR27: 50 | BS27: 50 | BT27: 50 | BU27: =BT27 -> 50 | BV27: 50 | BW27: 50 | BX27: 50 | BY27: 50 | BZ27: 50 | CA27: 50 | CB27: 50 | CC27: 50 | CD27: 50 | CE27: 50 | CF27: 50 | CG27: 50 | CH27: 50 | CI27: 50 | CJ27: 50 | CK27: 50 | CL27: 50 | CM27: 50 | CN27: 50 | CO27: 50 | CP27: 50 | CQ27: 50 | CR27: 50 | CS27: 50 | CT27: 50 | CU27: 50 | CV27: 50 | CW27: 50 | CX27: 50 | CY27: 50 | CZ27: 50 | DA27: 50 | DB27: 50 | DC27: 50 | DD27: 50 | DE27: 50 | DF27: 50 | DG27: 50 | DH27: 50 | DI27: 50 | DJ27: 50 | DK27: 50 | DL27: 50 | DM27: 50 | DN27: 50 | DO27: 50 | DP27: 50 | DQ27: 50 | DR27: 50 | DS27: 50 | DT27: 50 | DU27: 50 | DV27: 50 | DW27: 50 | DX27: 50 | DY27: 50 | DZ27: 50 | EA27: 50 | EB27: 50 | EC27: 50 | ED27: 50 | EE27: 50 | EF27: 50 | EG27: 50 | EH27: 50 | EI27: 50 | EJ27: 50 | EK27: 50 | EL27: 50 | EM27: 50 | EN27: 50 | EO27: 50 | EP27: 50 | EQ27: 50 | ER27: 50 | ES27: 50 | ET27: 50 | EU27: 50 | EV27: 50 | EW27: 50 | EX27: 50 | EY27: 50 | EZ27: 50 | FA27: 50 | FB27: 50 | FC27: 50 | FD27: 50 | FE27: 50 | FF27: 50 | FG27: 50 | FH27: 50 | FI27: 50 | FJ27: 50 | FK27: 50 | FL27: 50 | FM27: 50 | FN27: 50 | FO27: 50 | FP27: 50 | FQ27: 50 | FR27: 50 | FS27: 50 | FT27: 50 | FU27: 50 | FV27: 50 | FW27: 50 | FX27: 50 | FY27: 50 | FZ27: 50 | GA27: 50 | GB27: 50 | GC27: 50 | GD27: 50 | GE27: 50 | GF27: 50 | GG27: 50 | GH27: 50 | GI27: 50 | GJ27: 50 | GK27: 50 | GL27: 50 | GM27: 50 | GN27: 50 | GO27: 50 | GP27: 50 | GQ27: 50 | GR27: 50 | GS27: 50 | GT27: 50 | GU27: 50 | GV27: 50 | GW27: 50 | GX27: 50 | GY27: 50 | GZ27: 50 | HA27: 50 | HB27: 50 | HC27: 50 | HD27: 50 | HE27: 50 | HF27: 50 | HG27: 50 | HH27: 50 | HI27: 50 | HJ27: =HI27 -> 50 | HK27: 50 | HL27: 50 | HM27: 50 | HN27: 50 | HO27: 50 | HP27: 50 | HQ27: 50 | HR27: 50 | HS27: 50
D28: Income_Tax_Rate | H28: =InputC!F37 -> 0.2 | I28: 0.2 | J28: =I28 -> 0.2 | K28: 0.2 | L28: 0.2 | M28: 0.2 | N28: 0.2 | O28: 0.2 | P28: 0.2 | Q28: 0.2 | R28: 0.2 | S28: 0.2 | T28: 0.2 | U28: 0.2 | V28: 0.2 | W28: 0.2 | X28: 0.2 | Y28: 0.2 | Z28: 0.2 | AA28: 0.2 | AB28: 0.2 | AC28: 0.2 | AD28: 0.2 | AE28: 0.2 | AF28: 0.2 | AG28: 0.2 | AH28: 0.2 | AI28: 0.2 | AJ28: 0.2 | AK28: 0.2 | AL28: 0.2 | AM28: 0.2 | AN28: 0.2 | AO28: 0.2 | AP28: 0.2 | AQ28: 0.2 | AR28: 0.2 | AS28: 0.2 | AT28: 0.2 | AU28: 0.2 | AV28: 0.2 | AW28: 0.2 | AX28: 0.2 | AY28: 0.2 | AZ28: 0.2 | BA28: 0.2 | BB28: 0.2 | BC28: 0.2 | BD28: 0.2 | BE28: 0.2 | BF28: 0.2 | BG28: 0.2 | BH28: 0.2 | BI28: 0.2 | BJ28: 0.2 | BK28: 0.2 | BL28: 0.2 | BM28: 0.2 | BN28: 0.2 | BO28: 0.2 | BP28: 0.2 | BQ28: 0.2 | BR28: 0.2 | BS28: 0.2 | BT28: 0.2 | BU28: 0.2 | BV28: 0.2 | BW28: 0.2 | BX28: 0.2 | BY28: 0.2 | BZ28: 0.2 | CA28: 0.2 | CB28: 0.2 | CC28: 0.2 | CD28: 0.2 | CE28: 0.2 | CF28: 0.2 | CG28: 0.2 | CH28: 0.2 | CI28: 0.2 | CJ28: 0.2 | CK28: 0.2 | CL28: 0.2 | CM28: 0.2 | CN28: 0.2 | CO28: 0.2 | CP28: 0.2 | CQ28: 0.2 | CR28: 0.2 | CS28: 0.2 | CT28: 0.2 | CU28: 0.2 | CV28: 0.2 | CW28: 0.2 | CX28: 0.2 | CY28: 0.2 | CZ28: 0.2 | DA28: 0.2 | DB28: 0.2 | DC28: 0.2 | DD28: 0.2 | DE28: 0.2 | DF28: 0.2 | DG28: 0.2 | DH28: 0.2 | DI28: 0.2 | DJ28: 0.2 | DK28: 0.2 | DL28: 0.2 | DM28: 0.2 | DN28: 0.2 | DO28: 0.2 | DP28: 0.2 | DQ28: 0.2 | DR28: 0.2 | DS28: 0.2 | DT28: 0.2 | DU28: 0.2 | DV28: 0.2 | DW28: 0.2 | DX28: 0.2 | DY28: 0.2 | DZ28: 0.2 | EA28: 0.2 | EB28: 0.2 | EC28: 0.2 | ED28: 0.2 | EE28: 0.2 | EF28: 0.2 | EG28: 0.2 | EH28: 0.2 | EI28: 0.2 | EJ28: 0.2 | EK28: 0.2 | EL28: 0.2 | EM28: 0.2 | EN28: 0.2 | EO28: 0.2 | EP28: 0.2 | EQ28: 0.2 | ER28: 0.2 | ES28: 0.2 | ET28: 0.2 | EU28: 0.2 | EV28: 0.2 | EW28: 0.2 | EX28: 0.2 | EY28: =EX28 -> 0.2 | EZ28: 0.2 | FA28: 0.2 | FB28: 0.2 | FC28: 0.2 | FD28: 0.2 | FE28: 0.2 | FF28: 0.2 | FG28: 0.2 | FH28: 0.2 | FI28: 0.2 | FJ28: 0.2 | FK28: 0.2 | FL28: 0.2 | FM28: 0.2 | FN28: 0.2 | FO28: 0.2 | FP28: 0.2 | FQ28: 0.2 | FR28: 0.2 | FS28: 0.2 | FT28: 0.2 | FU28: 0.2 | FV28: 0.2 | FW28: 0.2 | FX28: 0.2 | FY28: 0.2 | FZ28: 0.2 | GA28: 0.2 | GB28: 0.2 | GC28: 0.2 | GD28: 0.2 | GE28: 0.2 | GF28: 0.2 | GG28: 0.2 | GH28: 0.2 | GI28: 0.2 | GJ28: 0.2 | GK28: 0.2 | GL28: 0.2 | GM28: 0.2 | GN28: 0.2 | GO28: 0.2 | GP28: 0.2 | GQ28: 0.2 | GR28: 0.2 | GS28: 0.2 | GT28: 0.2 | GU28: 0.2 | GV28: 0.2 | GW28: 0.2 | GX28: 0.2 | GY28: 0.2 | GZ28: 0.2 | HA28: 0.2 | HB28: 0.2 | HC28: 0.2 | HD28: 0.2 | HE28: 0.2 | HF28: 0.2 | HG28: 0.2 | HH28: 0.2 | HI28: 0.2 | HJ28: 0.2 | HK28: 0.2 | HL28: 0.2 | HM28: 0.2 | HN28: 0.2 | HO28: 0.2 | HP28: 0.2 | HQ28: 0.2 | HR28: 0.2 | HS28: 0.2
D29: Apply_NOL | H29: =InputC!F38 -> 1 | I29: 1 | J29: 1 | K29: 1 | L29: 1 | M29: 1 | N29: 1 | O29: 1 | P29: 1 | Q29: 1 | R29: 1 | S29: 1 | T29: 1 | U29: 1 | V29: 1 | W29: 1 | X29: 1 | Y29: 1 | Z29: 1 | AA29: 1 | AB29: 1 | AC29: 1 | AD29: 1 | AE29: 1 | AF29: 1 | AG29: 1 | AH29: 1 | AI29: 1 | AJ29: 1 | AK29: 1 | AL29: 1 | AM29: 1 | AN29: 1 | AO29: 1 | AP29: 1 | AQ29: 1 | AR29: 1 | AS29: 1 | AT29: 1 | AU29: 1 | AV29: 1 | AW29: 1 | AX29: 1 | AY29: 1 | AZ29: 1 | BA29: 1 | BB29: 1 | BC29: 1 | BD29: 1 | BE29: 1 | BF29: 1 | BG29: 1 | BH29: 1 | BI29: 1 | BJ29: 1 | BK29: 1 | BL29: 1 | BM29: 1 | BN29: 1 | BO29: 1 | BP29: 1 | BQ29: 1 | BR29: 1 | BS29: 1 | BT29: 1 | BU29: 1 | BV29: 1 | BW29: 1 | BX29: 1 | BY29: 1 | BZ29: 1 | CA29: 1 | CB29: 1 | CC29: 1 | CD29: 1 | CE29: 1 | CF29: 1 | CG29: 1 | CH29: 1 | CI29: 1 | CJ29: 1 | CK29: 1 | CL29: 1 | CM29: 1 | CN29: 1 | CO29: 1 | CP29: 1 | CQ29: 1 | CR29: 1 | CS29: 1 | CT29: 1 | CU29: 1 | CV29: 1 | CW29: 1 | CX29: 1 | CY29: 1 | CZ29: 1 | DA29: 1 | DB29: 1 | DC29: 1 | DD29: 1 | DE29: 1 | DF29: 1 | DG29: 1 | DH29: 1 | DI29: 1 | DJ29: 1 | DK29: 1 | DL29: 1 | DM29: 1 | DN29: 1 | DO29: 1 | DP29: 1 | DQ29: 1 | DR29: 1 | DS29: 1 | DT29: 1 | DU29: 1 | DV29: 1 | DW29: 1 | DX29: 1 | DY29: 1 | DZ29: 1 | EA29: 1 | EB29: 1 | EC29: 1 | ED29: 1 | EE29: 1 | EF29: 1 | EG29: 1 | EH29: 1 | EI29: 1 | EJ29: 1 | EK29: 1 | EL29: 1 | EM29: 1 | EN29: 1 | EO29: 1 | EP29: 1 | EQ29: 1 | ER29: 1 | ES29: 1 | ET29: 1 | EU29: 1 | EV29: 1 | EW29: 1 | EX29: 1 | EY29: 1 | EZ29: 1 | FA29: 1 | FB29: 1 | FC29: 1 | FD29: 1 | FE29: 1 | FF29: 1 | FG29: 1 | FH29: 1 | FI29: 1 | FJ29: 1 | FK29: 1 | FL29: 1 | FM29: 1 | FN29: 1 | FO29: 1 | FP29: 1 | FQ29: 1 | FR29: 1 | FS29: 1 | FT29: 1 | FU29: 1 | FV29: 1 | FW29: 1 | FX29: 1 | FY29: 1 | FZ29: 1 | GA29: 1 | GB29: 1 | GC29: 1 | GD29: 1 | GE29: 1 | GF29: 1 | GG29: 1 | GH29: 1 | GI29: 1 | GJ29: 1 | GK29: 1 | GL29: 1 | GM29: 1 | GN29: 1 | GO29: 1 | GP29: 1 | GQ29: 1 | GR29: 1 | GS29: 1 | GT29: 1 | GU29: 1 | GV29: 1 | GW29: 1 | GX29: 1 | GY29: 1 | GZ29: 1 | HA29: 1 | HB29: 1 | HC29: 1 | HD29: 1 | HE29: 1 | HF29: 1 | HG29: 1 | HH29: 1 | HI29: 1 | HJ29: 1 | HK29: 1 | HL29: 1 | HM29: 1 | HN29: 1 | HO29: 1 | HP29: 1 | HQ29: 1 | HR29: 1 | HS29: 1
D30: Maximum_Debt_to_Capital | H30: =InputC!F42 -> 0.8 | I30: 0.8 | J30: 0.8 | K30: 0.8 | L30: 0.8 | M30: 0.8 | N30: 0.8 | O30: 0.8 | P30: 0.8 | Q30: 0.8 | R30: 0.8 | S30: 0.8 | T30: 0.8 | U30: 0.8 | V30: 0.8 | W30: 0.8 | X30: 0.8 | Y30: 0.8 | Z30: 0.8 | AA30: 0.8 | AB30: 0.8 | AC30: 0.8 | AD30: 0.8 | AE30: 0.8 | AF30: 0.8 | AG30: 0.8 | AH30: 0.8 | AI30: 0.8 | AJ30: 0.8 | AK30: 0.8 | AL30: 0.8 | AM30: 0.8 | AN30: 0.8 | AO30: 0.8 | AP30: 0.8 | AQ30: 0.8 | AR30: 0.8 | AS30: 0.8 | AT30: 0.8 | AU30: 0.8 | AV30: 0.8 | AW30: 0.8 | AX30: 0.8 | AY30: 0.8 | AZ30: 0.8 | BA30: 0.8 | BB30: 0.8 | BC30: 0.8 | BD30: 0.8 | BE30: 0.8 | BF30: 0.8 | BG30: 0.8 | BH30: 0.8 | BI30: 0.8 | BJ30: 0.8 | BK30: 0.8 | BL30: 0.8 | BM30: 0.8 | BN30: 0.8 | BO30: 0.8 | BP30: 0.8 | BQ30: 0.8 | BR30: 0.8 | BS30: 0.8 | BT30: 0.8 | BU30: 0.8 | BV30: 0.8 | BW30: 0.8 | BX30: 0.8 | BY30: 0.8 | BZ30: 0.8 | CA30: 0.8 | CB30: 0.8 | CC30: 0.8 | CD30: 0.8 | CE30: 0.8 | CF30: 0.8 | CG30: 0.8 | CH30: 0.8 | CI30: 0.8 | CJ30: 0.8 | CK30: 0.8 | CL30: 0.8 | CM30: 0.8 | CN30: 0.8 | CO30: 0.8 | CP30: 0.8 | CQ30: 0.8 | CR30: 0.8 | CS30: 0.8 | CT30: 0.8 | CU30: 0.8 | CV30: 0.8 | CW30: 0.8 | CX30: 0.8 | CY30: 0.8 | CZ30: 0.8 | DA30: 0.8 | DB30: 0.8 | DC30: 0.8 | DD30: 0.8 | DE30: 0.8 | DF30: 0.8 | DG30: 0.8 | DH30: 0.8 | DI30: 0.8 | DJ30: 0.8 | DK30: 0.8 | DL30: 0.8 | DM30: 0.8 | DN30: 0.8 | DO30: 0.8 | DP30: 0.8 | DQ30: 0.8 | DR30: 0.8 | DS30: 0.8 | DT30: 0.8 | DU30: 0.8 | DV30: 0.8 | DW30: 0.8 | DX30: 0.8 | DY30: 0.8 | DZ30: 0.8 | EA30: 0.8 | EB30: 0.8 | EC30: 0.8 | ED30: 0.8 | EE30: 0.8 | EF30: 0.8 | EG30: 0.8 | EH30: 0.8 | EI30: 0.8 | EJ30: 0.8 | EK30: 0.8 | EL30: 0.8 | EM30: 0.8 | EN30: 0.8 | EO30: 0.8 | EP30: 0.8 | EQ30: 0.8 | ER30: 0.8 | ES30: 0.8 | ET30: 0.8 | EU30: 0.8 | EV30: 0.8 | EW30: 0.8 | EX30: 0.8 | EY30: 0.8 | EZ30: 0.8 | FA30: 0.8 | FB30: 0.8 | FC30: 0.8 | FD30: 0.8 | FE30: 0.8 | FF30: 0.8 | FG30: 0.8 | FH30: 0.8 | FI30: 0.8 | FJ30: 0.8 | FK30: 0.8 | FL30: 0.8 | FM30: 0.8 | FN30: 0.8 | FO30: 0.8 | FP30: 0.8 | FQ30: 0.8 | FR30: 0.8 | FS30: 0.8 | FT30: 0.8 | FU30: 0.8 | FV30: 0.8 | FW30: 0.8 | FX30: 0.8 | FY30: 0.8 | FZ30: 0.8 | GA30: 0.8 | GB30: 0.8 | GC30: 0.8 | GD30: 0.8 | GE30: 0.8 | GF30: 0.8 | GG30: 0.8 | GH30: 0.8 | GI30: 0.8 | GJ30: 0.8 | GK30: 0.8 | GL30: 0.8 | GM30: 0.8 | GN30: 0.8 | GO30: 0.8 | GP30: 0.8 | GQ30: 0.8 | GR30: 0.8 | GS30: 0.8 | GT30: 0.8 | GU30: 0.8 | GV30: 0.8 | GW30: 0.8 | GX30: 0.8 | GY30: 0.8 | GZ30: 0.8 | HA30: 0.8 | HB30: 0.8 | HC30: 0.8 | HD30: 0.8 | HE30: 0.8 | HF30: 0.8 | HG30: 0.8 | HH30: 0.8 | HI30: 0.8 | HJ30: 0.8 | HK30: 0.8 | HL30: 0.8 | HM30: 0.8 | HN30: 0.8 | HO30: 0.8 | HP30: 0.8 | HQ30: 0.8 | HR30: 0.8 | HS30: 0.8
D31: Minimum_DSCR | H31: =InputC!F43 -> 1.2 | I31: 1.2 | J31: 1.2 | K31: 1.2 | L31: 1.2 | M31: 1.2 | N31: 1.2 | O31: 1.2 | P31: 1.2 | Q31: 1.2 | R31: 1.2 | S31: 1.2 | T31: 1.2 | U31: 1.2 | V31: 1.2 | W31: 1.2 | X31: 1.2 | Y31: 1.2 | Z31: 1.2 | AA31: 1.2 | AB31: 1.2 | AC31: 1.2 | AD31: 1.2 | AE31: 1.2 | AF31: 1.2 | AG31: 1.2 | AH31: 1.2 | AI31: 1.2 | AJ31: 1.2 | AK31: 1.2 | AL31: 1.2 | AM31: 1.2 | AN31: 1.2 | AO31: 1.2 | AP31: 1.2 | AQ31: 1.2 | AR31: 1.2 | AS31: 1.2 | AT31: 1.2 | AU31: 1.2 | AV31: 1.2 | AW31: 1.2 | AX31: 1.2 | AY31: 1.2 | AZ31: 1.2 | BA31: 1.2 | BB31: 1.2 | BC31: 1.2 | BD31: 1.2 | BE31: 1.2 | BF31: 1.2 | BG31: 1.2 | BH31: 1.2 | BI31: 1.2 | BJ31: 1.2 | BK31: 1.2 | BL31: 1.2 | BM31: 1.2 | BN31: 1.2 | BO31: 1.2 | BP31: 1.2 | BQ31: 1.2 | BR31: 1.2 | BS31: 1.2 | BT31: 1.2 | BU31: =BT31 -> 1.2 | BV31: 1.2 | BW31: 1.2 | BX31: 1.2 | BY31: 1.2 | BZ31: 1.2 | CA31: 1.2 | CB31: 1.2 | CC31: 1.2 | CD31: 1.2 | CE31: 1.2 | CF31: 1.2 | CG31: 1.2 | CH31: 1.2 | CI31: 1.2 | CJ31: 1.2 | CK31: 1.2 | CL31: 1.2 | CM31: 1.2 | CN31: 1.2 | CO31: 1.2 | CP31: 1.2 | CQ31: 1.2 | CR31: 1.2 | CS31: 1.2 | CT31: 1.2 | CU31: 1.2 | CV31: 1.2 | CW31: 1.2 | CX31: 1.2 | CY31: 1.2 | CZ31: 1.2 | DA31: 1.2 | DB31: 1.2 | DC31: 1.2 | DD31: 1.2 | DE31: 1.2 | DF31: 1.2 | DG31: 1.2 | DH31: 1.2 | DI31: 1.2 | DJ31: 1.2 | DK31: 1.2 | DL31: 1.2 | DM31: 1.2 | DN31: 1.2 | DO31: 1.2 | DP31: 1.2 | DQ31: 1.2 | DR31: 1.2 | DS31: 1.2 | DT31: 1.2 | DU31: 1.2 | DV31: 1.2 | DW31: 1.2 | DX31: 1.2 | DY31: 1.2 | DZ31: 1.2 | EA31: 1.2 | EB31: 1.2 | EC31: 1.2 | ED31: 1.2 | EE31: 1.2 | EF31: 1.2 | EG31: 1.2 | EH31: 1.2 | EI31: 1.2 | EJ31: 1.2 | EK31: 1.2 | EL31: 1.2 | EM31: 1.2 | EN31: 1.2 | EO31: 1.2 | EP31: 1.2 | EQ31: 1.2 | ER31: 1.2 | ES31: 1.2 | ET31: 1.2 | EU31: 1.2 | EV31: 1.2 | EW31: 1.2 | EX31: 1.2 | EY31: 1.2 | EZ31: 1.2 | FA31: 1.2 | FB31: 1.2 | FC31: 1.2 | FD31: 1.2 | FE31: 1.2 | FF31: 1.2 | FG31: 1.2 | FH31: 1.2 | FI31: 1.2 | FJ31: 1.2 | FK31: 1.2 | FL31: 1.2 | FM31: 1.2 | FN31: 1.2 | FO31: 1.2 | FP31: 1.2 | FQ31: 1.2 | FR31: 1.2 | FS31: 1.2 | FT31: 1.2 | FU31: 1.2 | FV31: 1.2 | FW31: 1.2 | FX31: 1.2 | FY31: 1.2 | FZ31: 1.2 | GA31: 1.2 | GB31: 1.2 | GC31: 1.2 | GD31: 1.2 | GE31: 1.2 | GF31: 1.2 | GG31: 1.2 | GH31: 1.2 | GI31: 1.2 | GJ31: 1.2 | GK31: 1.2 | GL31: 1.2 | GM31: 1.2 | GN31: 1.2 | GO31: 1.2 | GP31: 1.2 | GQ31: 1.2 | GR31: 1.2 | GS31: 1.2 | GT31: 1.2 | GU31: 1.2 | GV31: 1.2 | GW31: 1.2 | GX31: 1.2 | GY31: 1.2 | GZ31: 1.2 | HA31: 1.2 | HB31: 1.2 | HC31: 1.2 | HD31: 1.2 | HE31: 1.2 | HF31: 1.2 | HG31: 1.2 | HH31: 1.2 | HI31: 1.2 | HJ31: =HI31 -> 1.2 | HK31: 1.2 | HL31: 1.2 | HM31: 1.2 | HN31: 1.2 | HO31: 1.2 | HP31: 1.2 | HQ31: 1.2 | HR31: 1.2 | HS31: 1.2
D32: Interest_Rate | H32: =InputC!F45 -> 0.06 | I32: 0.06 | J32: =I32 -> 0.06 | K32: 0.06 | L32: 0.06 | M32: 0.06 | N32: 0.06 | O32: 0.06 | P32: 0.06 | Q32: 0.06 | R32: 0.06 | S32: 0.06 | T32: 0.06 | U32: 0.06 | V32: 0.06 | W32: 0.06 | X32: 0.06 | Y32: 0.06 | Z32: 0.06 | AA32: 0.06 | AB32: 0.06 | AC32: 0.06 | AD32: 0.06 | AE32: 0.06 | AF32: 0.06 | AG32: 0.06 | AH32: 0.06 | AI32: 0.06 | AJ32: 0.06 | AK32: 0.06 | AL32: 0.06 | AM32: 0.06 | AN32: 0.06 | AO32: 0.06 | AP32: 0.06 | AQ32: 0.06 | AR32: 0.06 | AS32: 0.06 | AT32: 0.06 | AU32: 0.06 | AV32: 0.06 | AW32: 0.06 | AX32: 0.06 | AY32: 0.06 | AZ32: 0.06 | BA32: 0.06 | BB32: 0.06 | BC32: 0.06 | BD32: 0.06 | BE32: 0.06 | BF32: 0.06 | BG32: 0.06 | BH32: 0.06 | BI32: 0.06 | BJ32: 0.06 | BK32: 0.06 | BL32: 0.06 | BM32: 0.06 | BN32: 0.06 | BO32: 0.06 | BP32: 0.06 | BQ32: 0.06 | BR32: 0.06 | BS32: 0.06 | BT32: 0.06 | BU32: 0.06 | BV32: 0.06 | BW32: 0.06 | BX32: 0.06 | BY32: 0.06 | BZ32: 0.06 | CA32: 0.06 | CB32: 0.06 | CC32: 0.06 | CD32: 0.06 | CE32: 0.06 | CF32: 0.06 | CG32: 0.06 | CH32: 0.06 | CI32: 0.06 | CJ32: 0.06 | CK32: 0.06 | CL32: 0.06 | CM32: 0.06 | CN32: 0.06 | CO32: 0.06 | CP32: 0.06 | CQ32: 0.06 | CR32: 0.06 | CS32: 0.06 | CT32: 0.06 | CU32: 0.06 | CV32: 0.06 | CW32: 0.06 | CX32: 0.06 | CY32: 0.06 | CZ32: 0.06 | DA32: 0.06 | DB32: 0.06 | DC32: 0.06 | DD32: 0.06 | DE32: 0.06 | DF32: 0.06 | DG32: 0.06 | DH32: 0.06 | DI32: 0.06 | DJ32: 0.06 | DK32: 0.06 | DL32: 0.06 | DM32: 0.06 | DN32: 0.06 | DO32: 0.06 | DP32: 0.06 | DQ32: 0.06 | DR32: 0.06 | DS32: 0.06 | DT32: 0.06 | DU32: 0.06 | DV32: 0.06 | DW32: 0.06 | DX32: 0.06 | DY32: 0.06 | DZ32: 0.06 | EA32: 0.06 | EB32: 0.06 | EC32: 0.06 | ED32: 0.06 | EE32: 0.06 | EF32: 0.06 | EG32: 0.06 | EH32: 0.06 | EI32: 0.06 | EJ32: 0.06 | EK32: 0.06 | EL32: 0.06 | EM32: 0.06 | EN32: 0.06 | EO32: 0.06 | EP32: 0.06 | EQ32: 0.06 | ER32: 0.06 | ES32: 0.06 | ET32: 0.06 | EU32: 0.06 | EV32: 0.06 | EW32: 0.06 | EX32: 0.06 | EY32: =EX32 -> 0.06 | EZ32: 0.06 | FA32: 0.06 | FB32: 0.06 | FC32: 0.06 | FD32: 0.06 | FE32: 0.06 | FF32: 0.06 | FG32: 0.06 | FH32: 0.06 | FI32: 0.06 | FJ32: 0.06 | FK32: 0.06 | FL32: 0.06 | FM32: 0.06 | FN32: 0.06 | FO32: 0.06 | FP32: 0.06 | FQ32: 0.06 | FR32: 0.06 | FS32: 0.06 | FT32: 0.06 | FU32: 0.06 | FV32: 0.06 | FW32: 0.06 | FX32: 0.06 | FY32: 0.06 | FZ32: 0.06 | GA32: 0.06 | GB32: 0.06 | GC32: 0.06 | GD32: 0.06 | GE32: 0.06 | GF32: 0.06 | GG32: 0.06 | GH32: 0.06 | GI32: 0.06 | GJ32: 0.06 | GK32: 0.06 | GL32: 0.06 | GM32: 0.06 | GN32: 0.06 | GO32: 0.06 | GP32: 0.06 | GQ32: 0.06 | GR32: 0.06 | GS32: 0.06 | GT32: 0.06 | GU32: 0.06 | GV32: 0.06 | GW32: 0.06 | GX32: 0.06 | GY32: 0.06 | GZ32: 0.06 | HA32: 0.06 | HB32: 0.06 | HC32: 0.06 | HD32: 0.06 | HE32: 0.06 | HF32: 0.06 | HG32: 0.06 | HH32: 0.06 | HI32: 0.06 | HJ32: 0.06 | HK32: 0.06 | HL32: 0.06 | HM32: 0.06 | HN32: 0.06 | HO32: 0.06 | HP32: 0.06 | HQ32: 0.06 | HR32: 0.06 | HS32: 0.06
D33: Up_Front_Fee | H33: =InputC!F46 -> 0.02 | I33: 0.02 | J33: 0.02 | K33: 0.02 | L33: 0.02 | M33: 0.02 | N33: 0.02 | O33: 0.02 | P33: 0.02 | Q33: 0.02 | R33: 0.02 | S33: 0.02 | T33: 0.02 | U33: 0.02 | V33: 0.02 | W33: 0.02 | X33: 0.02 | Y33: 0.02 | Z33: 0.02 | AA33: 0.02 | AB33: 0.02 | AC33: 0.02 | AD33: 0.02 | AE33: 0.02 | AF33: 0.02 | AG33: 0.02 | AH33: 0.02 | AI33: 0.02 | AJ33: 0.02 | AK33: 0.02 | AL33: 0.02 | AM33: 0.02 | AN33: 0.02 | AO33: 0.02 | AP33: 0.02 | AQ33: 0.02 | AR33: 0.02 | AS33: 0.02 | AT33: 0.02 | AU33: 0.02 | AV33: 0.02 | AW33: 0.02 | AX33: 0.02 | AY33: 0.02 | AZ33: 0.02 | BA33: 0.02 | BB33: 0.02 | BC33: 0.02 | BD33: 0.02 | BE33: 0.02 | BF33: 0.02 | BG33: 0.02 | BH33: 0.02 | BI33: 0.02 | BJ33: 0.02 | BK33: 0.02 | BL33: 0.02 | BM33: 0.02 | BN33: 0.02 | BO33: 0.02 | BP33: 0.02 | BQ33: 0.02 | BR33: 0.02 | BS33: 0.02 | BT33: 0.02 | BU33: 0.02 | BV33: 0.02 | BW33: 0.02 | BX33: 0.02 | BY33: 0.02 | BZ33: 0.02 | CA33: 0.02 | CB33: 0.02 | CC33: 0.02 | CD33: 0.02 | CE33: 0.02 | CF33: 0.02 | CG33: 0.02 | CH33: 0.02 | CI33: 0.02 | CJ33: 0.02 | CK33: 0.02 | CL33: 0.02 | CM33: 0.02 | CN33: 0.02 | CO33: 0.02 | CP33: 0.02 | CQ33: 0.02 | CR33: 0.02 | CS33: 0.02 | CT33: 0.02 | CU33: 0.02 | CV33: 0.02 | CW33: 0.02 | CX33: 0.02 | CY33: 0.02 | CZ33: 0.02 | DA33: 0.02 | DB33: 0.02 | DC33: 0.02 | DD33: 0.02 | DE33: 0.02 | DF33: 0.02 | DG33: 0.02 | DH33: 0.02 | DI33: 0.02 | DJ33: 0.02 | DK33: 0.02 | DL33: 0.02 | DM33: 0.02 | DN33: 0.02 | DO33: 0.02 | DP33: 0.02 | DQ33: 0.02 | DR33: 0.02 | DS33: 0.02 | DT33: 0.02 | DU33: 0.02 | DV33: 0.02 | DW33: 0.02 | DX33: 0.02 | DY33: 0.02 | DZ33: 0.02 | EA33: 0.02 | EB33: 0.02 | EC33: 0.02 | ED33: 0.02 | EE33: 0.02 | EF33: 0.02 | EG33: 0.02 | EH33: 0.02 | EI33: 0.02 | EJ33: 0.02 | EK33: 0.02 | EL33: 0.02 | EM33: 0.02 | EN33: 0.02 | EO33: 0.02 | EP33: 0.02 | EQ33: 0.02 | ER33: 0.02 | ES33: 0.02 | ET33: 0.02 | EU33: 0.02 | EV33: 0.02 | EW33: 0.02 | EX33: 0.02 | EY33: 0.02 | EZ33: 0.02 | FA33: 0.02 | FB33: 0.02 | FC33: 0.02 | FD33: 0.02 | FE33: 0.02 | FF33: 0.02 | FG33: 0.02 | FH33: 0.02 | FI33: 0.02 | FJ33: 0.02 | FK33: 0.02 | FL33: 0.02 | FM33: 0.02 | FN33: 0.02 | FO33: 0.02 | FP33: 0.02 | FQ33: 0.02 | FR33: 0.02 | FS33: 0.02 | FT33: 0.02 | FU33: 0.02 | FV33: 0.02 | FW33: 0.02 | FX33: 0.02 | FY33: 0.02 | FZ33: 0.02 | GA33: 0.02 | GB33: 0.02 | GC33: 0.02 | GD33: 0.02 | GE33: 0.02 | GF33: 0.02 | GG33: 0.02 | GH33: 0.02 | GI33: 0.02 | GJ33: 0.02 | GK33: 0.02 | GL33: 0.02 | GM33: 0.02 | GN33: 0.02 | GO33: 0.02 | GP33: 0.02 | GQ33: 0.02 | GR33: 0.02 | GS33: 0.02 | GT33: 0.02 | GU33: 0.02 | GV33: 0.02 | GW33: 0.02 | GX33: 0.02 | GY33: 0.02 | GZ33: 0.02 | HA33: 0.02 | HB33: 0.02 | HC33: 0.02 | HD33: 0.02 | HE33: 0.02 | HF33: 0.02 | HG33: 0.02 | HH33: 0.02 | HI33: 0.02 | HJ33: 0.02 | HK33: 0.02 | HL33: 0.02 | HM33: 0.02 | HN33: 0.02 | HO33: 0.02 | HP33: 0.02 | HQ33: 0.02 | HR33: 0.02 | HS33: 0.02
D34: Commitment_Fee | H34: =InputC!F47 -> 0.01 | I34: 0.01 | J34: 0.01 | K34: 0.01 | L34: 0.01 | M34: 0.01 | N34: 0.01 | O34: 0.01 | P34: 0.01 | Q34: 0.01 | R34: 0.01 | S34: 0.01 | T34: 0.01 | U34: 0.01 | V34: 0.01 | W34: 0.01 | X34: 0.01 | Y34: 0.01 | Z34: 0.01 | AA34: 0.01 | AB34: 0.01 | AC34: 0.01 | AD34: 0.01 | AE34: 0.01 | AF34: 0.01 | AG34: 0.01 | AH34: 0.01 | AI34: 0.01 | AJ34: 0.01 | AK34: 0.01 | AL34: 0.01 | AM34: 0.01 | AN34: 0.01 | AO34: 0.01 | AP34: 0.01 | AQ34: 0.01 | AR34: 0.01 | AS34: 0.01 | AT34: 0.01 | AU34: 0.01 | AV34: 0.01 | AW34: 0.01 | AX34: 0.01 | AY34: 0.01 | AZ34: 0.01 | BA34: 0.01 | BB34: 0.01 | BC34: 0.01 | BD34: 0.01 | BE34: 0.01 | BF34: 0.01 | BG34: 0.01 | BH34: 0.01 | BI34: 0.01 | BJ34: 0.01 | BK34: 0.01 | BL34: 0.01 | BM34: 0.01 | BN34: 0.01 | BO34: 0.01 | BP34: 0.01 | BQ34: 0.01 | BR34: 0.01 | BS34: 0.01 | BT34: 0.01 | BU34: 0.01 | BV34: 0.01 | BW34: 0.01 | BX34: 0.01 | BY34: 0.01 | BZ34: 0.01 | CA34: 0.01 | CB34: 0.01 | CC34: 0.01 | CD34: 0.01 | CE34: 0.01 | CF34: 0.01 | CG34: 0.01 | CH34: 0.01 | CI34: 0.01 | CJ34: 0.01 | CK34: 0.01 | CL34: 0.01 | CM34: 0.01 | CN34: 0.01 | CO34: 0.01 | CP34: 0.01 | CQ34: 0.01 | CR34: 0.01 | CS34: 0.01 | CT34: 0.01 | CU34: 0.01 | CV34: 0.01 | CW34: 0.01 | CX34: 0.01 | CY34: 0.01 | CZ34: 0.01 | DA34: 0.01 | DB34: 0.01 | DC34: 0.01 | DD34: 0.01 | DE34: 0.01 | DF34: 0.01 | DG34: 0.01 | DH34: 0.01 | DI34: 0.01 | DJ34: 0.01 | DK34: 0.01 | DL34: 0.01 | DM34: 0.01 | DN34: 0.01 | DO34: 0.01 | DP34: 0.01 | DQ34: 0.01 | DR34: 0.01 | DS34: 0.01 | DT34: 0.01 | DU34: 0.01 | DV34: 0.01 | DW34: 0.01 | DX34: 0.01 | DY34: 0.01 | DZ34: 0.01 | EA34: 0.01 | EB34: 0.01 | EC34: 0.01 | ED34: 0.01 | EE34: 0.01 | EF34: 0.01 | EG34: 0.01 | EH34: 0.01 | EI34: 0.01 | EJ34: 0.01 | EK34: 0.01 | EL34: 0.01 | EM34: 0.01 | EN34: 0.01 | EO34: 0.01 | EP34: 0.01 | EQ34: 0.01 | ER34: 0.01 | ES34: 0.01 | ET34: 0.01 | EU34: 0.01 | EV34: =EU34 -> 0.01 | EW34: 0.01 | EX34: 0.01 | EY34: 0.01 | EZ34: 0.01 | FA34: 0.01 | FB34: 0.01 | FC34: 0.01 | FD34: 0.01 | FE34: 0.01 | FF34: 0.01 | FG34: 0.01 | FH34: 0.01 | FI34: 0.01 | FJ34: 0.01 | FK34: 0.01 | FL34: 0.01 | FM34: 0.01 | FN34: 0.01 | FO34: 0.01 | FP34: 0.01 | FQ34: 0.01 | FR34: 0.01 | FS34: 0.01 | FT34: 0.01 | FU34: 0.01 | FV34: 0.01 | FW34: 0.01 | FX34: 0.01 | FY34: 0.01 | FZ34: 0.01 | GA34: 0.01 | GB34: 0.01 | GC34: 0.01 | GD34: 0.01 | GE34: 0.01 | GF34: 0.01 | GG34: 0.01 | GH34: 0.01 | GI34: 0.01 | GJ34: 0.01 | GK34: 0.01 | GL34: 0.01 | GM34: 0.01 | GN34: 0.01 | GO34: 0.01 | GP34: 0.01 | GQ34: 0.01 | GR34: 0.01 | GS34: 0.01 | GT34: 0.01 | GU34: 0.01 | GV34: 0.01 | GW34: 0.01 | GX34: 0.01 | GY34: 0.01 | GZ34: 0.01 | HA34: 0.01 | HB34: 0.01 | HC34: 0.01 | HD34: 0.01 | HE34: 0.01 | HF34: 0.01 | HG34: 0.01 | HH34: 0.01 | HI34: 0.01 | HJ34: 0.01 | HK34: 0.01 | HL34: 0.01 | HM34: 0.01 | HN34: 0.01 | HO34: 0.01 | HP34: 0.01 | HQ34: 0.01 | HR34: 0.01 | HS34: 0.01
D35: Debt_Tenor | H35: =InputC!F49 -> 35 | I35: 35 | J35: 35 | K35: 35 | L35: 35 | M35: 35 | N35: 35 | O35: 35 | P35: 35 | Q35: 35 | R35: 35 | S35: 35 | T35: 35 | U35: 35 | V35: 35 | W35: 35 | X35: 35 | Y35: 35 | Z35: 35 | AA35: 35 | AB35: 35 | AC35: 35 | AD35: 35 | AE35: 35 | AF35: 35 | AG35: 35 | AH35: 35 | AI35: 35 | AJ35: 35 | AK35: 35 | AL35: 35 | AM35: 35 | AN35: 35 | AO35: 35 | AP35: 35 | AQ35: 35 | AR35: 35 | AS35: 35 | AT35: 35 | AU35: 35 | AV35: 35 | AW35: 35 | AX35: 35 | AY35: 35 | AZ35: 35 | BA35: 35 | BB35: 35 | BC35: 35 | BD35: 35 | BE35: 35 | BF35: 35 | BG35: 35 | BH35: 35 | BI35: 35 | BJ35: 35 | BK35: 35 | BL35: 35 | BM35: 35 | BN35: 35 | BO35: 35 | BP35: 35 | BQ35: 35 | BR35: 35 | BS35: 35 | BT35: 35 | BU35: =BT35 -> 35 | BV35: 35 | BW35: 35 | BX35: 35 | BY35: 35 | BZ35: 35 | CA35: 35 | CB35: 35 | CC35: 35 | CD35: 35 | CE35: 35 | CF35: 35 | CG35: 35 | CH35: 35 | CI35: 35 | CJ35: 35 | CK35: 35 | CL35: 35 | CM35: 35 | CN35: 35 | CO35: 35 | CP35: 35 | CQ35: 35 | CR35: 35 | CS35: 35 | CT35: 35 | CU35: 35 | CV35: 35 | CW35: 35 | CX35: 35 | CY35: 35 | CZ35: 35 | DA35: 35 | DB35: 35 | DC35: 35 | DD35: 35 | DE35: 35 | DF35: 35 | DG35: 35 | DH35: 35 | DI35: 35 | DJ35: 35 | DK35: 35 | DL35: 35 | DM35: 35 | DN35: 35 | DO35: 35 | DP35: 35 | DQ35: 35 | DR35: 35 | DS35: 35 | DT35: 35 | DU35: 35 | DV35: 35 | DW35: 35 | DX35: 35 | DY35: 35 | DZ35: 35 | EA35: 35 | EB35: 35 | EC35: 35 | ED35: 35 | EE35: 35 | EF35: 35 | EG35: =EF35 -> 35 | EH35: 35 | EI35: 35 | EJ35: 35 | EK35: 35 | EL35: 35 | EM35: 35 | EN35: 35 | EO35: 35 | EP35: 35 | EQ35: 35 | ER35: 35 | ES35: 35 | ET35: 35 | EU35: 35 | EV35: 35 | EW35: 35 | EX35: 35 | EY35: 35 | EZ35: 35 | FA35: 35 | FB35: 35 | FC35: 35 | FD35: 35 | FE35: 35 | FF35: 35 | FG35: 35 | FH35: 35 | FI35: 35 | FJ35: 35 | FK35: 35 | FL35: 35 | FM35: 35 | FN35: 35 | FO35: 35 | FP35: 35 | FQ35: 35 | FR35: 35 | FS35: 35 | FT35: 35 | FU35: 35 | FV35: 35 | FW35: 35 | FX35: 35 | FY35: 35 | FZ35: 35 | GA35: 35 | GB35: 35 | GC35: 35 | GD35: 35 | GE35: 35 | GF35: 35 | GG35: 35 | GH35: 35 | GI35: 35 | GJ35: 35 | GK35: 35 | GL35: 35 | GM35: 35 | GN35: 35 | GO35: 35 | GP35: 35 | GQ35: 35 | GR35: 35 | GS35: 35 | GT35: 35 | GU35: 35 | GV35: 35 | GW35: 35 | GX35: 35 | GY35: 35 | GZ35: 35 | HA35: 35 | HB35: 35 | HC35: 35 | HD35: 35 | HE35: 35 | HF35: 35 | HG35: 35 | HH35: 35 | HI35: 35 | HJ35: 35 | HK35: 35 | HL35: 35 | HM35: 35 | HN35: 35 | HO35: 35 | HP35: 35 | HQ35: 35 | HR35: 35 | HS35: 35
D36: Pro_Rata | H36: =InputC!F51 -> 1 | I36: 1 | J36: =I36 -> 1 | K36: 1 | L36: 1 | M36: 1 | N36: 1 | O36: 1 | P36: 1 | Q36: 1 | R36: 1 | S36: 1 | T36: 1 | U36: 1 | V36: 1 | W36: 1 | X36: 1 | Y36: 1 | Z36: 1 | AA36: 1 | AB36: 1 | AC36: 1 | AD36: 1 | AE36: 1 | AF36: 1 | AG36: 1 | AH36: 1 | AI36: 1 | AJ36: 1 | AK36: 1 | AL36: 1 | AM36: 1 | AN36: 1 | AO36: 1 | AP36: 1 | AQ36: 1 | AR36: 1 | AS36: 1 | AT36: 1 | AU36: 1 | AV36: 1 | AW36: 1 | AX36: 1 | AY36: 1 | AZ36: 1 | BA36: 1 | BB36: 1 | BC36: 1 | BD36: 1 | BE36: 1 | BF36: 1 | BG36: 1 | BH36: 1 | BI36: 1 | BJ36: 1 | BK36: 1 | BL36: 1 | BM36: 1 | BN36: 1 | BO36: 1 | BP36: 1 | BQ36: 1 | BR36: 1 | BS36: 1 | BT36: 1 | BU36: 1 | BV36: 1 | BW36: 1 | BX36: 1 | BY36: 1 | BZ36: 1 | CA36: 1 | CB36: 1 | CC36: 1 | CD36: 1 | CE36: 1 | CF36: 1 | CG36: 1 | CH36: 1 | CI36: 1 | CJ36: 1 | CK36: 1 | CL36: 1 | CM36: 1 | CN36: 1 | CO36: 1 | CP36: 1 | CQ36: 1 | CR36: 1 | CS36: 1 | CT36: 1 | CU36: 1 | CV36: 1 | CW36: 1 | CX36: 1 | CY36: 1 | CZ36: 1 | DA36: 1 | DB36: 1 | DC36: 1 | DD36: 1 | DE36: 1 | DF36: 1 | DG36: 1 | DH36: 1 | DI36: 1 | DJ36: 1 | DK36: 1 | DL36: 1 | DM36: 1 | DN36: 1 | DO36: 1 | DP36: 1 | DQ36: 1 | DR36: 1 | DS36: 1 | DT36: 1 | DU36: 1 | DV36: 1 | DW36: 1 | DX36: 1 | DY36: 1 | DZ36: 1 | EA36: 1 | EB36: 1 | EC36: 1 | ED36: 1 | EE36: 1 | EF36: 1 | EG36: 1 | EH36: 1 | EI36: 1 | EJ36: 1 | EK36: 1 | EL36: 1 | EM36: 1 | EN36: 1 | EO36: 1 | EP36: 1 | EQ36: 1 | ER36: 1 | ES36: 1 | ET36: 1 | EU36: 1 | EV36: 1 | EW36: 1 | EX36: 1 | EY36: 1 | EZ36: 1 | FA36: 1 | FB36: 1 | FC36: 1 | FD36: 1 | FE36: 1 | FF36: 1 | FG36: 1 | FH36: 1 | FI36: 1 | FJ36: 1 | FK36: 1 | FL36: 1 | FM36: 1 | FN36: 1 | FO36: 1 | FP36: 1 | FQ36: 1 | FR36: 1 | FS36: 1 | FT36: 1 | FU36: 1 | FV36: 1 | FW36: 1 | FX36: 1 | FY36: 1 | FZ36: 1 | GA36: 1 | GB36: 1 | GC36: 1 | GD36: 1 | GE36: 1 | GF36: 1 | GG36: 1 | GH36: 1 | GI36: 1 | GJ36: 1 | GK36: 1 | GL36: 1 | GM36: 1 | GN36: 1 | GO36: 1 | GP36: 1 | GQ36: 1 | GR36: 1 | GS36: 1 | GT36: 1 | GU36: 1 | GV36: 1 | GW36: 1 | GX36: 1 | GY36: 1 | GZ36: 1 | HA36: 1 | HB36: 1 | HC36: 1 | HD36: 1 | HE36: 1 | HF36: 1 | HG36: 1 | HH36: 1 | HI36: 1 | HJ36: 1 | HK36: 1 | HL36: 1 | HM36: 1 | HN36: 1 | HO36: 1 | HP36: 1 | HQ36: 1 | HR36: 1 | HS36: 1
D37: Equity_First | H37: =InputC!F52 -> 0 | I37: 0 | J37: 0 | K37: 0 | L37: 0 | M37: 0 | N37: 0 | O37: 0 | P37: 0 | Q37: 0 | R37: 0 | S37: 0 | T37: 0 | U37: 0 | V37: 0 | W37: 0 | X37: 0 | Y37: 0 | Z37: 0 | AA37: 0 | AB37: 0 | AC37: 0 | AD37: 0 | AE37: 0 | AF37: 0 | AG37: 0 | AH37: 0 | AI37: 0 | AJ37: 0 | AK37: 0 | AL37: 0 | AM37: 0 | AN37: 0 | AO37: 0 | AP37: 0 | AQ37: 0 | AR37: 0 | AS37: 0 | AT37: 0 | AU37: 0 | AV37: 0 | AW37: 0 | AX37: 0 | AY37: 0 | AZ37: 0 | BA37: 0 | BB37: 0 | BC37: 0 | BD37: 0 | BE37: 0 | BF37: 0 | BG37: 0 | BH37: 0 | BI37: 0 | BJ37: 0 | BK37: 0 | BL37: 0 | BM37: 0 | BN37: 0 | BO37: 0 | BP37: 0 | BQ37: 0 | BR37: 0 | BS37: 0 | BT37: 0 | BU37: 0 | BV37: 0 | BW37: 0 | BX37: 0 | BY37: 0 | BZ37: 0 | CA37: 0 | CB37: 0 | CC37: 0 | CD37: 0 | CE37: 0 | CF37: 0 | CG37: 0 | CH37: 0 | CI37: 0 | CJ37: 0 | CK37: 0 | CL37: 0 | CM37: 0 | CN37: 0 | CO37: 0 | CP37: 0 | CQ37: 0 | CR37: 0 | CS37: 0 | CT37: 0 | CU37: 0 | CV37: 0 | CW37: 0 | CX37: 0 | CY37: 0 | CZ37: 0 | DA37: 0 | DB37: 0 | DC37: 0 | DD37: 0 | DE37: 0 | DF37: 0 | DG37: 0 | DH37: 0 | DI37: 0 | DJ37: 0 | DK37: 0 | DL37: 0 | DM37: 0 | DN37: 0 | DO37: 0 | DP37: 0 | DQ37: 0 | DR37: 0 | DS37: 0 | DT37: 0 | DU37: 0 | DV37: 0 | DW37: 0 | DX37: 0 | DY37: 0 | DZ37: 0 | EA37: 0 | EB37: 0 | EC37: 0 | ED37: 0 | EE37: 0 | EF37: 0 | EG37: 0 | EH37: 0 | EI37: 0 | EJ37: 0 | EK37: 0 | EL37: 0 | EM37: 0 | EN37: 0 | EO37: 0 | EP37: 0 | EQ37: 0 | ER37: 0 | ES37: 0 | ET37: 0 | EU37: 0 | EV37: 0 | EW37: 0 | EX37: 0 | EY37: 0 | EZ37: 0 | FA37: 0 | FB37: 0 | FC37: 0 | FD37: 0 | FE37: 0 | FF37: 0 | FG37: 0 | FH37: 0 | FI37: 0 | FJ37: 0 | FK37: 0 | FL37: 0 | FM37: 0 | FN37: 0 | FO37: 0 | FP37: 0 | FQ37: 0 | FR37: 0 | FS37: 0 | FT37: 0 | FU37: 0 | FV37: 0 | FW37: 0 | FX37: 0 | FY37: 0 | FZ37: 0 | GA37: 0 | GB37: 0 | GC37: 0 | GD37: 0 | GE37: 0 | GF37: 0 | GG37: 0 | GH37: 0 | GI37: 0 | GJ37: 0 | GK37: 0 | GL37: 0 | GM37: 0 | GN37: 0 | GO37: 0 | GP37: 0 | GQ37: 0 | GR37: 0 | GS37: 0 | GT37: 0 | GU37: 0 | GV37: 0 | GW37: 0 | GX37: 0 | GY37: 0 | GZ37: 0 | HA37: 0 | HB37: 0 | HC37: 0 | HD37: 0 | HE37: 0 | HF37: 0 | HG37: 0 | HH37: 0 | HI37: 0 | HJ37: 0 | HK37: 0 | HL37: 0 | HM37: 0 | HN37: 0 | HO37: 0 | HP37: 0 | HQ37: 0 | HR37: 0 | HS37: 0
D38: =InputC!D56 -> Turn UDF ON | H38: =InputC!F56 -> 1 | I38: 1 | J38: 1 | K38: 1 | L38: 1 | M38: 1 | N38: 1 | O38: 1 | P38: 1 | Q38: 1 | R38: 1 | S38: 1 | T38: 1 | U38: 1 | V38: 1 | W38: 1 | X38: 1 | Y38: 1 | Z38: 1 | AA38: 1 | AB38: 1 | AC38: 1 | AD38: 1 | AE38: 1 | AF38: 1 | AG38: 1 | AH38: 1 | AI38: 1 | AJ38: 1 | AK38: 1 | AL38: 1 | AM38: 1 | AN38: 1 | AO38: 1 | AP38: 1 | AQ38: 1 | AR38: 1 | AS38: 1 | AT38: 1 | AU38: 1 | AV38: 1 | AW38: 1 | AX38: 1 | AY38: 1 | AZ38: 1 | BA38: 1 | BB38: 1 | BC38: 1 | BD38: 1 | BE38: 1 | BF38: 1 | BG38: 1 | BH38: 1 | BI38: 1 | BJ38: 1 | BK38: 1 | BL38: 1 | BM38: 1 | BN38: 1 | BO38: 1 | BP38: 1 | BQ38: 1 | BR38: 1 | BS38: 1 | BT38: 1 | BU38: 1 | BV38: 1 | BW38: 1 | BX38: 1 | BY38: 1 | BZ38: 1 | CA38: 1 | CB38: 1 | CC38: 1 | CD38: 1 | CE38: 1 | CF38: 1 | CG38: 1 | CH38: 1 | CI38: 1 | CJ38: 1 | CK38: 1 | CL38: 1 | CM38: 1 | CN38: 1 | CO38: 1 | CP38: 1 | CQ38: 1 | CR38: 1 | CS38: 1 | CT38: 1 | CU38: 1 | CV38: 1 | CW38: 1 | CX38: 1 | CY38: 1 | CZ38: 1 | DA38: 1 | DB38: 1 | DC38: 1 | DD38: 1 | DE38: 1 | DF38: 1 | DG38: 1 | DH38: 1 | DI38: 1 | DJ38: 1 | DK38: 1 | DL38: 1 | DM38: 1 | DN38: 1 | DO38: 1 | DP38: 1 | DQ38: 1 | DR38: 1 | DS38: 1 | DT38: 1 | DU38: 1 | DV38: 1 | DW38: 1 | DX38: 1 | DY38: 1 | DZ38: 1 | EA38: 1 | EB38: 1 | EC38: 1 | ED38: 1 | EE38: 1 | EF38: 1 | EG38: 1 | EH38: 1 | EI38: 1 | EJ38: 1 | EK38: 1 | EL38: 1 | EM38: 1 | EN38: 1 | EO38: 1 | EP38: 1 | EQ38: 1 | ER38: 1 | ES38: 1 | ET38: 1 | EU38: 1 | EV38: 1 | EW38: 1 | EX38: 1 | EY38: 1 | EZ38: 1 | FA38: 1 | FB38: 1 | FC38: 1 | FD38: 1 | FE38: 1 | FF38: 1 | FG38: 1 | FH38: 1 | FI38: 1 | FJ38: 1 | FK38: 1 | FL38: 1 | FM38: 1 | FN38: 1 | FO38: 1 | FP38: 1 | FQ38: 1 | FR38: 1 | FS38: 1 | FT38: 1 | FU38: 1 | FV38: 1 | FW38: 1 | FX38: 1 | FY38: 1 | FZ38: 1 | GA38: 1 | GB38: 1 | GC38: 1 | GD38: 1 | GE38: 1 | GF38: 1 | GG38: 1 | GH38: 1 | GI38: 1 | GJ38: 1 | GK38: 1 | GL38: 1 | GM38: 1 | GN38: 1 | GO38: 1 | GP38: 1 | GQ38: 1 | GR38: =GQ38 -> 1 | GS38: 1 | GT38: 1 | GU38: 1 | GV38: 1 | GW38: 1 | GX38: 1 | GY38: 1 | GZ38: 1 | HA38: 1 | HB38: 1 | HC38: 1 | HD38: 1 | HE38: 1 | HF38: 1 | HG38: 1 | HH38: 1 | HI38: 1 | HJ38: 1 | HK38: 1 | HL38: 1 | HM38: 1 | HN38: 1 | HO38: 1 | HP38: 1 | HQ38: 1 | HR38: 1 | HS38: 1
D39: =InputC!D57 -> Calculation Column Start | H39: =InputC!F57 -> 11 | I39: 11 | J39: 11 | K39: 11 | L39: 11 | M39: 11 | N39: 11 | O39: 11 | P39: 11 | Q39: 11 | R39: 11 | S39: 11 | T39: 11 | U39: 11 | V39: 11 | W39: 11 | X39: 11 | Y39: 11 | Z39: 11 | AA39: 11 | AB39: 11 | AC39: 11 | AD39: 11 | AE39: 11 | AF39: 11 | AG39: 11 | AH39: 11 | AI39: 11 | AJ39: 11 | AK39: 11 | AL39: 11 | AM39: 11 | AN39: 11 | AO39: 11 | AP39: 11 | AQ39: 11 | AR39: 11 | AS39: 11 | AT39: 11 | AU39: 11 | AV39: 11 | AW39: 11 | AX39: 11 | AY39: 11 | AZ39: 11 | BA39: 11 | BB39: 11 | BC39: 11 | BD39: 11 | BE39: 11 | BF39: 11 | BG39: 11 | BH39: 11 | BI39: 11 | BJ39: 11 | BK39: 11 | BL39: 11 | BM39: 11 | BN39: 11 | BO39: 11 | BP39: 11 | BQ39: 11 | BR39: 11 | BS39: 11 | BT39: 11 | BU39: =BT39 -> 11 | BV39: 11 | BW39: 11 | BX39: 11 | BY39: 11 | BZ39: 11 | CA39: 11 | CB39: 11 | CC39: 11 | CD39: 11 | CE39: 11 | CF39: 11 | CG39: 11 | CH39: 11 | CI39: 11 | CJ39: 11 | CK39: 11 | CL39: 11 | CM39: 11 | CN39: 11 | CO39: 11 | CP39: 11 | CQ39: 11 | CR39: 11 | CS39: 11 | CT39: 11 | CU39: 11 | CV39: 11 | CW39: 11 | CX39: 11 | CY39: 11 | CZ39: 11 | DA39: 11 | DB39: 11 | DC39: 11 | DD39: 11 | DE39: 11 | DF39: 11 | DG39: 11 | DH39: 11 | DI39: 11 | DJ39: 11 | DK39: 11 | DL39: 11 | DM39: 11 | DN39: 11 | DO39: 11 | DP39: 11 | DQ39: 11 | DR39: 11 | DS39: 11 | DT39: 11 | DU39: 11 | DV39: 11 | DW39: 11 | DX39: 11 | DY39: 11 | DZ39: 11 | EA39: 11 | EB39: 11 | EC39: 11 | ED39: 11 | EE39: 11 | EF39: 11 | EG39: =EF39 -> 11 | EH39: 11 | EI39: 11 | EJ39: 11 | EK39: 11 | EL39: 11 | EM39: 11 | EN39: 11 | EO39: 11 | EP39: 11 | EQ39: 11 | ER39: 11 | ES39: 11 | ET39: 11 | EU39: 11 | EV39: 11 | EW39: 11 | EX39: 11 | EY39: 11 | EZ39: 11 | FA39: 11 | FB39: 11 | FC39: 11 | FD39: 11 | FE39: 11 | FF39: 11 | FG39: 11 | FH39: 11 | FI39: 11 | FJ39: 11 | FK39: 11 | FL39: 11 | FM39: 11 | FN39: 11 | FO39: 11 | FP39: 11 | FQ39: 11 | FR39: 11 | FS39: 11 | FT39: 11 | FU39: 11 | FV39: 11 | FW39: 11 | FX39: 11 | FY39: 11 | FZ39: 11 | GA39: 11 | GB39: 11 | GC39: 11 | GD39: 11 | GE39: 11 | GF39: 11 | GG39: 11 | GH39: 11 | GI39: 11 | GJ39: 11 | GK39: 11 | GL39: 11 | GM39: 11 | GN39: 11 | GO39: 11 | GP39: 11 | GQ39: 11 | GR39: 11 | GS39: 11 | GT39: 11 | GU39: 11 | GV39: 11 | GW39: 11 | GX39: 11 | GY39: 11 | GZ39: 11 | HA39: 11 | HB39: 11 | HC39: 11 | HD39: 11 | HE39: 11 | HF39: 11 | HG39: 11 | HH39: 11 | HI39: 11 | HJ39: 11 | HK39: 11 | HL39: 11 | HM39: 11 | HN39: 11 | HO39: 11 | HP39: 11 | HQ39: 11 | HR39: 11 | HS39: 11
D40: =InputC!D58 -> Sum Column | H40: =InputC!F58 -> 9 | I40: 9 | J40: =I40 -> 9 | K40: 9 | L40: 9 | M40: 9 | N40: 9 | O40: 9 | P40: 9 | Q40: 9 | R40: 9 | S40: 9 | T40: 9 | U40: 9 | V40: 9 | W40: 9 | X40: 9 | Y40: 9 | Z40: 9 | AA40: 9 | AB40: 9 | AC40: 9 | AD40: 9 | AE40: 9 | AF40: 9 | AG40: 9 | AH40: 9 | AI40: 9 | AJ40: 9 | AK40: 9 | AL40: 9 | AM40: 9 | AN40: 9 | AO40: 9 | AP40: 9 | AQ40: 9 | AR40: 9 | AS40: 9 | AT40: 9 | AU40: 9 | AV40: 9 | AW40: 9 | AX40: 9 | AY40: 9 | AZ40: 9 | BA40: 9 | BB40: 9 | BC40: 9 | BD40: 9 | BE40: 9 | BF40: 9 | BG40: 9 | BH40: 9 | BI40: 9 | BJ40: 9 | BK40: 9 | BL40: 9 | BM40: 9 | BN40: 9 | BO40: 9 | BP40: 9 | BQ40: 9 | BR40: 9 | BS40: 9 | BT40: 9 | BU40: 9 | BV40: 9 | BW40: 9 | BX40: 9 | BY40: 9 | BZ40: 9 | CA40: 9 | CB40: 9 | CC40: 9 | CD40: 9 | CE40: 9 | CF40: 9 | CG40: 9 | CH40: 9 | CI40: 9 | CJ40: 9 | CK40: 9 | CL40: 9 | CM40: 9 | CN40: 9 | CO40: 9 | CP40: 9 | CQ40: 9 | CR40: 9 | CS40: 9 | CT40: 9 | CU40: 9 | CV40: 9 | CW40: 9 | CX40: 9 | CY40: 9 | CZ40: 9 | DA40: 9 | DB40: 9 | DC40: 9 | DD40: 9 | DE40: 9 | DF40: 9 | DG40: 9 | DH40: 9 | DI40: 9 | DJ40: 9 | DK40: 9 | DL40: 9 | DM40: 9 | DN40: 9 | DO40: 9 | DP40: 9 | DQ40: 9 | DR40: 9 | DS40: 9 | DT40: 9 | DU40: 9 | DV40: 9 | DW40: 9 | DX40: 9 | DY40: 9 | DZ40: 9 | EA40: 9 | EB40: 9 | EC40: 9 | ED40: 9 | EE40: 9 | EF40: 9 | EG40: 9 | EH40: 9 | EI40: 9 | EJ40: 9 | EK40: 9 | EL40: 9 | EM40: 9 | EN40: 9 | EO40: 9 | EP40: 9 | EQ40: 9 | ER40: 9 | ES40: 9 | ET40: 9 | EU40: 9 | EV40: 9 | EW40: 9 | EX40: 9 | EY40: 9 | EZ40: 9 | FA40: 9 | FB40: 9 | FC40: 9 | FD40: 9 | FE40: 9 | FF40: 9 | FG40: 9 | FH40: 9 | FI40: 9 | FJ40: 9 | FK40: 9 | FL40: 9 | FM40: 9 | FN40: 9 | FO40: 9 | FP40: 9 | FQ40: 9 | FR40: 9 | FS40: 9 | FT40: 9 | FU40: 9 | FV40: 9 | FW40: 9 | FX40: 9 | FY40: 9 | FZ40: 9 | GA40: 9 | GB40: 9 | GC40: 9 | GD40: 9 | GE40: 9 | GF40: 9 | GG40: 9 | GH40: 9 | GI40: 9 | GJ40: 9 | GK40: 9 | GL40: 9 | GM40: 9 | GN40: 9 | GO40: 9 | GP40: 9 | GQ40: 9 | GR40: 9 | GS40: 9 | GT40: 9 | GU40: 9 | GV40: 9 | GW40: 9 | GX40: 9 | GY40: 9 | GZ40: 9 | HA40: 9 | HB40: 9 | HC40: 9 | HD40: 9 | HE40: 9 | HF40: 9 | HG40: 9 | HH40: 9 | HI40: 9 | HJ40: 9 | HK40: 9 | HL40: 9 | HM40: 9 | HN40: 9 | HO40: 9 | HP40: 9 | HQ40: 9 | HR40: 9 | HS40: 9
D41: =InputC!D59 -> Title Column | H41: =InputC!F59 -> 4 | I41: 4 | J41: 4 | K41: 4 | L41: 4 | M41: 4 | N41: 4 | O41: 4 | P41: 4 | Q41: 4 | R41: 4 | S41: 4 | T41: 4 | U41: 4 | V41: 4 | W41: 4 | X41: 4 | Y41: 4 | Z41: 4 | AA41: 4 | AB41: 4 | AC41: 4 | AD41: 4 | AE41: 4 | AF41: 4 | AG41: 4 | AH41: 4 | AI41: 4 | AJ41: 4 | AK41: 4 | AL41: 4 | AM41: 4 | AN41: 4 | AO41: 4 | AP41: 4 | AQ41: 4 | AR41: 4 | AS41: 4 | AT41: 4 | AU41: 4 | AV41: 4 | AW41: 4 | AX41: 4 | AY41: 4 | AZ41: 4 | BA41: 4 | BB41: 4 | BC41: 4 | BD41: 4 | BE41: 4 | BF41: 4 | BG41: 4 | BH41: 4 | BI41: 4 | BJ41: 4 | BK41: 4 | BL41: 4 | BM41: 4 | BN41: 4 | BO41: 4 | BP41: 4 | BQ41: 4 | BR41: 4 | BS41: 4 | BT41: 4 | BU41: 4 | BV41: 4 | BW41: 4 | BX41: 4 | BY41: 4 | BZ41: 4 | CA41: 4 | CB41: 4 | CC41: 4 | CD41: 4 | CE41: 4 | CF41: 4 | CG41: 4 | CH41: 4 | CI41: 4 | CJ41: 4 | CK41: 4 | CL41: 4 | CM41: 4 | CN41: 4 | CO41: 4 | CP41: 4 | CQ41: 4 | CR41: 4 | CS41: 4 | CT41: 4 | CU41: 4 | CV41: 4 | CW41: 4 | CX41: 4 | CY41: 4 | CZ41: 4 | DA41: 4 | DB41: 4 | DC41: 4 | DD41: 4 | DE41: 4 | DF41: 4 | DG41: 4 | DH41: 4 | DI41: 4 | DJ41: 4 | DK41: 4 | DL41: 4 | DM41: 4 | DN41: 4 | DO41: 4 | DP41: 4 | DQ41: 4 | DR41: 4 | DS41: 4 | DT41: 4 | DU41: 4 | DV41: 4 | DW41: 4 | DX41: 4 | DY41: 4 | DZ41: 4 | EA41: 4 | EB41: 4 | EC41: 4 | ED41: 4 | EE41: 4 | EF41: 4 | EG41: 4 | EH41: 4 | EI41: 4 | EJ41: 4 | EK41: 4 | EL41: 4 | EM41: 4 | EN41: 4 | EO41: 4 | EP41: 4 | EQ41: 4 | ER41: 4 | ES41: 4 | ET41: 4 | EU41: 4 | EV41: 4 | EW41: 4 | EX41: 4 | EY41: 4 | EZ41: 4 | FA41: 4 | FB41: 4 | FC41: 4 | FD41: 4 | FE41: 4 | FF41: 4 | FG41: 4 | FH41: 4 | FI41: 4 | FJ41: 4 | FK41: 4 | FL41: 4 | FM41: 4 | FN41: 4 | FO41: 4 | FP41: 4 | FQ41: 4 | FR41: 4 | FS41: 4 | FT41: 4 | FU41: 4 | FV41: 4 | FW41: 4 | FX41: 4 | FY41: 4 | FZ41: 4 | GA41: 4 | GB41: 4 | GC41: 4 | GD41: 4 | GE41: 4 | GF41: 4 | GG41: 4 | GH41: 4 | GI41: 4 | GJ41: 4 | GK41: 4 | GL41: 4 | GM41: 4 | GN41: 4 | GO41: 4 | GP41: 4 | GQ41: 4 | GR41: 4 | GS41: 4 | GT41: 4 | GU41: 4 | GV41: 4 | GW41: 4 | GX41: 4 | GY41: 4 | GZ41: 4 | HA41: 4 | HB41: 4 | HC41: 4 | HD41: 4 | HE41: 4 | HF41: 4 | HG41: 4 | HH41: 4 | HI41: 4 | HJ41: 4 | HK41: 4 | HL41: 4 | HM41: 4 | HN41: 4 | HO41: 4 | HP41: 4 | HQ41: 4 | HR41: 4 | HS41: 4
D42: =InputC!D60 -> Constant_Column | H42: =InputC!F60 -> 6 | I42: 6 | J42: 6 | K42: 6 | L42: 6 | M42: 6 | N42: 6 | O42: 6 | P42: 6 | Q42: 6 | R42: 6 | S42: 6 | T42: 6 | U42: 6 | V42: 6 | W42: 6 | X42: 6 | Y42: 6 | Z42: 6 | AA42: 6 | AB42: 6 | AC42: 6 | AD42: 6 | AE42: 6 | AF42: 6 | AG42: 6 | AH42: 6 | AI42: 6 | AJ42: 6 | AK42: 6 | AL42: 6 | AM42: 6 | AN42: 6 | AO42: 6 | AP42: 6 | AQ42: 6 | AR42: 6 | AS42: 6 | AT42: 6 | AU42: 6 | AV42: 6 | AW42: 6 | AX42: 6 | AY42: 6 | AZ42: 6 | BA42: 6 | BB42: 6 | BC42: 6 | BD42: 6 | BE42: 6 | BF42: 6 | BG42: 6 | BH42: 6 | BI42: 6 | BJ42: 6 | BK42: 6 | BL42: 6 | BM42: 6 | BN42: 6 | BO42: 6 | BP42: 6 | BQ42: 6 | BR42: 6 | BS42: 6 | BT42: 6 | BU42: 6 | BV42: 6 | BW42: 6 | BX42: 6 | BY42: 6 | BZ42: 6 | CA42: 6 | CB42: 6 | CC42: 6 | CD42: 6 | CE42: 6 | CF42: 6 | CG42: 6 | CH42: 6 | CI42: 6 | CJ42: 6 | CK42: 6 | CL42: 6 | CM42: 6 | CN42: 6 | CO42: 6 | CP42: 6 | CQ42: 6 | CR42: 6 | CS42: 6 | CT42: 6 | CU42: 6 | CV42: 6 | CW42: 6 | CX42: 6 | CY42: 6 | CZ42: 6 | DA42: 6 | DB42: 6 | DC42: 6 | DD42: 6 | DE42: 6 | DF42: 6 | DG42: 6 | DH42: 6 | DI42: 6 | DJ42: 6 | DK42: 6 | DL42: 6 | DM42: 6 | DN42: 6 | DO42: 6 | DP42: 6 | DQ42: 6 | DR42: 6 | DS42: 6 | DT42: 6 | DU42: 6 | DV42: 6 | DW42: 6 | DX42: 6 | DY42: 6 | DZ42: 6 | EA42: 6 | EB42: 6 | EC42: 6 | ED42: 6 | EE42: 6 | EF42: 6 | EG42: 6 | EH42: 6 | EI42: 6 | EJ42: 6 | EK42: 6 | EL42: 6 | EM42: 6 | EN42: 6 | EO42: 6 | EP42: 6 | EQ42: 6 | ER42: 6 | ES42: 6 | ET42: 6 | EU42: 6 | EV42: 6 | EW42: 6 | EX42: 6 | EY42: 6 | EZ42: 6 | FA42: 6 | FB42: 6 | FC42: 6 | FD42: 6 | FE42: 6 | FF42: 6 | FG42: 6 | FH42: 6 | FI42: 6 | FJ42: 6 | FK42: 6 | FL42: 6 | FM42: 6 | FN42: 6 | FO42: 6 | FP42: 6 | FQ42: 6 | FR42: 6 | FS42: 6 | FT42: 6 | FU42: 6 | FV42: 6 | FW42: 6 | FX42: 6 | FY42: 6 | FZ42: 6 | GA42: 6 | GB42: 6 | GC42: 6 | GD42: 6 | GE42: 6 | GF42: 6 | GG42: 6 | GH42: 6 | GI42: 6 | GJ42: 6 | GK42: 6 | GL42: 6 | GM42: 6 | GN42: 6 | GO42: 6 | GP42: 6 | GQ42: 6 | GR42: =GQ42 -> 6 | GS42: 6 | GT42: 6 | GU42: 6 | GV42: 6 | GW42: 6 | GX42: 6 | GY42: 6 | GZ42: 6 | HA42: 6 | HB42: 6 | HC42: 6 | HD42: 6 | HE42: 6 | HF42: 6 | HG42: 6 | HH42: 6 | HI42: 6 | HJ42: 6 | HK42: 6 | HL42: 6 | HM42: 6 | HN42: 6 | HO42: 6 | HP42: 6 | HQ42: 6 | HR42: 6 | HS42: 6
D43: =InputC!D61 -> Unit Column | H43: =InputC!F61 -> 5 | I43: 5 | J43: 5 | K43: 5 | L43: 5 | M43: 5 | N43: 5 | O43: 5 | P43: 5 | Q43: 5 | R43: 5 | S43: 5 | T43: 5 | U43: 5 | V43: 5 | W43: 5 | X43: 5 | Y43: 5 | Z43: 5 | AA43: 5 | AB43: 5 | AC43: 5 | AD43: 5 | AE43: 5 | AF43: 5 | AG43: 5 | AH43: 5 | AI43: 5 | AJ43: 5 | AK43: 5 | AL43: 5 | AM43: 5 | AN43: 5 | AO43: 5 | AP43: 5 | AQ43: 5 | AR43: 5 | AS43: 5 | AT43: 5 | AU43: 5 | AV43: 5 | AW43: 5 | AX43: 5 | AY43: 5 | AZ43: 5 | BA43: 5 | BB43: 5 | BC43: 5 | BD43: 5 | BE43: 5 | BF43: 5 | BG43: 5 | BH43: 5 | BI43: 5 | BJ43: 5 | BK43: 5 | BL43: 5 | BM43: 5 | BN43: 5 | BO43: 5 | BP43: 5 | BQ43: 5 | BR43: 5 | BS43: 5 | BT43: 5 | BU43: =BT43 -> 5 | BV43: 5 | BW43: 5 | BX43: 5 | BY43: 5 | BZ43: 5 | CA43: 5 | CB43: 5 | CC43: 5 | CD43: 5 | CE43: 5 | CF43: 5 | CG43: 5 | CH43: 5 | CI43: 5 | CJ43: 5 | CK43: 5 | CL43: 5 | CM43: 5 | CN43: 5 | CO43: 5 | CP43: 5 | CQ43: 5 | CR43: 5 | CS43: 5 | CT43: 5 | CU43: 5 | CV43: 5 | CW43: 5 | CX43: 5 | CY43: 5 | CZ43: 5 | DA43: 5 | DB43: 5 | DC43: 5 | DD43: 5 | DE43: 5 | DF43: 5 | DG43: 5 | DH43: 5 | DI43: 5 | DJ43: 5 | DK43: 5 | DL43: 5 | DM43: 5 | DN43: 5 | DO43: 5 | DP43: 5 | DQ43: 5 | DR43: 5 | DS43: 5 | DT43: 5 | DU43: 5 | DV43: 5 | DW43: 5 | DX43: 5 | DY43: 5 | DZ43: 5 | EA43: 5 | EB43: 5 | EC43: 5 | ED43: 5 | EE43: 5 | EF43: 5 | EG43: =EF43 -> 5 | EH43: 5 | EI43: 5 | EJ43: 5 | EK43: 5 | EL43: 5 | EM43: 5 | EN43: 5 | EO43: 5 | EP43: 5 | EQ43: 5 | ER43: 5 | ES43: 5 | ET43: 5 | EU43: 5 | EV43: 5 | EW43: 5 | EX43: 5 | EY43: 5 | EZ43: 5 | FA43: 5 | FB43: 5 | FC43: 5 | FD43: 5 | FE43: 5 | FF43: 5 | FG43: 5 | FH43: 5 | FI43: 5 | FJ43: 5 | FK43: 5 | FL43: 5 | FM43: 5 | FN43: 5 | FO43: 5 | FP43: 5 | FQ43: 5 | FR43: 5 | FS43: 5 | FT43: 5 | FU43: 5 | FV43: 5 | FW43: 5 | FX43: 5 | FY43: 5 | FZ43: 5 | GA43: 5 | GB43: 5 | GC43: 5 | GD43: 5 | GE43: 5 | GF43: 5 | GG43: 5 | GH43: 5 | GI43: 5 | GJ43: 5 | GK43: 5 | GL43: 5 | GM43: 5 | GN43: 5 | GO43: 5 | GP43: 5 | GQ43: 5 | GR43: 5 | GS43: 5 | GT43: 5 | GU43: 5 | GV43: 5 | GW43: 5 | GX43: 5 | GY43: 5 | GZ43: 5 | HA43: 5 | HB43: 5 | HC43: 5 | HD43: 5 | HE43: 5 | HF43: 5 | HG43: 5 | HH43: 5 | HI43: 5 | HJ43: 5 | HK43: 5 | HL43: 5 | HM43: 5 | HN43: 5 | HO43: 5 | HP43: 5 | HQ43: 5 | HR43: 5 | HS43: 5
D44: =InputC!D62 -> Format Code Column | H44: =InputC!F62 -> 2 | I44: 2 | J44: =I44 -> 2 | K44: 2 | L44: 2 | M44: 2 | N44: 2 | O44: 2 | P44: 2 | Q44: 2 | R44: 2 | S44: 2 | T44: 2 | U44: 2 | V44: 2 | W44: 2 | X44: 2 | Y44: 2 | Z44: 2 | AA44: 2 | AB44: 2 | AC44: 2 | AD44: 2 | AE44: 2 | AF44: 2 | AG44: 2 | AH44: 2 | AI44: 2 | AJ44: 2 | AK44: 2 | AL44: 2 | AM44: 2 | AN44: 2 | AO44: 2 | AP44: 2 | AQ44: 2 | AR44: 2 | AS44: 2 | AT44: 2 | AU44: 2 | AV44: 2 | AW44: 2 | AX44: 2 | AY44: 2 | AZ44: 2 | BA44: 2 | BB44: 2 | BC44: 2 | BD44: 2 | BE44: 2 | BF44: 2 | BG44: 2 | BH44: 2 | BI44: 2 | BJ44: 2 | BK44: 2 | BL44: 2 | BM44: 2 | BN44: 2 | BO44: 2 | BP44: 2 | BQ44: 2 | BR44: 2 | BS44: 2 | BT44: 2 | BU44: 2 | BV44: 2 | BW44: 2 | BX44: 2 | BY44: 2 | BZ44: 2 | CA44: 2 | CB44: 2 | CC44: 2 | CD44: 2 | CE44: 2 | CF44: 2 | CG44: 2 | CH44: 2 | CI44: 2 | CJ44: 2 | CK44: 2 | CL44: 2 | CM44: 2 | CN44: 2 | CO44: 2 | CP44: 2 | CQ44: 2 | CR44: 2 | CS44: 2 | CT44: 2 | CU44: 2 | CV44: 2 | CW44: 2 | CX44: 2 | CY44: 2 | CZ44: 2 | DA44: 2 | DB44: 2 | DC44: 2 | DD44: 2 | DE44: 2 | DF44: 2 | DG44: 2 | DH44: 2 | DI44: 2 | DJ44: 2 | DK44: 2 | DL44: 2 | DM44: 2 | DN44: 2 | DO44: 2 | DP44: 2 | DQ44: 2 | DR44: 2 | DS44: 2 | DT44: 2 | DU44: 2 | DV44: 2 | DW44: 2 | DX44: 2 | DY44: 2 | DZ44: 2 | EA44: 2 | EB44: 2 | EC44: 2 | ED44: 2 | EE44: 2 | EF44: 2 | EG44: 2 | EH44: 2 | EI44: 2 | EJ44: 2 | EK44: 2 | EL44: 2 | EM44: 2 | EN44: 2 | EO44: 2 | EP44: 2 | EQ44: 2 | ER44: 2 | ES44: 2 | ET44: 2 | EU44: 2 | EV44: 2 | EW44: 2 | EX44: 2 | EY44: 2 | EZ44: 2 | FA44: 2 | FB44: 2 | FC44: 2 | FD44: 2 | FE44: 2 | FF44: 2 | FG44: 2 | FH44: 2 | FI44: 2 | FJ44: 2 | FK44: 2 | FL44: 2 | FM44: 2 | FN44: 2 | FO44: 2 | FP44: 2 | FQ44: 2 | FR44: 2 | FS44: 2 | FT44: 2 | FU44: 2 | FV44: 2 | FW44: 2 | FX44: 2 | FY44: 2 | FZ44: 2 | GA44: 2 | GB44: 2 | GC44: 2 | GD44: 2 | GE44: 2 | GF44: 2 | GG44: 2 | GH44: 2 | GI44: 2 | GJ44: 2 | GK44: 2 | GL44: 2 | GM44: 2 | GN44: 2 | GO44: 2 | GP44: 2 | GQ44: 2 | GR44: 2 | GS44: 2 | GT44: 2 | GU44: 2 | GV44: 2 | GW44: 2 | GX44: 2 | GY44: 2 | GZ44: 2 | HA44: 2 | HB44: 2 | HC44: 2 | HD44: 2 | HE44: 2 | HF44: 2 | HG44: 2 | HH44: 2 | HI44: 2 | HJ44: 2 | HK44: 2 | HL44: 2 | HM44: 2 | HN44: 2 | HO44: 2 | HP44: 2 | HQ44: 2 | HR44: 2 | HS44: 2
D45: =InputC!D63 -> Title Format Code | H45: =InputC!F63 -> T | I45: T | J45: T | K45: T | L45: T | M45: T | N45: T | O45: T | P45: T | Q45: T | R45: T | S45: T | T45: T | U45: T | V45: T | W45: T | X45: T | Y45: T | Z45: T | AA45: T | AB45: T | AC45: T | AD45: T | AE45: T | AF45: T | AG45: T | AH45: T | AI45: T | AJ45: T | AK45: T | AL45: T | AM45: T | AN45: T | AO45: T | AP45: T | AQ45: T | AR45: T | AS45: T | AT45: T | AU45: T | AV45: T | AW45: T | AX45: T | AY45: T | AZ45: T | BA45: T | BB45: T | BC45: T | BD45: T | BE45: T | BF45: T | BG45: T | BH45: T | BI45: T | BJ45: T | BK45: T | BL45: T | BM45: T | BN45: T | BO45: T | BP45: T | BQ45: T | BR45: T | BS45: T | BT45: T | BU45: T | BV45: T | BW45: T | BX45: T | BY45: T | BZ45: T | CA45: T | CB45: T | CC45: T | CD45: T | CE45: T | CF45: T | CG45: T | CH45: T | CI45: T | CJ45: T | CK45: T | CL45: T | CM45: T | CN45: T | CO45: T | CP45: T | CQ45: T | CR45: T | CS45: T | CT45: T | CU45: T | CV45: T | CW45: T | CX45: T | CY45: T | CZ45: T | DA45: T | DB45: T | DC45: T | DD45: T | DE45: T | DF45: T | DG45: T | DH45: T | DI45: T | DJ45: T | DK45: T | DL45: T | DM45: T | DN45: T | DO45: T | DP45: T | DQ45: T | DR45: T | DS45: T | DT45: T | DU45: T | DV45: T | DW45: T | DX45: T | DY45: T | DZ45: T | EA45: T | EB45: T | EC45: T | ED45: T | EE45: T | EF45: T | EG45: T | EH45: T | EI45: T | EJ45: T | EK45: T | EL45: T | EM45: T | EN45: T | EO45: T | EP45: T | EQ45: T | ER45: T | ES45: T | ET45: T | EU45: T | EV45: T | EW45: T | EX45: T | EY45: T | EZ45: T | FA45: T | FB45: T | FC45: T | FD45: T | FE45: T | FF45: T | FG45: T | FH45: T | FI45: T | FJ45: T | FK45: T | FL45: T | FM45: T | FN45: T | FO45: T | FP45: T | FQ45: T | FR45: T | FS45: T | FT45: T | FU45: T | FV45: T | FW45: T | FX45: T | FY45: T | FZ45: T | GA45: T | GB45: T | GC45: T | GD45: T | GE45: T | GF45: T | GG45: T | GH45: T | GI45: T | GJ45: T | GK45: T | GL45: T | GM45: T | GN45: T | GO45: T | GP45: T | GQ45: T | GR45: T | GS45: T | GT45: T | GU45: T | GV45: T | GW45: T | GX45: T | GY45: T | GZ45: T | HA45: T | HB45: T | HC45: T | HD45: T | HE45: T | HF45: T | HG45: T | HH45: T | HI45: T | HJ45: T | HK45: T | HL45: T | HM45: T | HN45: T | HO45: T | HP45: T | HQ45: T | HR45: T | HS45: T
D46: =InputC!D64 -> Number No Decimal Format Code | H46: =InputC!F64 -> C | I46: C | J46: C | K46: C | L46: C | M46: C | N46: C | O46: C | P46: C | Q46: C | R46: C | S46: C | T46: C | U46: C | V46: C | W46: C | X46: C | Y46: C | Z46: C | AA46: C | AB46: C | AC46: C | AD46: C | AE46: C | AF46: C | AG46: C | AH46: C | AI46: C | AJ46: C | AK46: C | AL46: C | AM46: C | AN46: C | AO46: C | AP46: C | AQ46: C | AR46: C | AS46: C | AT46: C | AU46: C | AV46: C | AW46: C | AX46: C | AY46: C | AZ46: C | BA46: C | BB46: C | BC46: C | BD46: C | BE46: C | BF46: C | BG46: C | BH46: C | BI46: C | BJ46: C | BK46: C | BL46: C | BM46: C | BN46: C | BO46: C | BP46: C | BQ46: C | BR46: C | BS46: C | BT46: C | BU46: C | BV46: C | BW46: C | BX46: C | BY46: C | BZ46: C | CA46: C | CB46: C | CC46: C | CD46: C | CE46: C | CF46: C | CG46: C | CH46: C | CI46: C | CJ46: C | CK46: C | CL46: C | CM46: C | CN46: C | CO46: C | CP46: C | CQ46: C | CR46: C | CS46: C | CT46: C | CU46: C | CV46: C | CW46: C | CX46: C | CY46: C | CZ46: C | DA46: C | DB46: C | DC46: C | DD46: C | DE46: C | DF46: C | DG46: C | DH46: C | DI46: C | DJ46: C | DK46: C | DL46: C | DM46: C | DN46: C | DO46: C | DP46: C | DQ46: C | DR46: C | DS46: C | DT46: C | DU46: C | DV46: C | DW46: C | DX46: C | DY46: C | DZ46: C | EA46: C | EB46: C | EC46: C | ED46: C | EE46: C | EF46: C | EG46: C | EH46: C | EI46: C | EJ46: C | EK46: C | EL46: C | EM46: C | EN46: C | EO46: C | EP46: C | EQ46: C | ER46: C | ES46: C | ET46: C | EU46: C | EV46: C | EW46: C | EX46: C | EY46: C | EZ46: C | FA46: C | FB46: C | FC46: C | FD46: C | FE46: C | FF46: C | FG46: C | FH46: C | FI46: C | FJ46: C | FK46: C | FL46: C | FM46: C | FN46: C | FO46: C | FP46: C | FQ46: C | FR46: C | FS46: C | FT46: C | FU46: C | FV46: C | FW46: C | FX46: C | FY46: C | FZ46: C | GA46: C | GB46: C | GC46: C | GD46: C | GE46: C | GF46: C | GG46: C | GH46: C | GI46: C | GJ46: C | GK46: C | GL46: C | GM46: C | GN46: C | GO46: C | GP46: C | GQ46: C | GR46: =GQ46 -> C | GS46: C | GT46: C | GU46: C | GV46: C | GW46: C | GX46: C | GY46: C | GZ46: C | HA46: C | HB46: C | HC46: C | HD46: C | HE46: C | HF46: C | HG46: C | HH46: C | HI46: C | HJ46: C | HK46: C | HL46: C | HM46: C | HN46: C | HO46: C | HP46: C | HQ46: C | HR46: C | HS46: C
D47: =InputC!D65 -> Percentage Format Code | H47: =InputC!F65 -> P | I47: P | J47: P | K47: P | L47: P | M47: P | N47: P | O47: P | P47: P | Q47: P | R47: P | S47: P | T47: P | U47: P | V47: P | W47: P | X47: P | Y47: P | Z47: P | AA47: P | AB47: P | AC47: P | AD47: P | AE47: P | AF47: P | AG47: P | AH47: P | AI47: P | AJ47: P | AK47: P | AL47: P | AM47: P | AN47: P | AO47: P | AP47: P | AQ47: P | AR47: P | AS47: P | AT47: P | AU47: P | AV47: P | AW47: P | AX47: P | AY47: P | AZ47: P | BA47: P | BB47: P | BC47: P | BD47: P | BE47: P | BF47: P | BG47: P | BH47: P | BI47: P | BJ47: P | BK47: P | BL47: P | BM47: P | BN47: P | BO47: P | BP47: P | BQ47: P | BR47: P | BS47: P | BT47: P | BU47: =BT47 -> P | BV47: P | BW47: P | BX47: P | BY47: P | BZ47: P | CA47: P | CB47: P | CC47: P | CD47: P | CE47: P | CF47: P | CG47: P | CH47: P | CI47: P | CJ47: P | CK47: P | CL47: P | CM47: P | CN47: P | CO47: P | CP47: P | CQ47: P | CR47: P | CS47: P | CT47: P | CU47: P | CV47: P | CW47: P | CX47: P | CY47: P | CZ47: P | DA47: P | DB47: P | DC47: P | DD47: P | DE47: P | DF47: P | DG47: P | DH47: P | DI47: P | DJ47: P | DK47: P | DL47: P | DM47: P | DN47: P | DO47: P | DP47: P | DQ47: P | DR47: P | DS47: P | DT47: P | DU47: P | DV47: P | DW47: P | DX47: P | DY47: P | DZ47: P | EA47: P | EB47: P | EC47: P | ED47: P | EE47: P | EF47: P | EG47: =EF47 -> P | EH47: P | EI47: P | EJ47: P | EK47: P | EL47: P | EM47: P | EN47: P | EO47: P | EP47: P | EQ47: P | ER47: P | ES47: P | ET47: P | EU47: P | EV47: P | EW47: P | EX47: P | EY47: P | EZ47: P | FA47: P | FB47: P | FC47: P | FD47: P | FE47: P | FF47: P | FG47: P | FH47: P | FI47: P | FJ47: P | FK47: P | FL47: P | FM47: P | FN47: P | FO47: P | FP47: P | FQ47: P | FR47: P | FS47: P | FT47: P | FU47: P | FV47: P | FW47: P | FX47: P | FY47: P | FZ47: P | GA47: P | GB47: P | GC47: P | GD47: P | GE47: P | GF47: P | GG47: P | GH47: P | GI47: P | GJ47: P | GK47: P | GL47: P | GM47: P | GN47: P | GO47: P | GP47: P | GQ47: P | GR47: P | GS47: P | GT47: P | GU47: P | GV47: P | GW47: P | GX47: P | GY47: P | GZ47: P | HA47: P | HB47: P | HC47: P | HD47: P | HE47: P | HF47: P | HG47: P | HH47: P | HI47: P | HJ47: P | HK47: P | HL47: P | HM47: P | HN47: P | HO47: P | HP47: P | HQ47: P | HR47: P | HS47: P
D48: =InputC!D66 -> Circular convergance | H48: =InputC!F66 -> 1e-05 | I48: 1e-05 | J48: =I48 -> 1e-05 | K48: 1e-05 | L48: 1e-05 | M48: 1e-05 | N48: 1e-05 | O48: 1e-05 | P48: 1e-05 | Q48: 1e-05 | R48: 1e-05 | S48: 1e-05 | T48: 1e-05 | U48: 1e-05 | V48: 1e-05 | W48: 1e-05 | X48: 1e-05 | Y48: 1e-05 | Z48: 1e-05 | AA48: 1e-05 | AB48: 1e-05 | AC48: 1e-05 | AD48: 1e-05 | AE48: 1e-05 | AF48: 1e-05 | AG48: 1e-05 | AH48: 1e-05 | AI48: 1e-05 | AJ48: 1e-05 | AK48: 1e-05 | AL48: 1e-05 | AM48: 1e-05 | AN48: 1e-05 | AO48: 1e-05 | AP48: 1e-05 | AQ48: 1e-05 | AR48: 1e-05 | AS48: 1e-05 | AT48: 1e-05 | AU48: 1e-05 | AV48: 1e-05 | AW48: 1e-05 | AX48: 1e-05 | AY48: 1e-05 | AZ48: 1e-05 | BA48: 1e-05 | BB48: 1e-05 | BC48: 1e-05 | BD48: 1e-05 | BE48: 1e-05 | BF48: 1e-05 | BG48: 1e-05 | BH48: 1e-05 | BI48: 1e-05 | BJ48: 1e-05 | BK48: 1e-05 | BL48: 1e-05 | BM48: 1e-05 | BN48: 1e-05 | BO48: 1e-05 | BP48: 1e-05 | BQ48: 1e-05 | BR48: 1e-05 | BS48: 1e-05 | BT48: 1e-05 | BU48: 1e-05 | BV48: 1e-05 | BW48: 1e-05 | BX48: 1e-05 | BY48: 1e-05 | BZ48: 1e-05 | CA48: 1e-05 | CB48: 1e-05 | CC48: 1e-05 | CD48: 1e-05 | CE48: 1e-05 | CF48: 1e-05 | CG48: 1e-05 | CH48: 1e-05 | CI48: 1e-05 | CJ48: 1e-05 | CK48: 1e-05 | CL48: 1e-05 | CM48: 1e-05 | CN48: 1e-05 | CO48: 1e-05 | CP48: 1e-05 | CQ48: 1e-05 | CR48: 1e-05 | CS48: 1e-05 | CT48: 1e-05 | CU48: 1e-05 | CV48: 1e-05 | CW48: 1e-05 | CX48: 1e-05 | CY48: 1e-05 | CZ48: 1e-05 | DA48: 1e-05 | DB48: 1e-05 | DC48: 1e-05 | DD48: 1e-05 | DE48: 1e-05 | DF48: 1e-05 | DG48: 1e-05 | DH48: 1e-05 | DI48: 1e-05 | DJ48: 1e-05 | DK48: 1e-05 | DL48: 1e-05 | DM48: 1e-05 | DN48: 1e-05 | DO48: 1e-05 | DP48: 1e-05 | DQ48: 1e-05 | DR48: 1e-05 | DS48: 1e-05 | DT48: 1e-05 | DU48: 1e-05 | DV48: 1e-05 | DW48: 1e-05 | DX48: 1e-05 | DY48: 1e-05 | DZ48: 1e-05 | EA48: 1e-05 | EB48: 1e-05 | EC48: 1e-05 | ED48: 1e-05 | EE48: 1e-05 | EF48: 1e-05 | EG48: 1e-05 | EH48: 1e-05 | EI48: 1e-05 | EJ48: 1e-05 | EK48: 1e-05 | EL48: 1e-05 | EM48: 1e-05 | EN48: 1e-05 | EO48: 1e-05 | EP48: 1e-05 | EQ48: 1e-05 | ER48: 1e-05 | ES48: 1e-05 | ET48: 1e-05 | EU48: 1e-05 | EV48: 1e-05 | EW48: 1e-05 | EX48: 1e-05 | EY48: 1e-05 | EZ48: 1e-05 | FA48: 1e-05 | FB48: 1e-05 | FC48: 1e-05 | FD48: 1e-05 | FE48: 1e-05 | FF48: 1e-05 | FG48: 1e-05 | FH48: 1e-05 | FI48: 1e-05 | FJ48: 1e-05 | FK48: 1e-05 | FL48: 1e-05 | FM48: 1e-05 | FN48: 1e-05 | FO48: 1e-05 | FP48: 1e-05 | FQ48: 1e-05 | FR48: 1e-05 | FS48: 1e-05 | FT48: 1e-05 | FU48: 1e-05 | FV48: 1e-05 | FW48: 1e-05 | FX48: 1e-05 | FY48: 1e-05 | FZ48: 1e-05 | GA48: 1e-05 | GB48: 1e-05 | GC48: 1e-05 | GD48: 1e-05 | GE48: 1e-05 | GF48: 1e-05 | GG48: 1e-05 | GH48: 1e-05 | GI48: 1e-05 | GJ48: 1e-05 | GK48: 1e-05 | GL48: 1e-05 | GM48: 1e-05 | GN48: 1e-05 | GO48: 1e-05 | GP48: 1e-05 | GQ48: 1e-05 | GR48: 1e-05 | GS48: 1e-05 | GT48: 1e-05 | GU48: 1e-05 | GV48: 1e-05 | GW48: 1e-05 | GX48: 1e-05 | GY48: 1e-05 | GZ48: 1e-05 | HA48: 1e-05 | HB48: 1e-05 | HC48: 1e-05 | HD48: 1e-05 | HE48: 1e-05 | HF48: 1e-05 | HG48: 1e-05 | HH48: 1e-05 | HI48: 1e-05 | HJ48: 1e-05 | HK48: 1e-05 | HL48: 1e-05 | HM48: 1e-05 | HN48: 1e-05 | HO48: 1e-05 | HP48: 1e-05 | HQ48: 1e-05 | HR48: 1e-05 | HS48: 1e-05
D49: =InputC!D67 -> Maximum iteration for circular | H49: =InputC!F67 -> 100 | I49: 100 | J49: 100 | K49: 100 | L49: 100 | M49: 100 | N49: 100 | O49: 100 | P49: 100 | Q49: 100 | R49: 100 | S49: 100 | T49: 100 | U49: 100 | V49: 100 | W49: 100 | X49: 100 | Y49: 100 | Z49: 100 | AA49: 100 | AB49: 100 | AC49: 100 | AD49: 100 | AE49: 100 | AF49: 100 | AG49: 100 | AH49: 100 | AI49: 100 | AJ49: 100 | AK49: 100 | AL49: 100 | AM49: 100 | AN49: 100 | AO49: 100 | AP49: 100 | AQ49: 100 | AR49: 100 | AS49: 100 | AT49: 100 | AU49: 100 | AV49: 100 | AW49: 100 | AX49: 100 | AY49: 100 | AZ49: 100 | BA49: 100 | BB49: 100 | BC49: 100 | BD49: 100 | BE49: 100 | BF49: 100 | BG49: 100 | BH49: 100 | BI49: 100 | BJ49: 100 | BK49: 100 | BL49: 100 | BM49: 100 | BN49: 100 | BO49: 100 | BP49: 100 | BQ49: 100 | BR49: 100 | BS49: 100 | BT49: 100 | BU49: 100 | BV49: 100 | BW49: 100 | BX49: 100 | BY49: 100 | BZ49: 100 | CA49: 100 | CB49: 100 | CC49: 100 | CD49: 100 | CE49: 100 | CF49: 100 | CG49: 100 | CH49: 100 | CI49: 100 | CJ49: 100 | CK49: 100 | CL49: 100 | CM49: 100 | CN49: 100 | CO49: 100 | CP49: 100 | CQ49: 100 | CR49: 100 | CS49: 100 | CT49: 100 | CU49: 100 | CV49: 100 | CW49: 100 | CX49: 100 | CY49: 100 | CZ49: 100 | DA49: 100 | DB49: 100 | DC49: 100 | DD49: 100 | DE49: 100 | DF49: 100 | DG49: 100 | DH49: 100 | DI49: 100 | DJ49: 100 | DK49: 100 | DL49: 100 | DM49: 100 | DN49: 100 | DO49: 100 | DP49: 100 | DQ49: 100 | DR49: 100 | DS49: 100 | DT49: 100 | DU49: 100 | DV49: 100 | DW49: 100 | DX49: 100 | DY49: 100 | DZ49: 100 | EA49: 100 | EB49: 100 | EC49: 100 | ED49: 100 | EE49: 100 | EF49: 100 | EG49: 100 | EH49: 100 | EI49: 100 | EJ49: 100 | EK49: 100 | EL49: 100 | EM49: 100 | EN49: 100 | EO49: 100 | EP49: 100 | EQ49: 100 | ER49: 100 | ES49: 100 | ET49: 100 | EU49: 100 | EV49: 100 | EW49: 100 | EX49: 100 | EY49: 100 | EZ49: 100 | FA49: 100 | FB49: 100 | FC49: 100 | FD49: 100 | FE49: 100 | FF49: 100 | FG49: 100 | FH49: 100 | FI49: 100 | FJ49: 100 | FK49: 100 | FL49: 100 | FM49: 100 | FN49: 100 | FO49: 100 | FP49: 100 | FQ49: 100 | FR49: 100 | FS49: 100 | FT49: 100 | FU49: 100 | FV49: 100 | FW49: 100 | FX49: 100 | FY49: 100 | FZ49: 100 | GA49: 100 | GB49: 100 | GC49: 100 | GD49: 100 | GE49: 100 | GF49: 100 | GG49: 100 | GH49: 100 | GI49: 100 | GJ49: 100 | GK49: 100 | GL49: 100 | GM49: 100 | GN49: 100 | GO49: 100 | GP49: 100 | GQ49: 100 | GR49: 100 | GS49: 100 | GT49: 100 | GU49: 100 | GV49: 100 | GW49: 100 | GX49: 100 | GY49: 100 | GZ49: 100 | HA49: 100 | HB49: 100 | HC49: 100 | HD49: 100 | HE49: 100 | HF49: 100 | HG49: 100 | HH49: 100 | HI49: 100 | HJ49: 100 | HK49: 100 | HL49: 100 | HM49: 100 | HN49: 100 | HO49: 100 | HP49: 100 | HQ49: 100 | HR49: 100 | HS49: 100
D50: =InputC!D68 -> Maximum iteration for goalseek | H50: =InputC!F68 -> 100 | I50: 100 | J50: 100 | K50: 100 | L50: 100 | M50: 100 | N50: 100 | O50: 100 | P50: 100 | Q50: 100 | R50: 100 | S50: 100 | T50: 100 | U50: 100 | V50: 100 | W50: 100 | X50: 100 | Y50: 100 | Z50: 100 | AA50: 100 | AB50: 100 | AC50: 100 | AD50: 100 | AE50: 100 | AF50: 100 | AG50: 100 | AH50: 100 | AI50: 100 | AJ50: 100 | AK50: 100 | AL50: 100 | AM50: 100 | AN50: 100 | AO50: 100 | AP50: 100 | AQ50: 100 | AR50: 100 | AS50: 100 | AT50: 100 | AU50: 100 | AV50: 100 | AW50: 100 | AX50: 100 | AY50: 100 | AZ50: 100 | BA50: 100 | BB50: 100 | BC50: 100 | BD50: 100 | BE50: 100 | BF50: 100 | BG50: 100 | BH50: 100 | BI50: 100 | BJ50: 100 | BK50: 100 | BL50: 100 | BM50: 100 | BN50: 100 | BO50: 100 | BP50: 100 | BQ50: 100 | BR50: 100 | BS50: 100 | BT50: 100 | BU50: 100 | BV50: 100 | BW50: 100 | BX50: 100 | BY50: 100 | BZ50: 100 | CA50: 100 | CB50: 100 | CC50: 100 | CD50: 100 | CE50: 100 | CF50: 100 | CG50: 100 | CH50: 100 | CI50: 100 | CJ50: 100 | CK50: 100 | CL50: 100 | CM50: 100 | CN50: 100 | CO50: 100 | CP50: 100 | CQ50: 100 | CR50: 100 | CS50: 100 | CT50: 100 | CU50: 100 | CV50: 100 | CW50: 100 | CX50: 100 | CY50: 100 | CZ50: 100 | DA50: 100 | DB50: 100 | DC50: 100 | DD50: 100 | DE50: 100 | DF50: 100 | DG50: 100 | DH50: 100 | DI50: 100 | DJ50: 100 | DK50: 100 | DL50: 100 | DM50: 100 | DN50: 100 | DO50: 100 | DP50: 100 | DQ50: 100 | DR50: 100 | DS50: 100 | DT50: 100 | DU50: 100 | DV50: 100 | DW50: 100 | DX50: 100 | DY50: 100 | DZ50: 100 | EA50: 100 | EB50: 100 | EC50: 100 | ED50: 100 | EE50: 100 | EF50: 100 | EG50: 100 | EH50: 100 | EI50: 100 | EJ50: 100 | EK50: 100 | EL50: 100 | EM50: 100 | EN50: 100 | EO50: 100 | EP50: 100 | EQ50: 100 | ER50: 100 | ES50: 100 | ET50: 100 | EU50: 100 | EV50: 100 | EW50: 100 | EX50: 100 | EY50: 100 | EZ50: 100 | FA50: 100 | FB50: 100 | FC50: 100 | FD50: 100 | FE50: 100 | FF50: 100 | FG50: 100 | FH50: 100 | FI50: 100 | FJ50: 100 | FK50: 100 | FL50: 100 | FM50: 100 | FN50: 100 | FO50: 100 | FP50: 100 | FQ50: 100 | FR50: 100 | FS50: 100 | FT50: 100 | FU50: 100 | FV50: 100 | FW50: 100 | FX50: 100 | FY50: 100 | FZ50: 100 | GA50: 100 | GB50: 100 | GC50: 100 | GD50: 100 | GE50: 100 | GF50: 100 | GG50: 100 | GH50: 100 | GI50: 100 | GJ50: 100 | GK50: 100 | GL50: 100 | GM50: 100 | GN50: 100 | GO50: 100 | GP50: 100 | GQ50: 100 | GR50: =GQ50 -> 100 | GS50: 100 | GT50: 100 | GU50: 100 | GV50: 100 | GW50: 100 | GX50: 100 | GY50: 100 | GZ50: 100 | HA50: 100 | HB50: 100 | HC50: 100 | HD50: 100 | HE50: 100 | HF50: 100 | HG50: 100 | HH50: 100 | HI50: 100 | HJ50: 100 | HK50: 100 | HL50: 100 | HM50: 100 | HN50: 100 | HO50: 100 | HP50: 100 | HQ50: 100 | HR50: 100 | HS50: 100
D51: =InputC!D69 -> Debug_Code_1 | H51: =InputC!F69 -> 0 | I51: 0 | J51: 0 | K51: 0 | L51: 0 | M51: 0 | N51: 0 | O51: 0 | P51: 0 | Q51: 0 | R51: 0 | S51: 0 | T51: 0 | U51: 0 | V51: 0 | W51: 0 | X51: 0 | Y51: 0 | Z51: 0 | AA51: 0 | AB51: 0 | AC51: 0 | AD51: 0 | AE51: 0 | AF51: 0 | AG51: 0 | AH51: 0 | AI51: 0 | AJ51: 0 | AK51: 0 | AL51: 0 | AM51: 0 | AN51: 0 | AO51: 0 | AP51: 0 | AQ51: 0 | AR51: 0 | AS51: 0 | AT51: 0 | AU51: 0 | AV51: 0 | AW51: 0 | AX51: 0 | AY51: 0 | AZ51: 0 | BA51: 0 | BB51: 0 | BC51: 0 | BD51: 0 | BE51: 0 | BF51: 0 | BG51: 0 | BH51: 0 | BI51: 0 | BJ51: 0 | BK51: 0 | BL51: 0 | BM51: 0 | BN51: 0 | BO51: 0 | BP51: 0 | BQ51: 0 | BR51: 0 | BS51: 0 | BT51: 0 | BU51: =BT51 -> 0 | BV51: 0 | BW51: 0 | BX51: 0 | BY51: 0 | BZ51: 0 | CA51: 0 | CB51: 0 | CC51: 0 | CD51: 0 | CE51: 0 | CF51: 0 | CG51: 0 | CH51: 0 | CI51: 0 | CJ51: 0 | CK51: 0 | CL51: 0 | CM51: 0 | CN51: 0 | CO51: 0 | CP51: 0 | CQ51: 0 | CR51: 0 | CS51: 0 | CT51: 0 | CU51: 0 | CV51: 0 | CW51: 0 | CX51: 0 | CY51: 0 | CZ51: 0 | DA51: 0 | DB51: 0 | DC51: 0 | DD51: 0 | DE51: 0 | DF51: 0 | DG51: 0 | DH51: 0 | DI51: 0 | DJ51: 0 | DK51: 0 | DL51: 0 | DM51: 0 | DN51: 0 | DO51: 0 | DP51: 0 | DQ51: 0 | DR51: 0 | DS51: 0 | DT51: 0 | DU51: 0 | DV51: 0 | DW51: 0 | DX51: 0 | DY51: 0 | DZ51: 0 | EA51: 0 | EB51: 0 | EC51: 0 | ED51: 0 | EE51: 0 | EF51: 0 | EG51: =EF51 -> 0 | EH51: 0 | EI51: 0 | EJ51: 0 | EK51: 0 | EL51: 0 | EM51: 0 | EN51: 0 | EO51: 0 | EP51: 0 | EQ51: 0 | ER51: 0 | ES51: 0 | ET51: 0 | EU51: 0 | EV51: 0 | EW51: 0 | EX51: 0 | EY51: 0 | EZ51: 0 | FA51: 0 | FB51: 0 | FC51: 0 | FD51: 0 | FE51: 0 | FF51: 0 | FG51: 0 | FH51: 0 | FI51: 0 | FJ51: 0 | FK51: 0 | FL51: 0 | FM51: 0 | FN51: 0 | FO51: 0 | FP51: 0 | FQ51: 0 | FR51: 0 | FS51: 0 | FT51: 0 | FU51: 0 | FV51: 0 | FW51: 0 | FX51: 0 | FY51: 0 | FZ51: 0 | GA51: 0 | GB51: 0 | GC51: 0 | GD51: 0 | GE51: 0 | GF51: 0 | GG51: 0 | GH51: 0 | GI51: 0 | GJ51: 0 | GK51: 0 | GL51: 0 | GM51: 0 | GN51: 0 | GO51: 0 | GP51: 0 | GQ51: 0 | GR51: 0 | GS51: 0 | GT51: 0 | GU51: 0 | GV51: 0 | GW51: 0 | GX51: 0 | GY51: 0 | GZ51: 0 | HA51: 0 | HB51: 0 | HC51: 0 | HD51: 0 | HE51: 0 | HF51: 0 | HG51: 0 | HH51: 0 | HI51: 0 | HJ51: 0 | HK51: 0 | HL51: 0 | HM51: 0 | HN51: 0 | HO51: 0 | HP51: 0 | HQ51: 0 | HR51: 0 | HS51: 0
D52: Hours_in_Day | H52: =InputC!F70 -> 24 | I52: 24 | J52: =I52 -> 24 | K52: 24 | L52: 24 | M52: 24 | N52: 24 | O52: 24 | P52: 24 | Q52: 24 | R52: 24 | S52: 24 | T52: 24 | U52: 24 | V52: 24 | W52: 24 | X52: 24 | Y52: 24 | Z52: 24 | AA52: 24 | AB52: 24 | AC52: 24 | AD52: 24 | AE52: 24 | AF52: 24 | AG52: 24 | AH52: 24 | AI52: 24 | AJ52: 24 | AK52: 24 | AL52: 24 | AM52: 24 | AN52: 24 | AO52: 24 | AP52: 24 | AQ52: 24 | AR52: 24 | AS52: 24 | AT52: 24 | AU52: 24 | AV52: 24 | AW52: 24 | AX52: 24 | AY52: 24 | AZ52: 24 | BA52: 24 | BB52: 24 | BC52: 24 | BD52: 24 | BE52: 24 | BF52: 24 | BG52: 24 | BH52: 24 | BI52: 24 | BJ52: 24 | BK52: 24 | BL52: 24 | BM52: 24 | BN52: 24 | BO52: 24 | BP52: 24 | BQ52: 24 | BR52: 24 | BS52: 24 | BT52: 24 | BU52: 24 | BV52: 24 | BW52: 24 | BX52: 24 | BY52: 24 | BZ52: 24 | CA52: 24 | CB52: 24 | CC52: 24 | CD52: 24 | CE52: 24 | CF52: 24 | CG52: 24 | CH52: 24 | CI52: 24 | CJ52: 24 | CK52: 24 | CL52: 24 | CM52: 24 | CN52: 24 | CO52: 24 | CP52: 24 | CQ52: 24 | CR52: 24 | CS52: 24 | CT52: 24 | CU52: 24 | CV52: 24 | CW52: 24 | CX52: 24 | CY52: 24 | CZ52: 24 | DA52: 24 | DB52: 24 | DC52: 24 | DD52: 24 | DE52: 24 | DF52: 24 | DG52: 24 | DH52: 24 | DI52: 24 | DJ52: 24 | DK52: 24 | DL52: 24 | DM52: 24 | DN52: 24 | DO52: 24 | DP52: 24 | DQ52: 24 | DR52: 24 | DS52: 24 | DT52: 24 | DU52: 24 | DV52: 24 | DW52: 24 | DX52: 24 | DY52: 24 | DZ52: 24 | EA52: 24 | EB52: 24 | EC52: 24 | ED52: 24 | EE52: 24 | EF52: 24 | EG52: 24 | EH52: 24 | EI52: 24 | EJ52: 24 | EK52: 24 | EL52: 24 | EM52: 24 | EN52: 24 | EO52: 24 | EP52: 24 | EQ52: 24 | ER52: 24 | ES52: 24 | ET52: 24 | EU52: 24 | EV52: 24 | EW52: 24 | EX52: 24 | EY52: 24 | EZ52: 24 | FA52: 24 | FB52: 24 | FC52: 24 | FD52: 24 | FE52: 24 | FF52: 24 | FG52: 24 | FH52: 24 | FI52: 24 | FJ52: 24 | FK52: 24 | FL52: 24 | FM52: 24 | FN52: 24 | FO52: 24 | FP52: 24 | FQ52: 24 | FR52: 24 | FS52: 24 | FT52: 24 | FU52: 24 | FV52: 24 | FW52: 24 | FX52: 24 | FY52: 24 | FZ52: 24 | GA52: 24 | GB52: 24 | GC52: 24 | GD52: 24 | GE52: 24 | GF52: 24 | GG52: 24 | GH52: 24 | GI52: 24 | GJ52: 24 | GK52: 24 | GL52: 24 | GM52: 24 | GN52: 24 | GO52: 24 | GP52: 24 | GQ52: 24 | GR52: 24 | GS52: 24 | GT52: 24 | GU52: 24 | GV52: 24 | GW52: 24 | GX52: 24 | GY52: 24 | GZ52: 24 | HA52: 24 | HB52: 24 | HC52: 24 | HD52: 24 | HE52: 24 | HF52: 24 | HG52: 24 | HH52: 24 | HI52: 24 | HJ52: 24 | HK52: 24 | HL52: 24 | HM52: 24 | HN52: 24 | HO52: 24 | HP52: 24 | HQ52: 24 | HR52: 24 | HS52: 24

Sheet Operations
B2: Timeline | E2: Output Unit | F2: Input Unit | G2: Input 1 | H2: Input 2 | I2: Sum | J2: Start
C3: Period | E3: Period | F3: Periods | G3: =InputC!F11 -> 220 | K3: =_xlfn.SEQUENCE(,G3) -> 1 | L3: 2 | M3: 3 | N3: 4 | O3: 5 | P3: 6 | Q3: 7 | R3: 8 | S3: 9 | T3: 10 | U3: 11 | V3: 12 | W3: 13 | X3: 14 | Y3: 15 | Z3: 16 | AA3: 17 | AB3: 18 | AC3: 19 | AD3: 20 | AE3: 21 | AF3: 22 | AG3: 23 | AH3: 24 | AI3: 25 | AJ3: 26 | AK3: 27 | AL3: 28 | AM3: 29 | AN3: 30 | AO3: 31 | AP3: 32 | AQ3: 33 | AR3: 34 | AS3: 35 | AT3: 36 | AU3: 37 | AV3: 38 | AW3: 39 | AX3: 40 | AY3: 41 | AZ3: 42 | BA3: 43 | BB3: 44 | BC3: 45 | BD3: 46 | BE3: 47 | BF3: 48 | BG3: 49 | BH3: 50 | BI3: 51 | BJ3: 52 | BK3: 53 | BL3: 54 | BM3: 55 | BN3: 56 | BO3: 57 | BP3: 58 | BQ3: 59 | BR3: 60 | BS3: 61 | BT3: 62 | BU3: 63 | BV3: 64 | BW3: 65 | BX3: 66 | BY3: 67 | BZ3: 68 | CA3: 69 | CB3: 70 | CC3: 71 | CD3: 72 | CE3: 73 | CF3: 74 | CG3: 75 | CH3: 76 | CI3: 77 | CJ3: 78 | CK3: 79 | CL3: 80 | CM3: 81 | CN3: 82 | CO3: 83 | CP3: 84 | CQ3: 85 | CR3: 86 | CS3: 87 | CT3: 88 | CU3: 89 | CV3: 90 | CW3: 91 | CX3: 92 | CY3: 93 | CZ3: 94 | DA3: 95 | DB3: 96 | DC3: 97 | DD3: 98 | DE3: 99 | DF3: 100 | DG3: 101 | DH3: 102 | DI3: 103 | DJ3: 104 | DK3: 105 | DL3: 106 | DM3: 107 | DN3: 108 | DO3: 109 | DP3: 110 | DQ3: 111 | DR3: 112 | DS3: 113 | DT3: 114 | DU3: 115 | DV3: 116 | DW3: 117 | DX3: 118 | DY3: 119 | DZ3: 120 | EA3: 121 | EB3: 122 | EC3: 123 | ED3: 124 | EE3: 125 | EF3: 126 | EG3: 127 | EH3: 128 | EI3: 129 | EJ3: 130 | EK3: 131 | EL3: 132 | EM3: 133 | EN3: 134 | EO3: 135 | EP3: 136 | EQ3: 137 | ER3: 138 | ES3: 139 | ET3: 140 | EU3: 141 | EV3: 142 | EW3: 143 | EX3: 144 | EY3: 145 | EZ3: 146 | FA3: 147 | FB3: 148 | FC3: 149 | FD3: 150 | FE3: 151 | FF3: 152 | FG3: 153 | FH3: 154 | FI3: 155 | FJ3: 156 | FK3: 157 | FL3: 158 | FM3: 159 | FN3: 160 | FO3: 161 | FP3: 162 | FQ3: 163 | FR3: 164 | FS3: 165 | FT3: 166 | FU3: 167 | FV3: 168 | FW3: 169 | FX3: 170 | FY3: 171 | FZ3: 172 | GA3: 173 | GB3: 174 | GC3: 175 | GD3: 176 | GE3: 177 | GF3: 178 | GG3: 179 | GH3: 180 | GI3: 181 | GJ3: 182 | GK3: 183 | GL3: 184 | GM3: 185 | GN3: 186 | GO3: 187 | GP3: 188 | GQ3: 189 | GR3: 190 | GS3: 191 | GT3: 192 | GU3: 193 | GV3: 194 | GW3: 195 | GX3: 196 | GY3: 197 | GZ3: 198 | HA3: 199 | HB3: 200 | HC3: 201 | HD3: 202 | HE3: 203 | HF3: 204 | HG3: 205 | HH3: 206 | HI3: 207 | HJ3: 208 | HK3: 209 | HL3: 210 | HM3: 211 | HN3: 212 | HO3: 213 | HP3: 214 | HQ3: 215 | HR3: 216 | HS3: 217 | HT3: 218 | HU3: 219 | HV3: 220
C4: Construnction Flag | E4: Flag | F4: Months | G4: =InputC!F4 -> 100 | K4: =(K3<=$G$4)*1 -> 1 | L4: =(L3<=$G$4)*1 -> 1 | M4: =(M3<=$G$4)*1 -> 1 | N4: =(N3<=$G$4)*1 -> 1 | O4: =(O3<=$G$4)*1 -> 1 | P4: =(P3<=$G$4)*1 -> 1 | Q4: =(Q3<=$G$4)*1 -> 1 | R4: =(R3<=$G$4)*1 -> 1 | S4: =(S3<=$G$4)*1 -> 1 | T4: =(T3<=$G$4)*1 -> 1 | U4: =(U3<=$G$4)*1 -> 1 | V4: =(V3<=$G$4)*1 -> 1 | W4: =(W3<=$G$4)*1 -> 1 | X4: =(X3<=$G$4)*1 -> 1 | Y4: =(Y3<=$G$4)*1 -> 1 | Z4: =(Z3<=$G$4)*1 -> 1 | AA4: =(AA3<=$G$4)*1 -> 1 | AB4: =(AB3<=$G$4)*1 -> 1 | AC4: =(AC3<=$G$4)*1 -> 1 | AD4: =(AD3<=$G$4)*1 -> 1 | AE4: =(AE3<=$G$4)*1 -> 1 | AF4: =(AF3<=$G$4)*1 -> 1 | AG4: =(AG3<=$G$4)*1 -> 1 | AH4: =(AH3<=$G$4)*1 -> 1 | AI4: =(AI3<=$G$4)*1 -> 1 | AJ4: =(AJ3<=$G$4)*1 -> 1 | AK4: =(AK3<=$G$4)*1 -> 1 | AL4: =(AL3<=$G$4)*1 -> 1 | AM4: =(AM3<=$G$4)*1 -> 1 | AN4: =(AN3<=$G$4)*1 -> 1 | AO4: =(AO3<=$G$4)*1 -> 1 | AP4: =(AP3<=$G$4)*1 -> 1 | AQ4: =(AQ3<=$G$4)*1 -> 1 | AR4: =(AR3<=$G$4)*1 -> 1 | AS4: =(AS3<=$G$4)*1 -> 1 | AT4: =(AT3<=$G$4)*1 -> 1 | AU4: =(AU3<=$G$4)*1 -> 1 | AV4: =(AV3<=$G$4)*1 -> 1 | AW4: =(AW3<=$G$4)*1 -> 1 | AX4: =(AX3<=$G$4)*1 -> 1 | AY4: =(AY3<=$G$4)*1 -> 1 | AZ4: =(AZ3<=$G$4)*1 -> 1 | BA4: =(BA3<=$G$4)*1 -> 1 | BB4: =(BB3<=$G$4)*1 -> 1 | BC4: =(BC3<=$G$4)*1 -> 1 | BD4: =(BD3<=$G$4)*1 -> 1 | BE4: =(BE3<=$G$4)*1 -> 1 | BF4: =(BF3<=$G$4)*1 -> 1 | BG4: =(BG3<=$G$4)*1 -> 1 | BH4: =(BH3<=$G$4)*1 -> 1 | BI4: =(BI3<=$G$4)*1 -> 1 | BJ4: =(BJ3<=$G$4)*1 -> 1 | BK4: =(BK3<=$G$4)*1 -> 1 | BL4: =(BL3<=$G$4)*1 -> 1 | BM4: =(BM3<=$G$4)*1 -> 1 | BN4: =(BN3<=$G$4)*1 -> 1 | BO4: =(BO3<=$G$4)*1 -> 1 | BP4: =(BP3<=$G$4)*1 -> 1 | BQ4: =(BQ3<=$G$4)*1 -> 1 | BR4: =(BR3<=$G$4)*1 -> 1 | BS4: =(BS3<=$G$4)*1 -> 1 | BT4: =(BT3<=$G$4)*1 -> 1 | BU4: =(BU3<=$G$4)*1 -> 1 | BV4: =(BV3<=$G$4)*1 -> 1 | BW4: =(BW3<=$G$4)*1 -> 1 | BX4: =(BX3<=$G$4)*1 -> 1 | BY4: =(BY3<=$G$4)*1 -> 1 | BZ4: =(BZ3<=$G$4)*1 -> 1 | CA4: =(CA3<=$G$4)*1 -> 1 | CB4: =(CB3<=$G$4)*1 -> 1 | CC4: =(CC3<=$G$4)*1 -> 1 | CD4: =(CD3<=$G$4)*1 -> 1 | CE4: =(CE3<=$G$4)*1 -> 1 | CF4: =(CF3<=$G$4)*1 -> 1 | CG4: =(CG3<=$G$4)*1 -> 1 | CH4: =(CH3<=$G$4)*1 -> 1 | CI4: =(CI3<=$G$4)*1 -> 1 | CJ4: =(CJ3<=$G$4)*1 -> 1 | CK4: =(CK3<=$G$4)*1 -> 1 | CL4: =(CL3<=$G$4)*1 -> 1 | CM4: =(CM3<=$G$4)*1 -> 1 | CN4: =(CN3<=$G$4)*1 -> 1 | CO4: =(CO3<=$G$4)*1 -> 1 | CP4: =(CP3<=$G$4)*1 -> 1 | CQ4: =(CQ3<=$G$4)*1 -> 1 | CR4: =(CR3<=$G$4)*1 -> 1 | CS4: =(CS3<=$G$4)*1 -> 1 | CT4: =(CT3<=$G$4)*1 -> 1 | CU4: =(CU3<=$G$4)*1 -> 1 | CV4: =(CV3<=$G$4)*1 -> 1 | CW4: =(CW3<=$G$4)*1 -> 1 | CX4: =(CX3<=$G$4)*1 -> 1 | CY4: =(CY3<=$G$4)*1 -> 1 | CZ4: =(CZ3<=$G$4)*1 -> 1 | DA4: =(DA3<=$G$4)*1 -> 1 | DB4: =(DB3<=$G$4)*1 -> 1 | DC4: =(DC3<=$G$4)*1 -> 1 | DD4: =(DD3<=$G$4)*1 -> 1 | DE4: =(DE3<=$G$4)*1 -> 1 | DF4: =(DF3<=$G$4)*1 -> 1 | DG4: =(DG3<=$G$4)*1 -> 0 | DH4: =(DH3<=$G$4)*1 -> 0 | DI4: =(DI3<=$G$4)*1 -> 0 | DJ4: =(DJ3<=$G$4)*1 -> 0 | DK4: =(DK3<=$G$4)*1 -> 0 | DL4: =(DL3<=$G$4)*1 -> 0 | DM4: =(DM3<=$G$4)*1 -> 0 | DN4: =(DN3<=$G$4)*1 -> 0 | DO4: =(DO3<=$G$4)*1 -> 0 | DP4: =(DP3<=$G$4)*1 -> 0 | DQ4: =(DQ3<=$G$4)*1 -> 0 | DR4: =(DR3<=$G$4)*1 -> 0 | DS4: =(DS3<=$G$4)*1 -> 0 | DT4: =(DT3<=$G$4)*1 -> 0 | DU4: =(DU3<=$G$4)*1 -> 0 | DV4: =(DV3<=$G$4)*1 -> 0 | DW4: =(DW3<=$G$4)*1 -> 0 | DX4: =(DX3<=$G$4)*1 -> 0 | DY4: =(DY3<=$G$4)*1 -> 0 | DZ4: =(DZ3<=$G$4)*1 -> 0 | EA4: =(EA3<=$G$4)*1 -> 0 | EB4: =(EB3<=$G$4)*1 -> 0 | EC4: =(EC3<=$G$4)*1 -> 0 | ED4: =(ED3<=$G$4)*1 -> 0 | EE4: =(EE3<=$G$4)*1 -> 0 | EF4: =(EF3<=$G$4)*1 -> 0 | EG4: =(EG3<=$G$4)*1 -> 0 | EH4: =(EH3<=$G$4)*1 -> 0 | EI4: =(EI3<=$G$4)*1 -> 0 | EJ4: =(EJ3<=$G$4)*1 -> 0 | EK4: =(EK3<=$G$4)*1 -> 0 | EL4: =(EL3<=$G$4)*1 -> 0 | EM4: =(EM3<=$G$4)*1 -> 0 | EN4: =(EN3<=$G$4)*1 -> 0 | EO4: =(EO3<=$G$4)*1 -> 0 | EP4: =(EP3<=$G$4)*1 -> 0 | EQ4: =(EQ3<=$G$4)*1 -> 0 | ER4: =(ER3<=$G$4)*1 -> 0 | ES4: =(ES3<=$G$4)*1 -> 0 | ET4: =(ET3<=$G$4)*1 -> 0 | EU4: =(EU3<=$G$4)*1 -> 0 | EV4: =(EV3<=$G$4)*1 -> 0 | EW4: =(EW3<=$G$4)*1 -> 0 | EX4: =(EX3<=$G$4)*1 -> 0 | EY4: =(EY3<=$G$4)*1 -> 0 | EZ4: =(EZ3<=$G$4)*1 -> 0 | FA4: =(FA3<=$G$4)*1 -> 0 | FB4: =(FB3<=$G$4)*1 -> 0 | FC4: =(FC3<=$G$4)*1 -> 0 | FD4: =(FD3<=$G$4)*1 -> 0 | FE4: =(FE3<=$G$4)*1 -> 0 | FF4: =(FF3<=$G$4)*1 -> 0 | FG4: =(FG3<=$G$4)*1 -> 0 | FH4: =(FH3<=$G$4)*1 -> 0 | FI4: =(FI3<=$G$4)*1 -> 0 | FJ4: =(FJ3<=$G$4)*1 -> 0 | FK4: =(FK3<=$G$4)*1 -> 0 | FL4: =(FL3<=$G$4)*1 -> 0 | FM4: =(FM3<=$G$4)*1 -> 0 | FN4: =(FN3<=$G$4)*1 -> 0 | FO4: =(FO3<=$G$4)*1 -> 0 | FP4: =(FP3<=$G$4)*1 -> 0 | FQ4: =(FQ3<=$G$4)*1 -> 0 | FR4: =(FR3<=$G$4)*1 -> 0 | FS4: =(FS3<=$G$4)*1 -> 0 | FT4: =(FT3<=$G$4)*1 -> 0 | FU4: =(FU3<=$G$4)*1 -> 0 | FV4: =(FV3<=$G$4)*1 -> 0 | FW4: =(FW3<=$G$4)*1 -> 0 | FX4: =(FX3<=$G$4)*1 -> 0 | FY4: =(FY3<=$G$4)*1 -> 0 | FZ4: =(FZ3<=$G$4)*1 -> 0 | GA4: =(GA3<=$G$4)*1 -> 0 | GB4: =(GB3<=$G$4)*1 -> 0 | GC4: =(GC3<=$G$4)*1 -> 0 | GD4: =(GD3<=$G$4)*1 -> 0 | GE4: =(GE3<=$G$4)*1 -> 0 | GF4: =(GF3<=$G$4)*1 -> 0 | GG4: =(GG3<=$G$4)*1 -> 0 | GH4: =(GH3<=$G$4)*1 -> 0 | GI4: =(GI3<=$G$4)*1 -> 0 | GJ4: =(GJ3<=$G$4)*1 -> 0 | GK4: =(GK3<=$G$4)*1 -> 0 | GL4: =(GL3<=$G$4)*1 -> 0 | GM4: =(GM3<=$G$4)*1 -> 0 | GN4: =(GN3<=$G$4)*1 -> 0 | GO4: =(GO3<=$G$4)*1 -> 0 | GP4: =(GP3<=$G$4)*1 -> 0 | GQ4: =(GQ3<=$G$4)*1 -> 0 | GR4: =(GR3<=$G$4)*1 -> 0 | GS4: =(GS3<=$G$4)*1 -> 0 | GT4: =(GT3<=$G$4)*1 -> 0 | GU4: =(GU3<=$G$4)*1 -> 0 | GV4: =(GV3<=$G$4)*1 -> 0 | GW4: =(GW3<=$G$4)*1 -> 0 | GX4: =(GX3<=$G$4)*1 -> 0 | GY4: =(GY3<=$G$4)*1 -> 0 | GZ4: =(GZ3<=$G$4)*1 -> 0 | HA4: =(HA3<=$G$4)*1 -> 0 | HB4: =(HB3<=$G$4)*1 -> 0 | HC4: =(HC3<=$G$4)*1 -> 0 | HD4: =(HD3<=$G$4)*1 -> 0 | HE4: =(HE3<=$G$4)*1 -> 0 | HF4: =(HF3<=$G$4)*1 -> 0 | HG4: =(HG3<=$G$4)*1 -> 0 | HH4: =(HH3<=$G$4)*1 -> 0 | HI4: =(HI3<=$G$4)*1 -> 0 | HJ4: =(HJ3<=$G$4)*1 -> 0 | HK4: =(HK3<=$G$4)*1 -> 0 | HL4: =(HL3<=$G$4)*1 -> 0 | HM4: =(HM3<=$G$4)*1 -> 0 | HN4: =(HN3<=$G$4)*1 -> 0 | HO4: =(HO3<=$G$4)*1 -> 0 | HP4: =(HP3<=$G$4)*1 -> 0 | HQ4: =(HQ3<=$G$4)*1 -> 0 | HR4: =(HR3<=$G$4)*1 -> 0 | HS4: =(HS3<=$G$4)*1 -> 0 | HT4: =(HT3<=$G$4)*1 -> 0 | HU4: =(HU3<=$G$4)*1 -> 0 | HV4: =(HV3<=$G$4)*1 -> 0 | HW4: =(HW3<=$G$4)*1 -> 1 | HX4: =(HX3<=$G$4)*1 -> 1 | HY4: =(HY3<=$G$4)*1 -> 1 | HZ4: =(HZ3<=$G$4)*1 -> 1 | IA4: =(IA3<=$G$4)*1 -> 1 | IB4: =(IB3<=$G$4)*1 -> 1 | IC4: =(IC3<=$G$4)*1 -> 1 | ID4: =(ID3<=$G$4)*1 -> 1 | IE4: =(IE3<=$G$4)*1 -> 1 | IF4: =(IF3<=$G$4)*1 -> 1 | IG4: =(IG3<=$G$4)*1 -> 1 | IH4: =(IH3<=$G$4)*1 -> 1 | II4: =(II3<=$G$4)*1 -> 1 | IJ4: =(IJ3<=$G$4)*1 -> 1 | IK4: =(IK3<=$G$4)*1 -> 1 | IL4: =(IL3<=$G$4)*1 -> 1 | IM4: =(IM3<=$G$4)*1 -> 1 | IN4: =(IN3<=$G$4)*1 -> 1 | IO4: =(IO3<=$G$4)*1 -> 1 | IP4: =(IP3<=$G$4)*1 -> 1 | IQ4: =(IQ3<=$G$4)*1 -> 1 | IR4: =(IR3<=$G$4)*1 -> 1 | IS4: =(IS3<=$G$4)*1 -> 1 | IT4: =(IT3<=$G$4)*1 -> 1 | IU4: =(IU3<=$G$4)*1 -> 1 | IV4: =(IV3<=$G$4)*1 -> 1 | IW4: =(IW3<=$G$4)*1 -> 1 | IX4: =(IX3<=$G$4)*1 -> 1 | IY4: =(IY3<=$G$4)*1 -> 1 | IZ4: =(IZ3<=$G$4)*1 -> 1 | JA4: =(JA3<=$G$4)*1 -> 1 | JB4: =(JB3<=$G$4)*1 -> 1 | JC4: =(JC3<=$G$4)*1 -> 1 | JD4: =(JD3<=$G$4)*1 -> 1 | JE4: =(JE3<=$G$4)*1 -> 1 | JF4: =(JF3<=$G$4)*1 -> 1 | JG4: =(JG3<=$G$4)*1 -> 1 | JH4: =(JH3<=$G$4)*1 -> 1 | JI4: =(JI3<=$G$4)*1 -> 1 | JJ4: =(JJ3<=$G$4)*1 -> 1 | JK4: =(JK3<=$G$4)*1 -> 1 | JL4: =(JL3<=$G$4)*1 -> 1 | JM4: =(JM3<=$G$4)*1 -> 1 | JN4: =(JN3<=$G$4)*1 -> 1 | JO4: =(JO3<=$G$4)*1 -> 1 | JP4: =(JP3<=$G$4)*1 -> 1 | JQ4: =(JQ3<=$G$4)*1 -> 1 | JR4: =(JR3<=$G$4)*1 -> 1 | JS4: =(JS3<=$G$4)*1 -> 1 | JT4: =(JT3<=$G$4)*1 -> 1 | JU4: =(JU3<=$G$4)*1 -> 1 | JV4: =(JV3<=$G$4)*1 -> 1 | JW4: =(JW3<=$G$4)*1 -> 1 | JX4: =(JX3<=$G$4)*1 -> 1 | JY4: =(JY3<=$G$4)*1 -> 1 | JZ4: =(JZ3<=$G$4)*1 -> 1 | KA4: =(KA3<=$G$4)*1 -> 1 | KB4: =(KB3<=$G$4)*1 -> 1 | KC4: =(KC3<=$G$4)*1 -> 1 | KD4: =(KD3<=$G$4)*1 -> 1 | KE4: =(KE3<=$G$4)*1 -> 1 | KF4: =(KF3<=$G$4)*1 -> 1 | KG4: =(KG3<=$G$4)*1 -> 1 | KH4: =(KH3<=$G$4)*1 -> 1 | KI4: =(KI3<=$G$4)*1 -> 1 | KJ4: =(KJ3<=$G$4)*1 -> 1 | KK4: =(KK3<=$G$4)*1 -> 1 | KL4: =(KL3<=$G$4)*1 -> 1 | KM4: =(KM3<=$G$4)*1 -> 1 | KN4: =(KN3<=$G$4)*1 -> 1 | KO4: =(KO3<=$G$4)*1 -> 1 | KP4: =(KP3<=$G$4)*1 -> 1 | KQ4: =(KQ3<=$G$4)*1 -> 1 | KR4: =(KR3<=$G$4)*1 -> 1 | KS4: =(KS3<=$G$4)*1 -> 1 | KT4: =(KT3<=$G$4)*1 -> 1 | KU4: =(KU3<=$G$4)*1 -> 1 | KV4: =(KV3<=$G$4)*1 -> 1 | KW4: =(KW3<=$G$4)*1 -> 1 | KX4: =(KX3<=$G$4)*1 -> 1 | KY4: =(KY3<=$G$4)*1 -> 1 | KZ4: =(KZ3<=$G$4)*1 -> 1 | LA4: =(LA3<=$G$4)*1 -> 1 | LB4: =(LB3<=$G$4)*1 -> 1 | LC4: =(LC3<=$G$4)*1 -> 1 | LD4: =(LD3<=$G$4)*1 -> 1 | LE4: =(LE3<=$G$4)*1 -> 1 | LF4: =(LF3<=$G$4)*1 -> 1 | LG4: =(LG3<=$G$4)*1 -> 1 | LH4: =(LH3<=$G$4)*1 -> 1 | LI4: =(LI3<=$G$4)*1 -> 1 | LJ4: =(LJ3<=$G$4)*1 -> 1 | LK4: =(LK3<=$G$4)*1 -> 1 | LL4: =(LL3<=$G$4)*1 -> 1 | LM4: =(LM3<=$G$4)*1 -> 1 | LN4: =(LN3<=$G$4)*1 -> 1 | LO4: =(LO3<=$G$4)*1 -> 1 | LP4: =(LP3<=$G$4)*1 -> 1 | LQ4: =(LQ3<=$G$4)*1 -> 1 | LR4: =(LR3<=$G$4)*1 -> 1 | LS4: =(LS3<=$G$4)*1 -> 1 | LT4: =(LT3<=$G$4)*1 -> 1 | LU4: =(LU3<=$G$4)*1 -> 1 | LV4: =(LV3<=$G$4)*1 -> 1 | LW4: =(LW3<=$G$4)*1 -> 1 | LX4: =(LX3<=$G$4)*1 -> 1 | LY4: =(LY3<=$G$4)*1 -> 1 | LZ4: =(LZ3<=$G$4)*1 -> 1 | MA4: =(MA3<=$G$4)*1 -> 1 | MB4: =(MB3<=$G$4)*1 -> 1 | MC4: =(MC3<=$G$4)*1 -> 1 | MD4: =(MD3<=$G$4)*1 -> 1 | ME4: =(ME3<=$G$4)*1 -> 1 | MF4: =(MF3<=$G$4)*1 -> 1 | MG4: =(MG3<=$G$4)*1 -> 1 | MH4: =(MH3<=$G$4)*1 -> 1 | MI4: =(MI3<=$G$4)*1 -> 1 | MJ4: =(MJ3<=$G$4)*1 -> 1 | MK4: =(MK3<=$G$4)*1 -> 1 | ML4: =(ML3<=$G$4)*1 -> 1 | MM4: =(MM3<=$G$4)*1 -> 1 | MN4: =(MN3<=$G$4)*1 -> 1 | MO4: =(MO3<=$G$4)*1 -> 1 | MP4: =(MP3<=$G$4)*1 -> 1 | MQ4: =(MQ3<=$G$4)*1 -> 1 | MR4: =(MR3<=$G$4)*1 -> 1 | MS4: =(MS3<=$G$4)*1 -> 1 | MT4: =(MT3<=$G$4)*1 -> 1 | MU4: =(MU3<=$G$4)*1 -> 1 | MV4: =(MV3<=$G$4)*1 -> 1 | MW4: =(MW3<=$G$4)*1 -> 1 | MX4: =(MX3<=$G$4)*1 -> 1 | MY4: =(MY3<=$G$4)*1 -> 1 | MZ4: =(MZ3<=$G$4)*1 -> 1 | NA4: =(NA3<=$G$4)*1 -> 1 | NB4: =(NB3<=$G$4)*1 -> 1 | NC4: =(NC3<=$G$4)*1 -> 1 | ND4: =(ND3<=$G$4)*1 -> 1 | NE4: =(NE3<=$G$4)*1 -> 1 | NF4: =(NF3<=$G$4)*1 -> 1 | NG4: =(NG3<=$G$4)*1 -> 1 | NH4: =(NH3<=$G$4)*1 -> 1 | NI4: =(NI3<=$G$4)*1 -> 1 | NJ4: =(NJ3<=$G$4)*1 -> 1 | NK4: =(NK3<=$G$4)*1 -> 1 | NL4: =(NL3<=$G$4)*1 -> 1 | NM4: =(NM3<=$G$4)*1 -> 1 | NN4: =(NN3<=$G$4)*1 -> 1 | NO4: =(NO3<=$G$4)*1 -> 1 | NP4: =(NP3<=$G$4)*1 -> 1 | NQ4: =(NQ3<=$G$4)*1 -> 1 | NR4: =(NR3<=$G$4)*1 -> 1 | NS4: =(NS3<=$G$4)*1 -> 1 | NT4: =(NT3<=$G$4)*1 -> 1 | NU4: =(NU3<=$G$4)*1 -> 1 | NV4: =(NV3<=$G$4)*1 -> 1 | NW4: =(NW3<=$G$4)*1 -> 1 | NX4: =(NX3<=$G$4)*1 -> 1 | NY4: =(NY3<=$G$4)*1 -> 1 | NZ4: =(NZ3<=$G$4)*1 -> 1 | OA4: =(OA3<=$G$4)*1 -> 1 | OB4: =(OB3<=$G$4)*1 -> 1 | OC4: =(OC3<=$G$4)*1 -> 1 | OD4: =(OD3<=$G$4)*1 -> 1 | OE4: =(OE3<=$G$4)*1 -> 1 | OF4: =(OF3<=$G$4)*1 -> 1 | OG4: =(OG3<=$G$4)*1 -> 1 | OH4: =(OH3<=$G$4)*1 -> 1 | OI4: =(OI3<=$G$4)*1 -> 1 | OJ4: =(OJ3<=$G$4)*1 -> 1 | OK4: =(OK3<=$G$4)*1 -> 1 | OL4: =(OL3<=$G$4)*1 -> 1 | OM4: =(OM3<=$G$4)*1 -> 1 | ON4: =(ON3<=$G$4)*1 -> 1 | OO4: =(OO3<=$G$4)*1 -> 1 | OP4: =(OP3<=$G$4)*1 -> 1 | OQ4: =(OQ3<=$G$4)*1 -> 1 | OR4: =(OR3<=$G$4)*1 -> 1 | OS4: =(OS3<=$G$4)*1 -> 1 | OT4: =(OT3<=$G$4)*1 -> 1 | OU4: =(OU3<=$G$4)*1 -> 1 | OV4: =(OV3<=$G$4)*1 -> 1 | OW4: =(OW3<=$G$4)*1 -> 1 | OX4: =(OX3<=$G$4)*1 -> 1 | OY4: =(OY3<=$G$4)*1 -> 1 | OZ4: =(OZ3<=$G$4)*1 -> 1 | PA4: =(PA3<=$G$4)*1 -> 1 | PB4: =(PB3<=$G$4)*1 -> 1 | PC4: =(PC3<=$G$4)*1 -> 1 | PD4: =(PD3<=$G$4)*1 -> 1 | PE4: =(PE3<=$G$4)*1 -> 1 | PF4: =(PF3<=$G$4)*1 -> 1 | PG4: =(PG3<=$G$4)*1 -> 1 | PH4: =(PH3<=$G$4)*1 -> 1 | PI4: =(PI3<=$G$4)*1 -> 1 | PJ4: =(PJ3<=$G$4)*1 -> 1 | PK4: =(PK3<=$G$4)*1 -> 1 | PL4: =(PL3<=$G$4)*1 -> 1 | PM4: =(PM3<=$G$4)*1 -> 1 | PN4: =(PN3<=$G$4)*1 -> 1 | PO4: =(PO3<=$G$4)*1 -> 1 | PP4: =(PP3<=$G$4)*1 -> 1 | PQ4: =(PQ3<=$G$4)*1 -> 1 | PR4: =(PR3<=$G$4)*1 -> 1 | PS4: =(PS3<=$G$4)*1 -> 1 | PT4: =(PT3<=$G$4)*1 -> 1 | PU4: =(PU3<=$G$4)*1 -> 1 | PV4: =(PV3<=$G$4)*1 -> 1 | PW4: =(PW3<=$G$4)*1 -> 1 | PX4: =(PX3<=$G$4)*1 -> 1 | PY4: =(PY3<=$G$4)*1 -> 1 | PZ4: =(PZ3<=$G$4)*1 -> 1 | QA4: =(QA3<=$G$4)*1 -> 1 | QB4: =(QB3<=$G$4)*1 -> 1 | QC4: =(QC3<=$G$4)*1 -> 1 | QD4: =(QD3<=$G$4)*1 -> 1 | QE4: =(QE3<=$G$4)*1 -> 1 | QF4: =(QF3<=$G$4)*1 -> 1 | QG4: =(QG3<=$G$4)*1 -> 1 | QH4: =(QH3<=$G$4)*1 -> 1 | QI4: =(QI3<=$G$4)*1 -> 1 | QJ4: =(QJ3<=$G$4)*1 -> 1 | QK4: =(QK3<=$G$4)*1 -> 1 | QL4: =(QL3<=$G$4)*1 -> 1 | QM4: =(QM3<=$G$4)*1 -> 1 | QN4: =(QN3<=$G$4)*1 -> 1 | QO4: =(QO3<=$G$4)*1 -> 1 | QP4: =(QP3<=$G$4)*1 -> 1 | QQ4: =(QQ3<=$G$4)*1 -> 1 | QR4: =(QR3<=$G$4)*1 -> 1 | QS4: =(QS3<=$G$4)*1 -> 1 | QT4: =(QT3<=$G$4)*1 -> 1 | QU4: =(QU3<=$G$4)*1 -> 1 | QV4: =(QV3<=$G$4)*1 -> 1 | QW4: =(QW3<=$G$4)*1 -> 1 | QX4: =(QX3<=$G$4)*1 -> 1 | QY4: =(QY3<=$G$4)*1 -> 1 | QZ4: =(QZ3<=$G$4)*1 -> 1 | RA4: =(RA3<=$G$4)*1 -> 1 | RB4: =(RB3<=$G$4)*1 -> 1 | RC4: =(RC3<=$G$4)*1 -> 1 | RD4: =(RD3<=$G$4)*1 -> 1 | RE4: =(RE3<=$G$4)*1 -> 1 | RF4: =(RF3<=$G$4)*1 -> 1 | RG4: =(RG3<=$G$4)*1 -> 1 | RH4: =(RH3<=$G$4)*1 -> 1 | RI4: =(RI3<=$G$4)*1 -> 1 | RJ4: =(RJ3<=$G$4)*1 -> 1 | RK4: =(RK3<=$G$4)*1 -> 1 | RL4: =(RL3<=$G$4)*1 -> 1 | RM4: =(RM3<=$G$4)*1 -> 1 | RN4: =(RN3<=$G$4)*1 -> 1 | RO4: =(RO3<=$G$4)*1 -> 1 | RP4: =(RP3<=$G$4)*1 -> 1 | RQ4: =(RQ3<=$G$4)*1 -> 1 | RR4: =(RR3<=$G$4)*1 -> 1 | RS4: =(RS3<=$G$4)*1 -> 1 | RT4: =(RT3<=$G$4)*1 -> 1 | RU4: =(RU3<=$G$4)*1 -> 1 | RV4: =(RV3<=$G$4)*1 -> 1 | RW4: =(RW3<=$G$4)*1 -> 1 | RX4: =(RX3<=$G$4)*1 -> 1 | RY4: =(RY3<=$G$4)*1 -> 1 | RZ4: =(RZ3<=$G$4)*1 -> 1 | SA4: =(SA3<=$G$4)*1 -> 1 | SB4: =(SB3<=$G$4)*1 -> 1 | SC4: =(SC3<=$G$4)*1 -> 1 | SD4: =(SD3<=$G$4)*1 -> 1 | SE4: =(SE3<=$G$4)*1 -> 1 | SF4: =(SF3<=$G$4)*1 -> 1 | SG4: =(SG3<=$G$4)*1 -> 1 | SH4: =(SH3<=$G$4)*1 -> 1 | SI4: =(SI3<=$G$4)*1 -> 1 | SJ4: =(SJ3<=$G$4)*1 -> 1 | SK4: =(SK3<=$G$4)*1 -> 1 | SL4: =(SL3<=$G$4)*1 -> 1 | SM4: =(SM3<=$G$4)*1 -> 1 | SN4: =(SN3<=$G$4)*1 -> 1 | SO4: =(SO3<=$G$4)*1 -> 1 | SP4: =(SP3<=$G$4)*1 -> 1
C5: Months in Period | E5: Months | F5: Months | G5: =InputC!F9 -> 1 | H5: =InputC!F10 -> 6 | K5: =IF(K4,$G$5,$H$5) -> 1 | L5: =IF(L4,$G$5,$H$5) -> 1 | M5: 1 | N5: 1 | O5: 1 | P5: 1 | Q5: 1 | R5: 1 | S5: 1 | T5: 1 | U5: 1 | V5: 1 | W5: 1 | X5: 1 | Y5: 1 | Z5: 1 | AA5: 1 | AB5: 1 | AC5: 1 | AD5: 1 | AE5: 1 | AF5: 1 | AG5: 1 | AH5: 1 | AI5: 1 | AJ5: 1 | AK5: 1 | AL5: 1 | AM5: 1 | AN5: 1 | AO5: 1 | AP5: 1 | AQ5: 1 | AR5: 1 | AS5: 1 | AT5: 1 | AU5: 1 | AV5: 1 | AW5: 1 | AX5: 1 | AY5: 1 | AZ5: 1 | BA5: 1 | BB5: 1 | BC5: 1 | BD5: 1 | BE5: 1 | BF5: 1 | BG5: 1 | BH5: 1 | BI5: 1 | BJ5: 1 | BK5: 1 | BL5: 1 | BM5: 1 | BN5: 1 | BO5: 1 | BP5: 1 | BQ5: 1 | BR5: 1 | BS5: 1 | BT5: 1 | BU5: 1 | BV5: 1 | BW5: 1 | BX5: =IF(BX4,$G$5,$H$5) -> 1 | BY5: 1 | BZ5: 1 | CA5: 1 | CB5: 1 | CC5: 1 | CD5: 1 | CE5: 1 | CF5: 1 | CG5: 1 | CH5: 1 | CI5: 1 | CJ5: 1 | CK5: 1 | CL5: 1 | CM5: 1 | CN5: 1 | CO5: 1 | CP5: 1 | CQ5: 1 | CR5: 1 | CS5: 1 | CT5: 1 | CU5: 1 | CV5: 1 | CW5: 1 | CX5: 1 | CY5: 1 | CZ5: 1 | DA5: 1 | DB5: 1 | DC5: 1 | DD5: 1 | DE5: 1 | DF5: 1 | DG5: 6 | DH5: 6 | DI5: 6 | DJ5: 6 | DK5: 6 | DL5: 6 | DM5: 6 | DN5: 6 | DO5: 6 | DP5: 6 | DQ5: 6 | DR5: 6 | DS5: 6 | DT5: 6 | DU5: 6 | DV5: 6 | DW5: 6 | DX5: 6 | DY5: 6 | DZ5: 6 | EA5: 6 | EB5: 6 | EC5: 6 | ED5: 6 | EE5: 6 | EF5: 6 | EG5: 6 | EH5: 6 | EI5: 6 | EJ5: =IF(EJ4,$G$5,$H$5) -> 6 | EK5: 6 | EL5: 6 | EM5: 6 | EN5: 6 | EO5: 6 | EP5: 6 | EQ5: 6 | ER5: 6 | ES5: 6 | ET5: 6 | EU5: 6 | EV5: 6 | EW5: 6 | EX5: 6 | EY5: 6 | EZ5: 6 | FA5: 6 | FB5: 6 | FC5: 6 | FD5: 6 | FE5: 6 | FF5: 6 | FG5: 6 | FH5: 6 | FI5: 6 | FJ5: 6 | FK5: 6 | FL5: 6 | FM5: 6 | FN5: 6 | FO5: 6 | FP5: 6 | FQ5: 6 | FR5: 6 | FS5: 6 | FT5: 6 | FU5: 6 | FV5: 6 | FW5: 6 | FX5: 6 | FY5: 6 | FZ5: 6 | GA5: 6 | GB5: 6 | GC5: 6 | GD5: 6 | GE5: 6 | GF5: 6 | GG5: 6 | GH5: 6 | GI5: 6 | GJ5: 6 | GK5: 6 | GL5: 6 | GM5: 6 | GN5: 6 | GO5: 6 | GP5: 6 | GQ5: 6 | GR5: 6 | GS5: 6 | GT5: 6 | GU5: 6 | GV5: =IF(GV4,$G$5,$H$5) -> 6 | GW5: 6 | GX5: 6 | GY5: 6 | GZ5: 6 | HA5: 6 | HB5: 6 | HC5: 6 | HD5: 6 | HE5: 6 | HF5: 6 | HG5: 6 | HH5: 6 | HI5: 6 | HJ5: 6 | HK5: 6 | HL5: 6 | HM5: 6 | HN5: 6 | HO5: 6 | HP5: 6 | HQ5: 6 | HR5: 6 | HS5: 6 | HT5: 6 | HU5: 6 | HV5: 6 | HW5: 1 | HX5: 1 | HY5: 1 | HZ5: 1 | IA5: 1 | IB5: 1 | IC5: 1 | ID5: 1 | IE5: 1 | IF5: 1 | IG5: 1 | IH5: 1 | II5: 1 | IJ5: 1 | IK5: 1 | IL5: 1 | IM5: 1 | IN5: 1 | IO5: 1 | IP5: 1 | IQ5: 1 | IR5: 1 | IS5: 1 | IT5: 1 | IU5: 1 | IV5: 1 | IW5: 1 | IX5: 1 | IY5: 1 | IZ5: 1 | JA5: 1 | JB5: 1 | JC5: 1 | JD5: 1 | JE5: 1 | JF5: 1 | JG5: 1 | JH5: =IF(JH4,$G$5,$H$5) -> 1 | JI5: 1 | JJ5: 1 | JK5: 1 | JL5: 1 | JM5: 1 | JN5: 1 | JO5: 1 | JP5: 1 | JQ5: 1 | JR5: 1 | JS5: 1 | JT5: 1 | JU5: 1 | JV5: 1 | JW5: 1 | JX5: 1 | JY5: 1 | JZ5: 1 | KA5: 1 | KB5: 1 | KC5: 1 | KD5: 1 | KE5: 1 | KF5: 1 | KG5: 1 | KH5: 1 | KI5: 1 | KJ5: 1 | KK5: 1 | KL5: 1 | KM5: 1 | KN5: 1 | KO5: 1 | KP5: 1 | KQ5: 1 | KR5: 1 | KS5: 1 | KT5: 1 | KU5: 1 | KV5: 1 | KW5: 1 | KX5: 1 | KY5: 1 | KZ5: 1 | LA5: 1 | LB5: 1 | LC5: 1 | LD5: 1 | LE5: 1 | LF5: 1 | LG5: 1 | LH5: 1 | LI5: 1 | LJ5: 1 | LK5: 1 | LL5: 1 | LM5: 1 | LN5: 1 | LO5: 1 | LP5: 1 | LQ5: 1 | LR5: 1 | LS5: 1 | LT5: =IF(LT4,$G$5,$H$5) -> 1 | LU5: 1 | LV5: 1 | LW5: 1 | LX5: 1 | LY5: 1 | LZ5: 1 | MA5: 1 | MB5: 1 | MC5: 1 | MD5: 1 | ME5: 1 | MF5: 1 | MG5: 1 | MH5: 1 | MI5: 1 | MJ5: 1 | MK5: 1 | ML5: 1 | MM5: 1 | MN5: 1 | MO5: 1 | MP5: 1 | MQ5: 1 | MR5: 1 | MS5: 1 | MT5: 1 | MU5: 1 | MV5: 1 | MW5: 1 | MX5: 1 | MY5: 1 | MZ5: 1 | NA5: 1 | NB5: 1 | NC5: 1 | ND5: 1 | NE5: 1 | NF5: 1 | NG5: 1 | NH5: 1 | NI5: 1 | NJ5: 1 | NK5: 1 | NL5: 1 | NM5: 1 | NN5: 1 | NO5: 1 | NP5: 1 | NQ5: 1 | NR5: 1 | NS5: 1 | NT5: 1 | NU5: 1 | NV5: 1 | NW5: 1 | NX5: 1 | NY5: 1 | NZ5: 1 | OA5: 1 | OB5: 1 | OC5: 1 | OD5: 1 | OE5: 1 | OF5: =IF(OF4,$G$5,$H$5) -> 1 | OG5: 1 | OH5: 1 | OI5: 1 | OJ5: 1 | OK5: 1 | OL5: 1 | OM5: 1 | ON5: 1 | OO5: 1 | OP5: 1 | OQ5: 1 | OR5: 1 | OS5: 1 | OT5: 1 | OU5: 1 | OV5: 1 | OW5: 1 | OX5: 1 | OY5: 1 | OZ5: 1 | PA5: 1 | PB5: 1 | PC5: 1 | PD5: 1 | PE5: 1 | PF5: 1 | PG5: 1 | PH5: 1 | PI5: 1 | PJ5: 1 | PK5: 1 | PL5: 1 | PM5: 1 | PN5: 1 | PO5: 1 | PP5: 1 | PQ5: 1 | PR5: 1 | PS5: 1 | PT5: 1 | PU5: 1 | PV5: 1 | PW5: 1 | PX5: 1 | PY5: 1 | PZ5: 1 | QA5: 1 | QB5: 1 | QC5: 1 | QD5: 1 | QE5: 1 | QF5: 1 | QG5: 1 | QH5: 1 | QI5: 1 | QJ5: 1 | QK5: 1 | QL5: 1 | QM5: 1 | QN5: 1 | QO5: 1 | QP5: 1 | QQ5: 1 | QR5: =IF(QR4,$G$5,$H$5) -> 1 | QS5: 1 | QT5: 1 | QU5: 1 | QV5: 1 | QW5: 1 | QX5: 1 | QY5: 1 | QZ5: 1 | RA5: 1 | RB5: 1 | RC5: 1 | RD5: 1 | RE5: 1 | RF5: 1 | RG5: 1 | RH5: 1 | RI5: 1 | RJ5: 1 | RK5: 1 | RL5: 1 | RM5: 1 | RN5: 1 | RO5: 1 | RP5: 1 | RQ5: 1 | RR5: 1 | RS5: 1 | RT5: 1 | RU5: 1 | RV5: 1 | RW5: 1 | RX5: 1 | RY5: 1 | RZ5: 1 | SA5: 1 | SB5: 1 | SC5: 1 | SD5: 1 | SE5: 1 | SF5: 1 | SG5: 1 | SH5: 1 | SI5: 1 | SJ5: 1 | SK5: 1 | SL5: 1 | SM5: 1 | SN5: 1 | SO5: 1 | SP5: 1
C6: Start of Peiod | E6: Date | K6: =J7+1 -> 2026-01-01 | L6: =K7+1 -> 2026-02-01 | M6: 2026-03-01 | N6: 2026-04-01 | O6: 2026-05-01 | P6: 2026-06-01 | Q6: 2026-07-01 | R6: 2026-08-01 | S6: 2026-09-01 | T6: 2026-10-01 | U6: 2026-11-01 | V6: 2026-12-01 | W6: 2027-01-01 | X6: 2027-02-01 | Y6: 2027-03-01 | Z6: 2027-04-01 | AA6: 2027-05-01 | AB6: 2027-06-01 | AC6: 2027-07-01 | AD6: 2027-08-01 | AE6: 2027-09-01 | AF6: 2027-10-01 | AG6: 2027-11-01 | AH6: 2027-12-01 | AI6: 2028-01-01 | AJ6: 2028-02-01 | AK6: 2028-03-01 | AL6: 2028-04-01 | AM6: 2028-05-01 | AN6: 2028-06-01 | AO6: 2028-07-01 | AP6: 2028-08-01 | AQ6: 2028-09-01 | AR6: 2028-10-01 | AS6: 2028-11-01 | AT6: 2028-12-01 | AU6: 2029-01-01 | AV6: 2029-02-01 | AW6: 2029-03-01 | AX6: 2029-04-01 | AY6: 2029-05-01 | AZ6: 2029-06-01 | BA6: 2029-07-01 | BB6: 2029-08-01 | BC6: 2029-09-01 | BD6: 2029-10-01 | BE6: 2029-11-01 | BF6: 2029-12-01 | BG6: 2030-01-01 | BH6: 2030-02-01 | BI6: 2030-03-01 | BJ6: 2030-04-01 | BK6: 2030-05-01 | BL6: 2030-06-01 | BM6: 2030-07-01 | BN6: 2030-08-01 | BO6: 2030-09-01 | BP6: 2030-10-01 | BQ6: 2030-11-01 | BR6: 2030-12-01 | BS6: 2031-01-01 | BT6: 2031-02-01 | BU6: 2031-03-01 | BV6: 2031-04-01 | BW6: 2031-05-01 | BX6: =BW7+1 -> 2031-06-01 | BY6: 2031-07-01 | BZ6: 2031-08-01 | CA6: 2031-09-01 | CB6: 2031-10-01 | CC6: 2031-11-01 | CD6: 2031-12-01 | CE6: 2032-01-01 | CF6: 2032-02-01 | CG6: 2032-03-01 | CH6: 2032-04-01 | CI6: 2032-05-01 | CJ6: 2032-06-01 | CK6: 2032-07-01 | CL6: 2032-08-01 | CM6: 2032-09-01 | CN6: 2032-10-01 | CO6: 2032-11-01 | CP6: 2032-12-01 | CQ6: 2033-01-01 | CR6: 2033-02-01 | CS6: 2033-03-01 | CT6: 2033-04-01 | CU6: 2033-05-01 | CV6: 2033-06-01 | CW6: 2033-07-01 | CX6: 2033-08-01 | CY6: 2033-09-01 | CZ6: 2033-10-01 | DA6: 2033-11-01 | DB6: 2033-12-01 | DC6: 2034-01-01 | DD6: 2034-02-01 | DE6: 2034-03-01 | DF6: 2034-04-01 | DG6: 2034-05-01 | DH6: 2034-11-01 | DI6: 2035-05-01 | DJ6: 2035-11-01 | DK6: 2036-05-01 | DL6: 2036-11-01 | DM6: 2037-05-01 | DN6: 2037-11-01 | DO6: 2038-05-01 | DP6: 2038-11-01 | DQ6: 2039-05-01 | DR6: 2039-11-01 | DS6: 2040-05-01 | DT6: 2040-11-01 | DU6: 2041-05-01 | DV6: 2041-11-01 | DW6: 2042-05-01 | DX6: 2042-11-01 | DY6: 2043-05-01 | DZ6: 2043-11-01 | EA6: 2044-05-01 | EB6: 2044-11-01 | EC6: 2045-05-01 | ED6: 2045-11-01 | EE6: 2046-05-01 | EF6: 2046-11-01 | EG6: 2047-05-01 | EH6: 2047-11-01 | EI6: 2048-05-01 | EJ6: =EI7+1 -> 2048-11-01 | EK6: 2049-05-01 | EL6: 2049-11-01 | EM6: 2050-05-01 | EN6: 2050-11-01 | EO6: 2051-05-01 | EP6: 2051-11-01 | EQ6: 2052-05-01 | ER6: 2052-11-01 | ES6: 2053-05-01 | ET6: 2053-11-01 | EU6: 2054-05-01 | EV6: 2054-11-01 | EW6: 2055-05-01 | EX6: 2055-11-01 | EY6: 2056-05-01 | EZ6: 2056-11-01 | FA6: 2057-05-01 | FB6: 2057-11-01 | FC6: 2058-05-01 | FD6: 2058-11-01 | FE6: 2059-05-01 | FF6: 2059-11-01 | FG6: 2060-05-01 | FH6: 2060-11-01 | FI6: 2061-05-01 | FJ6: 2061-11-01 | FK6: 2062-05-01 | FL6: 2062-11-01 | FM6: 2063-05-01 | FN6: 2063-11-01 | FO6: 2064-05-01 | FP6: 2064-11-01 | FQ6: 2065-05-01 | FR6: 2065-11-01 | FS6: 2066-05-01 | FT6: 2066-11-01 | FU6: 2067-05-01 | FV6: 2067-11-01 | FW6: 2068-05-01 | FX6: 2068-11-01 | FY6: 2069-05-01 | FZ6: 2069-11-01 | GA6: 2070-05-01 | GB6: 2070-11-01 | GC6: 2071-05-01 | GD6: 2071-11-01 | GE6: 2072-05-01 | GF6: 2072-11-01 | GG6: 2073-05-01 | GH6: 2073-11-01 | GI6: 2074-05-01 | GJ6: 2074-11-01 | GK6: 2075-05-01 | GL6: 2075-11-01 | GM6: 2076-05-01 | GN6: 2076-11-01 | GO6: 2077-05-01 | GP6: 2077-11-01 | GQ6: 2078-05-01 | GR6: 2078-11-01 | GS6: 2079-05-01 | GT6: 2079-11-01 | GU6: 2080-05-01 | GV6: =GU7+1 -> 2080-11-01 | GW6: 2081-05-01 | GX6: 2081-11-01 | GY6: 2082-05-01 | GZ6: 2082-11-01 | HA6: 2083-05-01 | HB6: 2083-11-01 | HC6: 2084-05-01 | HD6: 2084-11-01 | HE6: 2085-05-01 | HF6: 2085-11-01 | HG6: 2086-05-01 | HH6: 2086-11-01 | HI6: 2087-05-01 | HJ6: 2087-11-01 | HK6: 2088-05-01 | HL6: 2088-11-01 | HM6: 2089-05-01 | HN6: 2089-11-01 | HO6: 2090-05-01 | HP6: 2090-11-01 | HQ6: 2091-05-01 | HR6: 2091-11-01 | HS6: 2092-05-01 | HT6: 2092-11-01 | HU6: 2093-05-01 | HV6: 2093-11-01 | HW6: 2094-05-01 | HX6: 2094-06-01 | HY6: 2094-07-01 | HZ6: 2094-08-01 | IA6: 2094-09-01 | IB6: 2094-10-01 | IC6: 2094-11-01 | ID6: 2094-12-01 | IE6: 2095-01-01 | IF6: 2095-02-01 | IG6: 2095-03-01 | IH6: 2095-04-01 | II6: 2095-05-01 | IJ6: 2095-06-01 | IK6: 2095-07-01 | IL6: 2095-08-01 | IM6: 2095-09-01 | IN6: 2095-10-01 | IO6: 2095-11-01 | IP6: 2095-12-01 | IQ6: 2096-01-01 | IR6: 2096-02-01 | IS6: 2096-03-01 | IT6: 2096-04-01 | IU6: 2096-05-01 | IV6: 2096-06-01 | IW6: 2096-07-01 | IX6: 2096-08-01 | IY6: 2096-09-01 | IZ6: 2096-10-01 | JA6: 2096-11-01 | JB6: 2096-12-01 | JC6: 2097-01-01 | JD6: 2097-02-01 | JE6: 2097-03-01 | JF6: 2097-04-01 | JG6: 2097-05-01 | JH6: =JG7+1 -> 2097-06-01 | JI6: 2097-07-01 | JJ6: 2097-08-01 | JK6: 2097-09-01 | JL6: 2097-10-01 | JM6: 2097-11-01 | JN6: 2097-12-01 | JO6: 2098-01-01 | JP6: 2098-02-01 | JQ6: 2098-03-01 | JR6: 2098-04-01 | JS6: 2098-05-01 | JT6: 2098-06-01 | JU6: 2098-07-01 | JV6: 2098-08-01 | JW6: 2098-09-01 | JX6: 2098-10-01 | JY6: 2098-11-01 | JZ6: 2098-12-01 | KA6: 2099-01-01 | KB6: 2099-02-01 | KC6: 2099-03-01 | KD6: 2099-04-01 | KE6: 2099-05-01 | KF6: 2099-06-01 | KG6: 2099-07-01 | KH6: 2099-08-01 | KI6: 2099-09-01 | KJ6: 2099-10-01 | KK6: 2099-11-01 | KL6: 2099-12-01 | KM6: 2100-01-01 | KN6: 2100-02-01 | KO6: 2100-03-01 | KP6: 2100-04-01 | KQ6: 2100-05-01 | KR6: 2100-06-01 | KS6: 2100-07-01 | KT6: 2100-08-01 | KU6: 2100-09-01 | KV6: 2100-10-01 | KW6: 2100-11-01 | KX6: 2100-12-01 | KY6: 2101-01-01 | KZ6: 2101-02-01 | LA6: 2101-03-01 | LB6: 2101-04-01 | LC6: 2101-05-01 | LD6: 2101-06-01 | LE6: 2101-07-01 | LF6: 2101-08-01 | LG6: 2101-09-01 | LH6: 2101-10-01 | LI6: 2101-11-01 | LJ6: 2101-12-01 | LK6: 2102-01-01 | LL6: 2102-02-01 | LM6: 2102-03-01 | LN6: 2102-04-01 | LO6: 2102-05-01 | LP6: 2102-06-01 | LQ6: 2102-07-01 | LR6: 2102-08-01 | LS6: 2102-09-01 | LT6: =LS7+1 -> 2102-10-01 | LU6: 2102-11-01 | LV6: 2102-12-01 | LW6: 2103-01-01 | LX6: 2103-02-01 | LY6: 2103-03-01 | LZ6: 2103-04-01 | MA6: 2103-05-01 | MB6: 2103-06-01 | MC6: 2103-07-01 | MD6: 2103-08-01 | ME6: 2103-09-01 | MF6: 2103-10-01 | MG6: 2103-11-01 | MH6: 2103-12-01 | MI6: 2104-01-01 | MJ6: 2104-02-01 | MK6: 2104-03-01 | ML6: 2104-04-01 | MM6: 2104-05-01 | MN6: 2104-06-01 | MO6: 2104-07-01 | MP6: 2104-08-01 | MQ6: 2104-09-01 | MR6: 2104-10-01 | MS6: 2104-11-01 | MT6: 2104-12-01 | MU6: 2105-01-01 | MV6: 2105-02-01 | MW6: 2105-03-01 | MX6: 2105-04-01 | MY6: 2105-05-01 | MZ6: 2105-06-01 | NA6: 2105-07-01 | NB6: 2105-08-01 | NC6: 2105-09-01 | ND6: 2105-10-01 | NE6: 2105-11-01 | NF6: 2105-12-01 | NG6: 2106-01-01 | NH6: 2106-02-01 | NI6: 2106-03-01 | NJ6: 2106-04-01 | NK6: 2106-05-01 | NL6: 2106-06-01 | NM6: 2106-07-01 | NN6: 2106-08-01 | NO6: 2106-09-01 | NP6: 2106-10-01 | NQ6: 2106-11-01 | NR6: 2106-12-01 | NS6: 2107-01-01 | NT6: 2107-02-01 | NU6: 2107-03-01 | NV6: 2107-04-01 | NW6: 2107-05-01 | NX6: 2107-06-01 | NY6: 2107-07-01 | NZ6: 2107-08-01 | OA6: 2107-09-01 | OB6: 2107-10-01 | OC6: 2107-11-01 | OD6: 2107-12-01 | OE6: 2108-01-01 | OF6: =OE7+1 -> 2108-02-01 | OG6: 2108-03-01 | OH6: 2108-04-01 | OI6: 2108-05-01 | OJ6: 2108-06-01 | OK6: 2108-07-01 | OL6: 2108-08-01 | OM6: 2108-09-01 | ON6: 2108-10-01 | OO6: 2108-11-01 | OP6: 2108-12-01 | OQ6: 2109-01-01 | OR6: 2109-02-01 | OS6: 2109-03-01 | OT6: 2109-04-01 | OU6: 2109-05-01 | OV6: 2109-06-01 | OW6: 2109-07-01 | OX6: 2109-08-01 | OY6: 2109-09-01 | OZ6: 2109-10-01 | PA6: 2109-11-01 | PB6: 2109-12-01 | PC6: 2110-01-01 | PD6: 2110-02-01 | PE6: 2110-03-01 | PF6: 2110-04-01 | PG6: 2110-05-01 | PH6: 2110-06-01 | PI6: 2110-07-01 | PJ6: 2110-08-01 | PK6: 2110-09-01 | PL6: 2110-10-01 | PM6: 2110-11-01 | PN6: 2110-12-01 | PO6: 2111-01-01 | PP6: 2111-02-01 | PQ6: 2111-03-01 | PR6: 2111-04-01 | PS6: 2111-05-01 | PT6: 2111-06-01 | PU6: 2111-07-01 | PV6: 2111-08-01 | PW6: 2111-09-01 | PX6: 2111-10-01 | PY6: 2111-11-01 | PZ6: 2111-12-01 | QA6: 2112-01-01 | QB6: 2112-02-01 | QC6: 2112-03-01 | QD6: 2112-04-01 | QE6: 2112-05-01 | QF6: 2112-06-01 | QG6: 2112-07-01 | QH6: 2112-08-01 | QI6: 2112-09-01 | QJ6: 2112-10-01 | QK6: 2112-11-01 | QL6: 2112-12-01 | QM6: 2113-01-01 | QN6: 2113-02-01 | QO6: 2113-03-01 | QP6: 2113-04-01 | QQ6: 2113-05-01 | QR6: =QQ7+1 -> 2113-06-01 | QS6: 2113-07-01 | QT6: 2113-08-01 | QU6: 2113-09-01 | QV6: 2113-10-01 | QW6: 2113-11-01 | QX6: 2113-12-01 | QY6: 2114-01-01 | QZ6: 2114-02-01 | RA6: 2114-03-01 | RB6: 2114-04-01 | RC6: 2114-05-01 | RD6: 2114-06-01 | RE6: 2114-07-01 | RF6: 2114-08-01 | RG6: 2114-09-01 | RH6: 2114-10-01 | RI6: 2114-11-01 | RJ6: 2114-12-01 | RK6: 2115-01-01 | RL6: 2115-02-01 | RM6: 2115-03-01 | RN6: 2115-04-01 | RO6: 2115-05-01 | RP6: 2115-06-01 | RQ6: 2115-07-01 | RR6: 2115-08-01 | RS6: 2115-09-01 | RT6: 2115-10-01 | RU6: 2115-11-01 | RV6: 2115-12-01 | RW6: 2116-01-01 | RX6: 2116-02-01 | RY6: 2116-03-01 | RZ6: 2116-04-01 | SA6: 2116-05-01 | SB6: 2116-06-01 | SC6: 2116-07-01 | SD6: 2116-08-01 | SE6: 2116-09-01 | SF6: 2116-10-01 | SG6: 2116-11-01 | SH6: 2116-12-01 | SI6: 2117-01-01 | SJ6: 2117-02-01 | SK6: 2117-03-01 | SL6: 2117-04-01 | SM6: 2117-05-01 | SN6: 2117-06-01 | SO6: 2117-07-01 | SP6: 2117-08-01
C7: End of Period | E7: Date | F7: Date | G7: =InputC!F3-1 -> 2025-12-31 | J7: =$G$7 -> 2025-12-31 | K7: =EOMONTH(K6,K5-1) -> 2026-01-31 | L7: =EOMONTH(L6,L5-1) -> 2026-02-28 | M7: 2026-03-31 | N7: 2026-04-30 | O7: 2026-05-31 | P7: 2026-06-30 | Q7: 2026-07-31 | R7: 2026-08-31 | S7: 2026-09-30 | T7: 2026-10-31 | U7: 2026-11-30 | V7: 2026-12-31 | W7: 2027-01-31 | X7: 2027-02-28 | Y7: 2027-03-31 | Z7: 2027-04-30 | AA7: 2027-05-31 | AB7: 2027-06-30 | AC7: 2027-07-31 | AD7: 2027-08-31 | AE7: 2027-09-30 | AF7: 2027-10-31 | AG7: 2027-11-30 | AH7: 2027-12-31 | AI7: 2028-01-31 | AJ7: 2028-02-29 | AK7: 2028-03-31 | AL7: 2028-04-30 | AM7: 2028-05-31 | AN7: 2028-06-30 | AO7: 2028-07-31 | AP7: 2028-08-31 | AQ7: 2028-09-30 | AR7: 2028-10-31 | AS7: 2028-11-30 | AT7: 2028-12-31 | AU7: 2029-01-31 | AV7: 2029-02-28 | AW7: 2029-03-31 | AX7: 2029-04-30 | AY7: 2029-05-31 | AZ7: 2029-06-30 | BA7: 2029-07-31 | BB7: 2029-08-31 | BC7: 2029-09-30 | BD7: 2029-10-31 | BE7: 2029-11-30 | BF7: 2029-12-31 | BG7: 2030-01-31 | BH7: 2030-02-28 | BI7: 2030-03-31 | BJ7: 2030-04-30 | BK7: 2030-05-31 | BL7: 2030-06-30 | BM7: 2030-07-31 | BN7: 2030-08-31 | BO7: 2030-09-30 | BP7: 2030-10-31 | BQ7: 2030-11-30 | BR7: 2030-12-31 | BS7: 2031-01-31 | BT7: 2031-02-28 | BU7: 2031-03-31 | BV7: 2031-04-30 | BW7: 2031-05-31 | BX7: =EOMONTH(BX6,BX5-1) -> 2031-06-30 | BY7: 2031-07-31 | BZ7: 2031-08-31 | CA7: 2031-09-30 | CB7: 2031-10-31 | CC7: 2031-11-30 | CD7: 2031-12-31 | CE7: 2032-01-31 | CF7: 2032-02-29 | CG7: 2032-03-31 | CH7: 2032-04-30 | CI7: 2032-05-31 | CJ7: 2032-06-30 | CK7: 2032-07-31 | CL7: 2032-08-31 | CM7: 2032-09-30 | CN7: 2032-10-31 | CO7: 2032-11-30 | CP7: 2032-12-31 | CQ7: 2033-01-31 | CR7: 2033-02-28 | CS7: 2033-03-31 | CT7: 2033-04-30 | CU7: 2033-05-31 | CV7: 2033-06-30 | CW7: 2033-07-31 | CX7: 2033-08-31 | CY7: 2033-09-30 | CZ7: 2033-10-31 | DA7: 2033-11-30 | DB7: 2033-12-31 | DC7: 2034-01-31 | DD7: 2034-02-28 | DE7: 2034-03-31 | DF7: 2034-04-30 | DG7: 2034-10-31 | DH7: 2035-04-30 | DI7: 2035-10-31 | DJ7: 2036-04-30 | DK7: 2036-10-31 | DL7: 2037-04-30 | DM7: 2037-10-31 | DN7: 2038-04-30 | DO7: 2038-10-31 | DP7: 2039-04-30 | DQ7: 2039-10-31 | DR7: 2040-04-30 | DS7: 2040-10-31 | DT7: 2041-04-30 | DU7: 2041-10-31 | DV7: 2042-04-30 | DW7: 2042-10-31 | DX7: 2043-04-30 | DY7: 2043-10-31 | DZ7: 2044-04-30 | EA7: 2044-10-31 | EB7: 2045-04-30 | EC7: 2045-10-31 | ED7: 2046-04-30 | EE7: 2046-10-31 | EF7: 2047-04-30 | EG7: 2047-10-31 | EH7: 2048-04-30 | EI7: 2048-10-31 | EJ7: =EOMONTH(EJ6,EJ5-1) -> 2049-04-30 | EK7: 2049-10-31 | EL7: 2050-04-30 | EM7: 2050-10-31 | EN7: 2051-04-30 | EO7: 2051-10-31 | EP7: 2052-04-30 | EQ7: 2052-10-31 | ER7: 2053-04-30 | ES7: 2053-10-31 | ET7: 2054-04-30 | EU7: 2054-10-31 | EV7: 2055-04-30 | EW7: 2055-10-31 | EX7: 2056-04-30 | EY7: 2056-10-31 | EZ7: 2057-04-30 | FA7: 2057-10-31 | FB7: 2058-04-30 | FC7: 2058-10-31 | FD7: 2059-04-30 | FE7: 2059-10-31 | FF7: 2060-04-30 | FG7: 2060-10-31 | FH7: 2061-04-30 | FI7: 2061-10-31 | FJ7: 2062-04-30 | FK7: 2062-10-31 | FL7: 2063-04-30 | FM7: 2063-10-31 | FN7: 2064-04-30 | FO7: 2064-10-31 | FP7: 2065-04-30 | FQ7: 2065-10-31 | FR7: 2066-04-30 | FS7: 2066-10-31 | FT7: 2067-04-30 | FU7: 2067-10-31 | FV7: 2068-04-30 | FW7: 2068-10-31 | FX7: 2069-04-30 | FY7: 2069-10-31 | FZ7: 2070-04-30 | GA7: 2070-10-31 | GB7: 2071-04-30 | GC7: 2071-10-31 | GD7: 2072-04-30 | GE7: 2072-10-31 | GF7: 2073-04-30 | GG7: 2073-10-31 | GH7: 2074-04-30 | GI7: 2074-10-31 | GJ7: 2075-04-30 | GK7: 2075-10-31 | GL7: 2076-04-30 | GM7: 2076-10-31 | GN7: 2077-04-30 | GO7: 2077-10-31 | GP7: 2078-04-30 | GQ7: 2078-10-31 | GR7: 2079-04-30 | GS7: 2079-10-31 | GT7: 2080-04-30 | GU7: 2080-10-31 | GV7: =EOMONTH(GV6,GV5-1) -> 2081-04-30 | GW7: 2081-10-31 | GX7: 2082-04-30 | GY7: 2082-10-31 | GZ7: 2083-04-30 | HA7: 2083-10-31 | HB7: 2084-04-30 | HC7: 2084-10-31 | HD7: 2085-04-30 | HE7: 2085-10-31 | HF7: 2086-04-30 | HG7: 2086-10-31 | HH7: 2087-04-30 | HI7: 2087-10-31 | HJ7: 2088-04-30 | HK7: 2088-10-31 | HL7: 2089-04-30 | HM7: 2089-10-31 | HN7: 2090-04-30 | HO7: 2090-10-31 | HP7: 2091-04-30 | HQ7: 2091-10-31 | HR7: 2092-04-30 | HS7: 2092-10-31 | HT7: 2093-04-30 | HU7: 2093-10-31 | HV7: 2094-04-30 | HW7: 2094-05-31 | HX7: 2094-06-30 | HY7: 2094-07-31 | HZ7: 2094-08-31 | IA7: 2094-09-30 | IB7: 2094-10-31 | IC7: 2094-11-30 | ID7: 2094-12-31 | IE7: 2095-01-31 | IF7: 2095-02-28 | IG7: 2095-03-31 | IH7: 2095-04-30 | II7: 2095-05-31 | IJ7: 2095-06-30 | IK7: 2095-07-31 | IL7: 2095-08-31 | IM7: 2095-09-30 | IN7: 2095-10-31 | IO7: 2095-11-30 | IP7: 2095-12-31 | IQ7: 2096-01-31 | IR7: 2096-02-29 | IS7: 2096-03-31 | IT7: 2096-04-30 | IU7: 2096-05-31 | IV7: 2096-06-30 | IW7: 2096-07-31 | IX7: 2096-08-31 | IY7: 2096-09-30 | IZ7: 2096-10-31 | JA7: 2096-11-30 | JB7: 2096-12-31 | JC7: 2097-01-31 | JD7: 2097-02-28 | JE7: 2097-03-31 | JF7: 2097-04-30 | JG7: 2097-05-31 | JH7: =EOMONTH(JH6,JH5-1) -> 2097-06-30 | JI7: 2097-07-31 | JJ7: 2097-08-31 | JK7: 2097-09-30 | JL7: 2097-10-31 | JM7: 2097-11-30 | JN7: 2097-12-31 | JO7: 2098-01-31 | JP7: 2098-02-28 | JQ7: 2098-03-31 | JR7: 2098-04-30 | JS7: 2098-05-31 | JT7: 2098-06-30 | JU7: 2098-07-31 | JV7: 2098-08-31 | JW7: 2098-09-30 | JX7: 2098-10-31 | JY7: 2098-11-30 | JZ7: 2098-12-31 | KA7: 2099-01-31 | KB7: 2099-02-28 | KC7: 2099-03-31 | KD7: 2099-04-30 | KE7: 2099-05-31 | KF7: 2099-06-30 | KG7: 2099-07-31 | KH7: 2099-08-31 | KI7: 2099-09-30 | KJ7: 2099-10-31 | KK7: 2099-11-30 | KL7: 2099-12-31 | KM7: 2100-01-31 | KN7: 2100-02-28 | KO7: 2100-03-31 | KP7: 2100-04-30 | KQ7: 2100-05-31 | KR7: 2100-06-30 | KS7: 2100-07-31 | KT7: 2100-08-31 | KU7: 2100-09-30 | KV7: 2100-10-31 | KW7: 2100-11-30 | KX7: 2100-12-31 | KY7: 2101-01-31 | KZ7: 2101-02-28 | LA7: 2101-03-31 | LB7: 2101-04-30 | LC7: 2101-05-31 | LD7: 2101-06-30 | LE7: 2101-07-31 | LF7: 2101-08-31 | LG7: 2101-09-30 | LH7: 2101-10-31 | LI7: 2101-11-30 | LJ7: 2101-12-31 | LK7: 2102-01-31 | LL7: 2102-02-28 | LM7: 2102-03-31 | LN7: 2102-04-30 | LO7: 2102-05-31 | LP7: 2102-06-30 | LQ7: 2102-07-31 | LR7: 2102-08-31 | LS7: 2102-09-30 | LT7: =EOMONTH(LT6,LT5-1) -> 2102-10-31 | LU7: 2102-11-30 | LV7: 2102-12-31 | LW7: 2103-01-31 | LX7: 2103-02-28 | LY7: 2103-03-31 | LZ7: 2103-04-30 | MA7: 2103-05-31 | MB7: 2103-06-30 | MC7: 2103-07-31 | MD7: 2103-08-31 | ME7: 2103-09-30 | MF7: 2103-10-31 | MG7: 2103-11-30 | MH7: 2103-12-31 | MI7: 2104-01-31 | MJ7: 2104-02-29 | MK7: 2104-03-31 | ML7: 2104-04-30 | MM7: 2104-05-31 | MN7: 2104-06-30 | MO7: 2104-07-31 | MP7: 2104-08-31 | MQ7: 2104-09-30 | MR7: 2104-10-31 | MS7: 2104-11-30 | MT7: 2104-12-31 | MU7: 2105-01-31 | MV7: 2105-02-28 | MW7: 2105-03-31 | MX7: 2105-04-30 | MY7: 2105-05-31 | MZ7: 2105-06-30 | NA7: 2105-07-31 | NB7: 2105-08-31 | NC7: 2105-09-30 | ND7: 2105-10-31 | NE7: 2105-11-30 | NF7: 2105-12-31 | NG7: 2106-01-31 | NH7: 2106-02-28 | NI7: 2106-03-31 | NJ7: 2106-04-30 | NK7: 2106-05-31 | NL7: 2106-06-30 | NM7: 2106-07-31 | NN7: 2106-08-31 | NO7: 2106-09-30 | NP7: 2106-10-31 | NQ7: 2106-11-30 | NR7: 2106-12-31 | NS7: 2107-01-31 | NT7: 2107-02-28 | NU7: 2107-03-31 | NV7: 2107-04-30 | NW7: 2107-05-31 | NX7: 2107-06-30 | NY7: 2107-07-31 | NZ7: 2107-08-31 | OA7: 2107-09-30 | OB7: 2107-10-31 | OC7: 2107-11-30 | OD7: 2107-12-31 | OE7: 2108-01-31 | OF7: =EOMONTH(OF6,OF5-1) -> 2108-02-29 | OG7: 2108-03-31 | OH7: 2108-04-30 | OI7: 2108-05-31 | OJ7: 2108-06-30 | OK7: 2108-07-31 | OL7: 2108-08-31 | OM7: 2108-09-30 | ON7: 2108-10-31 | OO7: 2108-11-30 | OP7: 2108-12-31 | OQ7: 2109-01-31 | OR7: 2109-02-28 | OS7: 2109-03-31 | OT7: 2109-04-30 | OU7: 2109-05-31 | OV7: 2109-06-30 | OW7: 2109-07-31 | OX7: 2109-08-31 | OY7: 2109-09-30 | OZ7: 2109-10-31 | PA7: 2109-11-30 | PB7: 2109-12-31 | PC7: 2110-01-31 | PD7: 2110-02-28 | PE7: 2110-03-31 | PF7: 2110-04-30 | PG7: 2110-05-31 | PH7: 2110-06-30 | PI7: 2110-07-31 | PJ7: 2110-08-31 | PK7: 2110-09-30 | PL7: 2110-10-31 | PM7: 2110-11-30 | PN7: 2110-12-31 | PO7: 2111-01-31 | PP7: 2111-02-28 | PQ7: 2111-03-31 | PR7: 2111-04-30 | PS7: 2111-05-31 | PT7: 2111-06-30 | PU7: 2111-07-31 | PV7: 2111-08-31 | PW7: 2111-09-30 | PX7: 2111-10-31 | PY7: 2111-11-30 | PZ7: 2111-12-31 | QA7: 2112-01-31 | QB7: 2112-02-29 | QC7: 2112-03-31 | QD7: 2112-04-30 | QE7: 2112-05-31 | QF7: 2112-06-30 | QG7: 2112-07-31 | QH7: 2112-08-31 | QI7: 2112-09-30 | QJ7: 2112-10-31 | QK7: 2112-11-30 | QL7: 2112-12-31 | QM7: 2113-01-31 | QN7: 2113-02-28 | QO7: 2113-03-31 | QP7: 2113-04-30 | QQ7: 2113-05-31 | QR7: =EOMONTH(QR6,QR5-1) -> 2113-06-30 | QS7: 2113-07-31 | QT7: 2113-08-31 | QU7: 2113-09-30 | QV7: 2113-10-31 | QW7: 2113-11-30 | QX7: 2113-12-31 | QY7: 2114-01-31 | QZ7: 2114-02-28 | RA7: 2114-03-31 | RB7: 2114-04-30 | RC7: 2114-05-31 | RD7: 2114-06-30 | RE7: 2114-07-31 | RF7: 2114-08-31 | RG7: 2114-09-30 | RH7: 2114-10-31 | RI7: 2114-11-30 | RJ7: 2114-12-31 | RK7: 2115-01-31 | RL7: 2115-02-28 | RM7: 2115-03-31 | RN7: 2115-04-30 | RO7: 2115-05-31 | RP7: 2115-06-30 | RQ7: 2115-07-31 | RR7: 2115-08-31 | RS7: 2115-09-30 | RT7: 2115-10-31 | RU7: 2115-11-30 | RV7: 2115-12-31 | RW7: 2116-01-31 | RX7: 2116-02-29 | RY7: 2116-03-31 | RZ7: 2116-04-30 | SA7: 2116-05-31 | SB7: 2116-06-30 | SC7: 2116-07-31 | SD7: 2116-08-31 | SE7: 2116-09-30 | SF7: 2116-10-31 | SG7: 2116-11-30 | SH7: 2116-12-31 | SI7: 2117-01-31 | SJ7: 2117-02-28 | SK7: 2117-03-31 | SL7: 2117-04-30 | SM7: 2117-05-31 | SN7: 2117-06-30 | SO7: 2117-07-31 | SP7: 2117-08-31
C8: Operating Period | E8: Flag | F8: Date | G8: =InputC!F5 -> 2034-05-31 | H8: =InputC!F8 -> 2094-05-31 | I8: =SUM(K8:XFD8) -> 120 | K8: =(AND(K6>=$G$8,K6<=$H$8))*1 -> 0 | L8: =(AND(L6>=$G$8,L6<=$H$8))*1 -> 0 | M8: 0 | N8: 0 | O8: 0 | P8: 0 | Q8: 0 | R8: 0 | S8: 0 | T8: 0 | U8: 0 | V8: 0 | W8: 0 | X8: 0 | Y8: 0 | Z8: 0 | AA8: 0 | AB8: 0 | AC8: 0 | AD8: 0 | AE8: 0 | AF8: 0 | AG8: 0 | AH8: 0 | AI8: 0 | AJ8: 0 | AK8: 0 | AL8: 0 | AM8: 0 | AN8: 0 | AO8: 0 | AP8: 0 | AQ8: 0 | AR8: 0 | AS8: 0 | AT8: 0 | AU8: 0 | AV8: 0 | AW8: 0 | AX8: 0 | AY8: 0 | AZ8: 0 | BA8: 0 | BB8: 0 | BC8: 0 | BD8: 0 | BE8: 0 | BF8: 0 | BG8: 0 | BH8: 0 | BI8: 0 | BJ8: 0 | BK8: 0 | BL8: 0 | BM8: 0 | BN8: 0 | BO8: 0 | BP8: 0 | BQ8: 0 | BR8: 0 | BS8: 0 | BT8: 0 | BU8: 0 | BV8: 0 | BW8: 0 | BX8: =(AND(BX6>=$G$8,BX6<=$H$8))*1 -> 0 | BY8: 0 | BZ8: 0 | CA8: 0 | CB8: 0 | CC8: 0 | CD8: 0 | CE8: 0 | CF8: 0 | CG8: 0 | CH8: 0 | CI8: 0 | CJ8: 0 | CK8: 0 | CL8: 0 | CM8: 0 | CN8: 0 | CO8: 0 | CP8: 0 | CQ8: 0 | CR8: 0 | CS8: 0 | CT8: 0 | CU8: 0 | CV8: 0 | CW8: 0 | CX8: 0 | CY8: 0 | CZ8: 0 | DA8: 0 | DB8: 0 | DC8: 0 | DD8: 0 | DE8: 0 | DF8: 0 | DG8: 0 | DH8: 1 | DI8: 1 | DJ8: 1 | DK8: 1 | DL8: 1 | DM8: 1 | DN8: 1 | DO8: 1 | DP8: 1 | DQ8: 1 | DR8: 1 | DS8: 1 | DT8: 1 | DU8: 1 | DV8: 1 | DW8: 1 | DX8: 1 | DY8: 1 | DZ8: 1 | EA8: 1 | EB8: 1 | EC8: 1 | ED8: 1 | EE8: 1 | EF8: 1 | EG8: 1 | EH8: 1 | EI8: 1 | EJ8: =(AND(EJ6>=$G$8,EJ6<=$H$8))*1 -> 1 | EK8: 1 | EL8: 1 | EM8: 1 | EN8: 1 | EO8: 1 | EP8: 1 | EQ8: 1 | ER8: 1 | ES8: 1 | ET8: 1 | EU8: 1 | EV8: 1 | EW8: 1 | EX8: 1 | EY8: 1 | EZ8: 1 | FA8: 1 | FB8: 1 | FC8: 1 | FD8: 1 | FE8: 1 | FF8: 1 | FG8: 1 | FH8: 1 | FI8: 1 | FJ8: 1 | FK8: 1 | FL8: 1 | FM8: 1 | FN8: 1 | FO8: 1 | FP8: 1 | FQ8: 1 | FR8: 1 | FS8: 1 | FT8: 1 | FU8: 1 | FV8: 1 | FW8: 1 | FX8: 1 | FY8: 1 | FZ8: 1 | GA8: 1 | GB8: 1 | GC8: 1 | GD8: 1 | GE8: 1 | GF8: 1 | GG8: 1 | GH8: 1 | GI8: 1 | GJ8: 1 | GK8: 1 | GL8: 1 | GM8: 1 | GN8: 1 | GO8: 1 | GP8: 1 | GQ8: 1 | GR8: 1 | GS8: 1 | GT8: 1 | GU8: 1 | GV8: =(AND(GV6>=$G$8,GV6<=$H$8))*1 -> 1 | GW8: 1 | GX8: 1 | GY8: 1 | GZ8: 1 | HA8: 1 | HB8: 1 | HC8: 1 | HD8: 1 | HE8: 1 | HF8: 1 | HG8: 1 | HH8: 1 | HI8: 1 | HJ8: 1 | HK8: 1 | HL8: 1 | HM8: 1 | HN8: 1 | HO8: 1 | HP8: 1 | HQ8: 1 | HR8: 1 | HS8: 1 | HT8: 1 | HU8: 1 | HV8: 1 | HW8: 1 | HX8: 0 | HY8: 0 | HZ8: 0 | IA8: 0 | IB8: 0 | IC8: 0 | ID8: 0 | IE8: 0 | IF8: 0 | IG8: 0 | IH8: 0 | II8: 0 | IJ8: 0 | IK8: 0 | IL8: 0 | IM8: 0 | IN8: 0 | IO8: 0 | IP8: 0 | IQ8: 0 | IR8: 0 | IS8: 0 | IT8: 0 | IU8: 0 | IV8: 0 | IW8: 0 | IX8: 0 | IY8: 0 | IZ8: 0 | JA8: 0 | JB8: 0 | JC8: 0 | JD8: 0 | JE8: 0 | JF8: 0 | JG8: 0 | JH8: =(AND(JH6>=$G$8,JH6<=$H$8))*1 -> 0 | JI8: 0 | JJ8: 0 | JK8: 0 | JL8: 0 | JM8: 0 | JN8: 0 | JO8: 0 | JP8: 0 | JQ8: 0 | JR8: 0 | JS8: 0 | JT8: 0 | JU8: 0 | JV8: 0 | JW8: 0 | JX8: 0 | JY8: 0 | JZ8: 0 | KA8: 0 | KB8: 0 | KC8: 0 | KD8: 0 | KE8: 0 | KF8: 0 | KG8: 0 | KH8: 0 | KI8: 0 | KJ8: 0 | KK8: 0 | KL8: 0 | KM8: 0 | KN8: 0 | KO8: 0 | KP8: 0 | KQ8: 0 | KR8: 0 | KS8: 0 | KT8: 0 | KU8: 0 | KV8: 0 | KW8: 0 | KX8: 0 | KY8: 0 | KZ8: 0 | LA8: 0 | LB8: 0 | LC8: 0 | LD8: 0 | LE8: 0 | LF8: 0 | LG8: 0 | LH8: 0 | LI8: 0 | LJ8: 0 | LK8: 0 | LL8: 0 | LM8: 0 | LN8: 0 | LO8: 0 | LP8: 0 | LQ8: 0 | LR8: 0 | LS8: 0 | LT8: =(AND(LT6>=$G$8,LT6<=$H$8))*1 -> 0 | LU8: 0 | LV8: 0 | LW8: 0 | LX8: 0 | LY8: 0 | LZ8: 0 | MA8: 0 | MB8: 0 | MC8: 0 | MD8: 0 | ME8: 0 | MF8: 0 | MG8: 0 | MH8: 0 | MI8: 0 | MJ8: 0 | MK8: 0 | ML8: 0 | MM8: 0 | MN8: 0 | MO8: 0 | MP8: 0 | MQ8: 0 | MR8: 0 | MS8: 0 | MT8: 0 | MU8: 0 | MV8: 0 | MW8: 0 | MX8: 0 | MY8: 0 | MZ8: 0 | NA8: 0 | NB8: 0 | NC8: 0 | ND8: 0 | NE8: 0 | NF8: 0 | NG8: 0 | NH8: 0 | NI8: 0 | NJ8: 0 | NK8: 0 | NL8: 0 | NM8: 0 | NN8: 0 | NO8: 0 | NP8: 0 | NQ8: 0 | NR8: 0 | NS8: 0 | NT8: 0 | NU8: 0 | NV8: 0 | NW8: 0 | NX8: 0 | NY8: 0 | NZ8: 0 | OA8: 0 | OB8: 0 | OC8: 0 | OD8: 0 | OE8: 0 | OF8: =(AND(OF6>=$G$8,OF6<=$H$8))*1 -> 0 | OG8: 0 | OH8: 0 | OI8: 0 | OJ8: 0 | OK8: 0 | OL8: 0 | OM8: 0 | ON8: 0 | OO8: 0 | OP8: 0 | OQ8: 0 | OR8: 0 | OS8: 0 | OT8: 0 | OU8: 0 | OV8: 0 | OW8: 0 | OX8: 0 | OY8: 0 | OZ8: 0 | PA8: 0 | PB8: 0 | PC8: 0 | PD8: 0 | PE8: 0 | PF8: 0 | PG8: 0 | PH8: 0 | PI8: 0 | PJ8: 0 | PK8: 0 | PL8: 0 | PM8: 0 | PN8: 0 | PO8: 0 | PP8: 0 | PQ8: 0 | PR8: 0 | PS8: 0 | PT8: 0 | PU8: 0 | PV8: 0 | PW8: 0 | PX8: 0 | PY8: 0 | PZ8: 0 | QA8: 0 | QB8: 0 | QC8: 0 | QD8: 0 | QE8: 0 | QF8: 0 | QG8: 0 | QH8: 0 | QI8: 0 | QJ8: 0 | QK8: 0 | QL8: 0 | QM8: 0 | QN8: 0 | QO8: 0 | QP8: 0 | QQ8: 0 | QR8: =(AND(QR6>=$G$8,QR6<=$H$8))*1 -> 0 | QS8: 0 | QT8: 0 | QU8: 0 | QV8: 0 | QW8: 0 | QX8: 0 | QY8: 0 | QZ8: 0 | RA8: 0 | RB8: 0 | RC8: 0 | RD8: 0 | RE8: 0 | RF8: 0 | RG8: 0 | RH8: 0 | RI8: 0 | RJ8: 0 | RK8: 0 | RL8: 0 | RM8: 0 | RN8: 0 | RO8: 0 | RP8: 0 | RQ8: 0 | RR8: 0 | RS8: 0 | RT8: 0 | RU8: 0 | RV8: 0 | RW8: 0 | RX8: 0 | RY8: 0 | RZ8: 0 | SA8: 0 | SB8: 0 | SC8: 0 | SD8: 0 | SE8: 0 | SF8: 0 | SG8: 0 | SH8: 0 | SI8: 0 | SJ8: 0 | SK8: 0 | SL8: 0 | SM8: 0 | SN8: 0 | SO8: 0 | SP8: 0
B10: Operations
C11: Capacity | E11: MW | F11: MW | G11: =InputC!F14 -> 1000 | K11: =$G$11*K8 -> 0 | L11: =$G$11*L8 -> 0 | M11: 0 | N11: 0 | O11: 0 | P11: 0 | Q11: 0 | R11: 0 | S11: 0 | T11: 0 | U11: 0 | V11: 0 | W11: 0 | X11: 0 | Y11: 0 | Z11: 0 | AA11: 0 | AB11: 0 | AC11: 0 | AD11: 0 | AE11: 0 | AF11: 0 | AG11: 0 | AH11: 0 | AI11: 0 | AJ11: 0 | AK11: 0 | AL11: 0 | AM11: 0 | AN11: 0 | AO11: 0 | AP11: 0 | AQ11: 0 | AR11: 0 | AS11: 0 | AT11: 0 | AU11: 0 | AV11: 0 | AW11: 0 | AX11: 0 | AY11: 0 | AZ11: 0 | BA11: 0 | BB11: 0 | BC11: 0 | BD11: 0 | BE11: 0 | BF11: 0 | BG11: 0 | BH11: 0 | BI11: 0 | BJ11: 0 | BK11: 0 | BL11: 0 | BM11: 0 | BN11: 0 | BO11: 0 | BP11: 0 | BQ11: 0 | BR11: 0 | BS11: 0 | BT11: 0 | BU11: 0 | BV11: 0 | BW11: 0 | BX11: =$G$11*BX8 -> 0 | BY11: 0 | BZ11: 0 | CA11: 0 | CB11: 0 | CC11: 0 | CD11: 0 | CE11: 0 | CF11: 0 | CG11: 0 | CH11: 0 | CI11: 0 | CJ11: 0 | CK11: 0 | CL11: 0 | CM11: 0 | CN11: 0 | CO11: 0 | CP11: 0 | CQ11: 0 | CR11: 0 | CS11: 0 | CT11: 0 | CU11: 0 | CV11: 0 | CW11: 0 | CX11: 0 | CY11: 0 | CZ11: 0 | DA11: 0 | DB11: 0 | DC11: 0 | DD11: 0 | DE11: 0 | DF11: 0 | DG11: 0 | DH11: 1000 | DI11: 1000 | DJ11: 1000 | DK11: 1000 | DL11: 1000 | DM11: 1000 | DN11: 1000 | DO11: 1000 | DP11: 1000 | DQ11: 1000 | DR11: 1000 | DS11: 1000 | DT11: 1000 | DU11: 1000 | DV11: 1000 | DW11: 1000 | DX11: 1000 | DY11: 1000 | DZ11: 1000 | EA11: 1000 | EB11: 1000 | EC11: 1000 | ED11: 1000 | EE11: 1000 | EF11: 1000 | EG11: 1000 | EH11: 1000 | EI11: 1000 | EJ11: =$G$11*EJ8 -> 1000 | EK11: 1000 | EL11: 1000 | EM11: 1000 | EN11: 1000 | EO11: 1000 | EP11: 1000 | EQ11: 1000 | ER11: 1000 | ES11: 1000 | ET11: 1000 | EU11: 1000 | EV11: 1000 | EW11: 1000 | EX11: 1000 | EY11: 1000 | EZ11: 1000 | FA11: 1000 | FB11: 1000 | FC11: 1000 | FD11: 1000 | FE11: 1000 | FF11: 1000 | FG11: 1000 | FH11: 1000 | FI11: 1000 | FJ11: 1000 | FK11: 1000 | FL11: 1000 | FM11: 1000 | FN11: 1000 | FO11: 1000 | FP11: 1000 | FQ11: 1000 | FR11: 1000 | FS11: 1000 | FT11: 1000 | FU11: 1000 | FV11: 1000 | FW11: 1000 | FX11: 1000 | FY11: 1000 | FZ11: 1000 | GA11: 1000 | GB11: 1000 | GC11: 1000 | GD11: 1000 | GE11: 1000 | GF11: 1000 | GG11: 1000 | GH11: 1000 | GI11: 1000 | GJ11: 1000 | GK11: 1000 | GL11: 1000 | GM11: 1000 | GN11: 1000 | GO11: 1000 | GP11: 1000 | GQ11: 1000 | GR11: 1000 | GS11: 1000 | GT11: 1000 | GU11: 1000 | GV11: =$G$11*GV8 -> 1000 | GW11: 1000 | GX11: 1000 | GY11: 1000 | GZ11: 1000 | HA11: 1000 | HB11: 1000 | HC11: 1000 | HD11: 1000 | HE11: 1000 | HF11: 1000 | HG11: 1000 | HH11: 1000 | HI11: 1000 | HJ11: 1000 | HK11: 1000 | HL11: 1000 | HM11: 1000 | HN11: 1000 | HO11: 1000 | HP11: 1000 | HQ11: 1000 | HR11: 1000 | HS11: 1000 | HT11: 1000 | HU11: 1000 | HV11: 1000 | HW11: 1000 | HX11: 0 | HY11: 0 | HZ11: 0 | IA11: 0 | IB11: 0 | IC11: 0 | ID11: 0 | IE11: 0 | IF11: 0 | IG11: 0 | IH11: 0 | II11: 0 | IJ11: 0 | IK11: 0 | IL11: 0 | IM11: 0 | IN11: 0 | IO11: 0 | IP11: 0 | IQ11: 0 | IR11: 0 | IS11: 0 | IT11: 0 | IU11: 0 | IV11: 0 | IW11: 0 | IX11: 0 | IY11: 0 | IZ11: 0 | JA11: 0 | JB11: 0 | JC11: 0 | JD11: 0 | JE11: 0 | JF11: 0 | JG11: 0 | JH11: =$G$11*JH8 -> 0 | JI11: 0 | JJ11: 0 | JK11: 0 | JL11: 0 | JM11: 0 | JN11: 0 | JO11: 0 | JP11: 0 | JQ11: 0 | JR11: 0 | JS11: 0 | JT11: 0 | JU11: 0 | JV11: 0 | JW11: 0 | JX11: 0 | JY11: 0 | JZ11: 0 | KA11: 0 | KB11: 0 | KC11: 0 | KD11: 0 | KE11: 0 | KF11: 0 | KG11: 0 | KH11: 0 | KI11: 0 | KJ11: 0 | KK11: 0 | KL11: 0 | KM11: 0 | KN11: 0 | KO11: 0 | KP11: 0 | KQ11: 0 | KR11: 0 | KS11: 0 | KT11: 0 | KU11: 0 | KV11: 0 | KW11: 0 | KX11: 0 | KY11: 0 | KZ11: 0 | LA11: 0 | LB11: 0 | LC11: 0 | LD11: 0 | LE11: 0 | LF11: 0 | LG11: 0 | LH11: 0 | LI11: 0 | LJ11: 0 | LK11: 0 | LL11: 0 | LM11: 0 | LN11: 0 | LO11: 0 | LP11: 0 | LQ11: 0 | LR11: 0 | LS11: 0 | LT11: =$G$11*LT8 -> 0 | LU11: 0 | LV11: 0 | LW11: 0 | LX11: 0 | LY11: 0 | LZ11: 0 | MA11: 0 | MB11: 0 | MC11: 0 | MD11: 0 | ME11: 0 | MF11: 0 | MG11: 0 | MH11: 0 | MI11: 0 | MJ11: 0 | MK11: 0 | ML11: 0 | MM11: 0 | MN11: 0 | MO11: 0 | MP11: 0 | MQ11: 0 | MR11: 0 | MS11: 0 | MT11: 0 | MU11: 0 | MV11: 0 | MW11: 0 | MX11: 0 | MY11: 0 | MZ11: 0 | NA11: 0 | NB11: 0 | NC11: 0 | ND11: 0 | NE11: 0 | NF11: 0 | NG11: 0 | NH11: 0 | NI11: 0 | NJ11: 0 | NK11: 0 | NL11: 0 | NM11: 0 | NN11: 0 | NO11: 0 | NP11: 0 | NQ11: 0 | NR11: 0 | NS11: 0 | NT11: 0 | NU11: 0 | NV11: 0 | NW11: 0 | NX11: 0 | NY11: 0 | NZ11: 0 | OA11: 0 | OB11: 0 | OC11: 0 | OD11: 0 | OE11: 0 | OF11: =$G$11*OF8 -> 0 | OG11: 0 | OH11: 0 | OI11: 0 | OJ11: 0 | OK11: 0 | OL11: 0 | OM11: 0 | ON11: 0 | OO11: 0 | OP11: 0 | OQ11: 0 | OR11: 0 | OS11: 0 | OT11: 0 | OU11: 0 | OV11: 0 | OW11: 0 | OX11: 0 | OY11: 0 | OZ11: 0 | PA11: 0 | PB11: 0 | PC11: 0 | PD11: 0 | PE11: 0 | PF11: 0 | PG11: 0 | PH11: 0 | PI11: 0 | PJ11: 0 | PK11: 0 | PL11: 0 | PM11: 0 | PN11: 0 | PO11: 0 | PP11: 0 | PQ11: 0 | PR11: 0 | PS11: 0 | PT11: 0 | PU11: 0 | PV11: 0 | PW11: 0 | PX11: 0 | PY11: 0 | PZ11: 0 | QA11: 0 | QB11: 0 | QC11: 0 | QD11: 0 | QE11: 0 | QF11: 0 | QG11: 0 | QH11: 0 | QI11: 0 | QJ11: 0 | QK11: 0 | QL11: 0 | QM11: 0 | QN11: 0 | QO11: 0 | QP11: 0 | QQ11: 0 | QR11: =$G$11*QR8 -> 0 | QS11: 0 | QT11: 0 | QU11: 0 | QV11: 0 | QW11: 0 | QX11: 0 | QY11: 0 | QZ11: 0 | RA11: 0 | RB11: 0 | RC11: 0 | RD11: 0 | RE11: 0 | RF11: 0 | RG11: 0 | RH11: 0 | RI11: 0 | RJ11: 0 | RK11: 0 | RL11: 0 | RM11: 0 | RN11: 0 | RO11: 0 | RP11: 0 | RQ11: 0 | RR11: 0 | RS11: 0 | RT11: 0 | RU11: 0 | RV11: 0 | RW11: 0 | RX11: 0 | RY11: 0 | RZ11: 0 | SA11: 0 | SB11: 0 | SC11: 0 | SD11: 0 | SE11: 0 | SF11: 0 | SG11: 0 | SH11: 0 | SI11: 0 | SJ11: 0 | SK11: 0 | SL11: 0 | SM11: 0 | SN11: 0 | SO11: 0 | SP11: 0
C12: Capacity Factor | E12: % | F12: % | G12: =InputC!F15 -> 0.92 | K12: =$G$12*K8 -> 0 | L12: =$G$12*L8 -> 0 | M12: 0 | N12: 0 | O12: 0 | P12: 0 | Q12: 0 | R12: 0 | S12: 0 | T12: 0 | U12: 0 | V12: 0 | W12: 0 | X12: 0 | Y12: 0 | Z12: 0 | AA12: 0 | AB12: 0 | AC12: 0 | AD12: 0 | AE12: 0 | AF12: 0 | AG12: 0 | AH12: 0 | AI12: 0 | AJ12: 0 | AK12: 0 | AL12: 0 | AM12: 0 | AN12: 0 | AO12: 0 | AP12: 0 | AQ12: 0 | AR12: 0 | AS12: 0 | AT12: 0 | AU12: 0 | AV12: 0 | AW12: 0 | AX12: 0 | AY12: 0 | AZ12: 0 | BA12: 0 | BB12: 0 | BC12: 0 | BD12: 0 | BE12: 0 | BF12: 0 | BG12: 0 | BH12: 0 | BI12: 0 | BJ12: 0 | BK12: 0 | BL12: 0 | BM12: 0 | BN12: 0 | BO12: 0 | BP12: 0 | BQ12: 0 | BR12: 0 | BS12: 0 | BT12: 0 | BU12: 0 | BV12: 0 | BW12: 0 | BX12: =$G$12*BX8 -> 0 | BY12: 0 | BZ12: 0 | CA12: 0 | CB12: 0 | CC12: 0 | CD12: 0 | CE12: 0 | CF12: 0 | CG12: 0 | CH12: 0 | CI12: 0 | CJ12: 0 | CK12: 0 | CL12: 0 | CM12: 0 | CN12: 0 | CO12: 0 | CP12: 0 | CQ12: 0 | CR12: 0 | CS12: 0 | CT12: 0 | CU12: 0 | CV12: 0 | CW12: 0 | CX12: 0 | CY12: 0 | CZ12: 0 | DA12: 0 | DB12: 0 | DC12: 0 | DD12: 0 | DE12: 0 | DF12: 0 | DG12: 0 | DH12: 0.92 | DI12: 0.92 | DJ12: 0.92 | DK12: 0.92 | DL12: 0.92 | DM12: 0.92 | DN12: 0.92 | DO12: 0.92 | DP12: 0.92 | DQ12: 0.92 | DR12: 0.92 | DS12: 0.92 | DT12: 0.92 | DU12: 0.92 | DV12: 0.92 | DW12: 0.92 | DX12: 0.92 | DY12: 0.92 | DZ12: 0.92 | EA12: 0.92 | EB12: 0.92 | EC12: 0.92 | ED12: 0.92 | EE12: 0.92 | EF12: 0.92 | EG12: 0.92 | EH12: 0.92 | EI12: 0.92 | EJ12: =$G$12*EJ8 -> 0.92 | EK12: 0.92 | EL12: 0.92 | EM12: 0.92 | EN12: 0.92 | EO12: 0.92 | EP12: 0.92 | EQ12: 0.92 | ER12: 0.92 | ES12: 0.92 | ET12: 0.92 | EU12: 0.92 | EV12: 0.92 | EW12: 0.92 | EX12: 0.92 | EY12: 0.92 | EZ12: 0.92 | FA12: 0.92 | FB12: 0.92 | FC12: 0.92 | FD12: 0.92 | FE12: 0.92 | FF12: 0.92 | FG12: 0.92 | FH12: 0.92 | FI12: 0.92 | FJ12: 0.92 | FK12: 0.92 | FL12: 0.92 | FM12: 0.92 | FN12: 0.92 | FO12: 0.92 | FP12: 0.92 | FQ12: 0.92 | FR12: 0.92 | FS12: 0.92 | FT12: 0.92 | FU12: 0.92 | FV12: 0.92 | FW12: 0.92 | FX12: 0.92 | FY12: 0.92 | FZ12: 0.92 | GA12: 0.92 | GB12: 0.92 | GC12: 0.92 | GD12: 0.92 | GE12: 0.92 | GF12: 0.92 | GG12: 0.92 | GH12: 0.92 | GI12: 0.92 | GJ12: 0.92 | GK12: 0.92 | GL12: 0.92 | GM12: 0.92 | GN12: 0.92 | GO12: 0.92 | GP12: 0.92 | GQ12: 0.92 | GR12: 0.92 | GS12: 0.92 | GT12: 0.92 | GU12: 0.92 | GV12: =$G$12*GV8 -> 0.92 | GW12: 0.92 | GX12: 0.92 | GY12: 0.92 | GZ12: 0.92 | HA12: 0.92 | HB12: 0.92 | HC12: 0.92 | HD12: 0.92 | HE12: 0.92 | HF12: 0.92 | HG12: 0.92 | HH12: 0.92 | HI12: 0.92 | HJ12: 0.92 | HK12: 0.92 | HL12: 0.92 | HM12: 0.92 | HN12: 0.92 | HO12: 0.92 | HP12: 0.92 | HQ12: 0.92 | HR12: 0.92 | HS12: 0.92 | HT12: 0.92 | HU12: 0.92 | HV12: 0.92 | HW12: 0.92 | HX12: 0 | HY12: 0 | HZ12: 0 | IA12: 0 | IB12: 0 | IC12: 0 | ID12: 0 | IE12: 0 | IF12: 0 | IG12: 0 | IH12: 0 | II12: 0 | IJ12: 0 | IK12: 0 | IL12: 0 | IM12: 0 | IN12: 0 | IO12: 0 | IP12: 0 | IQ12: 0 | IR12: 0 | IS12: 0 | IT12: 0 | IU12: 0 | IV12: 0 | IW12: 0 | IX12: 0 | IY12: 0 | IZ12: 0 | JA12: 0 | JB12: 0 | JC12: 0 | JD12: 0 | JE12: 0 | JF12: 0 | JG12: 0 | JH12: =$G$12*JH8 -> 0 | JI12: 0 | JJ12: 0 | JK12: 0 | JL12: 0 | JM12: 0 | JN12: 0 | JO12: 0 | JP12: 0 | JQ12: 0 | JR12: 0 | JS12: 0 | JT12: 0 | JU12: 0 | JV12: 0 | JW12: 0 | JX12: 0 | JY12: 0 | JZ12: 0 | KA12: 0 | KB12: 0 | KC12: 0 | KD12: 0 | KE12: 0 | KF12: 0 | KG12: 0 | KH12: 0 | KI12: 0 | KJ12: 0 | KK12: 0 | KL12: 0 | KM12: 0 | KN12: 0 | KO12: 0 | KP12: 0 | KQ12: 0 | KR12: 0 | KS12: 0 | KT12: 0 | KU12: 0 | KV12: 0 | KW12: 0 | KX12: 0 | KY12: 0 | KZ12: 0 | LA12: 0 | LB12: 0 | LC12: 0 | LD12: 0 | LE12: 0 | LF12: 0 | LG12: 0 | LH12: 0 | LI12: 0 | LJ12: 0 | LK12: 0 | LL12: 0 | LM12: 0 | LN12: 0 | LO12: 0 | LP12: 0 | LQ12: 0 | LR12: 0 | LS12: 0 | LT12: =$G$12*LT8 -> 0 | LU12: 0 | LV12: 0 | LW12: 0 | LX12: 0 | LY12: 0 | LZ12: 0 | MA12: 0 | MB12: 0 | MC12: 0 | MD12: 0 | ME12: 0 | MF12: 0 | MG12: 0 | MH12: 0 | MI12: 0 | MJ12: 0 | MK12: 0 | ML12: 0 | MM12: 0 | MN12: 0 | MO12: 0 | MP12: 0 | MQ12: 0 | MR12: 0 | MS12: 0 | MT12: 0 | MU12: 0 | MV12: 0 | MW12: 0 | MX12: 0 | MY12: 0 | MZ12: 0 | NA12: 0 | NB12: 0 | NC12: 0 | ND12: 0 | NE12: 0 | NF12: 0 | NG12: 0 | NH12: 0 | NI12: 0 | NJ12: 0 | NK12: 0 | NL12: 0 | NM12: 0 | NN12: 0 | NO12: 0 | NP12: 0 | NQ12: 0 | NR12: 0 | NS12: 0 | NT12: 0 | NU12: 0 | NV12: 0 | NW12: 0 | NX12: 0 | NY12: 0 | NZ12: 0 | OA12: 0 | OB12: 0 | OC12: 0 | OD12: 0 | OE12: 0 | OF12: =$G$12*OF8 -> 0 | OG12: 0 | OH12: 0 | OI12: 0 | OJ12: 0 | OK12: 0 | OL12: 0 | OM12: 0 | ON12: 0 | OO12: 0 | OP12: 0 | OQ12: 0 | OR12: 0 | OS12: 0 | OT12: 0 | OU12: 0 | OV12: 0 | OW12: 0 | OX12: 0 | OY12: 0 | OZ12: 0 | PA12: 0 | PB12: 0 | PC12: 0 | PD12: 0 | PE12: 0 | PF12: 0 | PG12: 0 | PH12: 0 | PI12: 0 | PJ12: 0 | PK12: 0 | PL12: 0 | PM12: 0 | PN12: 0 | PO12: 0 | PP12: 0 | PQ12: 0 | PR12: 0 | PS12: 0 | PT12: 0 | PU12: 0 | PV12: 0 | PW12: 0 | PX12: 0 | PY12: 0 | PZ12: 0 | QA12: 0 | QB12: 0 | QC12: 0 | QD12: 0 | QE12: 0 | QF12: 0 | QG12: 0 | QH12: 0 | QI12: 0 | QJ12: 0 | QK12: 0 | QL12: 0 | QM12: 0 | QN12: 0 | QO12: 0 | QP12: 0 | QQ12: 0 | QR12: =$G$12*QR8 -> 0 | QS12: 0 | QT12: 0 | QU12: 0 | QV12: 0 | QW12: 0 | QX12: 0 | QY12: 0 | QZ12: 0 | RA12: 0 | RB12: 0 | RC12: 0 | RD12: 0 | RE12: 0 | RF12: 0 | RG12: 0 | RH12: 0 | RI12: 0 | RJ12: 0 | RK12: 0 | RL12: 0 | RM12: 0 | RN12: 0 | RO12: 0 | RP12: 0 | RQ12: 0 | RR12: 0 | RS12: 0 | RT12: 0 | RU12: 0 | RV12: 0 | RW12: 0 | RX12: 0 | RY12: 0 | RZ12: 0 | SA12: 0 | SB12: 0 | SC12: 0 | SD12: 0 | SE12: 0 | SF12: 0 | SG12: 0 | SH12: 0 | SI12: 0 | SJ12: 0 | SK12: 0 | SL12: 0 | SM12: 0 | SN12: 0 | SO12: 0 | SP12: 0
C13: Days in Period | E13: Days | K13: =(K7-K6)+1 -> 31 | L13: =(L7-L6)+1 -> 28 | M13: 31 | N13: 30 | O13: 31 | P13: 30 | Q13: 31 | R13: 31 | S13: 30 | T13: 31 | U13: 30 | V13: 31 | W13: 31 | X13: 28 | Y13: 31 | Z13: 30 | AA13: 31 | AB13: 30 | AC13: 31 | AD13: 31 | AE13: 30 | AF13: 31 | AG13: 30 | AH13: 31 | AI13: 31 | AJ13: 29 | AK13: 31 | AL13: 30 | AM13: 31 | AN13: 30 | AO13: 31 | AP13: 31 | AQ13: 30 | AR13: 31 | AS13: 30 | AT13: 31 | AU13: 31 | AV13: 28 | AW13: 31 | AX13: 30 | AY13: 31 | AZ13: 30 | BA13: 31 | BB13: 31 | BC13: 30 | BD13: 31 | BE13: 30 | BF13: 31 | BG13: 31 | BH13: 28 | BI13: 31 | BJ13: 30 | BK13: 31 | BL13: 30 | BM13: 31 | BN13: 31 | BO13: 30 | BP13: 31 | BQ13: 30 | BR13: 31 | BS13: 31 | BT13: 28 | BU13: 31 | BV13: 30 | BW13: 31 | BX13: =(BX7-BX6)+1 -> 30 | BY13: 31 | BZ13: 31 | CA13: 30 | CB13: 31 | CC13: 30 | CD13: 31 | CE13: 31 | CF13: 29 | CG13: 31 | CH13: 30 | CI13: 31 | CJ13: 30 | CK13: 31 | CL13: 31 | CM13: 30 | CN13: 31 | CO13: 30 | CP13: 31 | CQ13: 31 | CR13: 28 | CS13: 31 | CT13: 30 | CU13: 31 | CV13: 30 | CW13: 31 | CX13: 31 | CY13: 30 | CZ13: 31 | DA13: 30 | DB13: 31 | DC13: 31 | DD13: 28 | DE13: 31 | DF13: 30 | DG13: 184 | DH13: 181 | DI13: 184 | DJ13: 182 | DK13: 184 | DL13: 181 | DM13: 184 | DN13: 181 | DO13: 184 | DP13: 181 | DQ13: 184 | DR13: 182 | DS13: 184 | DT13: 181 | DU13: 184 | DV13: 181 | DW13: 184 | DX13: 181 | DY13: 184 | DZ13: 182 | EA13: 184 | EB13: 181 | EC13: 184 | ED13: 181 | EE13: 184 | EF13: 181 | EG13: 184 | EH13: 182 | EI13: 184 | EJ13: =(EJ7-EJ6)+1 -> 181 | EK13: 184 | EL13: 181 | EM13: 184 | EN13: 181 | EO13: 184 | EP13: 182 | EQ13: 184 | ER13: 181 | ES13: 184 | ET13: 181 | EU13: 184 | EV13: 181 | EW13: 184 | EX13: 182 | EY13: 184 | EZ13: 181 | FA13: 184 | FB13: 181 | FC13: 184 | FD13: 181 | FE13: 184 | FF13: 182 | FG13: 184 | FH13: 181 | FI13: 184 | FJ13: 181 | FK13: 184 | FL13: 181 | FM13: 184 | FN13: 182 | FO13: 184 | FP13: 181 | FQ13: 184 | FR13: 181 | FS13: 184 | FT13: 181 | FU13: 184 | FV13: 182 | FW13: 184 | FX13: 181 | FY13: 184 | FZ13: 181 | GA13: 184 | GB13: 181 | GC13: 184 | GD13: 182 | GE13: 184 | GF13: 181 | GG13: 184 | GH13: 181 | GI13: 184 | GJ13: 181 | GK13: 184 | GL13: 182 | GM13: 184 | GN13: 181 | GO13: 184 | GP13: 181 | GQ13: 184 | GR13: 181 | GS13: 184 | GT13: 182 | GU13: 184 | GV13: =(GV7-GV6)+1 -> 181 | GW13: 184 | GX13: 181 | GY13: 184 | GZ13: 181 | HA13: 184 | HB13: 182 | HC13: 184 | HD13: 181 | HE13: 184 | HF13: 181 | HG13: 184 | HH13: 181 | HI13: 184 | HJ13: 182 | HK13: 184 | HL13: 181 | HM13: 184 | HN13: 181 | HO13: 184 | HP13: 181 | HQ13: 184 | HR13: 182 | HS13: 184 | HT13: 181 | HU13: 184 | HV13: 181 | HW13: 31 | HX13: 30 | HY13: 31 | HZ13: 31 | IA13: 30 | IB13: 31 | IC13: 30 | ID13: 31 | IE13: 31 | IF13: 28 | IG13: 31 | IH13: 30 | II13: 31 | IJ13: 30 | IK13: 31 | IL13: 31 | IM13: 30 | IN13: 31 | IO13: 30 | IP13: 31 | IQ13: 31 | IR13: 29 | IS13: 31 | IT13: 30 | IU13: 31 | IV13: 30 | IW13: 31 | IX13: 31 | IY13: 30 | IZ13: 31 | JA13: 30 | JB13: 31 | JC13: 31 | JD13: 28 | JE13: 31 | JF13: 30 | JG13: 31 | JH13: =(JH7-JH6)+1 -> 30 | JI13: 31 | JJ13: 31 | JK13: 30 | JL13: 31 | JM13: 30 | JN13: 31 | JO13: 31 | JP13: 28 | JQ13: 31 | JR13: 30 | JS13: 31 | JT13: 30 | JU13: 31 | JV13: 31 | JW13: 30 | JX13: 31 | JY13: 30 | JZ13: 31 | KA13: 31 | KB13: 28 | KC13: 31 | KD13: 30 | KE13: 31 | KF13: 30 | KG13: 31 | KH13: 31 | KI13: 30 | KJ13: 31 | KK13: 30 | KL13: 31 | KM13: 31 | KN13: 28 | KO13: 31 | KP13: 30 | KQ13: 31 | KR13: 30 | KS13: 31 | KT13: 31 | KU13: 30 | KV13: 31 | KW13: 30 | KX13: 31 | KY13: 31 | KZ13: 28 | LA13: 31 | LB13: 30 | LC13: 31 | LD13: 30 | LE13: 31 | LF13: 31 | LG13: 30 | LH13: 31 | LI13: 30 | LJ13: 31 | LK13: 31 | LL13: 28 | LM13: 31 | LN13: 30 | LO13: 31 | LP13: 30 | LQ13: 31 | LR13: 31 | LS13: 30 | LT13: =(LT7-LT6)+1 -> 31 | LU13: 30 | LV13: 31 | LW13: 31 | LX13: 28 | LY13: 31 | LZ13: 30 | MA13: 31 | MB13: 30 | MC13: 31 | MD13: 31 | ME13: 30 | MF13: 31 | MG13: 30 | MH13: 31 | MI13: 31 | MJ13: 29 | MK13: 31 | ML13: 30 | MM13: 31 | MN13: 30 | MO13: 31 | MP13: 31 | MQ13: 30 | MR13: 31 | MS13: 30 | MT13: 31 | MU13: 31 | MV13: 28 | MW13: 31 | MX13: 30 | MY13: 31 | MZ13: 30 | NA13: 31 | NB13: 31 | NC13: 30 | ND13: 31 | NE13: 30 | NF13: 31 | NG13: 31 | NH13: 28 | NI13: 31 | NJ13: 30 | NK13: 31 | NL13: 30 | NM13: 31 | NN13: 31 | NO13: 30 | NP13: 31 | NQ13: 30 | NR13: 31 | NS13: 31 | NT13: 28 | NU13: 31 | NV13: 30 | NW13: 31 | NX13: 30 | NY13: 31 | NZ13: 31 | OA13: 30 | OB13: 31 | OC13: 30 | OD13: 31 | OE13: 31 | OF13: =(OF7-OF6)+1 -> 29 | OG13: 31 | OH13: 30 | OI13: 31 | OJ13: 30 | OK13: 31 | OL13: 31 | OM13: 30 | ON13: 31 | OO13: 30 | OP13: 31 | OQ13: 31 | OR13: 28 | OS13: 31 | OT13: 30 | OU13: 31 | OV13: 30 | OW13: 31 | OX13: 31 | OY13: 30 | OZ13: 31 | PA13: 30 | PB13: 31 | PC13: 31 | PD13: 28 | PE13: 31 | PF13: 30 | PG13: 31 | PH13: 30 | PI13: 31 | PJ13: 31 | PK13: 30 | PL13: 31 | PM13: 30 | PN13: 31 | PO13: 31 | PP13: 28 | PQ13: 31 | PR13: 30 | PS13: 31 | PT13: 30 | PU13: 31 | PV13: 31 | PW13: 30 | PX13: 31 | PY13: 30 | PZ13: 31 | QA13: 31 | QB13: 29 | QC13: 31 | QD13: 30 | QE13: 31 | QF13: 30 | QG13: 31 | QH13: 31 | QI13: 30 | QJ13: 31 | QK13: 30 | QL13: 31 | QM13: 31 | QN13: 28 | QO13: 31 | QP13: 30 | QQ13: 31 | QR13: =(QR7-QR6)+1 -> 30 | QS13: 31 | QT13: 31 | QU13: 30 | QV13: 31 | QW13: 30 | QX13: 31 | QY13: 31 | QZ13: 28 | RA13: 31 | RB13: 30 | RC13: 31 | RD13: 30 | RE13: 31 | RF13: 31 | RG13: 30 | RH13: 31 | RI13: 30 | RJ13: 31 | RK13: 31 | RL13: 28 | RM13: 31 | RN13: 30 | RO13: 31 | RP13: 30 | RQ13: 31 | RR13: 31 | RS13: 30 | RT13: 31 | RU13: 30 | RV13: 31 | RW13: 31 | RX13: 29 | RY13: 31 | RZ13: 30 | SA13: 31 | SB13: 30 | SC13: 31 | SD13: 31 | SE13: 30 | SF13: 31 | SG13: 30 | SH13: 31 | SI13: 31 | SJ13: 28 | SK13: 31 | SL13: 30 | SM13: 31 | SN13: 30 | SO13: 31 | SP13: 31
